Workbook

Sheet Start
B2: Start
B4: Inhalt
B6: Diese Excel-Datei beinhaltet Datenzusammenstellungen zu folgenden Themen:
C8: - Umsatz der Schweizerischen chemischen Industrie
C10: - Schweizerischer Import und Export von chemischen Erzeugnissen
C12: - Inlandnachfrage von chemischen Erzeugnissen in der Schweiz
C14: - Produktion von chemischen Erzeugnissen in der Schweiz
B16: Informationen zu den aufgeführten Kategorien (Warenarten, Ländereinteilung) und zu den Statistiken sind im Glossar zu finden.
B18: Hintergrund
B20: In den vergangenen Jahrzehnten, ist die Nachfrage nach chemischen Produkten stark angestiegen und Chemikalien sind heute zu einem festen Bestandteil unseres Alltags geworden. Chemikalien finden Verwendung in einer Vielzahl von Produkten und Prozessen und es gibt kaum eine Branche oder Industrie, in welcher Chemikalien keine essenzielle Rolle spielen. Mehr als 193 Millionen organische und anorganische Chemikalien sind bisher in der CAS-Datenbank registriert worden.1 10’000-100'000 davon befinden sich weltweit im kommerziellen Handel und sind in Millionen von verschiedenen Produkten enthalten.2 Im Folgenden soll ein Überblick über den Umsatz, die Produktion und die Mengen der in der Schweiz gehandelten und verwendeten Chemikalien gegeben werden.
B21: 1 American Chemical Society, https://www.cas.org/about/cas-content, Stand 08.09.2022
B22: 2 Die Datenbank der Europäische Chemikalienagentur (ECHA) enthält 23'184 registrierte Einzelstoffe aus 93'505 Dossiers (Stand 5.März 2020). Eine gemeinsame Studie des Umweltprogrammes der Vereinten Nationen (engl. UN Environment, UNEP) und dem Branchenverband der globalen chemischen Industrie (engl. International Council of Chemical Associations, ICCA) schätzt die Anzahl der Industriechemikalien im Handel auf 40’000 bis 60'000 (SAICM/OEWG.3/INF/28, 14. März 2019).
B23: Hinweis
F25: Diese Datenzusammenstellung wurde von der Webseite der Schweizerischen Bundesverwaltung heruntergeladen.
F27: www.disclaimer.admin.ch
F30: Autor: | G30: Ressort Chemikalien und Arbeit (ABCH)

Sheet Umsatz
B2: Umsatz der Schweizerischen chemischen Industrie
B4: Entwicklung des Umsatzes der Schweizerischen chemischen Industrie
B5: Entwicklung des Umsatzes der Schweizerischen chemischen Industrie nach Sparten
B7: Jahr
C8: Anorganika | E8: Petrochemikalien und Derivate | G8: Polymere | I8: Fein- und Spezialchemikalien | K8: Konsumchemikalien | M8: Total an Chemikalien
C9: Umsatz (Mio. Euro) | D9: Veränderung im Vergleich zum Vorjahr | E9: Umsatz (Mio. Euro) | F9: Veränderung im Vergleich zum Vorjahr | G9: Umsatz (Mio. Euro) | H9: Veränderung im Vergleich zum Vorjahr | I9: Umsatz (Mio. Euro) | J9: Veränderung im Vergleich zum Vorjahr | K9: Umsatz (Mio. Euro) | L9: Veränderung im Vergleich zum Vorjahr | M9: Umsatz (Mio. Euro) | N9: Veränderung im Vergleich zum Vorjahr
B10: 2019 | C10: 14.659 | D10: =(C10/C11-1)*100 -> -30.954736 | E10: 2845.287 | F10: =(E10/E11-1)*100 -> -4.625738196 | G10: 129.676 | H10: =(G10/G11-1)*100 -> -6.045500652 | I10: 18087.663 | J10: =(I10/I11-1)*100 -> 11.64284758 | K10: 3214.302 | L10: =(K10/K11-1)*100 -> 8.495983258 | M10: 24291.587 | N10: =(M10/M11-1)*100 -> 8.899141506
B11: 2018 | C11: 21.231 | D11: =(C11/C12-1)*100 -> -27.25871107 | E11: 2983.286 | F11: =(E11/E12-1)*100 -> -4.238431471 | G11: 138.02 | H11: =(G11/G12-1)*100 -> -17.50050808 | I11: 16201.363 | J11: =(I11/I12-1)*100 -> 17.11458141 | K11: 2962.6 | L11: =(K11/K12-1)*100 -> -20.98469088 | M11: 22306.5 | N11: =(M11/M12-1)*100 -> 6.755296559
B12: 2017 | C12: 29.187 | D12: =(C12/C13-1)*100 -> -22.99960427 | E12: 3115.327 | F12: -6.814676688 | G12: 167.298 | H12: -10.1229713 | I12: 13833.771 | J12: 14.62897597 | K12: 3749.4 | L12: 5.435730154 | M12: 20894.982 | N12: 8.875664353
B13: 2016 | C13: 37.905 | D13: -24.03350903 | E13: 3343.152 | F13: 10.96605449 | G13: 186.141 | H13: -10.2021815 | I13: 12068.302 | J13: -0.1715768426 | K13: 3556.1 | L13: 24.65297252 | M13: 19191.6 | N13: 5.380028333
B14: 2015 | C14: 49.897 | D14: 3.628245067 | E14: 3012.77 | F14: 28.56767324 | G14: 207.289 | H14: 6.602177412 | I14: 12089.044 | J14: 4.468376805 | K14: 2852.8 | L14: 10.8356968 | M14: 18211.8 | N14: 8.845432052
B15: 2014 | C15: 48.15 | D15: -34.06909395 | E15: 2343.334 | F15: -3.97037972 | G15: 194.451 | H15: -12.41734979 | I15: 11571.965 | J15: -0.771433268 | K15: 2573.9 | L15: 1.566569332 | M15: 16731.8 | N15: -1.178874753
B16: 2013 | C16: 73.031 | D16: -34.14638545 | E16: 2440.22 | F16: -13.74202495 | G16: 222.02 | H16: -12.59984175 | I16: 11661.929 | J16: 91.37383191 | K16: 2534.2 | L16: -27.54874493 | M16: 16931.4 | N16: 32.42657698
B17: 2012 | C17: 110.899 | D17: -26.45125777 | E17: 2828.979 | F17: 6.047090656 | G17: 254.027 | H17: -39.37852892 | I17: 6093.795 | J17: -4.25611142 | K17: 3497.8 | L17: -0.730318121 | M17: 12785.5 | N17: -2.591861767
B18: 2011 | C18: 150.783 | D18: -13.40730148 | E18: 2667.663 | F18: 0.2963778959 | G18: 419.038 | H18: -26.68046605 | I18: 6364.683 | J18: -0.7854164601 | K18: 3523.533 | L18: 37.49299567 | M18: 13125.7 | N18: 5.996026875
B19: 2010 | C19: 174.129 | D19: 6.121217662 | E19: 2659.78 | F19: 4.935410069 | G19: 571.523 | H19: 14.41283454 | I19: 6415.068 | J19: -10.52535634 | K19: 2562.7 | L19: -24.53102453 | M19: 12383.2 | N19: -10.03000647
B20: 2009 | C20: 164.085 | D20: -36.00254297 | E20: 2534.683 | F20: -15.57931325 | G20: 499.527 | H20: -33.2729104 | I20: 7169.705 | J20: 2.740990197 | K20: 3395.7 | L20: 0.3490362716 | M20: 13763.7 | N20: -4.217633637
B21: 2008 | C21: 256.393 | D21: 4.940611161 | E21: 3002.443 | F21: 8.546073215 | G21: 748.612 | H21: -4.224371858 | I21: 6978.427 | J21: 1.395578679 | K21: 3383.889 | L21: 1.60291055 | M21: 14369.764 | N21: 2.605340178 | W21: Grafikoptionen:
B22: 2007 | C22: 244.322 | D22: 4.362497811 | E22: 2766.054 | F22: -4.368834529 | G22: 781.631 | H22: -1.293638516 | I22: 6882.378 | J22: -2.963059465 | K22: 3330.504 | L22: 10.93714713 | M22: 14004.889 | N22: -0.05853811564
B23: 2006 | C23: 234.109 | D23: 39.9311429 | E23: 2892.419 | F23: -1.47523885 | G23: 791.875 | H23: 10.58532893 | I23: 7092.534 | J23: -1.349444117 | K23: 3002.154 | L23: -10.09022262 | M23: 14013.092 | N23: -2.332361496
B24: 2005 | C24: 167.303 | D24: 4.542159791 | E24: 2935.728 | F24: 14.55931745 | G24: 716.076 | H24: 12.15727919 | I24: 7189.553 | J24: 8.839415095 | K24: 3339.074 | L24: -6.782426239 | M24: 14347.733 | N24: 5.896769247
B25: 2004 | C25: 160.034 | D25: 50.67554208 | E25: 2562.627 | F25: 17.7523624 | G25: 638.457 | H25: 14.65264285 | I25: 6605.652 | J25: 16.7669237 | K25: 3582.022 | L25: 0.9566016108 | M25: 13548.792 | N25: 12.48884455
B26: 2003 | C26: 106.211 | D26: -15.75636917 | E26: 2176.285 | F26: -4.318975292 | G26: 556.862 | H26: -2.111539638 | I26: 5657.126 | J26: -1.762436751 | K26: 3548.081 | L26: -3.505619554 | M26: 12044.565 | N26: -2.906110163
B27: 2002 | C27: 126.076 | D27: -19.25710077 | E27: 2274.521 | F27: 13.31437886 | G27: 568.874 | H27: 3.089940071 | I27: 5758.618 | J27: 8.309073927 | K27: 3676.982 | L27: 8.731472755 | M27: 12405.07 | N27: 8.685028098
B28: 2001 | C28: 156.145 | D28: 5.35886588 | E28: 2007.266 | F28: 23.68488995 | G28: 551.823 | H28: 11.87218963 | I28: 5316.838 | J28: 8.311031826 | K28: 3381.709 | L28: 10.71398989 | M28: 11413.78 | N28: 11.59709134
B29: 2000 | C29: 148.203 | D29: 66.90654774 | E29: 1622.887 | F29: 30.52063101 | G29: 493.262 | H29: 18.51789559 | I29: 4908.861 | J29: 11.6439093 | K29: 3054.455 | L29: 14.59434617 | M29: 10227.668 | N29: 16.08205138
B30: 1999 | C30: 88.794 | D30: 5.398475892 | E30: 1243.395 | F30: -14.00510688 | G30: 416.192 | H30: -7.841587228 | I30: 4396.891 | J30: -2.556919295 | K30: 2665.45 | L30: -6.245955011 | M30: 8810.723 | N30: -5.636821539
B31: 1998 | C31: 84.246 | D31: -4.630048904 | E31: 1445.894 | F31: -7.839800318 | G31: 451.605 | H31: -6.532510431 | I31: 4512.266 | J31: -0.0858697154 | K31: 2843.024 | L31: 2.358878793 | M31: 9337.035 | N31: -1.028296982
B32: 1997 | C32: 88.336 | D32: 23.59525409 | E32: 1568.892 | F32: 15.6570977 | G32: 483.168 | H32: 16.3730253 | I32: 4516.144 | J32: 1.928430738 | K32: 2777.506 | L32: -0.3685012334 | M32: 9434.045 | N32: 4.109640591
B33: 1996 | C33: 71.472 | D33: -40.38485599 | E33: 1356.503 | F33: -25.38286235 | G33: 415.189 | H33: -14.90267453 | I33: 4430.701 | J33: 41.54070313 | K33: 2787.779 | L33: -9.183873582 | M33: 9061.644 | N33: 5.053123935
B34: 1995 | C34: 119.889 | D34: -0.3424742936 | E34: 1817.951 | F34: 4.969680382 | G34: 487.899 | H34: -1.28537669 | I34: 3130.337 | J34: 28.40574966 | K34: 3069.696 | L34: 0.3984611022 | M34: 8625.773 | N34: 9.997402381
B35: 1994 | C35: 120.301 | D35: 7.057933612 | E35: 1731.882 | F35: 28.95688957 | G35: 494.252 | H35: 6.076774163 | I35: 2437.848 | J35: 19.82870996 | K35: 3057.513 | L35: 13.33184572 | M35: 7841.797 | N35: 17.8582223
B36: 1993 | C36: 112.37 | D36: 5.425614756 | E36: 1342.993 | F36: 18.76002568 | G36: 465.938 | H36: 4.936264132 | I36: 2034.444 | J36: 12.8617069 | K36: 2697.841 | L36: 9.032884365 | M36: 6653.585 | N36: 11.66749743
B37: 1992 | C37: 106.587 | D37: 2.436281859 | E37: 1130.846 | F37: 7.580563224 | G37: 444.02 | H37: 2.261630585 | I37: 1802.599 | J37: 5.249332338 | K37: 2474.337 | L37: 3.79322206 | M37: 5958.39 | N37: 4.790188003
B38: 1991 | C38: 104.052 | D38: NA | E38: 1051.162 | F38: NA | G38: 434.2 | H38: NA | I38: 1712.694 | J38: NA | K38: 2383.91 | L38: NA | M38: 5686.019 | N38: NA
B39: Basierend auf Daten von Eurostat, berechnet durch FERI zur Verfügung gestellt vom Deutschen Verband der Chemischen Industrie (VCI). BfS publiziert keine absoluten Umsatzzahlen.
B41: Entwicklung des Umsatzes der Schweizerischen chemischen Industrie
B42: Entwicklung des Umsatzes der Schweizerischen chemischen Industrie nach
B43: NOGA 2008
B44: Kokerei, Mineralölverarbeitung und Herstellung von chemischen Erzeugnissen (Code 19-20)
B46: Jahr | C46: Umsatz (Mio. CHF) | D46: Veränderung im Vergleich zum Vorjahr
B47: 2019 | C47: NA | D47: NA
B48: 2018 | C48: 26543.836 | D48: =(C48/C49-1)*100 -> 12.65224423
B49: 2017 | C49: 23562.634 | D49: 11.49372781
B50: 2016 | C50: 21133.596 | D50: 2.836190116
B51: 2015 | C51: 20550.738 | D51: -8.840143602
B52: 2014 | C52: 22543.627 | D52: -3.882066495
B53: 2013 | C53: 23454.132 | D53: -2.241460566
B54: 2012 | C54: 23991.901 | D54: 33.6057416
B55: 2011 | C55: 17957.238 | D55: -0.1238854536
B56: 2010 | C56: 17979.512 | D56: =(C56/C57-1)*100 -> -11.76596046
B57: 2009 | C57: 20377.07 | D57: NA
B58: Basierend auf Daten der Wertschöpfungsstatistik des Bundesamtes für Statistik (BfS)
B61: NOGA 2002 | F61: Wirtschaftsabteilungen
B62: Herstellung von chemischen Erzeugnissen (Code 24) | F62: Chemische Industrie (Code 24)
B64: Jahr | C64: Umsatz (Mio. CHF) | D64: Veränderung im Vergleich zum Vorjahr | F64: Jahr | G64: Umsatz (Mio. CHF) | H64: Veränderung im Vergleich zum Vorjahr
B65: 2008 | C65: 64630.182 | D65: =(C65/C66-1)*100 -> 5.609643965 | F65: 2001 | G65: 41407.54 | H65: =(G65/G66-1)*100 -> 9.478246337
B66: 2007 | C66: 61197.235 | D66: 2.556641433 | F66: 2000 | G66: 37822.619 | H66: 13.80199217
B67: 2006 | C67: 59671.645 | D67: 12.5374037 | F67: 1999 | G67: 33235.463 | H67: =(G67/G68-1)*100 -> -9.768783795
B68: 2005 | C68: 53023.833 | D68: 10.12988114 | F68: 1998 | G68: 36833.664 | H68: =(G68/G69-1)*100 -> -0.9936954068
B69: 2004 | C69: 48146.636 | D69: 7.538000197 | F69: 1997 | G69: 37203.352 | H69: NA
B70: 2003 | C70: 44771.742 | D70: =(C70/C71-1)*100 -> -4.83267325
B71: 2002 | C71: 47045.287 | D71: NA
B73: Entwicklung des Umsatzes der Schweizerischen chemischen Industrie im Vergleich zu anderen ausgewählten Wirtschaftssektoren
B74: Indizes der Entwicklung des Umsatzes der Schweizerischen chemischen Industrie im Vergleich zu anderen ausgewählten Wirtschaftssektoren (Codierung)
B75: Jahr
C76: Kokerei, Mineralölver-arbeitung und Herstellung von chemischen Erzeugnissen (CD+CE) | E76: Herstellung von Nahrungsmitteln und Tabakerzeugnissen (CA) | G76: Herstellung von pharmazeutischen Erzeugnissen (CF) | I76: Herstellung von Gummi- und Kunststoffwaren (CG) | K76: Herstellung von Datenverarbeitungsgeräten und Uhren (CI) | M76: Maschinenbau (CK)
C78: Umsatz (Index) | D78: Veränderung im Vergleich zum Vorjahr (%) | E78: Umsatz (Index) | F78: Veränderung im Vergleich zum Vorjahr (%) | G78: Umsatz (Index) | H78: Veränderung im Vergleich zum Vorjahr (%) | I78: Umsatz (Index) | J78: Veränderung im Vergleich zum Vorjahr (%) | K78: Umsatz (Index) | L78: Veränderung im Vergleich zum Vorjahr (%) | M78: Umsatz (Index) | N78: Veränderung im Vergleich zum Vorjahr (%)
B79: 2019 | C79: 124.8 | D79: 2.2 | E79: 108.1 | F79: 1.9 | G79: 128.2 | H79: 11.5 | I79: 108.9 | J79: -3.8 | K79: 112.7 | L79: 4.1 | M79: 105.7 | N79: -4.9
B80: 2018 | C80: 122.1 | D80: 13.5 | E80: 106 | F80: 4.8 | G80: 115 | H80: 6.6 | I80: 113.2 | J80: 10.9 | K80: 108.2 | L80: 9.2 | M80: 111.1 | N80: 5.6
B81: 2017 | C81: 107.6 | D81: 8.4 | E81: 101.1 | F81: 0.1 | G81: 107.9 | H81: 6.6 | I81: 102.1 | J81: 3.5 | K81: 99.1 | L81: 4 | M81: 105.2 | N81: 6.2
B82: 2016 | C82: 99.3 | D82: -0.7 | E82: 101.1 | F82: 1.1 | G82: 101.2 | H82: 1.2 | I82: 98.6 | J82: -1.4 | K82: 95.3 | L82: -4.7 | M82: 99 | N82: -1
B83: 2015 | C83: 100 | D83: -20.6 | E83: 100 | F83: -2.4 | G83: 100 | H83: -4.5 | I83: 100 | J83: -5.9 | K83: 100 | L83: -3.4 | M83: 100 | N83: -5.2
B84: 2014 | C84: 126 | D84: -1.9 | E84: 102.5 | F84: 1.7 | G84: 104.7 | H84: 1 | I84: 106.2 | J84: 1.5 | K84: 103.5 | L84: 2.9 | M84: 105.4 | N84: 1
B85: 2013 | C85: 128.4 | D85: 9.9 | E85: 100.8 | F85: 1.2 | G85: 103.7 | H85: 4.3 | I85: 104.6 | J85: 2.4 | K85: 100.6 | L85: -2.3 | M85: 104.4 | N85: -4
B86: 2012 | C86: 116.8 | D86: -4.4 | E86: 99.5 | F86: 0 | G86: 99.4 | H86: 9.3 | I86: 102.1 | J86: -5.9 | K86: 102.9 | L86: 5 | M86: 108.8 | N86: -9.1
B87: 2011 | C87: 122.2 | D87: 1.8 | E87: 99.5 | F87: 0.2 | G87: 91 | H87: -4.4 | I87: 108.5 | J87: -1 | K87: 98 | L87: 8.5 | M87: 119.6 | N87: 6
B88: 2010 | C88: 120 | D88: -1.2 | E88: 99.4 | F88: 0.6 | G88: 95.1 | H88: 2.1 | I88: 109.6 | J88: 5.4 | K88: 90.3 | L88: 11.3 | M88: 112.8 | N88: 9.2
B89: 2009 | C89: 121.4 | D89: -13.7 | E89: 98.8 | F89: -1.9 | G89: 93.2 | H89: 11.6 | I89: 104 | J89: -11.4 | K89: 81.1 | L89: -14.5 | M89: 103.3 | N89: -23.2
B90: 2008 | C90: 140.8 | D90: 1.2 | E90: 100.7 | F90: 9 | G90: 83.5 | H90: 1.4 | I90: 117.3 | J90: 5 | K90: 94.9 | L90: 5 | M90: 134.6 | N90: 4.6
B91: 2007 | C91: 139.1 | D91: 1.8 | E91: 92.4 | F91: 4.2 | G91: 82.3 | H91: 23.2 | I91: 111.7 | J91: 8.6 | K91: 90.5 | L91: 14.3 | M91: 128.8 | N91: 11.8
B92: 2006 | C92: 136.6 | D92: 12.7 | E92: 88.7 | F92: 8.8 | G92: 66.8 | H92: 14.7 | I92: 102.9 | J92: 7.7 | K92: 79.1 | L92: 7.7 | M92: 115.2 | N92: 12.2
B93: 2005 | C93: 121.2 | D93: 5.9 | E93: 81.6 | F93: 1.4 | G93: 58.3 | H93: 8.3 | I93: 95.5 | J93: 5.9 | K93: 73.5 | L93: 9.6 | M93: 102.7 | N93: -0.8
B94: 2004 | C94: 114.5 | D94: 7.1 | E94: 80.4 | F94: 1.9 | G94: 53.8 | H94: 8.2 | I94: 90.2 | J94: 9.8 | K94: 67 | L94: 4.9 | M94: 103.5 | N94: 6.9
B95: 2003 | C95: 106.9 | D95: 2.2 | E95: 78.9 | F95: 2.5 | G95: 49.7 | H95: 5.1 | I95: 82.1 | J95: 2.3 | K95: 63.9 | L95: -1.8 | M95: 96.8 | N95: -5.8
B96: 2002 | C96: 104.6 | D96: -1.3 | E96: 77 | F96: 2.1 | G96: 47.3 | H96: 7.5 | I96: 80.3 | J96: -2.8 | K96: 65.1 | L96: -5.2 | M96: 102.7 | N96: -7.4
B97: 2001 | C97: 106 | D97: 5.3 | E97: 75.4 | F97: -2.1 | G97: 44 | H97: 20.9 | I97: 82.6 | J97: 5.4 | K97: 68.6 | L97: -1 | M97: 110.9 | N97: -2.6
B98: 2000 | C98: 100.6 | D98: 12.1 | E98: 77 | F98: 1.4 | G98: 36.4 | H98: 5.3 | I98: 78.3 | J98: 11 | K98: 69.3 | L98: 9.9 | M98: 113.8 | N98: 17.2
B99: 1999 | C99: 89.8 | D99: NA | E99: 76 | F99: NA | G99: 34.5 | H99: NA | I99: 70.6 | J99: NA | K99: 63.1 | L99: NA | M99: 97.1 | N99: NA
B100: Basierend auf Daten der Produktions-, Auftrags- und Umsatzstatistik der Industrie, INDPAU, BAPAU, Bundesamtes für Statistik (BfS)
B101: Bemerkungen: - Stand der Datenbank: 25.05.2020 - Indizes: Jahresdurchschnitt 2015=100 - Veränderungen: zum Vorjahr in %; saisonbereinigt: zur Vorperiode in %. - Die Zahlen vor dem 4.Quartal 2011 basieren auf der alten PAUL-Statistik und wurden in die neue Nomenklatur Noga2008 überführt. - Die Produktion wird durch die Deflationierung des Umsatzes berechnet. Da der Produktionspreisindex in der heutigen Form erst seit 2004 existiert, können vor diesem Datum keine Produktionszahlen berechnet werden.

Sheet Importe und Exporte
B2: Schweizerischer Import und Export von chemischen Erzeugnissen
B4: Bitte wählen Sie die Jahre an, für welche die Schweizer Importe und Exporte angezeigt werden sollen:
B6: Zu beachten: Seit 2012 wrid das Ursprungsland anstelle des Erzeugungslandes in der Aussenhandelsstatistik ausgewiesen
B8: Entwicklung der Schweizerischen Importes und Exportes von chemischen Industrieprodukten
B9: Entwicklung der Importe von Chemischen Produkten exklusive Pharmazeutika*: Schweiz - Welt
B10: * Chemische Produkte der Warenkategorie 06 exklusive der Unterwarenartkategorie 06.2.1 Pharmazeutische Produkte, Vitamine, Diagnostika, (inkl. Wirksubstanzen)
B12: Jahr | C12: Handelspartner | D12: Import | F12: Export | H12: Handelsvolumen | K12: Grafikoptionen:
D13: Menge (Tonnen) | E13: Wert (Mio. CHF) | F13: Menge (Tonnen) | G13: Wert (Mio. CHF) | H13: Menge (Tonnen) | I13: Wert (Mio. CHF)
B14: 2019 | C14: Gesamthandel: Schweiz- Welt | D14: 5269478.227 | E14: 14997.24417 | F14: 1687046.427 | G14: 17025.19712 | H14: 6956524.654 | I14: 32022.44129
B15: 2018 | C15: Gesamthandel: Schweiz- Welt | D15: 5328847.143 | E15: 13425.82683 | F15: 1743208.606 | G15: 16032.43324 | H15: 7072055.749 | I15: 29458.26006
B16: 2017 | C16: Gesamthandel: Schweiz- Welt | D16: 5199472.343 | E16: 11459.95931 | F16: 1744665.774 | G16: 14706.63745 | H16: 6944138.117 | I16: 26166.59676
B17: 2016 | C17: Gesamthandel: Schweiz- Welt | D17: 5224234.015 | E17: 11169.438 | F17: 1702232.901 | G17: 13934.54981 | H17: 6926466.916 | I17: 25103.98781
B18: 2015 | C18: Gesamthandel: Schweiz- Welt | D18: 5186635.962 | E18: 10980.1394 | F18: 1687775.882 | G18: 14346.24283 | H18: 6874411.844 | I18: 25326.38222
B19: 2014 | C19: Gesamthandel: Schweiz- Welt | D19: 5166544.718 | E19: 12402.80292 | F19: 1704143.616 | G19: 14537.95823 | H19: 6870688.334 | I19: 26940.76115
B20: 2013 | C20: Gesamthandel: Schweiz- Welt | D20: 5137861.552 | E20: 12442.46453 | F20: 1715613.76 | G20: 14381.26504 | H20: 6853475.312 | I20: 26823.72957
B21: 2012 | C21: Gesamthandel: Schweiz- Welt | D21: 5068141.973 | E21: 12204.97746 | F21: 1676157.937 | G21: 14745.14295 | H21: 6744299.91 | I21: 26950.12041
B22: 2011 | C22: Gesamthandel: Schweiz- Welt | D22: 5099776.653 | E22: 12280.25124 | F22: 1708742.956 | G22: 14440.10571 | H22: 6808519.609 | I22: 26720.35695
B23: 2010 | C23: Gesamthandel: Schweiz- Welt | D23: 5209984.939 | E23: 12585.44216 | F23: 1669665.378 | G23: 15232.35606 | H23: 6879650.317 | I23: 27817.79822
B24: 2009 | C24: Gesamthandel: Schweiz- Welt | D24: 4789755.391 | E24: 11491.2088 | F24: 1460254.83 | G24: 13584.9928 | H24: 6250010.221 | I24: 25076.2016
B25: 2008 | C25: Gesamthandel: Schweiz- Welt | D25: 5367525.758 | E25: 14523.6421 | F25: 1775118.212 | G25: 16643.84117 | H25: 7142643.97 | I25: 31167.48328
B26: 2007 | C26: Gesamthandel: Schweiz- Welt | D26: 5310432.328 | E26: 17990.58912 | F26: 1850812.733 | G26: 17670.60591 | H26: 7161245.061 | I26: 35661.19504
B27: 2006 | C27: Gesamthandel: Schweiz- Welt | D27: 5185152.117 | E27: 14242.56015 | F27: 1767223.569 | G27: 16352.13488 | H27: 6952375.686 | I27: 30594.69503
B28: 2005 | C28: Gesamthandel: Schweiz- Welt | D28: 5088012.487 | E28: 13630.02667 | F28: 1675158.948 | G28: 15045.49608 | H28: 6763171.435 | I28: 28675.52275
B29: 2004 | C29: Gesamthandel: Schweiz- Welt | D29: 4783080.898 | E29: 12195.23492 | F29: 1698795.862 | G29: 14782.1056 | H29: 6481876.76 | I29: 26977.34052
B30: 2003 | C30: Gesamthandel: Schweiz- Welt | D30: 4603803.16 | E30: 11385.09123 | F30: 1679877.504 | G30: 14245.83616 | H30: 6283680.664 | I30: 25630.92739
B31: 2002 | C31: Gesamthandel: Schweiz- Welt | D31: 4515217.458 | E31: 11879.89987 | F31: 1683041.696 | G31: 14121.61169 | H31: 6198259.154 | I31: 26001.51156
B32: 2001 | C32: Gesamthandel: Schweiz- Welt | D32: 4340127.206 | E32: 12512.94329 | F32: 1698678.675 | G32: 14094.77561 | H32: 6038805.881 | I32: 26607.71891
B33: 2000 | C33: Gesamthandel: Schweiz- Welt | D33: 4297830.722 | E33: 11527.49557 | F33: 1619288.776 | G33: 13815.73489 | H33: 5917119.498 | I33: 25343.23046
B34: 1999 | C34: Gesamthandel: Schweiz- Welt | D34: 4138957.816 | E34: 10542.56307 | F34: 1475999.722 | G34: 12883.54888 | H34: 5614957.538 | I34: 23426.11195
B35: 1998 | C35: Gesamthandel: Schweiz- Welt | D35: 4069260.313 | E35: 10302.84703 | F35: 1484539.304 | G35: 12907.16061 | H35: 5553799.617 | I35: 23210.00765
B36: 1997 | C36: Gesamthandel: Schweiz- Welt | D36: 3881450.244 | E36: 10410.20198 | F36: 1491909.842 | G36: 12891.88557 | H36: 5373360.086 | I36: 23302.08755
B37: 1996 | C37: Gesamthandel: Schweiz- Welt | D37: 3690268.962 | E37: 8964.829886 | F37: 1373631.799 | G37: 11804.0237 | H37: 5063900.761 | I37: 20768.85359
B38: 1995 | C38: Gesamthandel: Schweiz- Welt | D38: 3848825 | E38: 8961 | F38: 1278839 | G38: 11609 | H38: 5127664 | I38: 20570
B39: 1994 | C39: Gesamthandel: Schweiz- Welt | D39: 3848268 | E39: 8746 | F39: 1291553 | G39: 11696 | H39: 5139821 | I39: 20442
B40: 1993 | C40: Gesamthandel: Schweiz- Welt | D40: 3505405 | E40: 8265 | F40: 1198618 | G40: 11064 | H40: 4704023 | I40: 19329
B41: 1992 | C41: Gesamthandel: Schweiz- Welt | D41: 3668274 | E41: 8484 | F41: 1183204 | G41: 10817 | H41: 4851478 | I41: 19301
B42: 1991 | C42: Gesamthandel: Schweiz- Welt | D42: 3734936 | E42: 8283 | F42: 1122595 | G42: 10295 | H42: 4857531 | I42: 18578
B43: Basierend auf Daten von Swiss-Impex, Eidgenössische Zollverwaltung EZV
B45: Entwicklung der Importe von Chemischen Produkten exklusive Pharmazeutika*: Schweiz - EWR
B46: * Chemische Produkte der Warenkategorie 06 exklusive der Unterwarenartkategorie 06.2.1 Pharmazeutische Produkte, Vitamine, Diagnostika, (inkl. Wirksubstanzen)
B48: Jahr | C48: Handelspartner | D48: Import | H48: Export | L48: Handelsvolumen
D49: Menge (Tonnen) | E49: Mengen-anteil Gesamt-import | F49: Wert (Mio. CHF) | G49: Wertanteil an Gesamt-import | H49: Menge (Tonnen) | I49: Mengen-anteil Gesamt-export | J49: Wert (Mio. CHF) | K49: Wertanteil Gesamt-export | L49: Menge (Tonnen) | M49: Mengenanteil an Gesamt-handels-volumen | N49: Wert (Mio. CHF) | O49: Wertanteil an Gesamt-handels-volumen
B50: 2019 | C50: EWR-Staaten | D50: =D203 -> 4690921.978 | E50: =E203 -> 0.8902061601 | F50: 8354.952203 | G50: 0.5570991651 | H50: 1252214.793 | I50: 0.7422527163 | J50: 8475.639463 | K50: 0.497829153 | L50: 5943136.771 | M50: 0.8543255529 | N50: 16830.59167 | O50: 0.5255874003
B51: 2019 | C51: Nicht EWR-Staaten | D51: =D204 -> 578556.249 | E51: =E204 -> 0.1097938399 | F51: 6642.291963 | G51: 0.4429008349 | H51: 434831.634 | I51: 0.2577472837 | J51: 8549.557658 | K51: 0.502170847 | L51: 1013387.883 | M51: 0.1456744471 | N51: 15191.84962 | O51: 0.4744125997
B52: 2018 | C52: EWR-Staaten | D52: =D477 -> 4759160.166 | E52: 0.8930937665 | F52: 8482.220467 | G52: 0.631783843 | H52: 1301433.19 | I52: 0.7465734081 | J52: 8226.751384 | K52: 0.5131318037 | L52: 6060593.356 | M52: 0.856977599 | N52: 16708.97185 | O52: 0.567208376
B53: 2018 | C53: Nicht EWR-Staaten | D53: =D478 -> 569686.977 | E53: 0.1069062335 | F53: 4943.606359 | G53: 0.368216157 | H53: 441775.416 | I53: 0.2534265919 | J53: 7805.681852 | K53: 0.4868681963 | L53: 1011462.393 | M53: 0.143022401 | N53: 12749.28821 | O53: 0.432791624
B54: 2017 | C54: EWR-Staaten | D54: =D747 -> 4657819.585 | E54: 0.8958254372 | F54: 7705.4461 | G54: 0.6723798827 | H54: 1325305.999 | I54: 0.7596331737 | J54: 7550.406644 | K54: 0.5134012905 | L54: 5983125.584 | M54: 0.8616080906 | N54: 15255.85274 | O54: 0.5830277771
B55: 2017 | C55: Nicht EWR-Staaten | D55: =D748 -> 541652.758 | E55: 0.1041745628 | F55: 3754.513215 | G55: 0.3276201173 | H55: 419359.775 | I55: 0.2403668263 | J55: 7156.230802 | K55: 0.4865987095 | L55: 961012.533 | M55: 0.1383919094 | N55: 10910.74402 | O55: 0.4169722229
B56: 2016 | C56: EWR-Staaten | D56: =D1015 -> 4664974.944 | E56: 0.8929490774 | F56: 7375.497024 | G56: 0.6603283908 | H56: 1297578.706 | I56: 0.7622803585 | J56: 7481.602834 | K56: 0.5369102652 | L56: 5962553.65 | M56: 0.8608362275 | N56: 14857.09986 | O56: 0.591822302
B57: 2016 | C57: Nicht EWR-Staaten | D57: =D1016 -> 559259.071 | E57: 0.1070509226 | F57: 3793.940981 | G57: 0.3396716092 | H57: 404654.195 | I57: 0.2377196415 | J57: 6452.946976 | K57: 0.4630897348 | L57: 963913.266 | M57: 0.1391637725 | N57: 10246.88796 | O57: 0.408177698
B58: 2015 | C58: EWR-Staaten | D58: =D1284 -> 4656135.152 | E58: 0.8977177473 | F58: 7364.953133 | G58: 0.6707522434 | H58: 1296848.781 | I58: 0.7683773627 | J58: 7975.532305 | K58: 0.5559317796 | L58: 5952983.933 | M58: 0.8659626551 | N58: 15340.48544 | O58: 0.6057116766
B59: 2015 | C59: Nicht EWR-Staaten | D59: =D1285 -> 530500.81 | E59: 0.1022822527 | F59: 3615.186264 | G59: 0.3292477566 | H59: 390927.101 | I59: 0.2316226373 | J59: 6370.710521 | K59: 0.4440682204 | L59: 921427.911 | M59: 0.1340373449 | N59: 9985.896785 | O59: 0.3942883234
B60: 2014 | C60: EWR-Staaten | D60: =D1551 -> 4606934.276 | E60: 0.891685745 | F60: 8651.985991 | G60: 0.6975831227 | H60: 1301511.814 | I60: 0.7637336441 | J60: 8267.018685 | K60: 0.5686506008 | L60: 5908446.09 | M60: 0.859949659 | N60: 16919.00468 | O60: 0.6280076713
B61: 2014 | C61: Nicht EWR-Staaten | D61: =D1552 -> 559610.442 | E61: 0.108314255 | F61: 3750.816929 | G61: 0.3024168773 | H61: 402631.802 | I61: 0.2362663559 | J61: 6270.93955 | K61: 0.4313493992 | L61: 962242.244 | M61: 0.140050341 | N61: 10021.75648 | O61: 0.3719923287
B62: 2013 | C62: EWR-Staaten | D62: =D1820 -> 4599353.356 | E62: 0.8951882626 | F62: 8891.6244 | G62: 0.7146192281 | H62: 1308616.011 | I62: 0.7627684281 | J62: 7945.536555 | K62: 0.5524921859 | L62: 5907969.367 | M62: 0.8620399284 | N62: 16837.16095 | O62: 0.6276964921
B63: 2013 | C63: Nicht EWR-Staaten | D63: =D1821 -> 538508.196 | E63: 0.1048117374 | F63: 3550.840132 | G63: 0.2853807719 | H63: 406997.749 | I63: 0.2372315719 | J63: 6435.72848 | K63: 0.4475078141 | L63: 945505.945 | M63: 0.1379600716 | N63: 9986.568612 | O63: 0.3723035079
B64: 2012 | C64: EWR-Staaten | D64: =D2093 -> 4567520.666 | E64: 0.9012219252 | F64: 8668.630381 | G64: 0.7102536985 | H64: 1268903.909 | I64: 0.7570312326 | J64: 8220.267058 | K64: 0.5574898178 | L64: 5836424.575 | M64: 0.8653862748 | N64: 16888.89744 | O64: 0.6266724297
B65: 2012 | C65: Nicht EWR-Staaten | D65: =D2094 -> 500621.307 | E65: 0.09877807482 | F65: 3536.347079 | G65: 0.2897463015 | H65: 407254.028 | I65: 0.2429687674 | J65: 6524.875895 | K65: 0.4425101822 | L65: 907875.335 | M65: 0.1346137252 | N65: 10061.22297 | O65: 0.3733275703
B66: 2011 | C66: EWR-Staaten | D66: =D2360 -> 4648412.249 | E66: 0.9114932997 | F66: 9363.796642 | G66: 0.7625085561 | H66: 1300838.416 | I66: 0.7612838499 | J66: 8191.824417 | K66: 0.567296707 | L66: 5949250.665 | M66: 0.8737950401 | N66: 17555.62106 | O66: 0.6570129693
B67: 2011 | C67: Nicht EWR-Staaten | D67: =D2361 -> 451364.404 | E67: 0.08850670033 | F67: 2916.454599 | G67: 0.2374914439 | H67: 407904.54 | I67: 0.2387161501 | J67: 6248.28129 | K67: 0.432703293 | L67: 859268.944 | M67: 0.1262049599 | N67: 9164.735889 | O67: 0.3429870307
B68: 2010 | C68: EWR-Staaten | D68: =D2629 -> 4754323.49 | E68: 0.9125407358 | F68: 9332.641544 | G68: 0.7415426036 | H68: 1241503.727 | I68: 0.7435643952 | J68: 8375.542204 | K68: 0.5498520498 | L68: 5995827.217 | M68: 0.8715308105 | N68: 17708.18375 | O68: 0.6365774749
B69: 2010 | C69: Nicht EWR-Staaten | D69: =D2630 -> 455661.449 | E69: 0.08745926415 | F69: 3252.800612 | G69: 0.2584573964 | H69: 428161.651 | I69: 0.2564356048 | J69: 6856.813859 | K69: 0.4501479502 | L69: 883823.1 | M69: 0.1284691895 | N69: 10109.61447 | O69: 0.3634225251
B70: 2009 | C70: EWR-Staaten | D70: =D2896 -> 4443390.727 | E70: 0.9276863565 | F70: 8715.449785 | G70: 0.7584449936 | H70: 1096283.458 | I70: 0.7507480444 | J70: 7695.016439 | K70: 0.5664350768 | L70: 5539674.185 | M70: 0.8863464201 | N70: 16410.46622 | O70: 0.654423923
B71: 2009 | C71: Nicht EWR-Staaten | D71: =D2897 -> 346364.664 | E71: 0.07231364354 | F71: 2775.759016 | G71: 0.2415550064 | H71: 363971.372 | I71: 0.2492519556 | J71: 5889.976359 | K71: 0.4335649232 | L71: 710336.036 | M71: 0.1136535799 | N71: 8665.735375 | O71: 0.345576077
B72: 2008 | C72: EWR-Staaten | D72: =D3166 -> 4942871.328 | E72: 0.9208845101 | F72: 11236.43868 | G72: 0.7736653521 | H72: 1328761.846 | I72: 0.748548371 | J72: 9598.527361 | K72: 0.5767014514 | L72: 6271633.174 | M72: 0.8780548492 | N72: 20834.96604 | O72: 0.6684840691
B73: 2008 | C73: Nicht EWR-Staaten | D73: =D3167 -> 424654.43 | E73: 0.07911548992 | F73: 3287.203422 | G73: 0.2263346479 | H73: 446356.366 | I73: 0.251451629 | J73: 7045.31381 | K73: 0.4232985486 | L73: 871010.796 | M73: 0.1219451508 | N73: 10332.51723 | O73: 0.3315159309
B74: 2007 | C74: EWR-Staaten | D74: =D3440 -> 4866797.62 | E74: 0.9164597757 | F74: 14069.90981 | G74: 0.7820705433 | H74: 1381503.976 | I74: 0.7464309875 | J74: 10696.98112 | K74: 0.605354518 | L74: 6248301.596 | M74: 0.8725160978 | N74: 24766.89093 | O74: 0.6945053555
B75: 2007 | C75: Nicht EWR-Staaten | D75: =D3441 -> 443634.708 | E75: 0.08354022434 | F75: 3920.679314 | G75: 0.2179294567 | H75: 469308.757 | I75: 0.2535690125 | J75: 6973.624788 | K75: 0.394645482 | L75: 912943.465 | M75: 0.1274839022 | N75: 10894.3041 | O75: 0.3054946445
B76: 2006 | C76: EWR-Staaten | D76: =D3711 -> 4786479.042 | E76: 0.9231125595 | F76: 11243.29926 | G76: 0.7894156068 | H76: 1327776.398 | I76: 0.7513347045 | J76: 10189.62265 | K76: 0.6231371454 | L76: 6114255.44 | M76: 0.8794483665 | N76: 21432.92191 | O76: 0.7005437345
B77: 2006 | C77: Nicht EWR-Staaten | D77: =D3712 -> 398673.075 | E77: 0.07688744052 | F77: 2999.260886 | G77: 0.2105843932 | H77: 439447.171 | I77: 0.2486652955 | J77: 6162.512231 | K77: 0.3768628546 | L77: 838120.246 | M77: 0.1205516335 | N77: 9161.773117 | O77: 0.2994562655
B78: 2005 | C78: EWR-Staaten | D78: =D3982 -> 4720493.166 | E78: 0.9277676063 | F78: 11154.33188 | G78: 0.8183646408 | H78: 1249468.826 | I78: 0.7458807581 | J78: 9169.848742 | K78: 0.6094746688 | L78: 5969961.992 | M78: 0.8827163483 | N78: 20324.18062 | O78: 0.7087640842
B79: 2005 | C79: Nicht EWR-Staaten | D79: =D3983 -> 367519.321 | E79: 0.07223239368 | F79: 2475.69479 | G79: 0.1816353592 | H79: 425690.122 | I79: 0.2541192419 | J79: 5875.647341 | K79: 0.3905253312 | L79: 793209.443 | M79: 0.1172836517 | N79: 8351.342131 | O79: 0.2912359158
B80: 2004 | C80: EWR-Staaten | D80: =D4253 -> 4424911.479 | E80: 0.925117424 | F80: 10150.40029 | G80: 0.8323251135 | H80: 1277616.222 | I80: 0.7520716589 | J80: 8841.303705 | K80: 0.5981085471 | L80: 5702527.701 | M80: 0.8797649064 | N80: 18991.704 | O80: 0.7039872585
B81: 2004 | C81: Nicht EWR-Staaten | D81: =D4254 -> 358169.419 | E81: 0.07488257603 | F81: 2044.834631 | G81: 0.1676748865 | H81: 421179.64 | I81: 0.2479283411 | J81: 5940.801897 | K81: 0.4018914529 | L81: 779349.059 | M81: 0.1202350936 | N81: 7985.636528 | O81: 0.2960127415
B82: 2003 | C82: EWR-Staaten | D82: =D4527 -> 4259889.603 | E82: 0.925297945 | F82: 9259.604223 | G82: 0.8133096202 | H82: 1295388.514 | I82: 0.7711208174 | J82: 8781.908317 | K82: 0.6164543955 | L82: 5555278.117 | M82: 0.884080273 | N82: 18041.51254 | O82: 0.7038962058
B83: 2003 | C83: Nicht EWR-Staaten | D83: =D4528 -> 343913.557 | E83: 0.07470205503 | F83: 2125.487006 | G83: 0.1866903798 | H83: 384488.99 | I83: 0.2288791826 | J83: 5463.927841 | K83: 0.3835456045 | L83: 728402.547 | M83: 0.115919727 | N83: 7589.414847 | O83: 0.2961037942
B84: 2002 | C84: EWR-Staaten | D84: =D4797 -> 4165640.219 | E84: 0.9225779838 | F84: 9259.920987 | G84: 0.7794611984 | H84: 1306989.926 | I84: 0.7765641987 | J84: 8334.799727 | K84: 0.5902158979 | L84: 5472630.145 | M84: 0.882930192 | N84: 17594.72071 | O84: 0.6766806873
B85: 2002 | C85: Nicht EWR-Staaten | D85: =D4798 -> 349577.239 | E85: 0.07742201616 | F85: 2619.97888 | G85: 0.2205388016 | H85: 376051.77 | I85: 0.2234358013 | J85: 5786.811968 | K85: 0.4097841021 | L85: 725629.009 | M85: 0.117069808 | N85: 8406.790848 | O85: 0.3233193127
B86: 2001 | C86: EWR-Staaten | D86: =D5070 -> 3987953.712 | E86: 0.918856412 | F86: 9991.270569 | G86: 0.7984748541 | H86: 1318988.615 | I86: 0.7764791743 | J86: 7972.088281 | K86: 0.5656059025 | L86: 5306942.327 | M86: 0.8788065773 | N86: 17963.35885 | O86: 0.6751183336
B87: 2001 | C87: Nicht EWR-Staaten | D87: =D5071 -> 352173.494 | E87: 0.08114358803 | F87: 2521.672723 | G87: 0.2015251459 | H87: 379690.06 | I87: 0.2235208257 | J87: 6122.687333 | K87: 0.4343940975 | L87: 731863.554 | M87: 0.1211934227 | N87: 8644.360056 | O87: 0.3248816664
B88: 2000 | C88: EWR-Staaten | D88: =D5339 -> 3927349.455 | E88: 0.9137980784 | F88: 8772.825859 | G88: 0.7610348499 | H88: 1253567.663 | I88: 0.774147071 | J88: 7802.398786 | K88: 0.5647472862 | L88: 5180917.118 | M88: 0.8755809511 | N88: 16575.22465 | O88: 0.6540296697
B89: 2000 | C89: Nicht EWR-Staaten | D89: =D5340 -> 370481.267 | E89: 0.08620192161 | F89: 2754.669708 | G89: 0.2389651501 | H89: 365721.113 | I89: 0.225852929 | J89: 6013.336103 | K89: 0.4352527138 | L89: 736202.38 | M89: 0.1244190489 | N89: 8768.005811 | O89: 0.3459703303
B90: 1999 | C90: EWR-Staaten | D90: =D5604 -> 3756858.899 | E90: 0.907682336 | F90: 7980.692845 | G90: 0.756997401 | H90: 1153462.036 | I90: 0.7814784914 | J90: 7435.445884 | K90: 0.5771271531 | L90: 4910320.935 | M90: 0.874507225 | N90: 15416.13873 | O90: 0.6580750047
B91: 1999 | C91: Nicht EWR-Staaten | D91: =D5605 -> 382098.917 | E91: 0.09231766401 | F91: 2561.870226 | G91: 0.243002599 | H91: 322537.686 | I91: 0.2185215086 | J91: 5448.102992 | K91: 0.4228728469 | L91: 704636.603 | M91: 0.125492775 | N91: 8009.973218 | O91: 0.3419249953
B92: 1998 | C92: EWR-Staaten | D92: =D5873 -> 3701274.834 | E92: 0.9095694424 | F92: 7854.059317 | G92: 0.7623193172 | H92: 1144974.88 | I92: 0.7712661274 | J92: 7441.532749 | K92: 0.5765429727 | L92: 4846249.714 | M92: 0.8726007505 | N92: 15295.59207 | O92: 0.6590084889
B93: 1998 | C93: Nicht EWR-Staaten | D93: =D5874 -> 367985.479 | E93: 0.09043055757 | F93: 2448.787718 | G93: 0.2376806828 | H93: 339564.424 | I93: 0.2287338726 | J93: 5465.627863 | K93: 0.4234570273 | L93: 707549.903 | M93: 0.1273992495 | N93: 7914.415581 | O93: 0.3409915111
B94: 1997 | C94: EWR-Staaten | D94: =D6137 -> 3520162.669 | E94: 0.9069194367 | F94: 7838.319253 | G94: 0.7529459341 | H94: 1152369.597 | I94: 0.7724123567 | J94: 7434.036431 | K94: 0.5766446182 | L94: 4672532.266 | M94: 0.8695736357 | N94: 15272.35568 | O94: 0.6554071885
B95: 1997 | C95: Nicht EWR-Staaten | D95: =D6138 -> 361287.575 | E95: 0.09308056327 | F95: 2571.882726 | G95: 0.2470540659 | H95: 339540.245 | I95: 0.2275876433 | J95: 5457.849136 | K95: 0.4233553818 | L95: 700827.82 | M95: 0.1304263643 | N95: 8029.731862 | O95: 0.3445928115
B96: 1996 | C96: EWR-Staaten | D96: =D6400 -> 3370321.63 | E96: 0.9132997255 | F96: 6924.850326 | G96: 0.7724463726 | H96: 1041316.654 | I96: 0.75807553 | J96: 6662.696782 | K96: 0.5644428501 | L96: 4411638.284 | M96: 0.8711936691 | N96: 13587.54711 | O96: 0.6542271122
B97: 1996 | C97: Nicht EWR-Staaten | D97: =D6401 -> 319947.332 | E97: 0.0867002745 | F97: 2039.97956 | G97: 0.2275536274 | H97: 332315.145 | I97: 0.24192447 | J97: 5141.326921 | K97: 0.4355571499 | L97: 652262.477 | M97: 0.1288063309 | N97: 7181.306481 | O97: 0.3457728878
B98: 1995 | C98: EWR-Staaten | D98: =D6663 -> 3514764.088 | E98: 0.9132044424 | F98: 7003.51355 | G98: 0.7815549102 | H98: 968513.13 | I98: 0.7573378119 | J98: 6574.063685 | K98: 0.5662902649 | L98: 4483277.218 | M98: 0.874331317 | N98: 13577.57724 | O98: 0.6600669536
B99: 1995 | C99: Nicht EWR-Staaten | D99: =D6664 -> 334060.716 | E99: 0.08679550668 | F99: 1957.482525 | G99: 0.2184446518 | H99: 310326.612 | I99: 0.2426627683 | J99: 5034.816083 | K99: 0.4336993783 | L99: 644387.328 | M99: 0.1256687895 | N99: 6992.298608 | O99: 0.3399270106
B100: 1994 | C100: EWR-Staaten | D100: =D6923 -> 3514088.103 | E100: 0.9131609605 | F100: 6897.520236 | G100: 0.788648552 | H100: 991818.965 | I100: 0.7679274215 | J100: 6629.831543 | K100: 0.5668460622 | L100: 4505907.068 | M100: 0.8766661462 | N100: 13527.35178 | O100: 0.6617430672
B101: 1994 | C101: Nicht EWR-Staaten | D101: =D6924 -> 334179.642 | E101: 0.08683897327 | F101: 1848.103574 | G101: 0.2113084352 | H101: 299734.138 | I101: 0.2320726583 | J101: 5067.489604 | K101: 0.433266895 | L101: 633913.78 | M101: 0.1233338243 | N101: 6915.593178 | O101: 0.3383031591
B102: 1993 | C102: EWR-Staaten | D102: =D7179 -> 3185302.732 | E102: 0.9086832283 | F102: 6550.319472 | G102: 0.7925371412 | H102: 904144.712 | I102: 0.7543226549 | J102: 6247.324997 | K102: 0.5646533801 | L102: 4089447.444 | M102: 0.8693510733 | N102: 12797.64447 | O102: 0.6620955284
B103: 1993 | C103: Nicht EWR-Staaten | D103: =D7180 -> 320101.204 | E103: 0.09131646814 | F103: 1714.772464 | G103: 0.2074739823 | H103: 294474.127 | I103: 0.245678045 | J103: 4816.477956 | K103: 0.4353288102 | L103: 614575.331 | M103: 0.1306488788 | N103: 6531.25042 | O103: 0.3378990336
B104: 1992 | C104: EWR-Staaten | D104: =D7437 -> 3301868.734 | E104: 0.900115077 | F104: 6676.970535 | G104: 0.7870073709 | H104: 884972.848 | I104: 0.7479461259 | J104: 6187.085098 | K104: 0.5719779142 | L104: 4186841.582 | M104: 0.863003312 | N104: 12864.05563 | O104: 0.6664968464
B105: 1992 | C105: Nicht EWR-Staaten | D105: =D7438 -> 366405.168 | E105: 0.09988489628 | F105: 1806.438043 | G105: 0.2129229188 | H105: 298230.459 | I105: 0.2520532884 | J105: 4630.644795 | K105: 0.4280895623 | L105: 664635.627 | M105: 0.136996525 | N105: 6437.082838 | O105: 0.3335103279
B106: 1991 | C106: EWR-Staaten | D106: =D7695 -> 3333015.062 | E106: 0.8923888018 | F106: 6513.456272 | G106: 0.7863643936 | H106: 838477.373 | I106: 0.7469099479 | J106: 5894.542894 | K106: 0.5725636614 | L106: 4171492.435 | M106: 0.8587680521 | N106: 12407.99917 | O106: 0.6678867029
B107: 1991 | C107: Nicht EWR-Staaten | D107: =D7696 -> 401920.889 | E107: 0.107611185 | F107: 1769.717774 | G107: 0.2136566189 | H107: 284118.122 | I107: 0.253090493 | J107: 4400.695766 | K107: 0.4274595207 | L107: 686039.011 | M107: 0.1412320397 | N107: 6170.41354 | O107: 0.3321355119
B108: Basierend auf Daten von Swiss-Impex, Eidgenössische Zollverwaltung EZV
B110: Entwicklung der Importe von Chemischen Produkten exklusive Pharmazeutika*: Schweiz - EU
B111: * Chemische Produkte der Warenkategorie 06 exklusive der Unterwarenartkategorie 06.2.1 Pharmazeutische Produkte, Vitamine, Diagnostika, (inkl. Wirksubstanzen)
B113: Jahr | C113: Handelspartner | D113: Import | H113: Export | L113: Handelsvolumen
D114: Menge (Tonnen) | E114: Mengen-anteil Gesamt-import | F114: Wert (Mio. CHF) | G114: Wertanteil an Gesamt-import | H114: Menge (Tonnen) | I114: Mengen-anteil Gesamt-export | J114: Wert (Mio. CHF) | K114: Wertanteil Gesamt-export | L114: Menge (Tonnen) | M114: Mengenanteil an Gesamt-handels-volumen | N114: Wert (Mio. CHF) | O114: Wertanteil an Gesamt-handels-volumen
B115: 2019 | C115: EU-Staaten | D115: =D206 -> 4655353.594 | E115: =E206 -> 0.8834562728 | F115: 8334.715156 | G115: 0.5557497807 | H115: 1249441.847 | I115: 0.7406090473 | J115: 8450.779037 | K115: 0.497829153 | L115: 5904795.441 | M115: 0.848813989 | N115: 16785.49419 | O115: 0.5241790919
B116: 2019 | C116: Nicht EU-Staaten | D116: =D207 -> 614124.633 | E116: =E207 -> 0.1165437272 | F116: 6662.52901 | G116: 0.4442502193 | H116: 437604.58 | I116: 0.2593909527 | J116: 8574.418084 | K116: 0.502170847 | L116: 1051729.213 | M116: 0.151186011 | N116: 15236.94709 | O116: 0.4758209081
B117: 2018 | C117: EU-Staaten | D117: =D480 -> 4719308.063 | E117: 0.8856152065 | F117: 8454.954211 | G117: 0.629752962 | H117: 1298330.501 | I117: 0.7447935356 | J117: 8200.37456 | K117: 0.5114865872 | L117: 6017638.564 | M117: 0.8509037227 | N117: 16655.32877 | O117: 0.56538739
B118: 2018 | C118: Nicht EU-Staaten | D118: =D481 -> 609539.08 | E118: 0.1143847935 | F118: 4970.872615 | G118: 0.370247038 | H118: 444878.105 | I118: 0.2552064644 | J118: 7832.058676 | K118: 0.4885134128 | L118: 1054417.185 | M118: 0.1490962773 | N118: 12802.93129 | O118: 0.43461261
B119: 2017 | C119: EU-Staaten | D119: =D750 -> 4631561.412 | E119: 0.8907752761 | F119: 7684.52149 | G119: 0.670553994 | H119: 1322385.373 | I119: 0.7579591419 | J119: 7524.318067 | K119: 0.5116273584 | L119: 5953946.785 | M119: 0.8574061582 | N119: 15208.83956 | O119: 0.58123109
B120: 2017 | C120: Nicht EU-Staaten | D120: =D751 -> 567910.931 | E120: 0.1092247239 | F120: 3775.437825 | G120: 0.329446006 | H120: 422280.401 | I120: 0.2420408581 | J120: 7182.319379 | K120: 0.4883726416 | L120: 990191.332 | M120: 0.1425938418 | N120: 10957.7572 | O120: 0.41876891
B121: 2016 | C121: EU-Staaten | D121: =D1018 -> 4658185.875 | E121: 0.8916495436 | F121: 7359.687882 | G121: 0.658912998 | H121: 1295047.162 | I121: 0.7607931683 | J121: 7461.147225 | K121: 0.5354422875 | L121: 5953233.037 | M121: 0.8594905757 | N121: 14820.83511 | O121: 0.5903777207
B122: 2016 | C122: Nicht EU-Staaten | D122: =D1019 -> 566048.14 | E122: 0.1083504564 | F122: 3809.750123 | G122: 0.341087002 | H122: 407185.739 | I122: 0.2392068317 | J122: 6473.402585 | K122: 0.4645577125 | L122: 973233.879 | M122: 0.1405094243 | N122: 10283.15271 | O122: 0.4096222793
B123: 2015 | C123: EU-Staaten | D123: =D1287 -> 4649559.748 | E123: 0.8964499884 | F123: 7351.798686 | G123: 0.6695542215 | H123: 1294518.189 | I123: 0.7669964969 | J123: 7953.176962 | K123: 0.554373508 | L123: 5944077.937 | M123: 0.8646671267 | N123: 15304.97565 | O123: 0.6043095896
B124: 2015 | C124: Nicht EU-Staaten | D124: =D1288 -> 537076.214 | E124: 0.1035500116 | F124: 3628.340711 | G124: 0.3304457785 | H124: 393257.693 | I124: 0.2330035031 | J124: 6393.065864 | K124: 0.445626492 | L124: 930333.907 | M124: 0.1353328733 | N124: 10021.40658 | O124: 0.3956904104
B125: 2014 | C125: EU-Staaten | D125: =D1554 -> 4598821.244 | E125: 0.8901154437 | F125: 8637.59435 | G125: 0.6964227688 | H125: 1299003.311 | I125: 0.762261642 | J125: 8244.362005 | K125: 0.5670921509 | L125: 5897824.555 | M125: 0.8584037389 | N125: 16881.95635 | O125: 0.6266324941
B126: 2014 | C126: Nicht EU-Staaten | D126: =D1555 -> 567723.474 | E126: 0.1098845563 | F126: 3765.20857 | G126: 0.3035772312 | H126: 405140.305 | I126: 0.237738358 | J126: 6293.59623 | K126: 0.4329078491 | L126: 972863.779 | M126: 0.1415962611 | N126: 10058.8048 | O126: 0.3733675059
B127: 2013 | C127: EU-Staaten | D127: =D1823 -> 4554334.652 | E127: 0.8864261144 | F127: 8860.190136 | G127: 0.7120928586 | H127: 1306263.22 | I127: 0.7613970291 | J127: 7921.544751 | K127: 0.5508239179 | L127: 5860597.872 | M127: 0.8551278884 | N127: 16781.73489 | O127: 0.6256301848
B128: 2013 | C128: Nicht EU-Staaten | D128: =D1824 -> 583526.9 | E128: 0.1135738856 | F128: 3582.274396 | G128: 0.2879071414 | H128: 409350.54 | I128: 0.2386029709 | J128: 6459.720284 | K128: 0.4491760821 | L128: 992877.44 | M128: 0.1448721116 | N128: 10041.99468 | O128: 0.3743698152
B129: 2012 | C129: EU-Staaten | D129: =D2096 -> 4524987.578 | E129: 0.8928296804 | F129: 8640.453676 | G129: 0.7079450744 | H129: 1266521.764 | I129: 0.7556100389 | J129: 8195.930812 | K129: 0.5558393593 | L129: 5791509.342 | M129: 0.8587265423 | N129: 16836.38449 | O129: 0.6247239059
B130: 2012 | C130: Nicht EU-Staaten | D130: =D2097 -> 543154.395 | E130: 0.1071703196 | F130: 3564.523784 | G130: 0.2920549256 | H130: 409636.173 | I130: 0.2443899611 | J130: 6549.212141 | K130: 0.4441606407 | L130: 952790.568 | M130: 0.1412734577 | N130: 10113.73593 | O130: 0.3752760941
B131: 2011 | C131: EU-Staaten | D131: =D2363 -> 4605963.506 | E131: 0.9031696522 | F131: 9330.064768 | G131: 0.759761717 | H131: 1298567.135 | I131: 0.7599546383 | J131: 8170.598199 | K131: 0.5658267581 | L131: 5904530.641 | M131: 0.8672267953 | N131: 17500.66297 | O131: 0.6549561819
B132: 2011 | C132: Nicht EU-Staaten | D132: =D2364 -> 493813.147 | E132: 0.0968303478 | F132: 2950.186473 | G132: 0.240238283 | H132: 410175.821 | I132: 0.2400453617 | J132: 6269.507508 | K132: 0.4341732419 | L132: 903988.968 | M132: 0.1327732047 | N132: 9219.693981 | O132: 0.3450438181
B133: 2010 | C133: EU-Staaten | D133: =D2632 -> 4721261.948 | E133: 0.9061949321 | F133: 9301.020438 | G133: 0.7390300891 | H133: 1239304.07 | I133: 0.7422469714 | J133: 8352.773393 | K133: 0.5483572836 | L133: 5960566.018 | M133: 0.8664053758 | N133: 17653.79383 | O133: 0.6346222549
B134: 2010 | C134: Nicht EU-Staaten | D134: =D2633 -> 488722.991 | E134: 0.09380506791 | F134: 3284.421718 | G134: 0.2609699109 | H134: 430361.308 | I134: 0.2577530286 | J134: 6879.58267 | K134: 0.4516427164 | L134: 919084.299 | M134: 0.1335946242 | N134: 10164.00439 | O134: 0.3653777451
B135: 2009 | C135: EU-Staaten | D135: =D2899 -> 4428669.82 | E135: 0.9246129413 | F135: 8694.606665 | G135: 0.7566311617 | H135: 1093941.157 | I135: 0.7491440087 | J135: 7672.068292 | K135: 0.564745849 | L135: 5522610.977 | M135: 0.8836163113 | N135: 16366.67496 | O135: 0.6526775952
B136: 2009 | C136: Nicht EU-Staaten | D136: =D2900 -> 361085.571 | E136: 0.07538705874 | F136: 2796.602136 | G136: 0.2433688383 | H136: 366313.673 | I136: 0.2508559913 | J136: 5912.924506 | K136: 0.435254151 | L136: 727399.244 | M136: 0.1163836887 | N136: 8709.526642 | O136: 0.3473224048
B137: 2008 | C137: EU-Staaten | D137: =D3169 -> 4934250.536 | E137: 0.9192784084 | F137: 11213.60371 | G137: 0.7720930901 | H137: 1326125.298 | I137: 0.7470630908 | J137: 9569.455229 | K137: 0.5749547313 | L137: 6260375.834 | M137: 0.8764787746 | N137: 20783.05894 | O137: 0.6668186442
B138: 2008 | C138: Nicht EU-Staaten | D138: =D3170 -> 433275.222 | E138: 0.08072159157 | F138: 3310.038393 | G138: 0.2279069099 | H138: 448992.914 | I138: 0.2529369092 | J138: 7074.385942 | K138: 0.4250452687 | L138: 882268.136 | M138: 0.1235212254 | N138: 10384.42434 | O138: 0.3331813558
B139: 2007 | C139: EU-Staaten | D139: =D3443 -> 4846529.106 | E139: 0.9126430405 | F139: 14040.52681 | G139: 0.7804373007 | H139: 1378150.079 | I139: 0.7446188663 | J139: 10666.94192 | K139: 0.6036545646 | L139: 6224679.185 | M139: 0.869217452 | N139: 24707.46873 | O139: 0.6928390567
B140: 2007 | C140: Nicht EU-Staaten | D140: =D3444 -> 463903.222 | E140: 0.08735695954 | F140: 3950.062311 | G140: 0.2195626993 | H140: 472662.654 | I140: 0.2553811337 | J140: 7003.663994 | K140: 0.3963454354 | L140: 936565.876 | M140: 0.130782548 | N140: 10953.72631 | O140: 0.3071609433
B141: 2006 | C141: EU-Staaten | D141: =D3714 -> 4776874.538 | E141: 0.9212602505 | F141: 11223.81455 | G141: 0.7880475442 | H141: 1324686.584 | I141: 0.7495863043 | J141: 10161.15465 | K141: 0.6213962107 | L141: 6101561.122 | M141: 0.87762247 | N141: 21384.9692 | O141: 0.6989763807
B142: 2006 | C142: Nicht EU-Staaten | D142: =D3715 -> 408277.579 | E142: 0.07873974954 | F142: 3018.7456 | G142: 0.2119524558 | H142: 442536.985 | I142: 0.2504136957 | J142: 6190.98023 | K142: 0.3786037893 | L142: 850814.564 | M142: 0.12237753 | N142: 9209.72583 | O142: 0.3010236193
B143: 2005 | C143: EU-Staaten | D143: =D3985 -> 4712074.374 | E143: 0.9261129736 | F143: 11138.04193 | G143: 0.8171694892 | H143: 1246544.549 | I143: 0.7441350867 | J143: 9145.913507 | K143: 0.6078838116 | L143: 5958618.923 | M143: 0.8810391664 | N143: 20283.95544 | O143: 0.7073613135
B144: 2005 | C144: Nicht EU-Staaten | D144: =D3986 -> 375938.113 | E144: 0.07388702641 | F144: 2491.984738 | G144: 0.1828305108 | H144: 428614.399 | I144: 0.2558649133 | J144: 5899.582576 | K144: 0.3921161884 | L144: 804552.512 | M144: 0.1189608336 | N144: 8391.567314 | O144: 0.2926386865
B145: 2004 | C145: EU-Staaten | D145: =D4256 -> 4410415.03 | E145: 0.9220866475 | F145: 10135.53893 | G145: 0.8311064935 | H145: 1274875.951 | I145: 0.7504585922 | J145: 8815.361075 | K145: 0.5963535448 | L145: 5685290.981 | M145: 0.8771056889 | N145: 18950.90001 | O145: 0.7024747303
B146: 2004 | C146: Nicht EU-Staaten | D146: =D4257 -> 372665.868 | E146: 0.07791335249 | F146: 2059.695989 | G146: 0.1688935065 | H146: 423919.911 | I146: 0.2495414078 | J146: 5966.744527 | K146: 0.4036464552 | L146: 796585.779 | M146: 0.1228943111 | N146: 8026.440516 | O146: 0.2975252697
B147: 2003 | C147: EU-Staaten | D147: =D4530 -> 4231399.047 | E147: 0.9191094623 | F147: 9239.694118 | G147: 0.8115608327 | H147: 1292203.808 | I147: 0.7692250208 | J147: 8758.250271 | K147: 0.6147936965 | L147: 5523602.855 | M147: 0.8790393959 | N147: 17997.94439 | O147: 0.7021963785
B148: 2003 | C148: Nicht EU-Staaten | D148: =D4531 -> 372404.113 | E148: 0.08089053768 | F148: 2145.397111 | G148: 0.1884391673 | H148: 387673.696 | I148: 0.2307749792 | J148: 5487.585887 | K148: 0.3852063035 | L148: 760077.809 | M148: 0.1209606041 | N148: 7632.982998 | O148: 0.2978036215
B149: 2002 | C149: EU-Staaten | D149: =D4800 -> 4136990.332 | E149: 0.9162327995 | F149: 9242.244466 | G149: 0.7779732632 | H149: 1303676.312 | I149: 0.774595374 | J149: 8309.940212 | K149: 0.58845551 | L149: 5440666.644 | M149: 0.8777733407 | N149: 17552.18468 | O149: 0.675044781
B150: 2002 | C150: Nicht EU-Staaten | D150: =D4801 -> 378227.126 | E150: 0.08376720048 | F150: 2637.655401 | G150: 0.2220267368 | H150: 379365.384 | I150: 0.225404626 | J150: 5811.671483 | K150: 0.41154449 | L150: 757592.51 | M150: 0.1222266593 | N150: 8449.326884 | O150: 0.324955219
B151: 2001 | C151: EU-Staaten | D151: =D5073 -> 3963171.562 | E151: 0.9131464065 | F151: 9966.813611 | G151: 0.7965203213 | H151: 1315712.048 | I151: 0.7745502827 | J151: 7946.617604 | K151: 0.5637988019 | L151: 5278883.61 | M151: 0.8741601757 | N151: 17913.43122 | O151: 0.6732418994
B152: 2001 | C152: Nicht EU-Staaten | D152: =D5074 -> 376955.644 | E152: 0.08685359348 | F152: 2546.129681 | G152: 0.2034796787 | H152: 382966.627 | I152: 0.2254497173 | J152: 6148.15801 | K152: 0.4362011981 | L152: 759922.271 | M152: 0.1258398243 | N152: 8694.287691 | O152: 0.3267581006
B153: 2000 | C153: EU-Staaten | D153: =D5342 -> 3914362.605 | E153: 0.9107763563 | F153: 8752.177228 | G153: 0.7592435995 | H153: 1249770.55 | I153: 0.7718021446 | J153: 7776.011928 | K153: 0.5628373728 | L153: 5164133.155 | M153: 0.8727444421 | N153: 16528.18916 | O153: 0.6521737308
B154: 2000 | C154: Nicht EU-Staaten | D154: =D5343 -> 383468.117 | E154: 0.08922364369 | F154: 2775.318339 | G154: 0.2407564005 | H154: 369518.226 | I154: 0.2281978554 | J154: 6039.722961 | K154: 0.4371626272 | L154: 752986.343 | M154: 0.1272555579 | N154: 8815.0413 | O154: 0.3478262692
B155: 1999 | C155: EU-Staaten | D155: =D5607 -> 3745796.155 | E155: 0.9050095028 | F155: 7964.986419 | G155: 0.7555075901 | H155: 1147591.426 | I155: 0.7775011126 | J155: 7400.698664 | K155: 0.5744301306 | L155: 4893387.581 | M155: 0.8714914668 | N155: 15365.68508 | O155: 0.6559212693
B156: 1999 | C156: Nicht EU-Staaten | D156: =D5608 -> 393161.661 | E156: 0.09499049724 | F156: 2577.576652 | G156: 0.2444924099 | H156: 328408.296 | I156: 0.2224988874 | J156: 5482.850212 | K156: 0.4255698694 | L156: 721569.957 | M156: 0.1285085332 | N156: 8060.426864 | O156: 0.3440787307
B157: 1998 | C157: EU-Staaten | D157: =D5876 -> 3690444.996 | E157: 0.9069080649 | F157: 7838.457745 | G157: 0.76080502 | H157: 1137669.323 | I157: 0.7663450337 | J157: 7401.612673 | K157: 0.57345011 | L157: 4828114.319 | M157: 0.8693353473 | N157: 15240.07042 | O157: 0.6566163463
B158: 1998 | C158: Nicht EU-Staaten | D158: =D5877 -> 378815.317 | E158: 0.09309193511 | F158: 2464.38929 | G158: 0.23919498 | H158: 346869.981 | I158: 0.2336549663 | J158: 5505.547939 | K158: 0.42654989 | L158: 725685.298 | M158: 0.1306646527 | N158: 7969.937229 | O158: 0.3433836537
B159: 1997 | C159: EU-Staaten | D159: =D6140 -> 3512613.967 | E159: 0.9049746219 | F159: 7824.51668 | G159: 0.7516200642 | H159: 1146004.065 | I159: 0.7681456565 | J159: 7399.849228 | K159: 0.5739927794 | L159: 4658618.032 | M159: 0.866984151 | N159: 15224.36591 | O159: 0.6533477259
B160: 1997 | C160: Nicht EU-Staaten | D160: =D6141 -> 368836.277 | E160: 0.0950253781 | F160: 2585.685299 | G160: 0.2483799358 | H160: 345905.777 | I160: 0.2318543435 | J160: 5492.036339 | K160: 0.4260072206 | L160: 714742.054 | M160: 0.133015849 | N160: 8077.721638 | O160: 0.3466522741
B161: 1996 | C161: EU-Staaten | D161: =D6403 -> 3361954.866 | E161: 0.911032475 | F161: 6910.095671 | G161: 0.7708005349 | H161: 1035745.314 | I161: 0.7540196105 | J161: 6623.814187 | K161: 0.5611488382 | L161: 4397700.18 | M161: 0.868441225 | N161: 13533.90986 | O161: 0.6516445311
B162: 1996 | C162: Nicht EU-Staaten | D162: =D6404 -> 328314.096 | E162: 0.08896752496 | F162: 2054.734215 | G162: 0.2291994651 | H162: 337886.485 | I162: 0.2459803895 | J162: 5180.209516 | K162: 0.4388511618 | L162: 666200.581 | M162: 0.131558775 | N162: 7234.943731 | O162: 0.3483554689
B163: 1995 | C163: EU-Staaten | D163: =D6666 -> 3507692.237 | E163: 0.9113670372 | F163: 6988.131383 | G163: 0.779838342 | H163: 963915.227 | I163: 0.753742439 | J163: 6538.329047 | K163: 0.5632120809 | L163: 4471607.464 | M163: 0.8720554748 | N163: 13526.46043 | O163: 0.6575819363
B164: 1995 | C164: Nicht EU-Staaten | D164: =D6667 -> 341132.567 | E164: 0.08863291186 | F164: 1972.864692 | G164: 0.22016122 | H164: 314924.515 | I164: 0.2462581412 | J164: 5070.550721 | K164: 0.4367775623 | L164: 656057.082 | M164: 0.1279446317 | N164: 7043.415413 | O164: 0.3424120279
B165: 1994 | C165: EU-Staaten | D165: =D6926 -> 3503984.306 | E165: 0.9105354165 | F165: 6883.643621 | G165: 0.7870619279 | H165: 986419.235 | I165: 0.7637466174 | J165: 6592.083917 | K165: 0.563618666 | L165: 4490403.541 | M165: 0.8736497907 | N165: 13475.72754 | O165: 0.6592176665
B166: 1994 | C166: Nicht EU-Staaten | D166: =D6927 -> 344283.439 | E166: 0.08946451728 | F166: 1861.980189 | G166: 0.2128950593 | H166: 305133.868 | I166: 0.2362534623 | J166: 5105.23723 | K166: 0.4364942912 | L166: 649417.307 | M166: 0.1263501797 | N166: 6967.217419 | O166: 0.3408285598
B167: 1993 | C167: EU-Staaten | D167: =D7182 -> 3178509.642 | E167: 0.9067453381 | F167: 6537.887125 | G167: 0.791032925 | H167: 898697.47 | I167: 0.7497780527 | J167: 6207.445403 | K167: 0.5610489337 | L167: 4077207.112 | M167: 0.8667489747 | N167: 12745.33253 | O167: 0.6593891318
B168: 1993 | C168: Nicht EU-Staaten | D168: =D7183 -> 326894.294 | E168: 0.09325435834 | F168: 1727.204811 | G168: 0.2089781985 | H168: 299921.369 | I168: 0.2502226472 | J168: 4856.35755 | K168: 0.4389332565 | L168: 626815.663 | M168: 0.1332509775 | N168: 6583.562361 | O168: 0.3406054302
B169: 1992 | C169: EU-Staaten | D169: =D7440 -> 3296309.697 | E169: 0.8985996403 | F169: 6666.407202 | G169: 0.7857622822 | H169: 880664.026 | I169: 0.7443044699 | J169: 6149.321232 | K169: 0.5684867553 | L169: 4176973.723 | M169: 0.8609693217 | N169: 12815.72843 | O169: 0.6639929762
B170: 1992 | C170: Nicht EU-Staaten | D170: =D7441 -> 371964.205 | E170: 0.101400333 | F170: 1817.001376 | G170: 0.2141680075 | H170: 302539.281 | I170: 0.2556949444 | J170: 4668.408661 | K170: 0.4315807212 | L170: 674503.486 | M170: 0.1390305152 | N170: 6485.410037 | O170: 0.3360141981
B171: 1991 | C171: EU-Staaten | D171: =D7698 -> 3323884.852 | E171: 0.8899442593 | F171: 6499.903701 | G171: 0.7847282025 | H171: 834097.232 | I171: 0.7430081481 | J171: 5858.760585 | K171: 0.5690879636 | L171: 4157982.084 | M171: 0.8559867315 | N171: 12358.66429 | O171: 0.665231149
B172: 1991 | C172: Nicht EU-Staaten | D172: =D7699 -> 411051.099 | E172: 0.1100557276 | F172: 1783.270345 | G172: 0.21529281 | H172: 288498.263 | I172: 0.2569922929 | J172: 4436.478075 | K172: 0.4309352186 | L172: 699549.362 | M172: 0.1440133603 | N172: 6219.74842 | O172: 0.3347910658
B174: Jahr 2019
B175: Gesamthandel: Schweiz- Welt
B176: Nr. | C176: Warenart | D176: Import | F176: Export | H176: Handelsvolumen | K176: Grafikoptionen:
D177: Menge (Tonnen) | E177: Wert (Mio. CHF) | F177: Menge (Tonnen) | G177: Wert (Mio. CHF) | H177: Menge (Tonnen) | I177: Wert (Mio. CHF)
B178: 06.1 | C178: Chemische Grundstoffe | D178: 2876073.954 | E178: 9763.888498 | F178: 997593.494 | G178: 7873.561379 | H178: =D178+F178 -> 3873667.448 | I178: =E178+G178 -> 17637.44988
B179: 06.1.1 | C179: Roh- und Grundstoffe | D179: 1900312.963 | E179: 7621.219117 | F179: 453846.587 | G179: 5798.06192 | H179: =D179+F179 -> 2354159.55 | I179: 13419.28104
B180: 06.1.1.01 | C180: Anorg. Roh- und Grundstoffe | D180: 765037.336 | E180: 697.898103 | F180: 209818.756 | G180: 562.945864 | H180: 974856.092 | I180: 1260.843967
B181: 06.1.1.02 | C181: Org. Roh- und Grundstoffe | D181: 1135275.627 | E181: 6923.321014 | F181: 244027.831 | G181: 5235.116056 | H181: 1379303.458 | I181: 12158.43707
B182: 06.1.2 | C182: Ungeformte Kunststoffe | D182: 975760.991 | E182: 2142.669381 | F182: 543746.907 | G182: 2075.499459 | H182: 1519507.898 | I182: 4218.16884
B183: 06.2* | C183: Chemische Endprodukte | D183: 2393404.273 | E183: 5233.355668 | F183: 689452.933 | G183: 9151.635742 | H183: 3082857.206 | I183: 14384.99141
B184: 06.2.2 | C184: Agrochemische Erzeugnisse | D184: 408460.282 | E184: 820.401354 | F184: 117549.351 | G184: 2051.732094 | H184: 526009.633 | I184: 2872.133448
B185: 06.2.2.01 | C185: Pflanzenschutzsmittel | D185: 79913.85 | E185: 700.338882 | F185: 105048.287 | G185: 2033.637507 | H185: 184962.137 | I185: 2733.976389
B186: 06.2.2.02 | C186: Chemische Düngemittel | D186: 328546.432 | E186: 120.062472 | F186: 12501.064 | G186: 18.094587 | H186: 341047.496 | I186: 138.157059
B187: 06.2.3 | C187: Farbkörper | D187: 130211.472 | E187: 830.652572 | F187: 87818.2 | G187: 1464.682128 | H187: 218029.672 | I187: 2295.3347
B188: 06.2.3.01 | C188: Farbstoffe und Pigmente | D188: 32998.656 | E188: 358.949945 | F188: 18740.422 | G188: 390.261515 | H188: 51739.078 | I188: 749.21146
B189: 06.2.3.02 | C189: Lacke und Farben | D189: 97212.816 | E189: 471.702627 | F189: 69077.778 | G189: 1074.420613 | H189: 166290.594 | I189: 1546.12324
B190: 06.2.4 | C190: Aetherische Öle, Riech-,Aromastoffe | D190: 13353.664 | E190: 430.392578 | F190: 77137.266 | G190: 1825.793251 | H190: 90490.93 | I190: 2256.185829
B191: 06.2.5 | C191: Kosmetika und Parfümerieprodukte | D191: 57102.646 | E191: 1026.750091 | F191: 38967.601 | G191: 1859.558107 | H191: 96070.247 | I191: 2886.308198
B192: 06.2.6 | C192: Fotochemische Erzeugnisse | D192: 4200.733 | E192: 72.582182 | F192: 335.143 | G192: 8.213481 | H192: 4535.876 | I192: 80.795663
B193: 06.2.7 | C193: Gewerbliche Hilfsmittel | D193: 221471.049 | E193: 591.400061 | F193: 136819.34 | G193: 542.105961 | H193: 358290.389 | I193: 1133.506022
B194: 06.2.8 | C194: Chemische Endprodukte | D194: 1558604.427 | E194: 1461.17683 | F194: 230826.032 | G194: 1399.55072 | H194: 1789430.459 | I194: 2860.72755
B195: 06* | C195: Chemische Produkte | D195: 5269478.227 | E195: 14997.24417 | F195: 1687046.427 | G195: 17025.19712 | H195: =D195+F195 -> 6956524.654 | I195: =E195+G195 -> 32022.44129
B196: *Exklusive der Unterwarenartkategorie 06.2.1 Pharmazeutische Produkte, Vitamine, Diagnostika, (inkl. Wirksubstanzen)
B197: Basierend auf Daten von Swiss-Impex, Eidgenössische Zollverwaltung EZV
B199: Handel: Schweiz - Regionen (EWR und EU)
B200: Nr. | C200: Region | D200: Import | H200: Export | L200: Handelsvolumen
D201: Menge (Tonnen) | E201: Mengen-anteil Gesamt-import | F201: Wert (Mio. CHF) | G201: Wertanteil an Gesamt-import | H201: Menge (Tonnen) | I201: Mengen-anteil Gesamt-export | J201: Wert (Mio. CHF) | K201: Wertanteil Gesamt-export | L201: Menge (Tonnen) | M201: Mengenanteil an Gesamt-handels-volumen | N201: Wert (Mio. CHF) | O201: Wertanteil an Gesamt-handels-volumen
B202: Regionen (EWR) | C202: EWR-Staaten | D202: 4690921.978 | E202: =D202/$D$195 -> 0.8902061601 | F202: 8354.952203 | G202: =F202/$E$195 -> 0.5570991651 | H202: 1252214.793 | I202: =H202/$F$195 -> 0.7422527163 | J202: 8475.639463 | K202: 0.497829153 | L202: =D202+H202 -> 5943136.771 | M202: =L202/$H$195 -> 0.8543255529 | N202: =F202+J202 -> 16830.59167 | O202: =N202/$I$195 -> 0.5255874003
C203: EWR-Staaten | D203: 4690921.978 | E203: 0.8902061601 | F203: 8354.952203 | G203: 0.5570991651 | H203: 1252214.793 | I203: 0.7422527163 | J203: 8475.639463 | K203: 0.497829153 | L203: =D203+H203 -> 5943136.771 | M203: 0.8543255529 | N203: =F203+J203 -> 16830.59167 | O203: 0.5255874003
C204: Nicht EWR-Staaten | D204: 578556.249 | E204: 0.1097938399 | F204: 6642.291963 | G204: 0.4429008349 | H204: 434831.634 | I204: 0.2577472837 | J204: 8549.557658 | K204: 0.502170847 | L204: =D204+H204 -> 1013387.883 | M204: 0.1456744471 | N204: =F204+J204 -> 15191.84962 | O204: 0.4744125997
B205: Regionen (EU) | C205: EU-Staaten | D205: 4655353.594 | E205: 0.8834562728 | F205: 8334.715156 | G205: 0.5557497807 | H205: 1249441.847 | I205: 0.7406090473 | J205: 8450.779037 | K205: 0.497829153 | L205: =D205+H205 -> 5904795.441 | M205: 0.848813989 | N205: =F205+J205 -> 16785.49419 | O205: 0.5241790919
C206: EU-Staaten | D206: 4655353.594 | E206: 0.8834562728 | F206: 8334.715156 | G206: 0.5557497807 | H206: 1249441.847 | I206: 0.7406090473 | J206: 8450.779037 | K206: 0.497829153 | L206: 5904795.441 | M206: 0.848813989 | N206: 16785.49419 | O206: 0.5241790919
C207: Nicht EU-Staaten | D207: 614124.633 | E207: 0.1165437272 | F207: 6662.52901 | G207: 0.4442502193 | H207: 437604.58 | I207: 0.2593909527 | J207: 8574.418084 | K207: 0.502170847 | L207: =D207+H207 -> 1051729.213 | M207: 0.151186011 | N207: =F207+J207 -> 15236.94709 | O207: 0.4758209081
B208: Basierend auf Daten von Swiss-Impex, Eidgenössische Zollverwaltung EZV
B210: Handel: Schweiz - Regionen (Seco)
B211: Nr. | C211: Region | D211: Import | H211: Export | L211: Handelsvolumen | Q211: Grafikoptionen:
D212: Menge (Tonnen) | E212: Mengen-anteil Gesamt-import | F212: Wert (Mio. CHF) | G212: Wertanteil an Gesamt-import | H212: Menge (Tonnen) | I212: Mengen-anteil Gesamt-export | J212: Wert (Mio. CHF) | K212: Wertanteil Gesamt-export | L212: Menge (Tonnen) | M212: Mengenanteil an Gesamt-handels-volumen | N212: Wert (Mio. CHF) | O212: Wertanteil an Gesamt-handels-volumen
... 4232 more rows

Sheet Inlandnachfrage
B2: Inlandnachfrage von chemischen Erzeugnissen in der Schweiz
B4: Entwicklung der Inlandnachfrage von chemischen Erzeugnissen
B5: Entwicklung der Inlandnachfrage von chemischen Erzeugnissen nach Sparten
B6: Jahr
C7: Anorganika | E7: Petrochemikalien und Derivate | G7: Polymere | I7: Fein- und Spezial-chemikalien | K7: Konsumchemikalien | M7: Total Chemikalien
C8: Inland-nachfrage (Mio. Euro) | D8: Veränderung im Vergleich zum Vorjahr | E8: Inland-nachfrage (Mio. Euro) | F8: Veränderung im Vergleich zum Vorjahr | G8: Inland-nachfrage (Mio. Euro) | H8: Veränderung im Vergleich zum Vorjahr | I8: Inland-nachfrage (Mio. Euro) | J8: Veränderung im Vergleich zum Vorjahr | K8: Inland-nachfrage (Mio. Euro) | L8: Veränderung im Vergleich zum Vorjahr | M8: Inland-nachfrage (Mio. Euro) | N8: Veränderung im Vergleich zum Vorjahr
B9: 2019 | C9: 292.534 | D9: =(C9/C10-1)*100 -> -13.83463475 | E9: 434.888 | F9: =(E9/E10-1)*100 -> 41.39388501 | G9: 1119.609 | H9: =(G9/G10-1)*100 -> -4.094784018 | I9: 16836.792 | J9: =(I9/I10-1)*100 -> 12.18310065 | K9: 2652.782 | L9: =(K9/K10-1)*100 -> 9.603692043 | M9: 21336.604 | N9: =(M9/M10-1)*100 -> 10.87901455
B10: 2018 | C10: 339.503 | D10: =(C10/C11-1)*100 -> 88.67252408 | E10: 307.572 | F10: =(E10/E11-1)*100 -> -62.12983655 | G10: 1167.412 | H10: =(G10/G11-1)*100 -> -2.805976114 | I10: 15008.314 | J10: =(I10/I11-1)*100 -> 20.02603922 | K10: 2420.34 | L10: =(K10/K11-1)*100 -> -28.71148199 | M10: 19243.14 | N10: =(M10/M11-1)*100 -> 6.359286163
B11: 2017 | C11: 179.943 | D11: -20.83527642 | E11: 812.175 | F11: -53.93786127 | G11: 1201.115 | H11: 6.973067811 | I11: 12504.215 | J11: 20.83657791 | K11: 3395.133 | L11: -1.956405663 | M11: 18092.581 | N11: 6.903257668
B12: 2016 | C12: 227.302 | D12: -18.13096769 | E12: 1763.216 | F12: 21.37492755 | G12: 1122.82 | H12: -13.86623115 | I12: 10348.038 | J12: 2.980553585 | K12: 3462.881 | L12: 23.33339269 | M12: 16924.256 | N12: 6.507534583
B13: 2015 | C13: 277.641 | D13: -38.23240851 | E13: 1452.702 | F13: -25.98843287 | G13: 1303.577 | H13: -1.720672497 | I13: 10048.536 | J13: 4.926226116 | K13: 2807.74 | L13: 8.451000175 | M13: 15890.196 | N13: -0.0893588746
B14: 2014 | C14: 449.493 | D14: 30.89525596 | E14: 1962.804 | F14: -13.45356097 | G14: 1326.4 | H14: -1.870265152 | I14: 9576.763 | J14: 0.1048947979 | K14: 2588.948 | L14: 2.27239688 | M14: 15904.408 | N14: -0.9759077027
B15: 2013 | C15: 343.399 | D15: -6.976511094 | E15: 2267.92 | F15: 77.2987104 | G15: 1351.68 | H15: -2.397672009 | I15: 9566.728 | J15: 144.9320638 | K15: 2531.424 | L15: -27.40887052 | M15: 16061.15 | N15: 54.04463867
B16: 2012 | C16: 369.153 | D16: -14.54257558 | E16: 1279.152 | F16: 37.10669578 | G16: 1384.885 | H16: -11.25046621 | I16: 3905.87 | J16: -5.639268127 | K16: 3487.236 | L16: -1.286780004 | M16: 10426.296 | N16: -1.614269055
B17: 2011 | C17: 431.973 | D17: -3.878906554 | E17: 932.961 | F17: 28.82091487 | G17: 1560.442 | H17: 0.3404177609 | I17: 4139.296 | J17: -1.07476411 | K17: 3532.694 | L17: 37.99801559 | M17: 10597.366 | N17: 11.86902328
B18: 2010 | C18: 449.405 | D18: -16.98653771 | E18: 724.231 | F18: -0.2348691896 | G18: 1555.148 | H18: 21.31841454 | I18: 4184.267 | J18: -25.32560438 | K18: 2559.96 | L18: -25.40372224 | M18: 9473.012 | N18: -18.22524931
B19: 2009 | C19: 541.364 | D19: -5.800591613 | E19: 725.936 | F19: -59.56423559 | G19: 1281.873 | H19: -24.00919094 | I19: 5603.349 | J19: 13.26486926 | K19: 3431.753 | L19: 0.497192348 | M19: 11584.275 | N19: -6.719521665
B20: 2008 | C20: 574.7 | D20: -16.25073774 | E20: 1795.282 | F20: -16.75455912 | G20: 1686.879 | H20: -5.07366182 | I20: 4947.12 | J20: 1.773871226 | K20: 3414.775 | L20: 1.555341494 | M20: 12418.756 | N20: -3.305116154
B21: 2007 | C21: 686.215 | D21: 13.70494031 | E21: 2156.613 | F21: 21.4911789 | G21: 1777.04 | H21: 42.11351711 | I21: 4860.894 | J21: 4.084634794 | K21: 3362.477 | L21: 11.15056914 | M21: 12843.24 | N21: 13.412572
B22: 2006 | C22: 603.505 | D22: 63.24579176 | E22: 1775.119 | F22: 23.78370614 | G22: 1250.437 | H22: 10.9418779 | I22: 4670.136 | J22: -3.475464157 | K22: 3025.155 | L22: -10.94016752 | M22: 11324.353 | N22: 1.419034104
B23: 2005 | C23: 369.691 | D23: 54.22813136 | E23: 1434.049 | F23: 28.3603024 | G23: 1127.11 | H23: 17.34776212 | I23: 4838.289 | J23: 10.19901829 | K23: 3396.767 | L23: -7.494872653 | M23: 11165.905 | N23: 7.572624182
B24: 2004 | C24: 239.704 | D24: 2.469573841 | E24: 1117.206 | F24: -13.17573659 | G24: 960.487 | H24: 17.70298986 | I24: 4390.501 | J24: 33.28879749 | K24: 3671.977 | L24: 1.449785081 | M24: 10379.876 | N24: 12.21276486
B25: 2003 | C25: 233.927 | D25: -6.529773963 | E25: 1286.744 | F25: 35.07506713 | G25: 816.026 | H25: 0.4598105851 | I25: 3293.976 | J25: -6.438865135 | K25: 3619.502 | L25: -2.231666658 | M25: 9250.174 | N25: 0.1322044984
B26: 2002 | C26: 250.269 | D26: 0.009590601211 | E26: 952.614 | F26: 52.29956818 | G26: 812.291 | H26: -7.211281442 | I26: 3520.667 | J26: 12.41101815 | K26: 3702.121 | L26: 8.939388188 | M26: 9237.961 | N26: 11.55017726
B27: 2001 | C27: 250.245 | D27: -3.263777214 | E27: 625.487 | F27: 52.02571488 | G27: 875.42 | H27: 3.577568408 | I27: 3131.959 | J27: 9.7661236 | K27: 3398.331 | L27: 11.12436902 | M27: 8281.44 | N27: 11.5084292
B28: 2000 | C28: 258.688 | D28: 14.41562175 | E28: 411.435 | F28: 276.1519473 | G28: 845.183 | H28: 52.81885214 | I28: 2853.302 | J28: 19.51573813 | K28: 3058.133 | L28: 13.18206531 | M28: 7426.739 | N28: 24.23694141
B29: 1999 | C29: 226.095 | D29: 22.06637405 | E29: 109.38 | F29: -34.57429628 | G29: 553.062 | H29: 0.1907577594 | I29: 2387.386 | J29: -6.500768591 | K29: 2701.959 | L29: -6.458932182 | M29: 5977.883 | N29: -5.805447728
B30: 1998 | C30: 185.223 | D30: -21.61565122 | E30: 167.182 | F30: -82.70014425 | G30: 552.009 | H30: 5.038932274 | I30: 2553.375 | J30: -3.599262886 | K30: 2888.527 | L30: 3.767458168 | M30: 6346.315 | N30: 3.949440427
B31: 1997 | C31: 236.301 | D31: -4.611180184 | E31: 966.378 | F31: 13.63912172 | G31: 525.528 | H31: 8.354724777 | I31: 2648.709 | J31: 2.133470606 | K31: 2783.654 | L31: 1.171393431 | M31: 6105.194 | N31: 3.975306947
B32: 1996 | C32: 247.724 | D32: 10.08879132 | E32: 850.392 | F32: 4.129207636 | G32: 485.007 | H32: -7.558375567 | I32: 2593.38 | J32: 160.6826009 | K32: 2751.424 | L32: -16.09012807 | M32: 5871.773 | N32: 0.5402707432
B33: 1995 | C33: 225.022 | D33: 3.55456562 | E33: 816.67 | F33: -8.073134464 | G33: 524.663 | H33: 15.720786 | I33: 994.842 | J33: 230.9025595 | K33: 3279.023 | L33: -1.304196153 | M33: 5840.22 | N33: 12.70037091
B34: 1994 | C34: 217.298 | D34: 7.628680113 | E34: 888.391 | F34: 14.27279626 | G34: 453.387 | H34: 43.00624527 | I34: 300.645 | J34: 7.867091469 | K34: 3322.353 | L34: 8.812980448 | M34: 5182.077 | N34: 21.80016655
B35: 1993 | C35: 201.896 | D35: 0.7258993918 | E35: 777.43 | F35: -15.67098853 | G35: 317.04 | H35: 37.86445763 | I35: 278.718 | J35: 5.327639634 | K35: 3053.269 | L35: 9.314273582 | M35: 4254.573 | N35: 10.33343231
B36: 1992 | C36: 200.441 | D36: -3.320857008 | E36: 921.901 | F36: -20.45857707 | G36: 229.965 | H36: 24.60850718 | I36: 264.62 | J36: 2.686089919 | K36: 2793.111 | L36: 4.012805765 | M36: 3856.105 | N36: -1.095613264
B37: 1991 | C37: 207.326 | D37: NA | E37: 1159.02 | F37: NA | G37: 184.55 | H37: NA | I37: 257.698 | J37: NA | K37: 2685.353 | L37: NA | M37: 3898.821 | N37: NA
B38: Basierend auf Daten von Eurostat, berechnet durch FERI zur Verfügung gestellt vom Deutschen Verband der Chemischen Industrie (VCI)

Sheet Produktion
B2: Produktion von chemischen Erzeugnissen in der Schweiz
B4: Entwicklung der Produktion der Schweizerischen chemischen Industrie im Vergleich zu anderen ausgewählten Wirtschaftssektoren
B5: Indizes der Entwicklung der Produktion der Schweizerischen chemischen Industrie im Vergleich zu anderen ausgewählten Wirtschaftssektoren (Codierung)
B6: Jahr
C7: Kokerei, Mineralölver-arbeitung und Herstellung von chemischen Erzeugnissen (CD+CE) | E7: Herstellung von Nahrungsmitteln und Tabakerzeugnissen (CA) | G7: Herstellung von pharmazeutischen Erzeugnissen (CF) | I7: Herstellung von Gummi- und Kunststoffwaren (CG) | K7: Herstellung von Datenverarbeitungsgeräten und Uhren (CI) | M7: Maschinenbau (CK)
C9: Produktion (Index) | D9: Veränderung im Vergleich zum Vorjahr (%) | E9: Produktion (Index) | F9: Veränderung im Vergleich zum Vorjahr (%) | G9: Produktion (Index) | H9: Veränderung im Vergleich zum Vorjahr (%) | I9: Produktion (Index) | J9: Veränderung im Vergleich zum Vorjahr (%) | K9: Produktion (Index) | L9: Veränderung im Vergleich zum Vorjahr (%) | M9: Produktion (Index) | N9: Veränderung im Vergleich zum Vorjahr (%)
B10: 2019 | C10: 124.3 | D10: 4.1 | E10: 106.6 | F10: 1 | G10: 142.7 | H10: 15.1 | I10: 104.7 | J10: -4.4 | K10: 112.6 | L10: 3.8 | M10: 103.2 | N10: -5.6
B11: 2018 | C11: 119.3 | D11: 7.2 | E11: 105.6 | F11: 4.2 | G11: 124 | H11: 7.2 | I11: 109.5 | J11: 8.4 | K11: 108.5 | L11: 9 | M11: 109.2 | N11: 3.5
B12: 2017 | C12: 111.3 | D12: 7.1 | E12: 101.3 | F12: 0.2 | G12: 115.7 | H12: 9.9 | I12: 101 | J12: 2.5 | K12: 99.5 | L12: 4.3 | M12: 105.6 | N12: 6.2
B13: 2016 | C13: 103.9 | D13: 3.9 | E13: 101.1 | F13: 1.1 | G13: 105.3 | H13: 5.3 | I13: 98.5 | J13: -1.5 | K13: 95.4 | L13: -4.6 | M13: 99.4 | N13: -0.6
B14: 2015 | C14: 100 | D14: -4.3 | E14: 100 | F14: -1.1 | G14: 100 | H14: 1.5 | I14: 100 | J14: -1.7 | K14: 100 | L14: -1.9 | M14: 100 | N14: -2
B15: 2014 | C15: 104.5 | D15: 1.9 | E15: 101.1 | F15: 1.4 | G15: 98.5 | H15: 2.6 | I15: 101.7 | J15: 1.8 | K15: 101.9 | L15: 4.2 | M15: 102.1 | N15: 1
B16: 2013 | C16: 102.5 | D16: 7.1 | E16: 99.7 | F16: 0.1 | G16: 96 | H16: 3.5 | I16: 100 | J16: 1.4 | K16: 97.8 | L16: -2.2 | M16: 101 | N16: -4.6 | W16: Grafikoptionen:
B17: 2012 | C17: 95.7 | D17: -6.6 | E17: 99.6 | F17: 0.2 | G17: 92.8 | H17: 10.7 | I17: 98.6 | J17: -6 | K17: 100 | L17: 5.1 | M17: 105.9 | N17: -7.6
B18: 2011 | C18: 102.5 | D18: 1.1 | E18: 99.5 | F18: 0.8 | G18: 83.8 | H18: 4.3 | I18: 104.8 | J18: -0.8 | K18: 95.1 | L18: 9.6 | M18: 114.6 | N18: 6.7
B19: 2010 | C19: 101.3 | D19: -2.9 | E19: 98.7 | F19: 1.7 | G19: 80.3 | H19: 6.1 | I19: 105.7 | J19: 5 | K19: 86.8 | L19: 11.8 | M19: 107.4 | N19: 9.3
B20: 2009 | C20: 104.3 | D20: -4.6 | E20: 97 | F20: -1.8 | G20: 75.7 | H20: 10.6 | I20: 100.6 | J20: -13.3 | K20: 77.6 | L20: -15.9 | M20: 98.3 | N20: -24.3
B21: 2008 | C21: 109.3 | D21: -7.7 | E21: 98.9 | F21: 3.5 | G21: 68.5 | H21: 2 | I21: 116.1 | J21: 1.2 | K21: 92.3 | L21: 2.9 | M21: 129.8 | N21: 2.6
B22: 2007 | C22: 118.4 | D22: 1.3 | E22: 95.5 | F22: 3.1 | G22: 67.1 | H22: 22.8 | I22: 114.6 | J22: 5.3 | K22: 89.8 | L22: 12.4 | M22: 126.5 | N22: 9.6
B23: 2006 | C23: 116.9 | D23: 8.1 | E23: 92.7 | F23: 8.3 | G23: 54.7 | H23: 16.4 | I23: 108.9 | J23: 4.9 | K23: 79.8 | L23: 5.7 | M23: 115.4 | N23: 11
B24: 2005 | C24: 108.2 | D24: 0.3 | E24: 85.6 | F24: 0.9 | G24: 47 | H24: 9.8 | I24: 103.8 | J24: 2.7 | K24: 75.5 | L24: 9 | M24: 104 | N24: -1.6
B25: 2004 | C25: 107.8 | D25: NA | E25: 84.8 | F25: NA | G25: 42.8 | H25: NA | I25: 101.1 | J25: NA | K25: 69.3 | L25: NA | M25: 105.7 | N25: NA
B26: Basierend auf Daten der Produktions-, Auftrags- und Umsatzstatistik der Industrie, INDPAU, BAPAU, Bundesamtes für Statistik (BfS)
B27: Bemerkungen: - Stand der Datenbank: 25.05.2020 - Indizes: Jahresdurchschnitt 2015=100 - Veränderungen: zum Vorjahr in %; saisonbereinigt: zur Vorperiode in %. - Die Zahlen vor dem 4.Quartal 2011 basieren auf der alten PAUL-Statistik und wurden in die neue Nomenklatur Noga2008 überführt. - Die Produktion wird durch die Deflationierung des Umsatzes berechnet. Da der Produktionspreisindex in der heutigen Form erst seit 2004 existiert, können vor diesem Datum keine Produktionszahlen berechnet werden.

Sheet Glossar
B2: Glossar
B4: Warenarten und Regionen
B6: Seit Anfang 2012 wird das Ursprungsland anstelle des Erzeugungslandes in der Aussenhandelsstatistik ausgewiesen.
B7: Erzeugungsland: | C7: Das Erzeugungsland bezeichnet das Land, in welchem ein Produkt vor der Einfuhr in die Schweiz im freien Verkehr war. Das Produkt kann entweder in diesem Land hergestellt worden oder durch definitive Veranlagung oder zollfreie Zulassung in den freien Verkehr gelangt sein.
B8: Ursprungsland: | C8: Das Ursprungsland bezeichnet jenes Land, in dem die Ware vollständig gewonnen oder überwiegend hergestellt wurde.
B10: Warenarten
B11: Warenarten
B12: Swiss Impex Nr. | C12: Text | G12: Gültig von | H12: Gültig bis
B13: 06 | C13: Produkte der Chemisch-Pharmazeutischen Industrie | G13: 01.01.1988 | H13: 31.12.2999
B14: 06.1 | C14: Chemische Rohstoffe, Grundstoffe und ungeformte Kunststoffe | G14: 01.01.1988 | H14: 31.12.2999
B15: 06.1.1 | C15: Chemische Roh- und Grundstoffe | G15: 01.01.1988 | H15: 31.12.2999
B16: 06.1.1.01 | C16: Anorganische Roh- und Grundstoffe | G16: 01.01.1988 | H16: 31.12.2999
B17: 06.1.1.02 | C17: Organische Roh- und Grundstoffe | G17: 01.01.1988 | H17: 31.12.2999
B18: 06.1.2 | C18: Ungeformte Kunststoffe (Primärformen) | G18: 01.01.1988 | H18: 31.12.2999
B19: 06.2 | C19: Chemische Endprodukte, inkl. Wirksubstanzen | G19: 01.01.1988 | H19: 31.12.2999
B20: 06.2.1 | C20: Pharmazeutische Produkte, Vitamine, Diagnostika, (inkl. Wirksubstanzen) | G20: 01.01.1988 | H20: 31.12.2999
B21: 06.2.2 | C21: Agrochemische Erzeugnisse | G21: 01.01.1988 | H21: 31.12.2999
B22: 06.2.2.01 | C22: Pflanzenschutz- und Schädlingsbekämpfungsmittel | G22: 01.01.1988 | H22: 31.12.2999
B23: 06.2.2.02 | C23: Chemische Düngemittel | G23: 01.01.1988 | H23: 31.12.2999
B24: 06.2.3 | C24: Farbkörper | G24: 01.01.1988 | H24: 31.12.2999
B25: 06.2.3.01 | C25: Farbstoffe und Pigmente | G25: 01.01.1988 | H25: 31.12.2999
B26: 06.2.3.02 | C26: Lacke und Farben | G26: 01.01.1988 | H26: 31.12.2999
B27: 06.2.4 | C27: Aetherische Öle, Riech- und Aromastoffe | G27: 01.01.1988 | H27: 31.12.2999
B28: 06.2.5 | C28: Kosmetika und Parfümerieprodukte | G28: 01.01.1988 | H28: 31.12.2999
B29: 06.2.6 | C29: Fotochemische Erzeugnisse, inkl. unbelichtete Filme | G29: 01.01.1988 | H29: 31.12.2999
B30: 06.2.7 | C30: Gewerbliche Hilfsmittel für die Textil-, Leder-, Papier- und Metallindustrie sowie Reinigungsmittel | G30: 01.01.1988 | H30: 31.12.2999
B31: 06.2.8 | C31: Chemische Endprodukte, wie Kitt, Wachs, Leim, Puder, Sprengstoff, Lösemittel | G31: 01.01.1988 | H31: 31.12.2999
B33: Regionen (SECO)
B34: Regionen (SECO)
B35: Länder po Region (SECO)
B36: Swiss Impex Nr. | C36: Handelspartner | D36: ISO Code | E36: Gültig von | F36: Gültig bis | G36: Zugewiesene Nr.
B37: 1020 | C37: Afrika und Naher Osten | E37: 01.01.1988 | F37: 31.12.2999 | G37: 1
B38: 1028 | C38: Naher Osten | E38: 01.01.1988 | F38: 31.12.2999 | G38: 1.1
B39: 322 | C39: Bahrain | D39: BH | E39: 01.01.1988 | F39: 31.12.2999
B40: 324 | C40: Emirate, Arab. | D40: AE | E40: 01.01.1988 | F40: 31.12.2999
B41: 329 | C41: Irak | D41: IQ | E41: 01.01.1988 | F41: 31.12.2999
B42: 331 | C42: Iran | D42: IR | E42: 01.01.1988 | F42: 31.12.2999
B43: 305 | C43: Israel | D43: IL | E43: 01.01.1988 | F43: 31.12.2999
B44: 316 | C44: Jemen | D44: YE | E44: 01.01.1991 | F44: 31.12.2999
B45: 307 | C45: Jordanien | D45: JO | E45: 01.01.1988 | F45: 31.12.2999
B46: 321 | C46: Katar | D46: QA | E46: 01.01.1988 | F46: 31.12.2999
B47: 327 | C47: Kuwait | D47: KW | E47: 01.01.1988 | F47: 31.12.2999
B48: 303 | C48: Libanon | D48: LB | E48: 01.01.1988 | F48: 31.12.2999
B49: 325 | C49: Oman | D49: OM | E49: 01.01.1988 | F49: 31.12.2999
B50: 306 | C50: Palästina | D50: PS | E50: 01.01.1997 | F50: 31.12.2999
B51: 311 | C51: Saudi-Arabien | D51: SA | E51: 01.01.1988 | F51: 31.12.2999
B52: 301 | C52: Syrien | D52: SY | E52: 01.01.1988 | F52: 31.12.2999
B53: 1024 | C53: Nordafrika | E53: 01.01.1988 | F53: 31.12.2999 | G53: 1.2
B54: 201 | C54: Ägypten | D54: EG | E54: 01.01.1988 | F54: 31.12.2999
B55: 209 | C55: Algerien | D55: DZ | E55: 01.01.1988 | F55: 31.12.2999
B56: 216 | C56: Ceuta | D56: XC | E56: 01.01.2011 | F56: 31.12.2999
B57: 214 | C57: Ceuta/Melilla | D57: XB | E57: 01.01.1988 | F57: 31.12.2010
B58: 210 | C58: Kanarische Ins. | D58: XA | E58: 01.01.1988 | F58: 31.12.2999
B59: 205 | C59: Libyen | D59: LY | E59: 01.01.1988 | F59: 31.12.2999
B60: 211 | C60: Marokko | D60: MA | E60: 01.01.1988 | F60: 31.12.2999
B61: 217 | C61: Melilla | D61: XL | E61: 01.01.2011 | F61: 31.12.2999
B62: 207 | C62: Tunesien | D62: TN | E62: 01.01.1988 | F62: 31.12.2999
B63: 212 | C63: Westsahara | D63: EH | E63: 01.01.1999 | F63: 31.12.2999
B64: 1032 | C64: Übriges Afrika | E64: 01.01.1988 | F64: 31.12.2999 | G64: 1.3
B65: 258 | C65: Angola | D65: AO | E65: 01.01.1988 | F65: 31.12.2999
B66: 295 | C66: Äthiopien | D66: ET | E66: 01.01.1988 | F66: 31.12.2999
B67: 231 | C67: Benin | D67: BJ | E67: 01.01.1988 | F67: 31.12.2999
B68: 261 | C68: Botsuana | D68: BW | E68: 01.01.1988 | F68: 31.12.2999
B69: 288 | C69: Bouvetinsel | D69: BV | E69: 01.01.1999 | F69: 31.12.2999
B70: 284 | C70: BTIO | D70: IO | E70: 01.01.1988 | F70: 31.12.2999
B71: 229 | C71: Burkina Faso | D71: BF | E71: 01.01.1988 | F71: 31.12.2999
B72: 289 | C72: Burundi | D72: BI | E72: 01.01.1988 | F72: 31.12.2999
B73: 262 | C73: Cabo Verde | D73: CV | E73: 01.01.1988 | F73: 31.12.2999
B74: 293 | C74: Dschibuti | D74: DJ | E74: 01.01.1988 | F74: 31.12.2999
B75: 227 | C75: Elfenbeinküste | D75: CI | E75: 01.01.1988 | F75: 31.12.2999
B76: 294 | C76: Eritrea | D76: ER | E76: 01.01.1994 | F76: 31.12.2999
B77: 269 | C77: Eswatini | D77: SZ | E77: 01.09.2018 | F77: 31.12.2999
B78: 249 | C78: Gabun | D78: GA | E78: 01.01.1988 | F78: 31.12.2999
B79: 237 | C79: Gambia | D79: GM | E79: 01.01.1988 | F79: 31.12.2999
B80: 243 | C80: Ghana | D80: GH | E80: 01.01.1988 | F80: 31.12.2999
B81: 235 | C81: Guinea | D81: GN | E81: 01.01.1988 | F81: 31.12.2999
B82: 215 | C82: Guinea, Äqua.- | D82: GQ | E82: 01.01.1988 | F82: 31.12.2999
B83: 260 | C83: Guinea-Bissau | D83: GW | E83: 01.01.1988 | F83: 31.12.2999
B84: 247 | C84: Kamerun | D84: CM | E84: 01.01.1988 | F84: 31.12.2999
B85: 296 | C85: Kenia | D85: KE | E85: 01.01.1988 | F85: 31.12.2999
B86: 281 | C86: Komoren | D86: KM | E86: 01.01.1988 | F86: 31.12.2999
B87: 256 | C87: Kongo (RDK) | D87: CD | E87: 01.06.1997 | F87: 31.12.2999
B88: 251 | C88: Kongo, Republik | D88: CG | E88: 01.01.1988 | F88: 31.12.2999
B89: 263 | C89: Lesotho | D89: LS | E89: 01.01.1988 | F89: 31.12.2999
B90: 241 | C90: Liberia | D90: LR | E90: 01.01.1988 | F90: 31.12.2999
B91: 277 | C91: Madagaskar | D91: MG | E91: 01.01.1988 | F91: 31.12.2999
B92: 273 | C92: Malawi | D92: MW | E92: 01.01.1988 | F92: 31.12.2999
B93: 223 | C93: Mali | D93: ML | E93: 01.01.1988 | F93: 31.12.2999
B94: 225 | C94: Mauretanien | D94: MR | E94: 01.01.1988 | F94: 31.12.2999
B95: 283 | C95: Mauritius | D95: MU | E95: 01.01.1988 | F95: 31.12.2999
B96: 290 | C96: Mayotte | D96: YT | E96: 01.01.1999 | F96: 31.12.2999
B97: 275 | C97: Mosambik | D97: MZ | E97: 01.01.1988 | F97: 31.12.2999
B98: 265 | C98: Namibia | D98: NA | E98: 01.01.1988 | F98: 31.12.2999
B99: 233 | C99: Niger | D99: NE | E99: 01.01.1988 | F99: 31.12.2999
B100: 245 | C100: Nigeria | D100: NG | E100: 01.01.1988 | F100: 31.12.2999
B101: 279 | C101: Réunion | D101: RE | E101: 01.01.1988 | F101: 31.12.2999
B102: 287 | C102: Ruanda | D102: RW | E102: 01.01.1988 | F102: 31.12.2999
B103: 271 | C103: Sambia | D103: ZM | E103: 01.01.1988 | F103: 31.12.2999
B104: 264 | C104: Sao Tomé | D104: ST | E104: 01.01.1988 | F104: 31.12.2999
B105: 221 | C105: Senegal | D105: SN | E105: 01.01.1988 | F105: 31.12.2999
B106: 286 | C106: Seychellen | D106: SC | E106: 01.01.1988 | F106: 31.12.2999
B107: 239 | C107: Sierra Leone | D107: SL | E107: 01.01.1988 | F107: 31.12.2999
B108: 272 | C108: Simbabwe | D108: ZW | E108: 01.01.1988 | F108: 31.12.2999
B109: 291 | C109: Somalia | D109: SO | E109: 01.01.1988 | F109: 31.12.2999
B110: 280 | C110: St. Helena | D110: SH | E110: 01.01.1988 | F110: 31.12.2999
B111: 267 | C111: Südafrika | D111: ZA | E111: 01.01.1988 | F111: 31.12.2999
B112: 203 | C112: Sudan | D112: SD | E112: 01.01.1988 | F112: 31.12.2999
B113: 204 | C113: Südsudan | D113: SS | E113: 01.09.2011 | F113: 31.12.2999
B114: 269 | C114: Swasiland | D114: SZ | E114: 01.01.1988 | F114: 31.08.2018
B115: 285 | C115: Tansania | D115: TZ | E115: 01.01.1988 | F115: 31.12.2999
B116: 219 | C116: Togo | D116: TG | E116: 01.01.1988 | F116: 31.12.2999
B117: 255 | C117: Tschad | D117: TD | E117: 01.01.1988 | F117: 31.12.2999
B118: 297 | C118: Uganda | D118: UG | E118: 01.01.1988 | F118: 31.12.2999
B119: 257 | C119: Zaire | D119: ZR | E119: 01.01.1988 | F119: 31.05.1997
B120: 253 | C120: Zentralafrika | D120: CF | E120: 01.01.1988 | F120: 31.12.2999
B121: 1060 | C121: Amerika | E121: 01.01.1988 | F121: 31.12.2999 | G121: 2
B122: 1078 | C122: Karibik | E122: 01.01.1988 | F122: 31.12.2999 | G122: 2.1
B123: 432 | C123: Amer. Jungfern | D123: VI | E123: 01.01.1988 | F123: 31.12.2999
B124: 442 | C124: Anguilla | D124: AI | E124: 01.01.1988 | F124: 31.12.2999
B125: 438 | C125: Antigua | D125: AG | E125: 01.01.1988 | F125: 31.12.2999
B126: 450 | C126: Aruba | D126: AW | E126: 01.01.1999 | F126: 31.12.2999
B127: 423 | C127: Bahamas | D127: BS | E127: 01.01.1988 | F127: 31.12.2999
B128: 439 | C128: Barbados | D128: BB | E128: 01.01.1988 | F128: 31.12.2999
B129: 424 | C129: Bermuda | D129: BM | E129: 01.01.1988 | F129: 31.12.2999
B130: 451 | C130: Bonaire | D130: BQ | E130: 01.01.2013 | F130: 31.12.2999
B131: 444 | C131: Brit. Jungfern | D131: VG | E131: 01.01.1999 | F131: 31.12.2999
B132: 452 | C132: Curaçao | D132: CW | E132: 01.01.2013 | F132: 31.12.2999
B133: 434 | C133: Dominica | D133: DM | E133: 01.01.1988 | F133: 31.12.2999
B134: 431 | C134: Dominik. Rep. | D134: DO | E134: 01.01.1988 | F134: 31.12.2999
B135: 440 | C135: Grenada | D135: GD | E135: 01.01.1988 | F135: 31.12.2999
B136: 443 | C136: Guadeloupe | D136: GP | E136: 01.01.1988 | F136: 31.12.2999
B137: 429 | C137: Haiti | D137: HT | E137: 01.01.1988 | F137: 31.12.2999
B138: 425 | C138: Jamaika | D138: JM | E138: 01.01.1988 | F138: 31.12.2999
B139: 420 | C139: Kaiman-Inseln | D139: KY | E139: 01.01.1988 | F139: 31.12.2999
B140: 427 | C140: Kuba | D140: CU | E140: 01.01.1988 | F140: 31.12.2999
B141: 445 | C141: Martinique | D141: MQ | E141: 01.01.1988 | F141: 31.12.2999
B142: 437 | C142: Montserrat | D142: MS | E142: 01.01.1988 | F142: 31.12.2999
B143: 449 | C143: Nied. Antillen | D143: AN | E143: 01.01.1988 | F143: 31.12.2012
B144: 433 | C144: Puerto Rico | D144: PR | E144: 01.01.1988 | F144: 31.12.2005
B145: 448 | C145: St. Barthélemy | D145: BL | E145: 01.01.2013 | F145: 31.12.2999
B146: 441 | C146: St. Kitts | D146: KN | E146: 01.01.1988 | F146: 31.12.2999
B147: 436 | C147: St. Lucia | D147: LC | E147: 01.01.1988 | F147: 31.12.2999
B148: 453 | C148: St. Martin (NL) | D148: SX | E148: 01.01.2013 | F148: 31.12.2999
B149: 435 | C149: St. Vincent | D149: VC | E149: 01.01.1988 | F149: 31.12.2999
B150: 447 | C150: Trinidad | D150: TT | E150: 01.01.1988 | F150: 31.12.2999
B151: 421 | C151: Turks | D151: TC | E151: 01.01.1988 | F151: 31.12.2999
B152: 1068 | C152: Lateinamerika | E152: 01.01.1988 | F152: 31.12.2999 | G152: 2.2
B153: 1074 | C153: Südamerika | E153: 01.01.1988 | F153: 31.12.2999 | G153: 2.2.1
B154: 475 | C154: Argentinien | D154: AR | E154: 01.01.1988 | F154: 31.12.2999
B155: 481 | C155: Bolivien | D155: BO | E155: 01.01.1988 | F155: 31.12.2999
B156: 465 | C156: Brasilien | D156: BR | E156: 01.01.1988 | F156: 31.12.2999
B157: 479 | C157: Chile | D157: CL | E157: 01.01.1988 | F157: 31.12.2999
B158: 485 | C158: Ecuador | D158: EC | E158: 01.01.1988 | F158: 31.12.2999
B159: 476 | C159: Falkland | D159: FK | E159: 01.01.1988 | F159: 31.12.2999
B160: 459 | C160: Guyana | D160: GY | E160: 01.01.1988 | F160: 31.12.2999
B161: 463 | C161: Guyana, Franz.- | D161: GF | E161: 01.01.1988 | F161: 31.12.2999
B162: 455 | C162: Kolumbien | D162: CO | E162: 01.01.1988 | F162: 31.12.2999
B163: 471 | C163: Paraguay | D163: PY | E163: 01.01.1988 | F163: 31.12.2999
B164: 483 | C164: Peru | D164: PE | E164: 01.01.1988 | F164: 31.12.2999
B165: 461 | C165: Suriname | D165: SR | E165: 01.01.1988 | F165: 31.12.2999
B166: 473 | C166: Uruguay | D166: UY | E166: 01.01.1988 | F166: 31.12.2999
B167: 457 | C167: Venezuela | D167: VE | E167: 01.01.1988 | F167: 31.12.2999
B168: 1070 | C168: Zentralamerika | E168: 01.01.1988 | F168: 31.12.2999 | G168: 2.2.2
B169: 407 | C169: Belize | D169: BZ | E169: 01.01.1988 | F169: 31.12.2999
B170: 417 | C170: Costa Rica | D170: CR | E170: 01.01.1988 | F170: 31.12.2999
B171: 413 | C171: El Salvador | D171: SV | E171: 01.01.1988 | F171: 31.12.2999
B172: 409 | C172: Guatemala | D172: GT | E172: 01.01.1988 | F172: 31.12.2999
B173: 411 | C173: Honduras | D173: HN | E173: 01.01.1988 | F173: 31.12.2999
B174: 405 | C174: Mexiko | D174: MX | E174: 01.01.1988 | F174: 31.12.2999
B175: 415 | C175: Nicaragua | D175: NI | E175: 01.01.1988 | F175: 31.12.2999
B176: 419 | C176: Panama | D176: PA | E176: 01.01.1988 | F176: 31.12.2999
B177: 1064 | C177: Nordamerika | E177: 01.01.1988 | F177: 31.12.2999 | G177: 2.3
B178: 404 | C178: Grönland | D178: GL | E178: 01.01.1988 | F178: 31.12.2999
B179: 401 | C179: Kanada | D179: CA | E179: 01.01.1988 | F179: 31.12.2999
B180: 402 | C180: Miquelon | D180: PM | E180: 01.01.1988 | F180: 31.12.2999
B181: 403 | C181: USA | D181: US | E181: 01.01.1988 | F181: 31.12.2999
B182: 1040 | C182: Asien ohne Naher Osten | E182: 01.01.1988 | F182: 31.12.2999 | G182: 3
B183: 1052 | C183: Nord- und Nordostasien | E183: 01.01.1988 | F183: 31.12.2999 | G183: 3.1
B184: 373 | C184: China | D184: CN | E184: 01.01.1988 | F184: 31.12.2999
B185: 375 | C185: Hongkong | D185: HK | E185: 01.01.1988 | F185: 31.12.2999
B186: 387 | C186: Japan | D186: JP | E186: 01.01.1988 | F186: 31.12.2999
B187: 383 | C187: Korea (Nord) | D187: KP | E187: 01.01.1988 | F187: 31.12.2999
B188: 385 | C188: Korea (Süd) | D188: KR | E188: 01.01.1988 | F188: 31.12.2999
B189: 379 | C189: Macau | D189: MO | E189: 01.01.1988 | F189: 31.12.2999
B190: 371 | C190: Mongolei | D190: MN | E190: 01.01.1988 | F190: 31.12.2999
B191: 377 | C191: Taiwan | D191: TW | E191: 01.01.1988 | F191: 31.12.2999
B192: 1048 | C192: Südasien | E192: 01.01.1988 | F192: 31.12.2999 | G192: 3.2
B193: 333 | C193: Afghanistan | D193: AF | E193: 01.01.1988 | F193: 31.12.2999
B194: 337 | C194: Bangladesch | D194: BD | E194: 01.01.1988 | F194: 31.12.2999
B195: 346 | C195: Bhutan | D195: BT | E195: 01.01.1988 | F195: 31.12.2999
B196: 339 | C196: Indien | D196: IN | E196: 01.01.1988 | F196: 31.12.2999
B197: 344 | C197: Malediven | D197: MV | E197: 01.01.1988 | F197: 31.12.2999
B198: 345 | C198: Nepal | D198: NP | E198: 01.01.1988 | F198: 31.12.2999
B199: 335 | C199: Pakistan | D199: PK | E199: 01.01.1988 | F199: 31.12.2999
B200: 343 | C200: Sri Lanka | D200: LK | E200: 01.01.1988 | F200: 31.12.2999
B201: 1056 | C201: Südostasien | E201: 01.01.1988 | F201: 31.12.2999 | G201: 3.3
B202: 357 | C202: Brunei | D202: BN | E202: 01.01.1988 | F202: 31.12.2999
B203: 391 | C203: Indonesien | D203: ID | E203: 01.01.1988 | F203: 31.12.2999
B204: 363 | C204: Kambodscha | D204: KH | E204: 01.01.1988 | F204: 31.12.2999
B205: 365 | C205: Laos | D205: LA | E205: 01.01.1988 | F205: 31.12.2999
... 675 more rows

Sheet Übersicht (hidden)
A1: 06 - Produkte der Chemisch-Pharmazeutischen Industrie | I1: 06.2.1 - Pharmazeutische Produkte, Vitamine, Diagnostika, (inkl. Wirksubstanzen) | R1: 2019 | S1: Produkte der Chemischen Industrie
R2: Gesamthandel: Schweiz- Weltweit
S3: Import | U3: Export | W3: Handelsvolumen
S4: Menge (Tonnen) | T4: Wert (Mio. CHF) | U4: Menge (Tonnen) | V4: Wert (Mio. CHF) | W4: Menge (Tonnen) | X4: Wert (Mio. CHF)
A5: 2019 | B5: Gesamthandel | C5: 5359851907 | D5: 52704699062 | E5: 5.1 | F5: 1863281669 | G5: 114575271628 | H5: 9.8 | I5: 2019 | J5: Gesamthandel | K5: 90373680 | L5: 37707454896 | M5: 2.7 | N5: 176235242 | O5: 97550074507 | Q5: 10.4 | R5: Geamthandel | S5: =(C5-K5)/1000 -> 5269478.227 | T5: =(D5-L5)*10^-6 -> 14997.24417 | U5: =(F5-N5)/1000 -> 1687046.427 | V5: =(G5-O5)*10^-6 -> 17025.19712 | W5: =S5+U5 -> 6956524.654 | X5: =T5+V5 -> 32022.44129
R7: Handel: Schweiz - Regionen
S8: Import | W8: Export | AA8: Handelsvolumen
R9: ... | S9: Menge (Tonnen) | T9: % Gesamt-Importmenge | U9: Wert (Mio. CHF) | V9: % Gesamt-importwert | W9: Menge (Tonnen)2 | X9: % Gesamt-exportmenge | Y9: Wert (Mio. CHF)2 | Z9: % Gesamt-exportwert | AA9: Menge (Tonnen)3 | AB9: % Gesamt-handels-menge | AC9: Wert (Mio. CHF)3 | AD9: % Gesamt-handelswert
R10: EU28 | S10: 4655353.594 | T10: =Tabelle332635373840424547495152535557596061636570767880828336[[#This Row],[Menge (Tonnen)]]/$S$5 -> 0.8834562728 | U10: 8334.715156 | V10: =Tabelle332635373840424547495152535557596061636570767880828336[[#This Row],[Wert (Mio. CHF)]]/$T$5 -> 0.5557497807 | W10: 1249441.847 | X10: =Tabelle332635373840424547495152535557596061636570767880828336[[#This Row],[Menge (Tonnen)2]]/$U$5 -> 0.7406090473 | Y10: 8450.779037 | Z10: =Tabelle332635373840424547495152535557596061636570767880828336[[#This Row],[Wert (Mio. CHF)2]]/$V$5 -> 0.4963689393 | AA10: =Tabelle332635373840424547495152535557596061636570767880828336[[#This Row],[Menge (Tonnen)]]+Tabelle332635373840424547495152535557596061636570767880828336[[#This Row],[Menge (Tonnen)2]] -> 5904795.441 | AB10: =Tabelle332635373840424547495152535557596061636570767880828336[[#This Row],[Menge (Tonnen)3]]/$W$5 -> 0.848813989 | AC10: =Tabelle332635373840424547495152535557596061636570767880828336[[#This Row],[Wert (Mio. CHF)]]+Tabelle332635373840424547495152535557596061636570767880828336[[#This Row],[Wert (Mio. CHF)2]] -> 16785.49419 | AD10: =Tabelle332635373840424547495152535557596061636570767880828336[[#This Row],[Wert (Mio. CHF)3]]/$X$5 -> 0.5241790919
R11: NAFTA | S11: 138965.974 | T11: =Tabelle332635373840424547495152535557596061636570767880828336[[#This Row],[Menge (Tonnen)]]/$S$5 -> 0.02637186606 | U11: 968.367708 | V11: =Tabelle332635373840424547495152535557596061636570767880828336[[#This Row],[Wert (Mio. CHF)]]/$T$5 -> 0.06456971009 | W11: 103007.946 | X11: =Tabelle332635373840424547495152535557596061636570767880828336[[#This Row],[Menge (Tonnen)2]]/$U$5 -> 0.06105815723 | Y11: 2026.312792 | Z11: =Tabelle332635373840424547495152535557596061636570767880828336[[#This Row],[Wert (Mio. CHF)2]]/$V$5 -> 0.1190184629 | AA11: =Tabelle332635373840424547495152535557596061636570767880828336[[#This Row],[Menge (Tonnen)]]+Tabelle332635373840424547495152535557596061636570767880828336[[#This Row],[Menge (Tonnen)2]] -> 241973.92 | AB11: =Tabelle332635373840424547495152535557596061636570767880828336[[#This Row],[Menge (Tonnen)3]]/$W$5 -> 0.03478373643 | AC11: =Tabelle332635373840424547495152535557596061636570767880828336[[#This Row],[Wert (Mio. CHF)]]+Tabelle332635373840424547495152535557596061636570767880828336[[#This Row],[Wert (Mio. CHF)2]] -> 2994.6805 | AD11: =Tabelle332635373840424547495152535557596061636570767880828336[[#This Row],[Wert (Mio. CHF)3]]/$X$5 -> 0.09351818224
R12: Rest von Asien | S12: 51492.862 | T12: =Tabelle332635373840424547495152535557596061636570767880828336[[#This Row],[Menge (Tonnen)]]/$S$5 -> 0.009771909055 | U12: 217.923178 | V12: =Tabelle332635373840424547495152535557596061636570767880828336[[#This Row],[Wert (Mio. CHF)]]/$T$5 -> 0.01453088151 | W12: 67838.159 | X12: =Tabelle332635373840424547495152535557596061636570767880828336[[#This Row],[Menge (Tonnen)2]]/$U$5 -> 0.04021119865 | Y12: 2508.787497 | Z12: =Tabelle332635373840424547495152535557596061636570767880828336[[#This Row],[Wert (Mio. CHF)2]]/$V$5 -> 0.1473573245 | AA12: =Tabelle332635373840424547495152535557596061636570767880828336[[#This Row],[Menge (Tonnen)]]+Tabelle332635373840424547495152535557596061636570767880828336[[#This Row],[Menge (Tonnen)2]] -> 119331.021 | AB12: =Tabelle332635373840424547495152535557596061636570767880828336[[#This Row],[Menge (Tonnen)3]]/$W$5 -> 0.01715382708 | AC12: =Tabelle332635373840424547495152535557596061636570767880828336[[#This Row],[Wert (Mio. CHF)]]+Tabelle332635373840424547495152535557596061636570767880828336[[#This Row],[Wert (Mio. CHF)2]] -> 2726.710675 | AD12: =Tabelle332635373840424547495152535557596061636570767880828336[[#This Row],[Wert (Mio. CHF)3]]/$X$5 -> 0.08514999374
R13: China | S13: 146721.676 | T13: =Tabelle332635373840424547495152535557596061636570767880828336[[#This Row],[Menge (Tonnen)]]/$S$5 -> 0.02784368199 | U13: 1082.831374 | V13: =Tabelle332635373840424547495152535557596061636570767880828336[[#This Row],[Wert (Mio. CHF)]]/$T$5 -> 0.07220202339 | W13: 49141.249 | X13: =Tabelle332635373840424547495152535557596061636570767880828336[[#This Row],[Menge (Tonnen)2]]/$U$5 -> 0.02912856944 | Y13: 732.346341 | Z13: =Tabelle332635373840424547495152535557596061636570767880828336[[#This Row],[Wert (Mio. CHF)2]]/$V$5 -> 0.04301543975 | AA13: =Tabelle332635373840424547495152535557596061636570767880828336[[#This Row],[Menge (Tonnen)]]+Tabelle332635373840424547495152535557596061636570767880828336[[#This Row],[Menge (Tonnen)2]] -> 195862.925 | AB13: =Tabelle332635373840424547495152535557596061636570767880828336[[#This Row],[Menge (Tonnen)3]]/$W$5 -> 0.02815528367 | AC13: =Tabelle332635373840424547495152535557596061636570767880828336[[#This Row],[Wert (Mio. CHF)]]+Tabelle332635373840424547495152535557596061636570767880828336[[#This Row],[Wert (Mio. CHF)2]] -> 1815.177715 | AD13: =Tabelle332635373840424547495152535557596061636570767880828336[[#This Row],[Wert (Mio. CHF)3]]/$X$5 -> 0.05668455127
R14: Lateinamerika | S14: 35982.938 | T14: =Tabelle332635373840424547495152535557596061636570767880828336[[#This Row],[Menge (Tonnen)]]/$S$5 -> 0.006828558056 | U14: 122.629706 | V14: =Tabelle332635373840424547495152535557596061636570767880828336[[#This Row],[Wert (Mio. CHF)]]/$T$5 -> 0.008176815997 | W14: 46779.151 | X14: =Tabelle332635373840424547495152535557596061636570767880828336[[#This Row],[Menge (Tonnen)2]]/$U$5 -> 0.02772843133 | Y14: 967.03056 | Z14: =Tabelle332635373840424547495152535557596061636570767880828336[[#This Row],[Wert (Mio. CHF)2]]/$V$5 -> 0.05679996262 | AA14: =Tabelle332635373840424547495152535557596061636570767880828336[[#This Row],[Menge (Tonnen)]]+Tabelle332635373840424547495152535557596061636570767880828336[[#This Row],[Menge (Tonnen)2]] -> 82762.089 | AB14: =Tabelle332635373840424547495152535557596061636570767880828336[[#This Row],[Menge (Tonnen)3]]/$W$5 -> 0.01189704531 | AC14: =Tabelle332635373840424547495152535557596061636570767880828336[[#This Row],[Wert (Mio. CHF)]]+Tabelle332635373840424547495152535557596061636570767880828336[[#This Row],[Wert (Mio. CHF)2]] -> 1089.660266 | AD14: =Tabelle332635373840424547495152535557596061636570767880828336[[#This Row],[Wert (Mio. CHF)3]]/$X$5 -> 0.0340280198
R15: Indien | S15: 53549.789 | T15: =Tabelle332635373840424547495152535557596061636570767880828336[[#This Row],[Menge (Tonnen)]]/$S$5 -> 0.01016225643 | U15: 643.077168 | V15: =Tabelle332635373840424547495152535557596061636570767880828336[[#This Row],[Wert (Mio. CHF)]]/$T$5 -> 0.04287968915 | W15: 27260.676 | X15: =Tabelle332635373840424547495152535557596061636570767880828336[[#This Row],[Menge (Tonnen)2]]/$U$5 -> 0.0161588179 | Y15: 354.100584 | Z15: =Tabelle332635373840424547495152535557596061636570767880828336[[#This Row],[Wert (Mio. CHF)2]]/$V$5 -> 0.02079861875 | AA15: =Tabelle332635373840424547495152535557596061636570767880828336[[#This Row],[Menge (Tonnen)]]+Tabelle332635373840424547495152535557596061636570767880828336[[#This Row],[Menge (Tonnen)2]] -> 80810.465 | AB15: =Tabelle332635373840424547495152535557596061636570767880828336[[#This Row],[Menge (Tonnen)3]]/$W$5 -> 0.01161649948 | AC15: =Tabelle332635373840424547495152535557596061636570767880828336[[#This Row],[Wert (Mio. CHF)]]+Tabelle332635373840424547495152535557596061636570767880828336[[#This Row],[Wert (Mio. CHF)2]] -> 997.177752 | AD15: =Tabelle332635373840424547495152535557596061636570767880828336[[#This Row],[Wert (Mio. CHF)3]]/$X$5 -> 0.0311399666
R16: Japan | S16: 34264.136 | T16: =Tabelle332635373840424547495152535557596061636570767880828336[[#This Row],[Menge (Tonnen)]]/$S$5 -> 0.006502377375 | U16: 363.400704 | V16: =Tabelle332635373840424547495152535557596061636570767880828336[[#This Row],[Wert (Mio. CHF)]]/$T$5 -> 0.0242311654 | W16: 14436.652 | X16: =Tabelle332635373840424547495152535557596061636570767880828336[[#This Row],[Menge (Tonnen)2]]/$U$5 -> 0.008557353117 | Y16: 292.320832 | Z16: =Tabelle332635373840424547495152535557596061636570767880828336[[#This Row],[Wert (Mio. CHF)2]]/$V$5 -> 0.01716989412 | AA16: =Tabelle332635373840424547495152535557596061636570767880828336[[#This Row],[Menge (Tonnen)]]+Tabelle332635373840424547495152535557596061636570767880828336[[#This Row],[Menge (Tonnen)2]] -> 48700.788 | AB16: =Tabelle332635373840424547495152535557596061636570767880828336[[#This Row],[Menge (Tonnen)3]]/$W$5 -> 0.007000735342 | AC16: =Tabelle332635373840424547495152535557596061636570767880828336[[#This Row],[Wert (Mio. CHF)]]+Tabelle332635373840424547495152535557596061636570767880828336[[#This Row],[Wert (Mio. CHF)2]] -> 655.721536 | AD16: =Tabelle332635373840424547495152535557596061636570767880828336[[#This Row],[Wert (Mio. CHF)3]]/$X$5 -> 0.02047693772
R17: Rest von Europa | S17: 73114.188 | T17: =Tabelle332635373840424547495152535557596061636570767880828336[[#This Row],[Menge (Tonnen)]]/$S$5 -> 0.0138750337 | U17: 67.442396 | V17: =Tabelle332635373840424547495152535557596061636570767880828336[[#This Row],[Wert (Mio. CHF)]]/$T$5 -> 0.00449698593 | W17: 45656.192 | X17: =Tabelle332635373840424547495152535557596061636570767880828336[[#This Row],[Menge (Tonnen)2]]/$U$5 -> 0.02706279523 | Y17: 503.904262 | Z17: =Tabelle332635373840424547495152535557596061636570767880828336[[#This Row],[Wert (Mio. CHF)2]]/$V$5 -> 0.02959755816 | AA17: =Tabelle332635373840424547495152535557596061636570767880828336[[#This Row],[Menge (Tonnen)]]+Tabelle332635373840424547495152535557596061636570767880828336[[#This Row],[Menge (Tonnen)2]] -> 118770.38 | AB17: =Tabelle332635373840424547495152535557596061636570767880828336[[#This Row],[Menge (Tonnen)3]]/$W$5 -> 0.01707323497 | AC17: =Tabelle332635373840424547495152535557596061636570767880828336[[#This Row],[Wert (Mio. CHF)]]+Tabelle332635373840424547495152535557596061636570767880828336[[#This Row],[Wert (Mio. CHF)2]] -> 571.346658 | AD17: =Tabelle332635373840424547495152535557596061636570767880828336[[#This Row],[Wert (Mio. CHF)3]]/$X$5 -> 0.01784207059
R18: Südkorea | S18: 16624.585 | T18: =Tabelle332635373840424547495152535557596061636570767880828336[[#This Row],[Menge (Tonnen)]]/$S$5 -> 0.003154882568 | U18: 69.749589 | V18: =Tabelle332635373840424547495152535557596061636570767880828336[[#This Row],[Wert (Mio. CHF)]]/$T$5 -> 0.00465082706 | W18: 8726.338 | X18: =Tabelle332635373840424547495152535557596061636570767880828336[[#This Row],[Menge (Tonnen)2]]/$U$5 -> 0.005172553559 | Y18: 347.643262 | Z18: =Tabelle332635373840424547495152535557596061636570767880828336[[#This Row],[Wert (Mio. CHF)2]]/$V$5 -> 0.02041933844 | AA18: =Tabelle332635373840424547495152535557596061636570767880828336[[#This Row],[Menge (Tonnen)]]+Tabelle332635373840424547495152535557596061636570767880828336[[#This Row],[Menge (Tonnen)2]] -> 25350.923 | AB18: =Tabelle332635373840424547495152535557596061636570767880828336[[#This Row],[Menge (Tonnen)3]]/$W$5 -> 0.003644193654 | AC18: =Tabelle332635373840424547495152535557596061636570767880828336[[#This Row],[Wert (Mio. CHF)]]+Tabelle332635373840424547495152535557596061636570767880828336[[#This Row],[Wert (Mio. CHF)2]] -> 417.392851 | AD18: =Tabelle332635373840424547495152535557596061636570767880828336[[#This Row],[Wert (Mio. CHF)3]]/$X$5 -> 0.01303438571
R19: Afrika | S19: 5090.662 | T19: =Tabelle332635373840424547495152535557596061636570767880828336[[#This Row],[Menge (Tonnen)]]/$S$5 -> 0.0009660656674 | U19: 21.428183 | V19: =Tabelle332635373840424547495152535557596061636570767880828336[[#This Row],[Wert (Mio. CHF)]]/$T$5 -> 0.001428808037 | W19: 18281.432 | X19: =Tabelle332635373840424547495152535557596061636570767880828336[[#This Row],[Menge (Tonnen)2]]/$U$5 -> 0.01083635382 | Y19: 310.559185 | Z19: =Tabelle332635373840424547495152535557596061636570767880828336[[#This Row],[Wert (Mio. CHF)2]]/$V$5 -> 0.01824115062 | AA19: =Tabelle332635373840424547495152535557596061636570767880828336[[#This Row],[Menge (Tonnen)]]+Tabelle332635373840424547495152535557596061636570767880828336[[#This Row],[Menge (Tonnen)2]] -> 23372.094 | AB19: =Tabelle332635373840424547495152535557596061636570767880828336[[#This Row],[Menge (Tonnen)3]]/$W$5 -> 0.003359737105 | AC19: =Tabelle332635373840424547495152535557596061636570767880828336[[#This Row],[Wert (Mio. CHF)]]+Tabelle332635373840424547495152535557596061636570767880828336[[#This Row],[Wert (Mio. CHF)2]] -> 331.987368 | AD19: =Tabelle332635373840424547495152535557596061636570767880828336[[#This Row],[Wert (Mio. CHF)3]]/$X$5 -> 0.01036733474
R20: ... | S20: Importmenge (Tonnen) | T20: % an Gesamt-Importmenge | U20: Importwert (Mio. CHF) | V20: % an Gesamt-importwert | W20: Exportmenge (Tonnen) | X20: % an Gesamt-exportmenge | Y20: Exportwert (Mio. CHF) | Z20: % an Gesamt-exportwert | AA20: Handelsmenge (Tonnen) | AB20: % an Gesamt-handelsmenge | AC20: Handelswert (Mio. CHF) | AD20: % an Gesamt-handelswert (Mio. CHF)
R21: EWR-Staaten | S21: 4690921.978 | T21: =Tabelle2039[[#This Row],[Importmenge (Tonnen)]]/$S$5 -> 0.8902061601 | U21: 8354.952203 | V21: =Tabelle2039[[#This Row],[Importwert (Mio. CHF)]]/$T$5 -> 0.5570991651 | W21: 1252214.793 | X21: =Tabelle2039[[#This Row],[Exportmenge (Tonnen)]]/$U$5 -> 0.7422527163 | Y21: 8475.639463 | Z21: =Tabelle2039[[#This Row],[Exportwert (Mio. CHF)]]/$V$5 -> 0.497829153 | AA21: =Tabelle2039[[#This Row],[Importmenge (Tonnen)]]+Tabelle2039[[#This Row],[Exportmenge (Tonnen)]] -> 5943136.771 | AB21: =AA21/$W$5 -> 0.8543255529 | AC21: =Tabelle2039[[#This Row],[Importwert (Mio. CHF)]]+Tabelle2039[[#This Row],[Exportwert (Mio. CHF)]] -> 16830.59167 | AD21: =AC21/$X$5 -> 0.5255874003
R22: Nicht EWR-Staaten | S22: 578556.249 | T22: =Tabelle2039[[#This Row],[Importmenge (Tonnen)]]/$S$5 -> 0.1097938399 | U22: 6642.291963 | V22: =Tabelle2039[[#This Row],[Importwert (Mio. CHF)]]/$T$5 -> 0.4429008349 | W22: 434831.634 | X22: =Tabelle2039[[#This Row],[Exportmenge (Tonnen)]]/$U$5 -> 0.2577472837 | Y22: 8549.557658 | Z22: =Tabelle2039[[#This Row],[Exportwert (Mio. CHF)]]/$V$5 -> 0.502170847 | AA22: =Tabelle2039[[#This Row],[Importmenge (Tonnen)]]+Tabelle2039[[#This Row],[Exportmenge (Tonnen)]] -> 1013387.883 | AB22: =AA22/$W$5 -> 0.1456744471 | AC22: =Tabelle2039[[#This Row],[Importwert (Mio. CHF)]]+Tabelle2039[[#This Row],[Exportwert (Mio. CHF)]] -> 15191.84962 | AD22: =AC22/$X$5 -> 0.4744125997
R24: Handel: Schweiz - Länder
T25: Import | Z25: Export | AF25: Handelsvolumen
A26: Periode 1,2 | B26: Handelspartner0 | C26: Import | D26: Spalte1 | E26: Spalte2 | F26: Export | G26: Spalte3 | H26: Spalte4 | I26: Periode 1,24 | J26: Handelspartner5 | K26: Import6 | L26: Import7 | M26: Import8 | N26: Export7 | O26: Export8 | P26: Export82 | Q26: Export9 | R26: Land | S26: Region | T26: Menge (Tonnen) | U26: % Gesamt-Importmenge | V26: Kumulativer Anteil an Gesamt-importmenge | W26: Wert (Mio. CHF) | X26: % Gesamt-importwert | Y26: Kumulativer Anteil an Gesamt-importwert | Z26: Menge (Tonnen)2 | AA26: % Gesamt-exportmenge | AB26: Kummulative % an Gesamt-exportmenge | AC26: Wert (Mio. CHF)2 | AD26: % Gesamt-exportwert | AE26: Kummulative % an Gesamt-exportwert | AF26: Menge (Tonnen)3 | AG26: % Gesamt-handels-menge | AH26: Kumulative % an Gesamt-handelsmenge | AI26: Wert (Mio. CHF)3 | AJ26: % Gesamt-handelswert | AK26: Kummulative % an Gesamt-handelswert (Mio. CHF) | AM26: Rang
A27: 2019 | B27: Deutschland | C27: 2417048204 | D27: 12769419024 | E27: 1.1 | F27: 672035840 | G27: 17766255388 | H27: 7 | I27: 2019 | J27: Deutschland | K27: 25297903 | L27: 8838351511 | M27: 2.7 | N27: 38020814 | O27: 14681887408 | P27: 10 | Q27: 2019 | R27: Deutschland | S27: EU27 | T27: =(C27-K27)/1000 -> 2391750.301 | U27: =T27/$S$5 -> 0.4538875004 | V27: =SUM($T$27:T27)/$S$5 -> 0.4538875004 | W27: =(D27-L27)*10^-6 -> 3931.067513 | X27: =W27/$T$5 -> 0.2621193247 | Y27: =SUM($W$27:W27)/$T$5 -> 0.2621193247 | Z27: =(F27-N27)/1000 -> 634015.026 | AA27: =Z27/$U$5 -> 0.3758136207 | AB27: =SUM($Z$27:Z27)/$U$5 -> 0.3758136207 | AC27: =(G27-O27)*10^-6 -> 3084.36798 | AD27: =AC27/$V$5 -> 0.181164891 | AE27: =SUM($AC$27:AC27)/$V$5 -> 0.181164891 | AF27: =Tabelle131[[#This Row],[Menge (Tonnen)]]+Tabelle131[[#This Row],[Menge (Tonnen)2]] -> 3025765.327 | AG27: =AF27/$W$5 -> 0.4349535835 | AH27: =SUM($AF$27:AF27)/$W$5 -> 0.4349535835 | AI27: =Tabelle131[[#This Row],[Wert (Mio. CHF)]]+Tabelle131[[#This Row],[Wert (Mio. CHF)2]] -> 7015.435493 | AJ27: =AI27/$X$5 -> 0.2190787214 | AK27: =SUM($AI$27:AI27)/$X$5 -> 0.2190787214 | AM27: 1
A28: 2019 | B28: Frankreich | C28: 823353620 | D28: 2438803267 | E28: -12 | F28: 161098883 | G28: 4861163308 | H28: -5.8 | I28: 2019 | J28: Frankreich | K28: 8649007 | L28: 1197853370 | M28: -19.3 | N28: 11098294 | O28: 3466146916 | P28: -8.5 | Q28: 2019 | R28: Frankreich | S28: EU27 | T28: 814704.613 | U28: 0.1546082132 | V28: =SUM($T$27:T28)/$S$5 -> 0.6084957136 | W28: 1240.949897 | X28: 0.08274519527 | Y28: =SUM($W$27:W28)/$T$5 -> 0.34486452 | Z28: 150000.589 | AA28: 0.08891313635 | AB28: =SUM($Z$27:Z28)/$U$5 -> 0.464726757 | AC28: 1395.016392 | AD28: 0.0819383401 | AE28: =SUM($AC$27:AC28)/$V$5 -> 0.2631032311 | AF28: =Tabelle131[[#This Row],[Menge (Tonnen)]]+Tabelle131[[#This Row],[Menge (Tonnen)2]] -> 964705.202 | AG28: 0.1386763147 | AH28: =SUM($AF$27:AF28)/$W$5 -> 0.5736298982 | AI28: =Tabelle131[[#This Row],[Wert (Mio. CHF)]]+Tabelle131[[#This Row],[Wert (Mio. CHF)2]] -> 2635.966289 | AJ28: 0.08231621897 | AK28: =SUM($AI$27:AI28)/$X$5 -> 0.3013949404 | AM28: 2
A29: 2019 | B29: Italien | C29: 401410176 | D29: 4647701651 | E29: 15.2 | F29: 106786875 | G29: 6683379726 | H29: 7.1 | I29: 2019 | J29: Italien | K29: 10905061 | L29: 3960210187 | M29: 18.8 | N29: 7877768 | O29: 5265219535 | P29: 2.9 | Q29: 2019 | R29: Italien | S29: EU27 | T29: 390505.115 | U29: 0.07410697951 | V29: =SUM($T$27:T29)/$S$5 -> 0.6826026931 | W29: 687.491464 | X29: 0.04584118631 | Y29: =SUM($W$27:W29)/$T$5 -> 0.3907057063 | Z29: 98909.107 | AA29: 0.05862856257 | AB29: =SUM($Z$27:Z29)/$U$5 -> 0.5233553196 | AC29: 1418.160191 | AD29: 0.08329772518 | AE29: =SUM($AC$27:AC29)/$V$5 -> 0.3464009562 | AF29: =Tabelle131[[#This Row],[Menge (Tonnen)]]+Tabelle131[[#This Row],[Menge (Tonnen)2]] -> 489414.222 | AG29: 0.07035326493 | AH29: =SUM($AF$27:AF29)/$W$5 -> 0.6439831631 | AI29: =Tabelle131[[#This Row],[Wert (Mio. CHF)]]+Tabelle131[[#This Row],[Wert (Mio. CHF)2]] -> 2105.651655 | AJ29: 0.06575550053 | AK29: =SUM($AI$27:AI29)/$X$5 -> 0.3671504409 | AM29: 3
A30: 2019 | B30: Niederlande | C30: 338329932 | D30: 941172156 | E30: -8.7 | F30: 80830172 | G30: 2083059707 | H30: 33.5 | I30: 2019 | J30: Niederlande | K30: 1813435 | L30: 371662323 | M30: -10.3 | N30: 12018797 | O30: 1770801663 | P30: 38.6 | Q30: 2019 | R30: Niederlande | S30: EU27 | T30: 336516.497 | U30: 0.06386144557 | V30: =SUM($T$27:T30)/$S$5 -> 0.7464641387 | W30: 569.509833 | X30: 0.03797429892 | Y30: =SUM($W$27:W30)/$T$5 -> 0.4286800052 | Z30: 68811.375 | AA30: 0.04078807429 | AB30: =SUM($Z$27:Z30)/$U$5 -> 0.5641433939 | AC30: 312.258044 | AD30: 0.0183409356 | AE30: =SUM($AC$27:AC30)/$V$5 -> 0.3647418918 | AF30: =Tabelle131[[#This Row],[Menge (Tonnen)]]+Tabelle131[[#This Row],[Menge (Tonnen)2]] -> 405327.872 | AG30: 0.05826585719 | AH30: =SUM($AF$27:AF30)/$W$5 -> 0.7022490203 | AI30: =Tabelle131[[#This Row],[Wert (Mio. CHF)]]+Tabelle131[[#This Row],[Wert (Mio. CHF)2]] -> 881.767877 | AJ30: 0.02753593547 | AK30: =SUM($AI$27:AI30)/$X$5 -> 0.3946863764 | AM30: 4
A31: 2019 | B31: Belgien | C31: 250826956 | D31: 1236556374 | E31: -0.9 | F31: 43820784 | G31: 2218715113 | H31: 4 | I31: 2019 | J31: Belgien | K31: 2612944 | L31: 563565705 | M31: 6.5 | N31: 3940025 | O31: 1854952841 | P31: 4.9 | Q31: 2019 | R31: Belgien | S31: EU27 | T31: 248214.012 | U31: 0.04710409671 | V31: =SUM($T$27:T31)/$S$5 -> 0.7935682354 | W31: 672.990669 | X31: 0.04487428901 | Y31: =SUM($W$27:W31)/$T$5 -> 0.4735542942 | Z31: 39880.759 | AA31: 0.02363939626 | AB31: =SUM($Z$27:Z31)/$U$5 -> 0.5877827902 | AC31: 363.762272 | AD31: 0.02136611221 | AE31: =SUM($AC$27:AC31)/$V$5 -> 0.3861080041 | AF31: =Tabelle131[[#This Row],[Menge (Tonnen)]]+Tabelle131[[#This Row],[Menge (Tonnen)2]] -> 288094.771 | AG31: 0.04141360598 | AH31: =SUM($AF$27:AF31)/$W$5 -> 0.7436626263 | AI31: =Tabelle131[[#This Row],[Wert (Mio. CHF)]]+Tabelle131[[#This Row],[Wert (Mio. CHF)2]] -> 1036.752941 | AJ31: 0.03237582456 | AK31: =SUM($AI$27:AI31)/$X$5 -> 0.4270622009 | AM31: 5
A32: 2019 | B32: Österreich | C32: 214396299 | D32: 2864352345 | E32: 13.6 | F32: 70808877 | G32: 2420250087 | H32: -7.7 | I32: 2019 | J32: Österreich | K32: 2045331 | L32: 2570200324 | M32: 14.3 | N32: 1186333 | O32: 2147502068 | P32: -7.3 | Q32: 2019 | R32: Österreich | S32: EU27 | T32: 212350.968 | U32: 0.04029829119 | V32: =SUM($T$27:T32)/$S$5 -> 0.8338665266 | W32: 294.152021 | X32: 0.01961373821 | Y32: =SUM($W$27:W32)/$T$5 -> 0.4931680324 | Z32: 69622.544 | AA32: 0.04126889627 | AB32: =SUM($Z$27:Z32)/$U$5 -> 0.6290516864 | AC32: 272.748019 | AD32: 0.01602025616 | AE32: =SUM($AC$27:AC32)/$V$5 -> 0.4021282602 | AF32: =Tabelle131[[#This Row],[Menge (Tonnen)]]+Tabelle131[[#This Row],[Menge (Tonnen)2]] -> 281973.512 | AG32: 0.04053367537 | AH32: =SUM($AF$27:AF32)/$W$5 -> 0.7841963016 | AI32: =Tabelle131[[#This Row],[Wert (Mio. CHF)]]+Tabelle131[[#This Row],[Wert (Mio. CHF)2]] -> 566.90004 | AJ32: 0.01770321116 | AK32: =SUM($AI$27:AI32)/$X$5 -> 0.4447654121 | AM32: 6
A33: 2019 | B33: China | C33: 149804964 | D33: 1398936414 | E33: 6.8 | F33: 56851534 | G33: 5603515671 | H33: 12.8 | I33: 2019 | J33: China | K33: 3083288 | L33: 316105040 | M33: -18.4 | N33: 7710285 | O33: 4871169330 | P33: 13.5 | Q33: 2019 | R33: China | S33: China | T33: 146721.676 | U33: 0.02784368199 | V33: =SUM($T$27:T33)/$S$5 -> 0.8617102086 | W33: 1082.831374 | X33: 0.07220202339 | Y33: =SUM($W$27:W33)/$T$5 -> 0.5653700558 | Z33: 49141.249 | AA33: 0.02912856944 | AB33: =SUM($Z$27:Z33)/$U$5 -> 0.6581802559 | AC33: 732.346341 | AD33: 0.04301543975 | AE33: =SUM($AC$27:AC33)/$V$5 -> 0.4451437 | AF33: =Tabelle131[[#This Row],[Menge (Tonnen)]]+Tabelle131[[#This Row],[Menge (Tonnen)2]] -> 195862.925 | AG33: 0.02815528367 | AH33: =SUM($AF$27:AF33)/$W$5 -> 0.8123515853 | AI33: =Tabelle131[[#This Row],[Wert (Mio. CHF)]]+Tabelle131[[#This Row],[Wert (Mio. CHF)2]] -> 1815.177715 | AJ33: 0.05668455127 | AK33: =SUM($AI$27:AI33)/$X$5 -> 0.5014499634 | AM33: 7
A34: 2019 | B34: USA | C34: 117263932 | D34: 4801448553 | E34: 0.4 | F34: 107712236 | G34: 26078828000 | H34: 14.8 | I34: 2019 | J34: USA | K34: 8959040 | L34: 3944377842 | M34: 0.3 | N34: 15695981 | O34: 24302500078 | P34: 14.9 | Q34: 2019 | R34: USA | S34: NAFTA | T34: 108304.892 | U34: 0.02055324784 | V34: =SUM($T$27:T34)/$S$5 -> 0.8822634564 | W34: 857.070711 | X34: 0.05714854686 | Y34: =SUM($W$27:W34)/$T$5 -> 0.6225186027 | Z34: 92016.255 | AA34: 0.05454281135 | AB34: =SUM($Z$27:Z34)/$U$5 -> 0.7127230672 | AC34: 1776.327922 | AD34: 0.1043352338 | AE34: =SUM($AC$27:AC34)/$V$5 -> 0.5494789338 | AF34: =Tabelle131[[#This Row],[Menge (Tonnen)]]+Tabelle131[[#This Row],[Menge (Tonnen)2]] -> 200321.147 | AG34: 0.02879615282 | AH34: =SUM($AF$27:AF34)/$W$5 -> 0.8411477381 | AI34: =Tabelle131[[#This Row],[Wert (Mio. CHF)]]+Tabelle131[[#This Row],[Wert (Mio. CHF)2]] -> 2633.398633 | AJ34: 0.08223603595 | AK34: =SUM($AI$27:AI34)/$X$5 -> 0.5836859993 | AM34: 8
A35: 2019 | B35: Ver. Königreich | C35: 77348041 | D35: 5205257972 | E35: 50.7 | F35: 60079450 | G35: 3048705966 | H35: -8.4 | I35: 2019 | J35: Ver. Königreich | K35: 2112877 | L35: 2039931333 | M35: 18 | N35: 4657652 | O35: 2452759006 | P35: -6.7 | Q35: 2019 | R35: Ver. Königreich | S35: Sonstiges Europa | T35: 75235.164 | U35: 0.01427753579 | V35: =SUM($T$27:T35)/$S$5 -> 0.8965409922 | W35: 3165.326639 | X35: 0.2110605525 | Y35: =SUM($W$27:W35)/$T$5 -> 0.8335791551 | Z35: 55421.798 | AA35: 0.03285137689 | AB35: =SUM($Z$27:Z35)/$U$5 -> 0.7455744441 | AC35: 595.94696 | AD35: 0.03500382144 | AE35: =SUM($AC$27:AC35)/$V$5 -> 0.5844827552 | AF35: =Tabelle131[[#This Row],[Menge (Tonnen)]]+Tabelle131[[#This Row],[Menge (Tonnen)2]] -> 130656.962 | AG35: 0.01878193042 | AH35: =SUM($AF$27:AF35)/$W$5 -> 0.8599296686 | AI35: =Tabelle131[[#This Row],[Wert (Mio. CHF)]]+Tabelle131[[#This Row],[Wert (Mio. CHF)2]] -> 3761.273599 | AJ35: 0.1174574282 | AK35: =SUM($AI$27:AI35)/$X$5 -> 0.7011434275 | AM35: 9
A36: 2019 | B36: Polen | C36: 68876244 | D36: 159252044 | E36: 1.9 | F36: 36577916 | G36: 980001571 | H36: 2.5 | I36: 2019 | J36: Polen | K36: 567641 | L36: 48716078 | M36: -12 | N36: 2957693 | O36: 742730535 | P36: 5.5 | Q36: 2019 | R36: Polen | S36: EU27 | T36: 68308.603 | U36: 0.0129630677 | V36: =SUM($T$27:T36)/$S$5 -> 0.9095040599 | W36: 110.535966 | X36: 0.00737041851 | Y36: =SUM($W$27:W36)/$T$5 -> 0.8409495736 | Z36: 33620.223 | AA36: 0.01992845156 | AB36: =SUM($Z$27:Z36)/$U$5 -> 0.7655028957 | AC36: 237.271036 | AD36: 0.01393646337 | AE36: =SUM($AC$27:AC36)/$V$5 -> 0.5984192186 | AF36: =Tabelle131[[#This Row],[Menge (Tonnen)]]+Tabelle131[[#This Row],[Menge (Tonnen)2]] -> 101928.826 | AG36: 0.0146522626 | AH36: =SUM($AF$27:AF36)/$W$5 -> 0.8745819312 | AI36: =Tabelle131[[#This Row],[Wert (Mio. CHF)]]+Tabelle131[[#This Row],[Wert (Mio. CHF)2]] -> 347.807002 | AJ36: 0.01086135185 | AK36: =SUM($AI$27:AI36)/$X$5 -> 0.7120047794 | AM36: 10
A37: 2019 | B37: Indien | C37: 57104668 | D37: 987009088 | E37: 41.9 | F37: 28605560 | G37: 632917270 | H37: 0 | I37: 2019 | J37: Indien | K37: 3554879 | L37: 343931920 | M37: 131.1 | N37: 1344884 | O37: 278816686 | P37: -5 | Q37: 2019 | R37: Indien | S37: Indien | T37: 53549.789 | U37: 0.01016225643 | V37: =SUM($T$27:T37)/$S$5 -> 0.9196663163 | W37: 643.077168 | X37: 0.04287968915 | Y37: =SUM($W$27:W37)/$T$5 -> 0.8838292628 | Z37: 27260.676 | AA37: 0.0161588179 | AB37: =SUM($Z$27:Z37)/$U$5 -> 0.7816617136 | AC37: 354.100584 | AD37: 0.02079861875 | AE37: =SUM($AC$27:AC37)/$V$5 -> 0.6192178373 | AF37: =Tabelle131[[#This Row],[Menge (Tonnen)]]+Tabelle131[[#This Row],[Menge (Tonnen)2]] -> 80810.465 | AG37: 0.01161649948 | AH37: =SUM($AF$27:AF37)/$W$5 -> 0.8861984306 | AI37: =Tabelle131[[#This Row],[Wert (Mio. CHF)]]+Tabelle131[[#This Row],[Wert (Mio. CHF)2]] -> 997.177752 | AJ37: 0.0311399666 | AK37: =SUM($AI$27:AI37)/$X$5 -> 0.743144746 | AM37: 11
A38: 2019 | B38: Spanien | C38: 55098948 | D38: 3340568858 | E38: 33.6 | F38: 35499599 | G38: 5769312246 | H38: 22.8 | I38: 2019 | J38: Spanien | K38: 6560757 | L38: 3107883246 | M38: 38.3 | N38: 5074162 | O38: 5430859596 | P38: 24.8 | Q38: 2019 | R38: Spanien | S38: EU27 | T38: 48538.191 | U38: 0.009211194906 | V38: =SUM($T$27:T38)/$S$5 -> 0.9288775112 | W38: 232.685612 | X38: 0.01551522463 | Y38: =SUM($W$27:W38)/$T$5 -> 0.8993444874 | Z38: 30425.437 | AA38: 0.01803473604 | AB38: =SUM($Z$27:Z38)/$U$5 -> 0.7996964496 | AC38: 338.45265 | AD38: 0.01987951432 | AE38: =SUM($AC$27:AC38)/$V$5 -> 0.6390973516 | AF38: =Tabelle131[[#This Row],[Menge (Tonnen)]]+Tabelle131[[#This Row],[Menge (Tonnen)2]] -> 78963.628 | AG38: 0.01135101677 | AH38: =SUM($AF$27:AF38)/$W$5 -> 0.8975494474 | AI38: =Tabelle131[[#This Row],[Wert (Mio. CHF)]]+Tabelle131[[#This Row],[Wert (Mio. CHF)2]] -> 571.138262 | AJ38: 0.01783556278 | AK38: =SUM($AI$27:AI38)/$X$5 -> 0.7609803088 | AM38: 12
A39: 2019 | B39: Norwegen | C39: 36404249 | D39: 57492111 | E39: -20 | F39: 2965659 | G39: 228059136 | H39: -19.4 | I39: 2019 | J39: Norwegen | K39: 870158 | L39: 37651075 | M39: -16.3 | N39: 234647 | O39: 203830252 | P39: -20.7 | Q39: 2019 | R39: Norwegen | S39: Sonstiges Europa | T39: 35534.091 | U39: 0.006743379414 | V39: =SUM($T$27:T39)/$S$5 -> 0.9356208906 | W39: 19.841036 | X39: 0.001322978794 | Y39: =SUM($W$27:W39)/$T$5 -> 0.9006674662 | Z39: 2731.012 | AA39: 0.001618812592 | AB39: =SUM($Z$27:Z39)/$U$5 -> 0.8013152622 | AC39: 24.228884 | AD39: 0.001423119147 | AE39: =SUM($AC$27:AC39)/$V$5 -> 0.6405204708 | AF39: =Tabelle131[[#This Row],[Menge (Tonnen)]]+Tabelle131[[#This Row],[Menge (Tonnen)2]] -> 38265.103 | AG39: 0.005500606251 | AH39: =SUM($AF$27:AF39)/$W$5 -> 0.9030500536 | AI39: =Tabelle131[[#This Row],[Wert (Mio. CHF)]]+Tabelle131[[#This Row],[Wert (Mio. CHF)2]] -> 44.06992 | AJ39: 0.00137621987 | AK39: =SUM($AI$27:AI39)/$X$5 -> 0.7623565286 | AM39: 13
A40: 2019 | B40: Japan | C40: 35507673 | D40: 1124518982 | E40: 15.6 | F40: 16318033 | G40: 3980121998 | H40: 9.5 | I40: 2019 | J40: Japan | K40: 1243537 | L40: 761118278 | M40: 20.7 | N40: 1881381 | O40: 3687801166 | P40: 11.2 | Q40: 2019 | R40: Japan | S40: Japan | T40: 34264.136 | U40: 0.006502377375 | V40: =SUM($T$27:T40)/$S$5 -> 0.942123268 | W40: 363.400704 | X40: 0.0242311654 | Y40: =SUM($W$27:W40)/$T$5 -> 0.9248986316 | Z40: 14436.652 | AA40: 0.008557353117 | AB40: =SUM($Z$27:Z40)/$U$5 -> 0.8098726153 | AC40: 292.320832 | AD40: 0.01716989412 | AE40: =SUM($AC$27:AC40)/$V$5 -> 0.6576903649 | AF40: =Tabelle131[[#This Row],[Menge (Tonnen)]]+Tabelle131[[#This Row],[Menge (Tonnen)2]] -> 48700.788 | AG40: 0.007000735342 | AH40: =SUM($AF$27:AF40)/$W$5 -> 0.910050789 | AI40: =Tabelle131[[#This Row],[Wert (Mio. CHF)]]+Tabelle131[[#This Row],[Wert (Mio. CHF)2]] -> 655.721536 | AJ40: 0.02047693772 | AK40: =SUM($AI$27:AI40)/$X$5 -> 0.7828334664 | AM40: 14
A41: 2019 | B41: Tschechische R. | C41: 29288583 | D41: 116708706 | E41: 14.1 | F41: 15224411 | G41: 644646340 | H41: 29.6 | I41: 2019 | J41: Tschechische R. | K41: 662519 | L41: 42438910 | M41: 39.3 | N41: 817532 | O41: 539279166 | P41: 35.5 | Q41: 2019 | R41: Tschechische R. | S41: EU27 | T41: 28626.064 | U41: 0.005432428557 | V41: =SUM($T$27:T41)/$S$5 -> 0.9475556966 | W41: 74.269796 | X41: 0.004952229568 | Y41: =SUM($W$27:W41)/$T$5 -> 0.9298508612 | Z41: 14406.879 | AA41: 0.008539705114 | AB41: =SUM($Z$27:Z41)/$U$5 -> 0.8184123204 | AC41: 105.367174 | AD41: 0.006188895979 | AE41: =SUM($AC$27:AC41)/$V$5 -> 0.6638792609 | AF41: =Tabelle131[[#This Row],[Menge (Tonnen)]]+Tabelle131[[#This Row],[Menge (Tonnen)2]] -> 43032.943 | AG41: 0.006185982964 | AH41: =SUM($AF$27:AF41)/$W$5 -> 0.916236772 | AI41: =Tabelle131[[#This Row],[Wert (Mio. CHF)]]+Tabelle131[[#This Row],[Wert (Mio. CHF)2]] -> 179.63697 | AJ41: 0.00560972127 | AK41: =SUM($AI$27:AI41)/$X$5 -> 0.7884431876 | AM41: 15
A42: 2019 | B42: Ungarn | C42: 28954175 | D42: 100933633 | E42: 2.8 | F42: 18350304 | G42: 306674416 | H42: -1.4 | I42: 2019 | J42: Ungarn | K42: 468225 | L42: 59739600 | M42: 16.5 | N42: 1002733 | O42: 183569412 | P42: -9 | Q42: 2019 | R42: Ungarn | S42: EU27 | T42: 28485.95 | U42: 0.005405838827 | V42: =SUM($T$27:T42)/$S$5 -> 0.9529615354 | W42: 41.194033 | X42: 0.00274677351 | Y42: =SUM($W$27:W42)/$T$5 -> 0.9325976347 | Z42: 17347.571 | AA42: 0.01028280593 | AB42: =SUM($Z$27:Z42)/$U$5 -> 0.8286951264 | AC42: 123.105004 | AD42: 0.007230753519 | AE42: =SUM($AC$27:AC42)/$V$5 -> 0.6711100144 | AF42: =Tabelle131[[#This Row],[Menge (Tonnen)]]+Tabelle131[[#This Row],[Menge (Tonnen)2]] -> 45833.521 | AG42: 0.006588565883 | AH42: =SUM($AF$27:AF42)/$W$5 -> 0.9228253378 | AI42: =Tabelle131[[#This Row],[Wert (Mio. CHF)]]+Tabelle131[[#This Row],[Wert (Mio. CHF)2]] -> 164.299037 | AJ42: 0.005130746764 | AK42: =SUM($AI$27:AI42)/$X$5 -> 0.7935739344 | AM42: 16
A43: 2019 | B43: Mexiko | C43: 26076702 | D43: 96228834 | E43: -25.8 | F43: 12851987 | G43: 663622106 | H43: 1.5 | I43: 2019 | J43: Mexiko | K43: 91566 | L43: 11837306 | M43: -79.7 | N43: 3001072 | O43: 491955072 | P43: -4.5 | Q43: 2019 | R43: Mexiko | S43: NAFTA | T43: 25985.136 | U43: 0.004931254079 | V43: =SUM($T$27:T43)/$S$5 -> 0.9578927895 | W43: 84.391528 | X43: 0.005627135697 | Y43: =SUM($W$27:W43)/$T$5 -> 0.9382247704 | Z43: 9850.915 | AA43: 0.005839148729 | AB43: =SUM($Z$27:Z43)/$U$5 -> 0.8345342751 | AC43: 171.667034 | AD43: 0.01008311579 | AE43: =SUM($AC$27:AC43)/$V$5 -> 0.6811931302 | AF43: =Tabelle131[[#This Row],[Menge (Tonnen)]]+Tabelle131[[#This Row],[Menge (Tonnen)2]] -> 35836.051 | AG43: 0.005151430173 | AH43: =SUM($AF$27:AF43)/$W$5 -> 0.927976768 | AI43: =Tabelle131[[#This Row],[Wert (Mio. CHF)]]+Tabelle131[[#This Row],[Wert (Mio. CHF)2]] -> 256.058562 | AJ43: 0.00799622239 | AK43: =SUM($AI$27:AI43)/$X$5 -> 0.8015701568 | AM43: 17
A44: 2019 | B44: Russland | C44: 22878402 | D44: 25801281 | E44: 35.6 | F44: 25584139 | G44: 1830433680 | H44: 50.6 | I44: 2019 | J44: Russland | K44: 7523 | L44: 7861928 | M44: 143.6 | N44: 5682403 | O44: 1601834415 | P44: 58.9 | Q44: 2019 | R44: Russland | S44: Sonstiges Europa | T44: 22870.879 | U44: 0.004340254958 | V44: =SUM($T$27:T44)/$S$5 -> 0.9622330444 | W44: 17.939353 | X44: 0.001196176631 | Y44: =SUM($W$27:W44)/$T$5 -> 0.939420947 | Z44: 19901.736 | AA44: 0.01179679212 | AB44: =SUM($Z$27:Z44)/$U$5 -> 0.8463310672 | AC44: 228.599265 | AD44: 0.01342711414 | AE44: =SUM($AC$27:AC44)/$V$5 -> 0.6946202443 | AF44: =Tabelle131[[#This Row],[Menge (Tonnen)]]+Tabelle131[[#This Row],[Menge (Tonnen)2]] -> 42772.615 | AG44: 0.00614856083 | AH44: =SUM($AF$27:AF44)/$W$5 -> 0.9341253288 | AI44: =Tabelle131[[#This Row],[Wert (Mio. CHF)]]+Tabelle131[[#This Row],[Wert (Mio. CHF)2]] -> 246.538618 | AJ44: 0.007698932626 | AK44: =SUM($AI$27:AI44)/$X$5 -> 0.8092690894 | AM44: 18
A45: 2019 | B45: Schweden | C45: 21580307 | D45: 200672794 | E45: 22.9 | F45: 8663175 | G45: 567146726 | H45: 13.7 | I45: 2019 | J45: Schweden | K45: 349247 | L45: 104540415 | M45: 19.1 | N45: 734415 | O45: 434939467 | P45: 14 | Q45: 2019 | R45: Schweden | S45: EU27 | T45: 21231.06 | U45: 0.004029063047 | V45: =SUM($T$27:T45)/$S$5 -> 0.9662621075 | W45: 96.132379 | X45: 0.006410002927 | Y45: =SUM($W$27:W45)/$T$5 -> 0.9458309499 | Z45: 7928.76 | AA45: 0.004699787672 | AB45: =SUM($Z$27:Z45)/$U$5 -> 0.8510308549 | AC45: 132.207259 | AD45: 0.007765387858 | AE45: =SUM($AC$27:AC45)/$V$5 -> 0.7023856322 | AF45: =Tabelle131[[#This Row],[Menge (Tonnen)]]+Tabelle131[[#This Row],[Menge (Tonnen)2]] -> 29159.82 | AG45: 0.004191722369 | AH45: =SUM($AF$27:AF45)/$W$5 -> 0.9383170512 | AI45: =Tabelle131[[#This Row],[Wert (Mio. CHF)]]+Tabelle131[[#This Row],[Wert (Mio. CHF)2]] -> 228.339638 | AJ45: 0.007130613058 | AK45: =SUM($AI$27:AI45)/$X$5 -> 0.8163997025 | AM45: 19
A46: 2019 | B46: Korea (Süd) | C46: 16747936 | D46: 195172677 | E46: 70.4 | F46: 10644055 | G46: 1092820414 | H46: 15.8 | I46: 2019 | J46: Korea (Süd) | K46: 123351 | L46: 125423088 | M46: 199.1 | N46: 1917717 | O46: 745177152 | P46: 17 | Q46: 2019 | R46: Korea (Süd) | S46: Südkorea | T46: 16624.585 | U46: 0.003154882568 | V46: =SUM($T$27:T46)/$S$5 -> 0.9694169901 | W46: 69.749589 | X46: 0.00465082706 | Y46: =SUM($W$27:W46)/$T$5 -> 0.950481777 | Z46: 8726.338 | AA46: 0.005172553559 | AB46: =SUM($Z$27:Z46)/$U$5 -> 0.8562034084 | AC46: 347.643262 | AD46: 0.02041933844 | AE46: =SUM($AC$27:AC46)/$V$5 -> 0.7228049706 | AF46: =Tabelle131[[#This Row],[Menge (Tonnen)]]+Tabelle131[[#This Row],[Menge (Tonnen)2]] -> 25350.923 | AG46: 0.003644193654 | AH46: =SUM($AF$27:AF46)/$W$5 -> 0.9419612449 | AI46: =Tabelle131[[#This Row],[Wert (Mio. CHF)]]+Tabelle131[[#This Row],[Wert (Mio. CHF)2]] -> 417.392851 | AJ46: 0.01303438571 | AK46: =SUM($AI$27:AI46)/$X$5 -> 0.8294340882 | AM46: 20
A47: 2019 | B47: Slowakei | C47: 16513796 | D47: 22105423 | E47: 42.1 | F47: 4199557 | G47: 242600089 | H47: 2.6 | I47: 2019 | J47: Slowakei | K47: 32370 | L47: 2305285 | M47: 27.7 | N47: 264652 | O47: 215847517 | P47: 3.6 | Q47: 2019 | R47: Slowakei | S47: EU27 | T47: 16481.426 | U47: 0.003127714982 | V47: =SUM($T$27:T47)/$S$5 -> 0.972544705 | W47: 19.800138 | X47: 0.00132025176 | Y47: =SUM($W$27:W47)/$T$5 -> 0.9518020288 | Z47: 3934.905 | AA47: 0.002332422473 | AB47: =SUM($Z$27:Z47)/$U$5 -> 0.8585358309 | AC47: 26.752572 | AD47: 0.001571351674 | AE47: =SUM($AC$27:AC47)/$V$5 -> 0.7243763223 | AF47: =Tabelle131[[#This Row],[Menge (Tonnen)]]+Tabelle131[[#This Row],[Menge (Tonnen)2]] -> 20416.331 | AG47: 0.002934846352 | AH47: =SUM($AF$27:AF47)/$W$5 -> 0.9448960912 | AI47: =Tabelle131[[#This Row],[Wert (Mio. CHF)]]+Tabelle131[[#This Row],[Wert (Mio. CHF)2]] -> 46.55271 | AJ47: 0.001453752685 | AK47: =SUM($AI$27:AI47)/$X$5 -> 0.8308878409 | AM47: 21
A48: 2019 | B48: Rumänien | C48: 12975147 | D48: 47224055 | E48: 141.4 | F48: 6789810 | G48: 520439433 | H48: 54.3 | I48: 2019 | J48: Rumänien | K48: 41222 | L48: 35899353 | M48: 358.4 | N48: 1100536 | O48: 468675834 | P48: 58.6 | Q48: 2019 | R48: Rumänien | S48: EU27 | T48: 12933.925 | U48: 0.002454498234 | V48: =SUM($T$27:T48)/$S$5 -> 0.9749992033 | W48: 11.324702 | X48: 0.0007551188655 | Y48: =SUM($W$27:W48)/$T$5 -> 0.9525571476 | Z48: 5689.274 | AA48: 0.003372328057 | AB48: =SUM($Z$27:Z48)/$U$5 -> 0.861908159 | AC48: 51.763599 | AD48: 0.003040411141 | AE48: =SUM($AC$27:AC48)/$V$5 -> 0.7274167334 | AF48: =Tabelle131[[#This Row],[Menge (Tonnen)]]+Tabelle131[[#This Row],[Menge (Tonnen)2]] -> 18623.199 | AG48: 0.002677083735 | AH48: =SUM($AF$27:AF48)/$W$5 -> 0.9475731749 | AI48: =Tabelle131[[#This Row],[Wert (Mio. CHF)]]+Tabelle131[[#This Row],[Wert (Mio. CHF)2]] -> 63.088301 | AJ48: 0.001970127775 | AK48: =SUM($AI$27:AI48)/$X$5 -> 0.8328579686 | AM48: 22
A49: 2019 | B49: Türkei | C49: 14593948 | D49: 93686017 | E49: -27 | F49: 22116497 | G49: 945401394 | H49: -7.6 | I49: 2019 | J49: Türkei | K49: 1974500 | L49: 68326260 | M49: -37.2 | N49: 2742765 | O49: 723048870 | P49: -10.3 | Q49: 2019 | R49: Türkei | S49: EU27 | T49: 12619.448 | U49: 0.00239481927 | V49: =SUM($T$27:T49)/$S$5 -> 0.9773940225 | W49: 25.359757 | X49: 0.001690961134 | Y49: =SUM($W$27:W49)/$T$5 -> 0.9542481088 | Z49: 19373.732 | AA49: 0.01148381674 | AB49: =SUM($Z$27:Z49)/$U$5 -> 0.8733919757 | AC49: 222.352524 | AD49: 0.01306020262 | AE49: =SUM($AC$27:AC49)/$V$5 -> 0.7404769361 | AF49: =Tabelle131[[#This Row],[Menge (Tonnen)]]+Tabelle131[[#This Row],[Menge (Tonnen)2]] -> 31993.18 | AG49: 0.004599017698 | AH49: =SUM($AF$27:AF49)/$W$5 -> 0.9521721926 | AI49: =Tabelle131[[#This Row],[Wert (Mio. CHF)]]+Tabelle131[[#This Row],[Wert (Mio. CHF)2]] -> 247.712281 | AJ49: 0.007735583892 | AK49: =SUM($AI$27:AI49)/$X$5 -> 0.8405935525 | AM49: 23
A50: 2019 | B50: Taiwan | C50: 12144585 | D50: 55904309 | E50: 15.4 | F50: 7059144 | G50: 815398892 | H50: 6.9 | I50: 2019 | J50: Taiwan | K50: 28312 | L50: 6887731 | M50: -8.3 | N50: 1126109 | O50: 654509577 | P50: 11.1 | Q50: 2019 | R50: Taiwan | S50: Sonstiges Asien | T50: 12116.273 | U50: 0.002299330689 | V50: =SUM($T$27:T50)/$S$5 -> 0.9796933532 | W50: 49.016578 | X50: 0.003268372339 | Y50: =SUM($W$27:W50)/$T$5 -> 0.9575164811 | Z50: 5933.035 | AA50: 0.003516817857 | AB50: =SUM($Z$27:Z50)/$U$5 -> 0.8769087936 | AC50: 160.889315 | AD50: 0.009450070613 | AE50: =SUM($AC$27:AC50)/$V$5 -> 0.7499270067 | AF50: =Tabelle131[[#This Row],[Menge (Tonnen)]]+Tabelle131[[#This Row],[Menge (Tonnen)2]] -> 18049.308 | AG50: 0.002594586938 | AH50: =SUM($AF$27:AF50)/$W$5 -> 0.9547667796 | AI50: =Tabelle131[[#This Row],[Wert (Mio. CHF)]]+Tabelle131[[#This Row],[Wert (Mio. CHF)2]] -> 209.905893 | AJ50: 0.006554962225 | AK50: =SUM($AI$27:AI50)/$X$5 -> 0.8471485148 | AM50: 24
A51: 2019 | B51: Saudi-Arabien | C51: 11117649 | D51: 17061019 | E51: -31.7 | F51: 12981213 | G51: 717516975 | H51: -9.8 | I51: 2019 | J51: Saudi-Arabien | K51: 186 | L51: 2439404 | M51: ** | N51: 1742903 | O51: 629432985 | P51: -11.3 | Q51: 2019 | R51: Saudi-Arabien | S51: Naher Osten | T51: 11117.463 | U51: 0.002109784408 | V51: =SUM($T$27:T51)/$S$5 -> 0.9818031376 | W51: 14.621615 | X51: 0.000974953454 | Y51: =SUM($W$27:W51)/$T$5 -> 0.9584914346 | Z51: 11238.31 | AA51: 0.006661529772 | AB51: =SUM($Z$27:Z51)/$U$5 -> 0.8835703233 | AC51: 88.08399 | AD51: 0.00517374274 | AE51: =SUM($AC$27:AC51)/$V$5 -> 0.7551007494 | AF51: =Tabelle131[[#This Row],[Menge (Tonnen)]]+Tabelle131[[#This Row],[Menge (Tonnen)2]] -> 22355.773 | AG51: 0.003213641022 | AH51: =SUM($AF$27:AF51)/$W$5 -> 0.9579804206 | AI51: =Tabelle131[[#This Row],[Wert (Mio. CHF)]]+Tabelle131[[#This Row],[Wert (Mio. CHF)2]] -> 102.705605 | AJ51: 0.003207300907 | AK51: =SUM($AI$27:AI51)/$X$5 -> 0.8503558157 | AM51: 25
A52: 2019 | B52: Finnland | C52: 9651262 | D52: 120584091 | E52: -30.4 | F52: 5398172 | G52: 232470591 | H52: -4.4 | I52: 2019 | J52: Finnland | K52: 658244 | L52: 95324234 | M52: -36 | N52: 211462 | O52: 195789186 | P52: -5.8 | Q52: 2019 | R52: Finnland | S52: EU27 | T52: 8993.018 | U52: 0.001706623998 | V52: =SUM($T$27:T52)/$S$5 -> 0.9835097616 | W52: 25.259857 | X52: 0.00168429991 | Y52: =SUM($W$27:W52)/$T$5 -> 0.9601757345 | Z52: 5186.71 | AA52: 0.003074432284 | AB52: =SUM($Z$27:Z52)/$U$5 -> 0.8866447556 | AC52: 36.681405 | AD52: 0.002154536288 | AE52: =SUM($AC$27:AC52)/$V$5 -> 0.7572552857 | AF52: =Tabelle131[[#This Row],[Menge (Tonnen)]]+Tabelle131[[#This Row],[Menge (Tonnen)2]] -> 14179.728 | AG52: 0.002038335046 | AH52: =SUM($AF$27:AF52)/$W$5 -> 0.9600187557 | AI52: =Tabelle131[[#This Row],[Wert (Mio. CHF)]]+Tabelle131[[#This Row],[Wert (Mio. CHF)2]] -> 61.941262 | AJ52: 0.001934307926 | AK52: =SUM($AI$27:AI52)/$X$5 -> 0.8522901236 | AM52: 26
A53: 2019 | B53: Brasilien | C53: 6676936 | D53: 50328810 | E53: -14.3 | F53: 33496323 | G53: 1934676593 | H53: -5.4 | I53: 2019 | J53: Brasilien | K53: 97557 | L53: 20276699 | M53: 1.3 | N53: 5645367 | O53: 1343391959 | P53: -10.7 | Q53: 2019 | R53: Brasilien | S53: Lateinamerika | T53: =(C53-K53)/1000 -> 6579.379 | U53: =T53/$S$5 -> 0.001248582633 | V53: =SUM($T$27:T53)/$S$5 -> 0.9847583443 | W53: =(D53-L53)*10^-6 -> 30.052111 | X53: =W53/$T$5 -> 0.002003842217 | Y53: =SUM($W$27:W53)/$T$5 -> 0.9621795767 | Z53: =(F53-N53)/1000 -> 27850.956 | AA53: =Z53/$U$5 -> 0.0165087075 | AB53: =SUM($Z$27:Z53)/$U$5 -> 0.9031534631 | AC53: =(G53-O53)*10^-6 -> 591.284634 | AD53: =AC53/$V$5 -> 0.03472997286 | AE53: =SUM($AC$27:AC53)/$V$5 -> 0.7919852586 | AF53: =Tabelle131[[#This Row],[Menge (Tonnen)]]+Tabelle131[[#This Row],[Menge (Tonnen)2]] -> 34430.335 | AG53: =AF53/$W$5 -> 0.004949358582 | AH53: =SUM($AF$27:AF53)/$W$5 -> 0.9649681142 | AI53: =Tabelle131[[#This Row],[Wert (Mio. CHF)]]+Tabelle131[[#This Row],[Wert (Mio. CHF)2]] -> 621.336745 | AJ53: =AI53/$X$5 -> 0.01940316603 | AK53: =SUM($AI$27:AI53)/$X$5 -> 0.8716932896 | AM53: 27 | AO53: =SUM(AI53,AI72,AI80,AI90,AI89,AI92,AI97,AI98,AI100,AI106,AI110,AI112,AI120,AI121,AI123,AI131,AI145,AI146)+AI43 -> 1099.821633
A54: 2019 | B54: Israel | C54: 6255363 | D54: 44889345 | E54: -9.8 | F54: 5906992 | G54: 583863248 | H54: 8.5 | I54: 2019 | J54: Israel | K54: 26523 | L54: 14680435 | M54: -24.8 | N54: 765570 | O54: 518185185 | P54: 7.7 | Q54: 2019 | R54: Israel | S54: Naher Osten | T54: 6228.84 | U54: 0.001182060108 | V54: =SUM($T$27:T54)/$S$5 -> 0.9859404044 | W54: 30.20891 | X54: 0.002014297405 | Y54: =SUM($W$27:W54)/$T$5 -> 0.9641938741 | Z54: 5141.422 | AA54: 0.003047587735 | AB54: =SUM($Z$27:Z54)/$U$5 -> 0.9062010509 | AC54: 65.678063 | AD54: 0.003857697654 | AE54: =SUM($AC$27:AC54)/$V$5 -> 0.7958429562 | AF54: =Tabelle131[[#This Row],[Menge (Tonnen)]]+Tabelle131[[#This Row],[Menge (Tonnen)2]] -> 11370.262 | AG54: 0.001634474478 | AH54: =SUM($AF$27:AF54)/$W$5 -> 0.9666025887 | AI54: =Tabelle131[[#This Row],[Wert (Mio. CHF)]]+Tabelle131[[#This Row],[Wert (Mio. CHF)2]] -> 95.886973 | AJ54: 0.002994367985 | AK54: =SUM($AI$27:AI54)/$X$5 -> 0.8746876576 | AM54: 28
A55: 2019 | B55: Dänemark | C55: 6929183 | D55: 235314750 | E55: 20 | F55: 10737741 | G55: 493342096 | H55: -25.3 | I55: 2019 | J55: Dänemark | K55: 718578 | L55: 164791976 | M55: 27.2 | N55: 1221198 | O55: 423382935 | P55: -27.5 | Q55: 2019 | R55: Dänemark | S55: EU27 | T55: 6210.605 | U55: 0.001178599613 | V55: =SUM($T$27:T55)/$S$5 -> 0.987119004 | W55: 70.522774 | X55: 0.004702382199 | Y55: =SUM($W$27:W55)/$T$5 -> 0.9688962563 | Z55: 9516.543 | AA55: 0.005640949086 | AB55: =SUM($Z$27:Z55)/$U$5 -> 0.9118419999 | AC55: 69.959161 | AD55: 0.004109154244 | AE55: =SUM($AC$27:AC55)/$V$5 -> 0.7999521105 | AF55: =Tabelle131[[#This Row],[Menge (Tonnen)]]+Tabelle131[[#This Row],[Menge (Tonnen)2]] -> 15727.148 | AG55: 0.002260776578 | AH55: =SUM($AF$27:AF55)/$W$5 -> 0.9688633653 | AI55: =Tabelle131[[#This Row],[Wert (Mio. CHF)]]+Tabelle131[[#This Row],[Wert (Mio. CHF)2]] -> 140.481935 | AJ55: 0.00438698392 | AK55: =SUM($AI$27:AI55)/$X$5 -> 0.8790746415 | AM55: 29
A56: 2019 | B56: Portugal | C56: 5601920 | D56: 57640395 | E56: 28.9 | F56: 6269884 | G56: 579810611 | H56: 17.7 | I56: 2019 | J56: Portugal | K56: 876753 | L56: 44786282 | M56: 33.4 | N56: 1082164 | O56: 530607307 | P56: 19.7 | Q56: 2019 | R56: Portugal | S56: EU27 | T56: 4725.167 | U56: 0.0008967049101 | V56: =SUM($T$27:T56)/$S$5 -> 0.9880157089 | W56: 12.854113 | X56: 0.0008570983347 | Y56: =SUM($W$27:W56)/$T$5 -> 0.9697533546 | Z56: 5187.72 | AA56: 0.003075030964 | AB56: =SUM($Z$27:Z56)/$U$5 -> 0.9149170309 | AC56: 49.203304 | AD56: 0.002890028447 | AE56: =SUM($AC$27:AC56)/$V$5 -> 0.8028421389 | AF56: =Tabelle131[[#This Row],[Menge (Tonnen)]]+Tabelle131[[#This Row],[Menge (Tonnen)2]] -> 9912.887 | AG56: 0.001424976909 | AH56: =SUM($AF$27:AF56)/$W$5 -> 0.9702883422 | AI56: =Tabelle131[[#This Row],[Wert (Mio. CHF)]]+Tabelle131[[#This Row],[Wert (Mio. CHF)2]] -> 62.057417 | AJ56: 0.001937935226 | AK56: =SUM($AI$27:AI56)/$X$5 -> 0.8810125767 | AM56: 30
A57: 2019 | B57: Kanada | C57: 4965808 | D57: 118710646 | E57: -9.3 | F57: 3117262 | G57: 2875141029 | H57: 9.9 | I57: 2019 | J57: Kanada | K57: 289862 | L57: 91805177 | M57: -12.1 | N57: 1976486 | O57: 2796823193 | P57: 8.6 | Q57: 2019 | R57: Kanada | S57: NAFTA | T57: 4675.946 | U57: 0.0008873641371 | V57: =SUM($T$27:T57)/$S$5 -> 0.988903073 | W57: 26.905469 | X57: 0.001794027536 | Y57: =SUM($W$27:W57)/$T$5 -> 0.9715473822 | Z57: 1140.776 | AA57: 0.0006761971584 | AB57: =SUM($Z$27:Z57)/$U$5 -> 0.9155932281 | AC57: 78.317836 | AD57: 0.004600113317 | AE57: =SUM($AC$27:AC57)/$V$5 -> 0.8074422522 | AF57: =Tabelle131[[#This Row],[Menge (Tonnen)]]+Tabelle131[[#This Row],[Menge (Tonnen)2]] -> 5816.722 | AG57: 0.0008361534371 | AH57: =SUM($AF$27:AF57)/$W$5 -> 0.9711244956 | AI57: =Tabelle131[[#This Row],[Wert (Mio. CHF)]]+Tabelle131[[#This Row],[Wert (Mio. CHF)2]] -> 105.223305 | AJ57: 0.003285923895 | AK57: =SUM($AI$27:AI57)/$X$5 -> 0.8842985006 | AM57: 31
A58: 2019 | B58: Singapur | C58: 5793217 | D58: 1633157475 | E58: -17 | F58: 12006450 | G58: 2541968563 | H58: 26.6 | I58: 2019 | J58: Singapur | K58: 1316358 | L58: 1609621290 | M58: -16.9 | N58: 4886018 | O58: 1141377443 | P58: 4.8 | Q58: 2019 | R58: Singapur | S58: Sonstiges Asien | T58: 4476.859 | U58: 0.0008495829771 | V58: =SUM($T$27:T58)/$S$5 -> 0.989752656 | W58: 23.536185 | X58: 0.001569367328 | Y58: =SUM($W$27:W58)/$T$5 -> 0.9731167495 | Z58: 7120.432 | AA58: 0.004220649702 | AB58: =SUM($Z$27:Z58)/$U$5 -> 0.9198138778 | AC58: 1400.59112 | AD58: 0.08226577995 | AE58: =SUM($AC$27:AC58)/$V$5 -> 0.8897080322 | AF58: =Tabelle131[[#This Row],[Menge (Tonnen)]]+Tabelle131[[#This Row],[Menge (Tonnen)2]] -> 11597.291 | AG58: 0.001667109883 | AH58: =SUM($AF$27:AF58)/$W$5 -> 0.9727916055 | AI58: =Tabelle131[[#This Row],[Wert (Mio. CHF)]]+Tabelle131[[#This Row],[Wert (Mio. CHF)2]] -> 1424.127305 | AJ58: 0.04447278995 | AK58: =SUM($AI$27:AI58)/$X$5 -> 0.9287712906 | AM58: 32
A59: 2019 | B59: Slowenien | C59: 4888027 | D59: 200777251 | E59: 32.1 | F59: 3796511 | G59: 3075062138 | H59: 330.6 | I59: 2019 | J59: Slowenien | K59: 899521 | L59: 176552763 | M59: 34.7 | N59: 878063 | O59: 2978882964 | P59: 328.6 | Q59: 2019 | R59: Slowenien | S59: EU27 | T59: 3988.506 | U59: 0.0007569071981 | V59: =SUM($T$27:T59)/$S$5 -> 0.9905095632 | W59: 24.224488 | X59: 0.001615262626 | Y59: =SUM($W$27:W59)/$T$5 -> 0.9747320121 | Z59: 2918.448 | AA59: 0.00172991564 | AB59: =SUM($Z$27:Z59)/$U$5 -> 0.9215437934 | AC59: 96.179174 | AD59: 0.005649225282 | AE59: =SUM($AC$27:AC59)/$V$5 -> 0.8953572575 | AF59: =Tabelle131[[#This Row],[Menge (Tonnen)]]+Tabelle131[[#This Row],[Menge (Tonnen)2]] -> 6906.954 | AG59: 0.0009928742215 | AH59: =SUM($AF$27:AF59)/$W$5 -> 0.9737844797 | AI59: =Tabelle131[[#This Row],[Wert (Mio. CHF)]]+Tabelle131[[#This Row],[Wert (Mio. CHF)2]] -> 120.403662 | AJ59: 0.003759977602 | AK59: =SUM($AI$27:AI59)/$X$5 -> 0.9325312682 | AM59: 33
A60: 2019 | B60: Indonesien | C60: 3905398 | D60: 27705491 | E60: 10.1 | F60: 4351583 | G60: 193888000 | H60: -10.7 | I60: 2019 | J60: Indonesien | K60: 43935 | L60: 1733873 | M60: 730.3 | N60: 461249 | O60: 97881868 | P60: -11.8 | Q60: 2019 | R60: Indonesien | S60: Sonstiges Asien | T60: 3861.463 | U60: 0.0007327979799 | V60: =SUM($T$27:T60)/$S$5 -> 0.9912423612 | W60: 25.971618 | X60: 0.001731759363 | Y60: =SUM($W$27:W60)/$T$5 -> 0.9764637715 | Z60: 3890.334 | AA60: 0.002306002928 | AB60: =SUM($Z$27:Z60)/$U$5 -> 0.9238497963 | AC60: 96.006132 | AD60: 0.005639061405 | AE60: =SUM($AC$27:AC60)/$V$5 -> 0.9009963189 | AF60: =Tabelle131[[#This Row],[Menge (Tonnen)]]+Tabelle131[[#This Row],[Menge (Tonnen)2]] -> 7751.797 | AG60: 0.001114320352 | AH60: =SUM($AF$27:AF60)/$W$5 -> 0.9748988001 | AI60: =Tabelle131[[#This Row],[Wert (Mio. CHF)]]+Tabelle131[[#This Row],[Wert (Mio. CHF)2]] -> 121.97775 | AJ60: 0.00380913338 | AK60: =SUM($AI$27:AI60)/$X$5 -> 0.9363404016 | AM60: 34
A61: 2019 | B61: Litauen | C61: 3701934 | D61: 15686635 | E61: 15.7 | F61: 2339414 | G61: 37509801 | H61: 12.1 | I61: 2019 | J61: Litauen | K61: 14391 | L61: 11700077 | M61: 25.2 | N61: 238315 | O61: 27953054 | P61: 11.3 | Q61: 2019 | R61: Litauen | S61: EU27 | T61: 3687.543 | U61: 0.0006997928146 | V61: =SUM($T$27:T61)/$S$5 -> 0.991942154 | W61: 3.986558 | X61: 0.0002658193703 | Y61: =SUM($W$27:W61)/$T$5 -> 0.9767295908 | Z61: 2101.099 | AA61: 0.001245430455 | AB61: =SUM($Z$27:Z61)/$U$5 -> 0.9250952268 | AC61: 9.556747 | AD61: 0.0005613295947 | AE61: =SUM($AC$27:AC61)/$V$5 -> 0.9015576485 | AF61: =Tabelle131[[#This Row],[Menge (Tonnen)]]+Tabelle131[[#This Row],[Menge (Tonnen)2]] -> 5788.642 | AG61: 0.0008321169388 | AH61: =SUM($AF$27:AF61)/$W$5 -> 0.975730917 | AI61: =Tabelle131[[#This Row],[Wert (Mio. CHF)]]+Tabelle131[[#This Row],[Wert (Mio. CHF)2]] -> 13.543305 | AJ61: 0.0004229316834 | AK61: =SUM($AI$27:AI61)/$X$5 -> 0.9367633333 | AM61: 35
A62: 2019 | B62: Serbien | C62: 3653198 | D62: 6820834 | E62: 51.2 | F62: 4097214 | G62: 142132796 | H62: 24.2 | I62: 2019 | J62: Serbien | K62: 119603 | L62: 3261219 | M62: 87.6 | N62: 345807 | O62: 126785534 | P62: 30.7 | Q62: 2019 | R62: Serbien | S62: Sonstiges Europa | T62: 3533.595 | U62: 0.0006705777779 | V62: =SUM($T$27:T62)/$S$5 -> 0.9926127318 | W62: 3.559615 | X62: 0.0002373512734 | Y62: =SUM($W$27:W62)/$T$5 -> 0.9769669421 | Z62: 3751.407 | AA62: 0.002223653683 | AB62: =SUM($Z$27:Z62)/$U$5 -> 0.9273188805 | AC62: 15.347262 | AD62: 0.0009014440121 | AE62: =SUM($AC$27:AC62)/$V$5 -> 0.9024590925 | AF62: =Tabelle131[[#This Row],[Menge (Tonnen)]]+Tabelle131[[#This Row],[Menge (Tonnen)2]] -> 7285.002 | AG62: 0.001047218599 | AH62: =SUM($AF$27:AF62)/$W$5 -> 0.9767781356 | AI62: =Tabelle131[[#This Row],[Wert (Mio. CHF)]]+Tabelle131[[#This Row],[Wert (Mio. CHF)2]] -> 18.906877 | AJ62: 0.0005904258464 | AK62: =SUM($AI$27:AI62)/$X$5 -> 0.9373537591 | AM62: 36
A63: 2019 | B63: Ägypten | C63: 3232236 | D63: 12833408 | E63: 19.9 | F63: 5921263 | G63: 980387825 | H63: 26.6 | I63: 2019 | J63: Ägypten | K63: 38160 | L63: 6996413 | M63: 21.1 | N63: 1145700 | O63: 915897784 | P63: 24.6 | Q63: 2019 | R63: Ägypten | S63: Naher Osten | T63: 3194.076 | U63: 0.000606146541 | V63: =SUM($T$27:T63)/$S$5 -> 0.9932188783 | W63: 5.836995 | X63: 0.0003892045055 | Y63: =SUM($W$27:W63)/$T$5 -> 0.9773561466 | Z63: 4775.563 | AA63: 0.002830724113 | AB63: =SUM($Z$27:Z63)/$U$5 -> 0.9301496046 | AC63: 64.490041 | AD63: 0.003787917434 | AE63: =SUM($AC$27:AC63)/$V$5 -> 0.9062470099 | AF63: =Tabelle131[[#This Row],[Menge (Tonnen)]]+Tabelle131[[#This Row],[Menge (Tonnen)2]] -> 7969.639 | AG63: 0.001145635126 | AH63: =SUM($AF$27:AF63)/$W$5 -> 0.9779237708 | AI63: =Tabelle131[[#This Row],[Wert (Mio. CHF)]]+Tabelle131[[#This Row],[Wert (Mio. CHF)2]] -> 70.327036 | AJ63: 0.002196179716 | AK63: =SUM($AI$27:AI63)/$X$5 -> 0.9395499388 | AM63: 37
A64: 2019 | B64: Pakistan | C64: 3042726 | D64: 2437608 | E64: -66.7 | F64: 3684825 | G64: 230479185 | H64: -14.2 | I64: 2019 | J64: Pakistan | K64: 253 | L64: 4226 | M64: 10.2 | N64: 412103 | O64: 176006126 | P64: -17.5 | Q64: 2019 | R64: Pakistan | S64: Sonstiges Asien | T64: 3042.473 | U64: 0.0005773765198 | V64: =SUM($T$27:T64)/$S$5 -> 0.9937962548 | W64: 2.433382 | X64: 0.0001622552766 | Y64: =SUM($W$27:W64)/$T$5 -> 0.9775184019 | Z64: 3272.722 | AA64: 0.001939912232 | AB64: =SUM($Z$27:Z64)/$U$5 -> 0.9320895168 | AC64: 54.473059 | AD64: 0.00319955526 | AE64: =SUM($AC$27:AC64)/$V$5 -> 0.9094465652 | AF64: =Tabelle131[[#This Row],[Menge (Tonnen)]]+Tabelle131[[#This Row],[Menge (Tonnen)2]] -> 6315.195 | AG64: 0.0009078089009 | AH64: =SUM($AF$27:AF64)/$W$5 -> 0.9788315797 | AI64: =Tabelle131[[#This Row],[Wert (Mio. CHF)]]+Tabelle131[[#This Row],[Wert (Mio. CHF)2]] -> 56.906441 | AJ64: 0.001777080032 | AK64: =SUM($AI$27:AI64)/$X$5 -> 0.9413270189 | AM64: 38
A65: 2019 | B65: Griechenland | C65: 2928326 | D65: 73740388 | E65: 95.6 | F65: 4568069 | G65: 501791318 | H65: -16.5 | I65: 2019 | J65: Griechenland | K65: 176540 | L65: 65220052 | M65: 136.6 | N65: 1269363 | O65: 468781571 | P65: -17.1 | Q65: 2019 | R65: Griechenland | S65: EU27 | T65: 2751.786 | U65: 0.0005222122346 | V65: =SUM($T$27:T65)/$S$5 -> 0.9943184671 | W65: 8.520336 | X65: 0.0005681267775 | Y65: =SUM($W$27:W65)/$T$5 -> 0.9780865287 | Z65: 3298.706 | AA65: 0.001955314298 | AB65: =SUM($Z$27:Z65)/$U$5 -> 0.9340448311 | AC65: 33.009747 | AD65: 0.001938876053 | AE65: =SUM($AC$27:AC65)/$V$5 -> 0.9113854412 | AF65: =Tabelle131[[#This Row],[Menge (Tonnen)]]+Tabelle131[[#This Row],[Menge (Tonnen)2]] -> 6050.492 | AG65: 0.0008697578606 | AH65: =SUM($AF$27:AF65)/$W$5 -> 0.9797013375 | AI65: =Tabelle131[[#This Row],[Wert (Mio. CHF)]]+Tabelle131[[#This Row],[Wert (Mio. CHF)2]] -> 41.530083 | AJ65: 0.001296905587 | AK65: =SUM($AI$27:AI65)/$X$5 -> 0.9426239244 | AM65: 39
A66: 2019 | B66: Belarus | C66: 2685065 | D66: 1674208 | E66: 191.5 | F66: 1120982 | G66: 26176678 | H66: 26.1 | I66: 2019 | J66: Belarus | K66: 4 | L66: 11008 | M66: -23.7 | N66: 54759 | O66: 17326326 | P66: 38.5 | Q66: 2019 | R66: Belarus | S66: Sonstiges Europa | T66: 2685.061 | U66: 0.0005095496906 | V66: =SUM($T$27:T66)/$S$5 -> 0.9948280168 | W66: 1.6632 | X66: 0.0001109003749 | Y66: =SUM($W$27:W66)/$T$5 -> 0.978197429 | Z66: 1066.223 | AA66: 0.0006320057249 | AB66: =SUM($Z$27:Z66)/$U$5 -> 0.9346768368 | AC66: 8.850352 | AD66: 0.0005198384452 | AE66: =SUM($AC$27:AC66)/$V$5 -> 0.9119052797 | AF66: =Tabelle131[[#This Row],[Menge (Tonnen)]]+Tabelle131[[#This Row],[Menge (Tonnen)2]] -> 3751.284 | AG66: 0.000539246849 | AH66: =SUM($AF$27:AF66)/$W$5 -> 0.9802405844 | AI66: =Tabelle131[[#This Row],[Wert (Mio. CHF)]]+Tabelle131[[#This Row],[Wert (Mio. CHF)2]] -> 10.513552 | AJ66: 0.0003283182536 | AK66: =SUM($AI$27:AI66)/$X$5 -> 0.9429522427 | AM66: 40
A67: 2019 | B67: Malaysia | C67: 2190276 | D67: 14118112 | E67: -23 | F67: 4426007 | G67: 243159374 | H67: 1.6 | I67: 2019 | J67: Malaysia | K67: 982 | L67: 391852 | M67: -52.9 | N67: 402552 | O67: 202424378 | P67: 1.9 | Q67: 2019 | R67: Malaysia | S67: Sonstiges Asien | T67: 2189.294 | U67: 0.0004154669411 | V67: =SUM($T$27:T67)/$S$5 -> 0.9952434837 | W67: 13.72626 | X67: 0.0009152521522 | Y67: =SUM($W$27:W67)/$T$5 -> 0.9791126812 | Z67: 4023.455 | AA67: 0.002384910655 | AB67: =SUM($Z$27:Z67)/$U$5 -> 0.9370617475 | AC67: 40.734996 | AD67: 0.002392629918 | AE67: =SUM($AC$27:AC67)/$V$5 -> 0.9142979096 | AF67: =Tabelle131[[#This Row],[Menge (Tonnen)]]+Tabelle131[[#This Row],[Menge (Tonnen)2]] -> 6212.749 | AG67: 0.0008930822945 | AH67: =SUM($AF$27:AF67)/$W$5 -> 0.9811336667 | AI67: =Tabelle131[[#This Row],[Wert (Mio. CHF)]]+Tabelle131[[#This Row],[Wert (Mio. CHF)2]] -> 54.461256 | AJ67: 0.001700721551 | AK67: =SUM($AI$27:AI67)/$X$5 -> 0.9446529642 | AM67: 41
A68: 2019 | B68: Ukraine | C68: 2090760 | D68: 6698093 | E68: -14.1 | F68: 4409682 | G68: 219039656 | H68: 6.1 | I68: 2019 | J68: Ukraine | K68: 990 | L68: 2395843 | M68: -22.7 | N68: 759970 | O68: 190316067 | P68: 8.6 | Q68: 2019 | R68: Ukraine | S68: Sonstiges Europa | T68: 2089.77 | U68: 0.0003965800616 | V68: =SUM($T$27:T68)/$S$5 -> 0.9956400638 | W68: 4.30225 | X68: 0.000286869371 | Y68: =SUM($W$27:W68)/$T$5 -> 0.9793995506 | Z68: 3649.712 | AA68: 0.002163373777 | AB68: =SUM($Z$27:Z68)/$U$5 -> 0.9392251213 | AC68: 28.723589 | AD68: 0.001687122257 | AE68: =SUM($AC$27:AC68)/$V$5 -> 0.9159850318 | AF68: =Tabelle131[[#This Row],[Menge (Tonnen)]]+Tabelle131[[#This Row],[Menge (Tonnen)2]] -> 5739.482 | AG68: 0.0008250501918 | AH68: =SUM($AF$27:AF68)/$W$5 -> 0.9819587169 | AI68: =Tabelle131[[#This Row],[Wert (Mio. CHF)]]+Tabelle131[[#This Row],[Wert (Mio. CHF)2]] -> 33.025839 | AJ68: 0.001031334204 | AK68: =SUM($AI$27:AI68)/$X$5 -> 0.9456842984 | AM68: 42
A69: 2019 | B69: Katar | C69: 2032528 | D69: 4461451 | E69: -34.9 | F69: 1073428 | G69: 84741198 | H69: -3.2 | I69: 2019 | J69: Katar | K69: 1204 | L69: 210086 | M69: ** | N69: 130981 | O69: 69508013 | P69: -4.8 | Q69: 2019 | R69: Katar | S69: Naher Osten | T69: 2031.324 | U69: 0.0003854886409 | V69: =SUM($T$27:T69)/$S$5 -> 0.9960255524 | W69: 4.251365 | X69: 0.0002834764143 | Y69: =SUM($W$27:W69)/$T$5 -> 0.979683027 | Z69: 942.447 | AA69: 0.0005586372639 | AB69: =SUM($Z$27:Z69)/$U$5 -> 0.9397837585 | AC69: 15.233185 | AD69: 0.0008947435317 | AE69: =SUM($AC$27:AC69)/$V$5 -> 0.9168797754 | AF69: =Tabelle131[[#This Row],[Menge (Tonnen)]]+Tabelle131[[#This Row],[Menge (Tonnen)2]] -> 2973.771 | AG69: 0.0004274794021 | AH69: =SUM($AF$27:AF69)/$W$5 -> 0.9823861963 | AI69: =Tabelle131[[#This Row],[Wert (Mio. CHF)]]+Tabelle131[[#This Row],[Wert (Mio. CHF)2]] -> 19.48455 | AJ69: 0.0006084654766 | AK69: =SUM($AI$27:AI69)/$X$5 -> 0.9462927639 | AM69: 43
A70: 2019 | B70: Luxemburg | C70: 2015072 | D70: 14163386 | E70: -0.4 | F70: 35416769 | G70: 158298164 | H70: -37 | I70: 2019 | J70: Luxemburg | K70: 25174 | L70: 6298492 | M70: -1.3 | N70: 24555 | O70: 90126385 | P70: -52.8 | Q70: 2019 | R70: Luxemburg | S70: EU27 | T70: 1989.898 | U70: 0.0003776271415 | V70: =SUM($T$27:T70)/$S$5 -> 0.9964031796 | W70: 7.864894 | X70: 0.0005244226148 | Y70: =SUM($W$27:W70)/$T$5 -> 0.9802074496 | Z70: 35392.214 | AA70: 0.02097880262 | AB70: =SUM($Z$27:Z70)/$U$5 -> 0.9607625612 | AC70: 68.171779 | AD70: 0.004004169732 | AE70: =SUM($AC$27:AC70)/$V$5 -> 0.9208839451 | AF70: =Tabelle131[[#This Row],[Menge (Tonnen)]]+Tabelle131[[#This Row],[Menge (Tonnen)2]] -> 37382.112 | AG70: 0.005373676348 | AH70: =SUM($AF$27:AF70)/$W$5 -> 0.9877598726 | AI70: =Tabelle131[[#This Row],[Wert (Mio. CHF)]]+Tabelle131[[#This Row],[Wert (Mio. CHF)2]] -> 76.036673 | AJ70: 0.002374480831 | AK70: =SUM($AI$27:AI70)/$X$5 -> 0.9486672448 | AM70: 44
A71: 2019 | B71: Thailand | C71: 1795183 | D71: 32735732 | E71: 5.4 | F71: 5458628 | G71: 311759849 | H71: -27.5 | I71: 2019 | J71: Thailand | K71: 41644 | L71: 992052 | M71: 10.4 | N71: 1877841 | O71: 211031533 | P71: -35.9 | Q71: 2019 | R71: Thailand | S71: Sonstiges Asien | T71: 1753.539 | U71: 0.0003327727954 | V71: =SUM($T$27:T71)/$S$5 -> 0.9967359524 | W71: 31.74368 | X71: 0.002116634206 | Y71: =SUM($W$27:W71)/$T$5 -> 0.9823240838 | Z71: 3580.787 | AA71: 0.002122518351 | AB71: =SUM($Z$27:Z71)/$U$5 -> 0.9628850795 | AC71: 100.728316 | AD71: 0.00591642583 | AE71: =SUM($AC$27:AC71)/$V$5 -> 0.9268003709 | AF71: =Tabelle131[[#This Row],[Menge (Tonnen)]]+Tabelle131[[#This Row],[Menge (Tonnen)2]] -> 5334.326 | AG71: 0.0007668090412 | AH71: =SUM($AF$27:AF71)/$W$5 -> 0.9885266816 | AI71: =Tabelle131[[#This Row],[Wert (Mio. CHF)]]+Tabelle131[[#This Row],[Wert (Mio. CHF)2]] -> 132.471996 | AJ71: 0.004136848743 | AK71: =SUM($AI$27:AI71)/$X$5 -> 0.9528040935 | AM71: 45
A72: 2019 | B72: Argentinien | C72: 200439 | D72: 2740931 | E72: -22.6 | F72: 4676526 | G72: 531580733 | H72: -11.6 | I72: 2019 | J72: Argentinien | K72: 1316 | L72: 772056 | M72: -53.8 | N72: 843396 | O72: 437725244 | P72: -13.6 | Q72: 2019 | R72: Argentinien | S72: Lateinamerika | T72: 199.123 | U72: 3.778799179e-05 | V72: =SUM($T$27:T72)/$S$5 -> 0.9967737403 | W72: 1.968875 | X72: 0.0001312824528 | Y72: =SUM($W$27:W72)/$T$5 -> 0.9824553663 | Z72: 3833.13 | AA72: 0.002272095147 | AB72: =SUM($Z$27:Z72)/$U$5 -> 0.9651571747 | AC72: 93.855489 | AD72: 0.005512740225 | AE72: =SUM($AC$27:AC72)/$V$5 -> 0.9323131112 | AF72: =Tabelle131[[#This Row],[Menge (Tonnen)]]+Tabelle131[[#This Row],[Menge (Tonnen)2]] -> 4032.253 | AG72: 0.0005796361259 | AH72: =SUM($AF$27:AF72)/$W$5 -> 0.9891063178 | AI72: =Tabelle131[[#This Row],[Wert (Mio. CHF)]]+Tabelle131[[#This Row],[Wert (Mio. CHF)2]] -> 95.824364 | AJ72: 0.002992412825 | AK72: =SUM($AI$27:AI72)/$X$5 -> 0.9557965063 | AM72: 46
A73: 2019 | B73: Kroatien | C73: 1426251 | D73: 15170980 | E73: 8.5 | F73: 1706272 | G73: 174841159 | H73: 28.1 | I73: 2019 | J73: Kroatien | K73: 11346 | L73: 12833055 | M73: 9.8 | N73: 169733 | O73: 161534038 | P73: 29.1 | Q73: 2019 | R73: Kroatien | S73: EU27 | T73: 1414.905 | U73: 0.0002685095068 | V73: =SUM($T$27:T73)/$S$5 -> 0.9970422499 | W73: 2.337925 | X73: 0.0001558903072 | Y73: =SUM($W$27:W73)/$T$5 -> 0.9826112566 | Z73: 1536.539 | AA73: 0.0009107864345 | AB73: =SUM($Z$27:Z73)/$U$5 -> 0.9660679611 | AC73: 13.307121 | AD73: 0.0007816133291 | AE73: =SUM($AC$27:AC73)/$V$5 -> 0.9330947245 | AF73: =Tabelle131[[#This Row],[Menge (Tonnen)]]+Tabelle131[[#This Row],[Menge (Tonnen)2]] -> 2951.444 | AG73: 0.0004242698972 | AH73: =SUM($AF$27:AF73)/$W$5 -> 0.9895305877 | AI73: =Tabelle131[[#This Row],[Wert (Mio. CHF)]]+Tabelle131[[#This Row],[Wert (Mio. CHF)2]] -> 15.645046 | AJ73: 0.0004885650616 | AK73: =SUM($AI$27:AI73)/$X$5 -> 0.9562850714 | AM73: 47
A74: 2019 | B74: Irland | C74: 3477128 | D74: 6900902466 | E74: -13.3 | F74: 3213747 | G74: 566050596 | H74: -40.9 | I74: 2019 | J74: Irland | K74: 2127759 | L74: 6713240951 | M74: -14.5 | N74: 345303 | O74: 424322658 | P74: -48.7 | Q74: 2019 | R74: Irland | S74: EU27 | T74: 1349.369 | U74: 0.0002560726019 | V74: =SUM($T$27:T74)/$S$5 -> 0.9972983225 | W74: 187.661515 | X74: 0.0125130666 | Y74: =SUM($W$27:W74)/$T$5 -> 0.9951243232 | Z74: 2868.444 | AA74: 0.001700275674 | AB74: =SUM($Z$27:Z74)/$U$5 -> 0.9677682368 | AC74: 141.727938 | AD74: 0.008324598945 | AE74: =SUM($AC$27:AC74)/$V$5 -> 0.9414193234 | AF74: =Tabelle131[[#This Row],[Menge (Tonnen)]]+Tabelle131[[#This Row],[Menge (Tonnen)2]] -> 4217.813 | AG74: 0.0006063103647 | AH74: =SUM($AF$27:AF74)/$W$5 -> 0.990136898 | AI74: =Tabelle131[[#This Row],[Wert (Mio. CHF)]]+Tabelle131[[#This Row],[Wert (Mio. CHF)2]] -> 329.389453 | AJ74: 0.01028620679 | AK74: =SUM($AI$27:AI74)/$X$5 -> 0.9665712782 | AM74: 48
A75: 2019 | B75: Vietnam | C75: 1369570 | D75: 6007569 | E75: -10.2 | F75: 3355630 | G75: 373193588 | H75: 0.5 | I75: 2019 | J75: Vietnam | K75: 35768 | L75: 546557 | M75: -39.4 | N75: 1058582 | O75: 330105037 | P75: 2.3 | Q75: 2019 | R75: Vietnam | S75: Sonstiges Asien | T75: 1333.802 | U75: 0.0002531184194 | V75: =SUM($T$27:T75)/$S$5 -> 0.9975514409 | W75: 5.461012 | X75: 0.0003641343663 | Y75: =SUM($W$27:W75)/$T$5 -> 0.9954884575 | Z75: 2297.048 | AA75: 0.0013615796 | AB75: =SUM($Z$27:Z75)/$U$5 -> 0.9691298164 | AC75: 43.088551 | AD75: 0.002530869434 | AE75: =SUM($AC$27:AC75)/$V$5 -> 0.9439501929 | AF75: =Tabelle131[[#This Row],[Menge (Tonnen)]]+Tabelle131[[#This Row],[Menge (Tonnen)2]] -> 3630.85 | AG75: 0.0005219344688 | AH75: =SUM($AF$27:AF75)/$W$5 -> 0.9906588325 | AI75: =Tabelle131[[#This Row],[Wert (Mio. CHF)]]+Tabelle131[[#This Row],[Wert (Mio. CHF)2]] -> 48.549563 | AJ75: 0.00151611061 | AK75: =SUM($AI$27:AI75)/$X$5 -> 0.9680873888 | AM75: 49
A76: 2019 | B76: Kasachstan | C76: 1285362 | D76: 3958104 | E76: -22.8 | F76: 650993 | G76: 116802408 | H76: -3.1 | I76: 2019 | J76: Kasachstan | K76: 1 | L76: 243590 | M76: -75.9 | N76: 294528 | O76: 106634457 | P76: -3.3 | Q76: 2019 | R76: Kasachstan | S76: Sonstiges Asien | T76: 1285.361 | U76: 0.0002439256687 | V76: =SUM($T$27:T76)/$S$5 -> 0.9977953665 | W76: 3.714514 | X76: 0.000247679771 | Y76: =SUM($W$27:W76)/$T$5 -> 0.9957361373 | Z76: 356.465 | AA76: 0.0002112953113 | AB76: =SUM($Z$27:Z76)/$U$5 -> 0.9693411117 | AC76: 10.167951 | AD76: 0.0005972295609 | AE76: =SUM($AC$27:AC76)/$V$5 -> 0.9445474224 | AF76: =Tabelle131[[#This Row],[Menge (Tonnen)]]+Tabelle131[[#This Row],[Menge (Tonnen)2]] -> 1641.826 | AG76: 0.0002360123886 | AH76: =SUM($AF$27:AF76)/$W$5 -> 0.9908948449 | AI76: =Tabelle131[[#This Row],[Wert (Mio. CHF)]]+Tabelle131[[#This Row],[Wert (Mio. CHF)2]] -> 13.882465 | AJ76: 0.0004335230058 | AK76: =SUM($AI$27:AI76)/$X$5 -> 0.9685209118 | AM76: 50
A77: 2019 | B77: Südafrika | C77: 1138527 | D77: 5567145 | E77: -31.7 | F77: 6586709 | G77: 280207774 | H77: -8.7 | I77: 2019 | J77: Südafrika | K77: 4796 | L77: 1234527 | M77: -58.1 | N77: 1225973 | O77: 194008146 | P77: -7.8 | Q77: 2019 | R77: Südafrika | S77: Afrika | T77: 1133.731 | U77: 0.0002151505237 | V77: =SUM($T$27:T77)/$S$5 -> 0.9980105171 | W77: 4.332618 | X77: 0.0002888942763 | Y77: =SUM($W$27:W77)/$T$5 -> 0.9960250316 | Z77: 5360.736 | AA77: 0.003177586529 | AB77: =SUM($Z$27:Z77)/$U$5 -> 0.9725186982 | AC77: 86.199628 | AD77: 0.005063061966 | AE77: =SUM($AC$27:AC77)/$V$5 -> 0.9496104844 | AF77: =Tabelle131[[#This Row],[Menge (Tonnen)]]+Tabelle131[[#This Row],[Menge (Tonnen)2]] -> 6494.467 | AG77: 0.0009335792401 | AH77: =SUM($AF$27:AF77)/$W$5 -> 0.9918284241 | AI77: =Tabelle131[[#This Row],[Wert (Mio. CHF)]]+Tabelle131[[#This Row],[Wert (Mio. CHF)2]] -> 90.532246 | AJ77: 0.002827150035 | AK77: =SUM($AI$27:AI77)/$X$5 -> 0.9713480618 | AM77: 51
A78: 2019 | B78: Australien | C78: 1296046 | D78: 52447200 | E78: -17.3 | F78: 5018678 | G78: 1239211041 | H78: -0.3 | I78: 2019 | J78: Australien | K78: 307498 | L78: 43602404 | M78: -16.1 | N78: 1590695 | O78: 1185106876 | P78: -0.2 | Q78: 2019 | R78: Australien | S78: Ozeanien | T78: 988.548 | U78: 0.0001875988395 | V78: =SUM($T$27:T78)/$S$5 -> 0.9981981159 | W78: 8.844796 | X78: 0.000589761419 | Y78: =SUM($W$27:W78)/$T$5 -> 0.996614793 | Z78: 3427.983 | AA78: 0.002031943487 | AB78: =SUM($Z$27:Z78)/$U$5 -> 0.9745506417 | AC78: 54.104165 | AD78: 0.003177887728 | AE78: =SUM($AC$27:AC78)/$V$5 -> 0.9527883721 | AF78: =Tabelle131[[#This Row],[Menge (Tonnen)]]+Tabelle131[[#This Row],[Menge (Tonnen)2]] -> 4416.531 | AG78: 0.0006348760652 | AH78: =SUM($AF$27:AF78)/$W$5 -> 0.9924633002 | AI78: =Tabelle131[[#This Row],[Wert (Mio. CHF)]]+Tabelle131[[#This Row],[Wert (Mio. CHF)2]] -> 62.948961 | AJ78: 0.001965776451 | AK78: =SUM($AI$27:AI78)/$X$5 -> 0.9733138383 | AM78: 52
A79: 2019 | B79: Bulgarien | C79: 985372 | D79: 17420886 | E79: -7.4 | F79: 4453983 | G79: 217486552 | H79: 8.4 | I79: 2019 | J79: Bulgarien | K79: 199482 | L79: 12969071 | M79: -13 | N79: 275641 | O79: 188595914 | P79: 10.7 | Q79: 2019 | R79: Bulgarien | S79: EU27 | T79: 785.89 | U79: 0.0001491400033 | V79: =SUM($T$27:T79)/$S$5 -> 0.9983472559 | W79: 4.451815 | X79: 0.0002968422032 | Y79: =SUM($W$27:W79)/$T$5 -> 0.9969116352 | Z79: 4178.342 | AA79: 0.002476720221 | AB79: =SUM($Z$27:Z79)/$U$5 -> 0.9770273619 | AC79: 28.890638 | AD79: 0.001696934126 | AE79: =SUM($AC$27:AC79)/$V$5 -> 0.9544853062 | AF79: =Tabelle131[[#This Row],[Menge (Tonnen)]]+Tabelle131[[#This Row],[Menge (Tonnen)2]] -> 4964.232 | AG79: 0.000713608051 | AH79: =SUM($AF$27:AF79)/$W$5 -> 0.9931769082 | AI79: =Tabelle131[[#This Row],[Wert (Mio. CHF)]]+Tabelle131[[#This Row],[Wert (Mio. CHF)2]] -> 33.342453 | AJ79: 0.001041221458 | AK79: =SUM($AI$27:AI79)/$X$5 -> 0.9743550597 | AM79: 53
A80: 2019 | B80: Kolumbien | C80: 262184 | D80: 1616649 | E80: -1.6 | F80: 3081290 | G80: 444011506 | H80: 11.5 | I80: 2019 | J80: Kolumbien | K80: 11219 | L80: 84800 | M80: -52.5 | N80: 678310 | O80: 383431557 | P80: 12.1 | Q80: 2019 | R80: Kolumbien | S80: Lateinamerika | T80: 250.965 | U80: 4.76261575e-05 | V80: =SUM($T$27:T80)/$S$5 -> 0.9983948821 | W80: 1.531849 | X80: 0.0001021420324 | Y80: =SUM($W$27:W80)/$T$5 -> 0.9970137772 | Z80: 2402.98 | AA80: 0.001424370996 | AB80: =SUM($Z$27:Z80)/$U$5 -> 0.9784517329 | AC80: 60.579949 | AD80: 0.003558252428 | AE80: =SUM($AC$27:AC80)/$V$5 -> 0.9580435587 | AF80: =Tabelle131[[#This Row],[Menge (Tonnen)]]+Tabelle131[[#This Row],[Menge (Tonnen)2]] -> 2653.945 | AG80: 0.0003815044339 | AH80: =SUM($AF$27:AF80)/$W$5 -> 0.9935584127 | AI80: =Tabelle131[[#This Row],[Wert (Mio. CHF)]]+Tabelle131[[#This Row],[Wert (Mio. CHF)2]] -> 62.111798 | AJ80: 0.001939633442 | AK80: =SUM($AI$27:AI80)/$X$5 -> 0.9762946932 | AM80: 54
A81: 2019 | B81: Estland | C81: 647886 | D81: 3084438 | E81: 14.5 | F81: 639546 | G81: 43451597 | H81: 43 | I81: 2019 | J81: Estland | K81: 9043 | L81: 1133735 | M81: 345.4 | N81: 25712 | O81: 38315505 | P81: 50 | Q81: 2019 | R81: Estland | S81: EU27 | T81: 638.843 | U81: 0.0001212345839 | V81: =SUM($T$27:T81)/$S$5 -> 0.9985161167 | W81: 1.950703 | X81: 0.0001300707636 | Y81: =SUM($W$27:W81)/$T$5 -> 0.997143848 | Z81: 613.834 | AA81: 0.0003638512789 | AB81: =SUM($Z$27:Z81)/$U$5 -> 0.9788155842 | AC81: 5.136092 | AD81: 0.0003016759197 | AE81: =SUM($AC$27:AC81)/$V$5 -> 0.9583452346 | AF81: =Tabelle131[[#This Row],[Menge (Tonnen)]]+Tabelle131[[#This Row],[Menge (Tonnen)2]] -> 1252.677 | AG81: 0.0001800722433 | AH81: =SUM($AF$27:AF81)/$W$5 -> 0.9937384849 | AI81: =Tabelle131[[#This Row],[Wert (Mio. CHF)]]+Tabelle131[[#This Row],[Wert (Mio. CHF)2]] -> 7.086795 | AJ81: 0.0002213071432 | AK81: =SUM($AI$27:AI81)/$X$5 -> 0.9765160003 | AM81: 55
A82: 2019 | B82: Kuwait | C82: 551865 | D82: 616045 | E82: -29.2 | F82: 798911 | G82: 173213318 | H82: 1.8 | I82: 2019 | J82: Kuwait | K82: 4 | L82: 395 | M82: 106.8 | N82: 456710 | O82: 162007597 | P82: 1.1 | Q82: 2019 | R82: Kuwait | S82: Naher Osten | T82: 551.861 | U82: 0.0001047278262 | V82: =SUM($T$27:T82)/$S$5 -> 0.9986208445 | W82: 0.61565 | X82: 4.105087529e-05 | Y82: =SUM($W$27:W82)/$T$5 -> 0.9971848989 | Z82: 342.201 | AA82: 0.000202840298 | AB82: =SUM($Z$27:Z82)/$U$5 -> 0.9790184245 | AC82: 11.205721 | AD82: 0.0006581845085 | AE82: =SUM($AC$27:AC82)/$V$5 -> 0.9590034191 | AF82: =Tabelle131[[#This Row],[Menge (Tonnen)]]+Tabelle131[[#This Row],[Menge (Tonnen)2]] -> 894.062 | AG82: 0.0001285213586 | AH82: =SUM($AF$27:AF82)/$W$5 -> 0.9938670063 | AI82: =Tabelle131[[#This Row],[Wert (Mio. CHF)]]+Tabelle131[[#This Row],[Wert (Mio. CHF)2]] -> 11.821371 | AJ82: 0.0003691589562 | AK82: =SUM($AI$27:AI82)/$X$5 -> 0.9768851593 | AM82: 56
A83: 2019 | B83: Nordmazedonien | C83: 546492 | D83: 447759 | E83: 161 | F83: 645281 | G83: 18864409 | H83: 9.3 | I83: 2019 | J83: Nordmazedonien | K83: 1857 | L83: 92649 | M83: ** | N83: 21750 | O83: 16560828 | P83: 12.6 | Q83: 2019 | R83: Nordmazedonien | S83: Sonstiges Europa | T83: 544.635 | U83: 0.000103356533 | V83: =SUM($T$27:T83)/$S$5 -> 0.998724201 | W83: 0.35511 | X83: 2.367835024e-05 | Y83: =SUM($W$27:W83)/$T$5 -> 0.9972085772 | Z83: 623.531 | AA83: 0.0003695991942 | AB83: =SUM($Z$27:Z83)/$U$5 -> 0.9793880237 | AC83: 2.303581 | AD83: 0.000135304219 | AE83: =SUM($AC$27:AC83)/$V$5 -> 0.9591387233 | AF83: =Tabelle131[[#This Row],[Menge (Tonnen)]]+Tabelle131[[#This Row],[Menge (Tonnen)2]] -> 1168.166 | AG83: 0.0001679237921 | AH83: =SUM($AF$27:AF83)/$W$5 -> 0.9940349301 | AI83: =Tabelle131[[#This Row],[Wert (Mio. CHF)]]+Tabelle131[[#This Row],[Wert (Mio. CHF)2]] -> 2.658691 | AJ83: 8.302586852e-05 | AK83: =SUM($AI$27:AI83)/$X$5 -> 0.9769681851 | AM83: 57
A84: 2019 | B84: Oman | C84: 475728 | D84: 1058306 | E84: 15.4 | F84: 511643 | G84: 82407608 | H84: 13 | I84: 2019 | J84: Oman | K84: 117 | L84: 13562 | M84: -54.9 | N84: 151647 | O84: 76897879 | P84: 16.8 | Q84: 2019 | R84: Oman | S84: Naher Osten | T84: 475.611 | U84: 9.025770285e-05 | V84: =SUM($T$27:T84)/$S$5 -> 0.9988144587 | W84: 1.044744 | X84: 6.966239853e-05 | Y84: =SUM($W$27:W84)/$T$5 -> 0.9972782396 | Z84: 359.996 | AA84: 0.0002133883183 | AB84: =SUM($Z$27:Z84)/$U$5 -> 0.979601412 | AC84: 5.509729 | AD84: 0.0003236220386 | AE84: =SUM($AC$27:AC84)/$V$5 -> 0.9594623454 | AF84: =Tabelle131[[#This Row],[Menge (Tonnen)]]+Tabelle131[[#This Row],[Menge (Tonnen)2]] -> 835.607 | AG84: 0.0001201184559 | AH84: =SUM($AF$27:AF84)/$W$5 -> 0.9941550485 | AI84: =Tabelle131[[#This Row],[Wert (Mio. CHF)]]+Tabelle131[[#This Row],[Wert (Mio. CHF)2]] -> 6.554473 | AJ84: 0.0002046837385 | AK84: =SUM($AI$27:AI84)/$X$5 -> 0.9771728689 | AM84: 58
A85: 2019 | B85: Marokko | C85: 466711 | D85: 1595077 | E85: 2.6 | F85: 1283506 | G85: 108149845 | H85: 0.9 | I85: 2019 | J85: Marokko | K85: 140 | L85: 43675 | M85: 109.3 | N85: 361688 | O85: 93228629 | P85: 9.7 | Q85: 2019 | R85: Marokko | S85: Afrika | T85: =(C85-K85)/1000 -> 466.571 | U85: =T85/$S$5 -> 8.854216298e-05 | V85: =SUM($T$27:T85)/$S$5 -> 0.9989030009 | W85: =(D85-L85)*10^-6 -> 1.551402 | X85: =W85/$T$5 -> 0.0001034458053 | Y85: =SUM($W$27:W85)/$T$5 -> 0.9973816854 | Z85: =(F85-N85)/1000 -> 921.818 | AA85: =Z85/$U$5 -> 0.0005464093846 | AB85: =SUM($Z$27:Z85)/$U$5 -> 0.9801478214 | AC85: =(G85-O85)*10^-6 -> 14.921216 | AD85: =AC85/$V$5 -> 0.0008764195735 | AE85: =SUM($AC$27:AC85)/$V$5 -> 0.9603387649 | AF85: =Tabelle131[[#This Row],[Menge (Tonnen)]]+Tabelle131[[#This Row],[Menge (Tonnen)2]] -> 1388.389 | AG85: =AF85/$W$5 -> 0.0001995808351 | AH85: =SUM($AF$27:AF85)/$W$5 -> 0.9943546294 | AI85: =Tabelle131[[#This Row],[Wert (Mio. CHF)]]+Tabelle131[[#This Row],[Wert (Mio. CHF)2]] -> 16.472618 | AJ85: =AI85/$X$5 -> 0.0005144085628 | AK85: =SUM($AI$27:AI85)/$X$5 -> 0.9776872774 | AM85: 59
A86: 2019 | B86: Kosovo | C86: 443566 | D86: 200866 | E86: -16 | F86: 298922 | G86: 7947718 | H86: 13 | I86: 2019 | J86: Kosovo | K86: 25 | L86: 3840 | M86: ** | N86: 16176 | O86: 7435595 | P86: 17 | Q86: 2019 | R86: Kosovo | S86: Sonstiges Europa | T86: 443.541 | U86: 8.41717113e-05 | V86: =SUM($T$27:T86)/$S$5 -> 0.9989871726 | W86: 0.197026 | X86: 1.313748031e-05 | Y86: =SUM($W$27:W86)/$T$5 -> 0.9973948229 | Z86: 282.746 | AA86: 0.0001675982329 | AB86: =SUM($Z$27:Z86)/$U$5 -> 0.9803154196 | AC86: 0.512123 | AD86: 3.008029783e-05 | AE86: =SUM($AC$27:AC86)/$V$5 -> 0.9603688452 | AF86: =Tabelle131[[#This Row],[Menge (Tonnen)]]+Tabelle131[[#This Row],[Menge (Tonnen)2]] -> 726.287 | AG86: 0.0001044037125 | AH86: =SUM($AF$27:AF86)/$W$5 -> 0.9944590331 | AI86: =Tabelle131[[#This Row],[Wert (Mio. CHF)]]+Tabelle131[[#This Row],[Wert (Mio. CHF)2]] -> 0.709149 | AJ86: 2.214537591e-05 | AK86: =SUM($AI$27:AI86)/$X$5 -> 0.9777094228 | AM86: 60
A87: 2019 | B87: Bosnien-Herzeg. | C87: 409782 | D87: 804714 | E87: -15.3 | F87: 557395 | G87: 59370478 | H87: 23.3 | I87: 2019 | J87: Bosnien-Herzeg. | K87: 349 | L87: 343396 | M87: 111.4 | N87: 99024 | O87: 55894679 | P87: 28 | Q87: 2019 | R87: Bosnien-Herzeg. | S87: Sonstiges Europa | T87: 409.433 | U87: 7.769896418e-05 | V87: =SUM($T$27:T87)/$S$5 -> 0.9990648716 | W87: 0.461318 | X87: 3.076018466e-05 | Y87: =SUM($W$27:W87)/$T$5 -> 0.9974255831 | Z87: 458.371 | AA87: 0.0002717002879 | AB87: =SUM($Z$27:Z87)/$U$5 -> 0.9805871199 | AC87: 3.475799 | AD87: 0.0002041561678 | AE87: =SUM($AC$27:AC87)/$V$5 -> 0.9605730014 | AF87: =Tabelle131[[#This Row],[Menge (Tonnen)]]+Tabelle131[[#This Row],[Menge (Tonnen)2]] -> 867.804 | AG87: 0.0001247467727 | AH87: =SUM($AF$27:AF87)/$W$5 -> 0.9945837799 | AI87: =Tabelle131[[#This Row],[Wert (Mio. CHF)]]+Tabelle131[[#This Row],[Wert (Mio. CHF)2]] -> 3.937117 | AJ87: 0.0001229486835 | AK87: =SUM($AI$27:AI87)/$X$5 -> 0.9778323715 | AM87: 61
A88: 2019 | B88: Philippinen | C88: 387214 | D88: 3295641 | E88: 10 | F88: 1912268 | G88: 126592762 | H88: -20.8 | I88: 2019 | J88: Philippinen | K88: 55 | L88: 17136 | M88: 22.1 | N88: 614211 | O88: 100386589 | P88: -27.3 | Q88: 2019 | R88: Philippinen | S88: Sonstiges Asien | T88: 387.159 | U88: 7.347198021e-05 | V88: =SUM($T$27:T88)/$S$5 -> 0.9991383435 | W88: 3.278505 | X88: 0.000218607163 | Y88: =SUM($W$27:W88)/$T$5 -> 0.9976441903 | Z88: 1298.057 | AA88: 0.0007694257723 | AB88: =SUM($Z$27:Z88)/$U$5 -> 0.9813565457 | AC88: 26.206173 | AD88: 0.001539258125 | AE88: =SUM($AC$27:AC88)/$V$5 -> 0.9621122595 | AF88: =Tabelle131[[#This Row],[Menge (Tonnen)]]+Tabelle131[[#This Row],[Menge (Tonnen)2]] -> 1685.216 | AG88: 0.0002422496985 | AH88: =SUM($AF$27:AF88)/$W$5 -> 0.9948260295 | AI88: =Tabelle131[[#This Row],[Wert (Mio. CHF)]]+Tabelle131[[#This Row],[Wert (Mio. CHF)2]] -> 29.484678 | AJ88: 0.0009207504742 | AK88: =SUM($AI$27:AI88)/$X$5 -> 0.978753122 | AM88: 62
A89: 2019 | B89: Peru | C89: 123454 | D89: 691001 | E89: 7.9 | F89: 2025994 | G89: 76172747 | H89: -7.3 | I89: 2019 | J89: Peru | K89: 27294 | L89: 546486 | M89: 11.6 | N89: 1098259 | O89: 64141745 | P89: -3 | Q89: 2019 | R89: Peru | S89: Lateinamerika | T89: 96.16 | U89: 1.824848607e-05 | V89: =SUM($T$27:T89)/$S$5 -> 0.999156592 | W89: 0.144515 | X89: 9.6361037e-06 | Y89: =SUM($W$27:W89)/$T$5 -> 0.9976538264 | Z89: 927.735 | AA89: 0.0005499166977 | AB89: =SUM($Z$27:Z89)/$U$5 -> 0.9819064624 | AC89: 12.031002 | AD89: 0.0007066586022 | AE89: =SUM($AC$27:AC89)/$V$5 -> 0.9628189181 | AF89: =Tabelle131[[#This Row],[Menge (Tonnen)]]+Tabelle131[[#This Row],[Menge (Tonnen)2]] -> 1023.895 | AG89: 0.0001471848446 | AH89: =SUM($AF$27:AF89)/$W$5 -> 0.9949732144 | AI89: =Tabelle131[[#This Row],[Wert (Mio. CHF)]]+Tabelle131[[#This Row],[Wert (Mio. CHF)2]] -> 12.175517 | AJ89: 0.0003802182629 | AK89: =SUM($AI$27:AI89)/$X$5 -> 0.9791333402 | AM89: 63
A90: 2019 | B90: Chile | C90: 756944 | D90: 1205229 | E90: -38.5 | F90: 1522969 | G90: 213956444 | H90: 23.6 | I90: 2019 | J90: Chile | K90: 68 | L90: 98878 | M90: 223.4 | N90: 1054724 | O90: 205236495 | P90: 27.1 | Q90: 2019 | R90: Chile | S90: Lateinamerika | T90: 756.876 | U90: 0.0001436339553 | V90: =SUM($T$27:T90)/$S$5 -> 0.999300226 | W90: 1.106351 | X90: 7.377028658e-05 | Y90: =SUM($W$27:W90)/$T$5 -> 0.9977275966 | Z90: 468.245 | AA90: 0.0002775531204 | AB90: =SUM($Z$27:Z90)/$U$5 -> 0.9821840155 | AC90: 8.719949 | AD90: 0.0005121790331 | AE90: =SUM($AC$27:AC90)/$V$5 -> 0.9633310972 | AF90: =Tabelle131[[#This Row],[Menge (Tonnen)]]+Tabelle131[[#This Row],[Menge (Tonnen)2]] -> 1225.121 | AG90: 0.00017611107 | AH90: =SUM($AF$27:AF90)/$W$5 -> 0.9951493255 | AI90: =Tabelle131[[#This Row],[Wert (Mio. CHF)]]+Tabelle131[[#This Row],[Wert (Mio. CHF)2]] -> 9.8263 | AJ90: 0.0003068566794 | AK90: =SUM($AI$27:AI90)/$X$5 -> 0.9794401969 | AM90: 64
A91: 2019 | B91: Sri Lanka | C91: 218488 | D91: 2155476 | E91: -6.4 | F91: 557962 | G91: 25747319 | H91: -34.7 | I91: 2019 | J91: Sri Lanka | K91: 1 | L91: 40 | M91: -99.9 | N91: 27806 | O91: 16374255 | P91: -44.5 | Q91: 2019 | R91: Sri Lanka | S91: Sonstiges Asien | T91: 218.487 | U91: 4.146273893e-05 | V91: =SUM($T$27:T91)/$S$5 -> 0.9993416887 | W91: 2.155436 | X91: 0.0001437221383 | Y91: =SUM($W$27:W91)/$T$5 -> 0.9978713188 | Z91: 530.156 | AA91: 0.0003142509842 | AB91: =SUM($Z$27:Z91)/$U$5 -> 0.9824982665 | AC91: 9.373064 | AD91: 0.0005505407035 | AE91: =SUM($AC$27:AC91)/$V$5 -> 0.9638816379 | AF91: =Tabelle131[[#This Row],[Menge (Tonnen)]]+Tabelle131[[#This Row],[Menge (Tonnen)2]] -> 748.643 | AG91: 0.0001076173862 | AH91: =SUM($AF$27:AF91)/$W$5 -> 0.9952569428 | AI91: =Tabelle131[[#This Row],[Wert (Mio. CHF)]]+Tabelle131[[#This Row],[Wert (Mio. CHF)2]] -> 11.5285 | AJ91: 0.0003600131513 | AK91: =SUM($AI$27:AI91)/$X$5 -> 0.9798002101 | AM91: 65
A92: 2019 | B92: Ecuador | C92: 65857 | D92: 362037 | E92: 171.7 | F92: 745407 | G92: 75947269 | H92: -7.2 | I92: 2019 | J92: Ecuador | K92: 1781 | L92: 237804 | M92: 93.2 | N92: 325469 | O92: 68697328 | P92: -6.5 | Q92: 2019 | R92: Ecuador | S92: Lateinamerika | T92: 64.076 | U92: 1.21598377e-05 | V92: =SUM($T$27:T92)/$S$5 -> 0.9993538485 | W92: 0.124233 | X92: 8.283721904e-06 | Y92: =SUM($W$27:W92)/$T$5 -> 0.9978796025 | Z92: 419.938 | AA92: 0.0002489190536 | AB92: =SUM($Z$27:Z92)/$U$5 -> 0.9827471855 | AC92: 7.249941 | AD92: 0.0004258359506 | AE92: =SUM($AC$27:AC92)/$V$5 -> 0.9643074738 | AF92: =Tabelle131[[#This Row],[Menge (Tonnen)]]+Tabelle131[[#This Row],[Menge (Tonnen)2]] -> 484.014 | AG92: 6.957698335e-05 | AH92: =SUM($AF$27:AF92)/$W$5 -> 0.9953265198 | AI92: =Tabelle131[[#This Row],[Wert (Mio. CHF)]]+Tabelle131[[#This Row],[Wert (Mio. CHF)2]] -> 7.374174 | AJ92: 0.0002302814434 | AK92: =SUM($AI$27:AI92)/$X$5 -> 0.9800304915 | AM92: 66
A93: 2019 | B93: Emirate, Arab. | C93: 186445 | D93: 2566999 | E93: -19 | F93: 7199511 | G93: 362817895 | H93: 16.3 | I93: 2019 | J93: Emirate, Arab. | K93: 1389 | L93: 1744057 | M93: 16.7 | N93: 947999 | O93: 252838808 | P93: 22.6 | Q93: 2019 | R93: Emirate, Arab. | S93: Naher Osten | T93: 185.056 | U93: 3.511846753e-05 | V93: =SUM($T$27:T93)/$S$5 -> 0.999388967 | W93: 0.822942 | X93: 5.487288137e-05 | Y93: =SUM($W$27:W93)/$T$5 -> 0.9979344754 | Z93: 6251.512 | AA93: 0.003705595709 | AB93: =SUM($Z$27:Z93)/$U$5 -> 0.9864527812 | AC93: 109.979087 | AD93: 0.006459783474 | AE93: =SUM($AC$27:AC93)/$V$5 -> 0.9707672573 | AF93: =Tabelle131[[#This Row],[Menge (Tonnen)]]+Tabelle131[[#This Row],[Menge (Tonnen)2]] -> 6436.568 | AG93: 0.0009252562623 | AH93: =SUM($AF$27:AF93)/$W$5 -> 0.9962517761 | AI93: =Tabelle131[[#This Row],[Wert (Mio. CHF)]]+Tabelle131[[#This Row],[Wert (Mio. CHF)2]] -> 110.802029 | AJ93: 0.003460136846 | AK93: =SUM($AI$27:AI93)/$X$5 -> 0.9834906284 | AM93: 67
A94: 2019 | B94: Lettland | C94: 170394 | D94: 4007906 | E94: -22.7 | F94: 1347741 | G94: 74423296 | H94: -12.4 | I94: 2019 | J94: Lettland | K94: 1983 | L94: 1122119 | M94: -51.4 | N94: 111270 | O94: 69177064 | P94: -13.2 | Q94: 2019 | R94: Lettland | S94: EU27 | T94: 168.411 | U94: 3.195971076e-05 | V94: =SUM($T$27:T94)/$S$5 -> 0.9994209267 | W94: 2.885787 | X94: 0.0001924211521 | Y94: =SUM($W$27:W94)/$T$5 -> 0.9981268965 | Z94: 1236.471 | AA94: 0.0007329205529 | AB94: =SUM($Z$27:Z94)/$U$5 -> 0.9871857018 | AC94: 5.246232 | AD94: 0.0003081451547 | AE94: =SUM($AC$27:AC94)/$V$5 -> 0.9710754024 | AF94: =Tabelle131[[#This Row],[Menge (Tonnen)]]+Tabelle131[[#This Row],[Menge (Tonnen)2]] -> 1404.882 | AG94: 0.0002019517029 | AH94: =SUM($AF$27:AF94)/$W$5 -> 0.9964537278 | AI94: =Tabelle131[[#This Row],[Wert (Mio. CHF)]]+Tabelle131[[#This Row],[Wert (Mio. CHF)2]] -> 8.132019 | AJ94: 0.0002539475029 | AK94: =SUM($AI$27:AI94)/$X$5 -> 0.9837445759 | AM94: 68
A95: 2019 | B95: Hongkong | C95: 150847 | D95: 4410200 | E95: -4.5 | F95: 4715714 | G95: 466622772 | H95: -2 | I95: 2019 | J95: Hongkong | K95: 5621 | L95: 930107 | M95: -19.7 | N95: 401506 | O95: 292254809 | P95: 11.7 | Q95: 2019 | R95: Hongkong | S95: Sonstiges Asien | T95: 145.226 | U95: 2.75598444e-05 | V95: =SUM($T$27:T95)/$S$5 -> 0.9994484866 | W95: 3.480093 | X95: 0.0002320488325 | Y95: =SUM($W$27:W95)/$T$5 -> 0.9983589454 | Z95: 4314.208 | AA95: 0.002557255053 | AB95: =SUM($Z$27:Z95)/$U$5 -> 0.9897429568 | AC95: 174.367963 | AD95: 0.01024175883 | AE95: =SUM($AC$27:AC95)/$V$5 -> 0.9813171613 | AF95: =Tabelle131[[#This Row],[Menge (Tonnen)]]+Tabelle131[[#This Row],[Menge (Tonnen)2]] -> 4459.434 | AG95: 0.0006410433689 | AH95: =SUM($AF$27:AF95)/$W$5 -> 0.9970947712 | AI95: =Tabelle131[[#This Row],[Wert (Mio. CHF)]]+Tabelle131[[#This Row],[Wert (Mio. CHF)2]] -> 177.848056 | AJ95: 0.005553856884 | AK95: =SUM($AI$27:AI95)/$X$5 -> 0.9892984327 | AM95: 69
A96: 2019 | B96: Madagaskar | C96: 103385 | D96: 2356918 | E96: -66.9 | F96: 48117 | G96: 1895654 | H96: 6.2 | I96: 2019 | J96: Madagaskar | M96: -100 | N96: 11483 | O96: 1709537 | P96: 6.8 | Q96: 2019 | R96: Madagaskar | S96: Afrika | T96: 103.385 | U96: 1.961958956e-05 | V96: =SUM($T$27:T96)/$S$5 -> 0.9994681062 | W96: 2.356918 | X96: 0.0001571567399 | Y96: =SUM($W$27:W96)/$T$5 -> 0.9985161021 | Z96: 36.634 | AA96: 2.171487365e-05 | AB96: =SUM($Z$27:Z96)/$U$5 -> 0.9897646717 | AC96: 0.186117 | AD96: 1.093185581e-05 | AE96: =SUM($AC$27:AC96)/$V$5 -> 0.9813280931 | AF96: =Tabelle131[[#This Row],[Menge (Tonnen)]]+Tabelle131[[#This Row],[Menge (Tonnen)2]] -> 140.019 | AG96: 2.012772282e-05 | AH96: =SUM($AF$27:AF96)/$W$5 -> 0.9971148989 | AI96: =Tabelle131[[#This Row],[Wert (Mio. CHF)]]+Tabelle131[[#This Row],[Wert (Mio. CHF)2]] -> 2.543035 | AJ96: 7.941415138e-05 | AK96: =SUM($AI$27:AI96)/$X$5 -> 0.9893778469 | AM96: 70
A97: 2019 | B97: Guatemala | C97: 1744379 | D97: 1724827 | E97: 297.8 | F97: 421759 | G97: 11608873 | H97: -19.7 | I97: 2019 | J97: Guatemala | K97: 1 | L97: 30 | M97: * | N97: 186765 | O97: 6161277 | P97: -40 | Q97: 2019 | R97: Guatemala | S97: Lateinamerika | T97: 1744.378 | U97: 0.0003310342931 | V97: =SUM($T$27:T97)/$S$5 -> 0.9997991405 | W97: 1.724797 | X97: 0.0001150075961 | Y97: =SUM($W$27:W97)/$T$5 -> 0.9986311097 | Z97: 234.994 | AA97: 0.0001392931435 | AB97: =SUM($Z$27:Z97)/$U$5 -> 0.9899039649 | AC97: 5.447596 | AD97: 0.0003199725654 | AE97: =SUM($AC$27:AC97)/$V$5 -> 0.9816480657 | AF97: =Tabelle131[[#This Row],[Menge (Tonnen)]]+Tabelle131[[#This Row],[Menge (Tonnen)2]] -> 1979.372 | AG97: 0.0002845346058 | AH97: =SUM($AF$27:AF97)/$W$5 -> 0.9973994335 | AI97: =Tabelle131[[#This Row],[Wert (Mio. CHF)]]+Tabelle131[[#This Row],[Wert (Mio. CHF)2]] -> 7.172393 | AJ97: 0.0002239802061 | AK97: =SUM($AI$27:AI97)/$X$5 -> 0.9896018271 | AM97: 71
A98: 2019 | B98: Haiti | C98: 26104 | D98: 5933990 | E98: -22.1 | F98: 10841 | G98: 482243 | H98: 22.2 | I98: 2019 | J98: Haiti | K98: 1 | L98: 375 | M98: ** | N98: 10639 | O98: 476823 | P98: 46.8 | Q98: 2019 | R98: Haiti | S98: Lateinamerika | T98: 26.103 | U98: 4.953621379e-06 | V98: =SUM($T$27:T98)/$S$5 -> 0.9998040941 | W98: 5.933615 | X98: 0.0003956470225 | Y98: =SUM($W$27:W98)/$T$5 -> 0.9990267567 | Z98: 0.202 | AA98: 1.197358868e-07 | AB98: =SUM($Z$27:Z98)/$U$5 -> 0.9899040846 | AC98: 0.00542 | AD98: 3.183516738e-07 | AE98: =SUM($AC$27:AC98)/$V$5 -> 0.9816483841 | AF98: =Tabelle131[[#This Row],[Menge (Tonnen)]]+Tabelle131[[#This Row],[Menge (Tonnen)2]] -> 26.305 | AG98: 3.781342166e-06 | AH98: =SUM($AF$27:AF98)/$W$5 -> 0.9974032148 | AI98: =Tabelle131[[#This Row],[Wert (Mio. CHF)]]+Tabelle131[[#This Row],[Wert (Mio. CHF)2]] -> 5.939035 | AJ98: 0.0001854647791 | AK98: =SUM($AI$27:AI98)/$X$5 -> 0.9897872919 | AM98: 72
A99: 2019 | B99: Algerien | C99: 73376 | D99: 4010395 | E99: 57.6 | F99: 2010368 | G99: 217855131 | H99: -8.5 | I99: 2019 | J99: Algerien | K99: 22 | L99: 12760 | M99: * | N99: 264631 | O99: 193221120 | P99: -12.1 | Q99: 2019 | R99: Algerien | S99: Afrika | T99: 73.354 | U99: 1.392054333e-05 | V99: =SUM($T$27:T99)/$S$5 -> 0.9998180146 | W99: 3.997635 | X99: 0.0002665579726 | Y99: =SUM($W$27:W99)/$T$5 -> 0.9992933147 | Z99: 1745.737 | AA99: 0.00103478895 | AB99: =SUM($Z$27:Z99)/$U$5 -> 0.9909388736 | AC99: 24.634011 | AD99: 0.001446914877 | AE99: =SUM($AC$27:AC99)/$V$5 -> 0.9830952989 | AF99: =Tabelle131[[#This Row],[Menge (Tonnen)]]+Tabelle131[[#This Row],[Menge (Tonnen)2]] -> 1819.091 | AG99: 0.0002614942217 | AH99: =SUM($AF$27:AF99)/$W$5 -> 0.9976647091 | AI99: =Tabelle131[[#This Row],[Wert (Mio. CHF)]]+Tabelle131[[#This Row],[Wert (Mio. CHF)2]] -> 28.631646 | AJ99: 0.0008941119056 | AK99: =SUM($AI$27:AI99)/$X$5 -> 0.9906814038 | AM99: 73
A100: 2019 | B100: Dominik. Rep. | C100: 17008 | D100: 490512 | E100: -53.2 | F100: 269056 | G100: 7631651 | H100: 2.1 | I100: 2019 | J100: Dominik. Rep. | K100: 1265 | L100: 354765 | M100: -58.8 | N100: 34789 | O100: 3536354 | P100: 2.6 | Q100: 2019 | R100: Dominik. Rep. | S100: Lateinamerika | T100: 15.743 | U100: 2.987582323e-06 | V100: =SUM($T$27:T100)/$S$5 -> 0.9998210022 | W100: 0.135747 | X100: 9.051462955e-06 | Y100: =SUM($W$27:W100)/$T$5 -> 0.9993023662 | Z100: 234.267 | AA100: 0.0001388622128 | AB100: =SUM($Z$27:Z100)/$U$5 -> 0.9910777358 | AC100: 4.095297 | AD100: 0.0002405432942 | AE100: =SUM($AC$27:AC100)/$V$5 -> 0.9833358422 | AF100: =Tabelle131[[#This Row],[Menge (Tonnen)]]+Tabelle131[[#This Row],[Menge (Tonnen)2]] -> 250.01 | AG100: 3.593892244e-05 | AH100: =SUM($AF$27:AF100)/$W$5 -> 0.997700648 | AI100: =Tabelle131[[#This Row],[Wert (Mio. CHF)]]+Tabelle131[[#This Row],[Wert (Mio. CHF)2]] -> 4.231044 | AJ100: 0.0001321274653 | AK100: =SUM($AI$27:AI100)/$X$5 -> 0.9908135313 | AM100: 74
A101: 2019 | B101: Albanien | C101: 62377 | D101: 117079 | E101: -79.1 | F101: 90813 | G101: 31545227 | H101: 5.4 | I101: 2019 | J101: Albanien | M101: -100 | N101: 57247 | O101: 30422743 | P101: 4.4 | Q101: 2019 | R101: Albanien | S101: Sonstiges Europa | T101: 62.377 | U101: 1.183741488e-05 | V101: =SUM($T$27:T101)/$S$5 -> 0.9998328396 | W101: 0.117079 | X101: 7.806700931e-06 | Y101: =SUM($W$27:W101)/$T$5 -> 0.9993101729 | Z101: 33.566 | AA101: 1.989631077e-05 | AB101: =SUM($Z$27:Z101)/$U$5 -> 0.9910976321 | AC101: 1.122484 | AD101: 6.593074911e-05 | AE101: =SUM($AC$27:AC101)/$V$5 -> 0.983401773 | AF101: =Tabelle131[[#This Row],[Menge (Tonnen)]]+Tabelle131[[#This Row],[Menge (Tonnen)2]] -> 95.943 | AG101: 1.379180047e-05 | AH101: =SUM($AF$27:AF101)/$W$5 -> 0.9977144398 | AI101: =Tabelle131[[#This Row],[Wert (Mio. CHF)]]+Tabelle131[[#This Row],[Wert (Mio. CHF)2]] -> 1.239563 | AJ101: 3.870919737e-05 | AK101: =SUM($AI$27:AI101)/$X$5 -> 0.9908522405 | AM101: 75
A102: 2019 | B102: Neuseeland | C102: 164392 | D102: 13321767 | E102: 39.8 | F102: 922027 | G102: 102385205 | H102: -4.3 | I102: 2019 | J102: Neuseeland | K102: 109088 | L102: 10673646 | M102: 461.2 | N102: 149137 | O102: 92067089 | P102: -2.4 | Q102: 2019 | R102: Neuseeland | S102: Ozeanien | T102: 55.304 | U102: 1.049515675e-05 | V102: =SUM($T$27:T102)/$S$5 -> 0.9998433348 | W102: 2.648121 | X102: 0.0001765738405 | Y102: =SUM($W$27:W102)/$T$5 -> 0.9994867467 | Z102: 772.89 | AA102: 0.0004581320274 | AB102: =SUM($Z$27:Z102)/$U$5 -> 0.9915557641 | AC102: 10.318116 | AD102: 0.000606049723 | AE102: =SUM($AC$27:AC102)/$V$5 -> 0.9840078227 | AF102: =Tabelle131[[#This Row],[Menge (Tonnen)]]+Tabelle131[[#This Row],[Menge (Tonnen)2]] -> 828.194 | AG102: 0.0001190528376 | AH102: =SUM($AF$27:AF102)/$W$5 -> 0.9978334926 | AI102: =Tabelle131[[#This Row],[Wert (Mio. CHF)]]+Tabelle131[[#This Row],[Wert (Mio. CHF)2]] -> 12.966237 | AJ102: 0.0004049109462 | AK102: =SUM($AI$27:AI102)/$X$5 -> 0.9912571514 | AM102: 76
A103: 2019 | B103: Tunesien | C103: 48472 | D103: 1495530 | E103: -25.1 | F103: 980451 | G103: 82252381 | H103: 19 | I103: 2019 | J103: Tunesien | K103: 6679 | L103: 247720 | M103: -50 | N103: 225506 | O103: 73848925 | P103: 29 | Q103: 2019 | R103: Tunesien | S103: Afrika | T103: 41.793 | U103: 7.931145779e-06 | V103: =SUM($T$27:T103)/$S$5 -> 0.9998512659 | W103: 1.24781 | X103: 8.320261951e-05 | Y103: =SUM($W$27:W103)/$T$5 -> 0.9995699493 | Z103: 754.945 | AA103: 0.0004474950943 | AB103: =SUM($Z$27:Z103)/$U$5 -> 0.9920032592 | AC103: 8.403456 | AD103: 0.0004935893511 | AE103: =SUM($AC$27:AC103)/$V$5 -> 0.984501412 | AF103: =Tabelle131[[#This Row],[Menge (Tonnen)]]+Tabelle131[[#This Row],[Menge (Tonnen)2]] -> 796.738 | AG103: 0.0001145310395 | AH103: =SUM($AF$27:AF103)/$W$5 -> 0.9979480237 | AI103: =Tabelle131[[#This Row],[Wert (Mio. CHF)]]+Tabelle131[[#This Row],[Wert (Mio. CHF)2]] -> 9.651266 | AJ103: 0.0003013907001 | AK103: =SUM($AI$27:AI103)/$X$5 -> 0.9915585421 | AM103: 77
A104: 2019 | B104: Mali | C104: 40169 | D104: 288498 | E104: ** | F104: 98235 | G104: 6038742 | H104: 81.4 | I104: 2019 | J104: Mali | K104: 9 | L104: 22551 | M104: 985.7 | N104: 63142 | O104: 5766434 | P104: 83.5 | Q104: 2019 | R104: Mali | S104: Afrika | T104: 40.16 | U104: 7.621247924e-06 | V104: =SUM($T$27:T104)/$S$5 -> 0.9998588872 | W104: 0.265947 | X104: 1.773305796e-05 | Y104: =SUM($W$27:W104)/$T$5 -> 0.9995876824 | Z104: 35.093 | AA104: 2.080144295e-05 | AB104: =SUM($Z$27:Z104)/$U$5 -> 0.9920240606 | AC104: 0.272308 | AD104: 1.599441099e-05 | AE104: =SUM($AC$27:AC104)/$V$5 -> 0.9845174065 | AF104: =Tabelle131[[#This Row],[Menge (Tonnen)]]+Tabelle131[[#This Row],[Menge (Tonnen)2]] -> 75.253 | AG104: 1.081761422e-05 | AH104: =SUM($AF$27:AF104)/$W$5 -> 0.9979588413 | AI104: =Tabelle131[[#This Row],[Wert (Mio. CHF)]]+Tabelle131[[#This Row],[Wert (Mio. CHF)2]] -> 0.538255 | AJ104: 1.680868099e-05 | AK104: =SUM($AI$27:AI104)/$X$5 -> 0.9915753508 | AM104: 78
A105: 2019 | B105: Island | C105: 34996 | D105: 498061 | E105: -43.1 | F105: 48731 | G105: 41581757 | H105: 81.3 | I105: 2019 | J105: Island | K105: 703 | L105: 102050 | M105: -80.8 | N105: 6797 | O105: 40950215 | P105: 83.9 | Q105: 2019 | R105: Island | S105: Sonstiges Europa | T105: 34.293 | U105: 6.507854957e-06 | V105: =SUM($T$27:T105)/$S$5 -> 0.999865395 | W105: 0.396011 | X105: 2.640558463e-05 | Y105: =SUM($W$27:W105)/$T$5 -> 0.999614088 | Z105: 41.934 | AA105: 2.48564588e-05 | AB105: =SUM($Z$27:Z105)/$U$5 -> 0.9920489171 | AC105: 0.631542 | AD105: 3.709454848e-05 | AE105: =SUM($AC$27:AC105)/$V$5 -> 0.984554501 | AF105: =Tabelle131[[#This Row],[Menge (Tonnen)]]+Tabelle131[[#This Row],[Menge (Tonnen)2]] -> 76.227 | AG105: 1.095762666e-05 | AH105: =SUM($AF$27:AF105)/$W$5 -> 0.9979697989 | AI105: =Tabelle131[[#This Row],[Wert (Mio. CHF)]]+Tabelle131[[#This Row],[Wert (Mio. CHF)2]] -> 1.027553 | AJ105: 3.208852788e-05 | AK105: =SUM($AI$27:AI105)/$X$5 -> 0.9916074393 | AM105: 79
A106: 2019 | B106: Uruguay | C106: 397 | D106: 17147 | E106: -63.6 | F106: 256270 | G106: 126290783 | H106: -6 | I106: 2019 | J106: Uruguay | K106: 6 | L106: 8313 | M106: -82.1 | N106: 71616 | O106: 122170704 | P106: -6.3 | Q106: 2019 | R106: Uruguay | S106: Lateinamerika | T106: 0.391 | U106: 7.420089488e-08 | V106: =SUM($T$27:T106)/$S$5 -> 0.9998654692 | W106: 0.008834 | X106: 5.890415534e-07 | Y106: =SUM($W$27:W106)/$T$5 -> 0.999614677 | Z106: 184.654 | AA106: 0.0001094540121 | AB106: =SUM($Z$27:Z106)/$U$5 -> 0.9921583711 | AC106: 4.120079 | AD106: 0.0002419989014 | AE106: =SUM($AC$27:AC106)/$V$5 -> 0.9847964999 | AF106: =Tabelle131[[#This Row],[Menge (Tonnen)]]+Tabelle131[[#This Row],[Menge (Tonnen)2]] -> 185.045 | AG106: 2.66002076e-05 | AH106: =SUM($AF$27:AF106)/$W$5 -> 0.9979963991 | AI106: =Tabelle131[[#This Row],[Wert (Mio. CHF)]]+Tabelle131[[#This Row],[Wert (Mio. CHF)2]] -> 4.128913 | AJ106: 0.0001289381082 | AK106: =SUM($AI$27:AI106)/$X$5 -> 0.9917363774 | AM106: 80
A107: 2019 | B107: Usbekistan | C107: 23843 | D107: 65369 | E107: -54.1 | F107: 392199 | G107: 43029114 | H107: -17 | I107: 2019 | J107: Usbekistan | K107: 3 | L107: 1797 | M107: 74.6 | N107: 35238 | O107: 38692637 | P107: -12.2 | Q107: 2019 | R107: Usbekistan | S107: Sonstiges Asien | T107: 23.84 | U107: 4.524167095e-06 | V107: =SUM($T$27:T107)/$S$5 -> 0.9998699934 | W107: 0.063572 | X107: 4.238912116e-06 | Y107: =SUM($W$27:W107)/$T$5 -> 0.9996189159 | Z107: 356.961 | AA107: 0.0002115893163 | AB107: =SUM($Z$27:Z107)/$U$5 -> 0.9923699604 | AC107: 4.336477 | AD107: 0.0002547093563 | AE107: =SUM($AC$27:AC107)/$V$5 -> 0.9850512093 | AF107: =Tabelle131[[#This Row],[Menge (Tonnen)]]+Tabelle131[[#This Row],[Menge (Tonnen)2]] -> 380.801 | AG107: 5.474012081e-05 | AH107: =SUM($AF$27:AF107)/$W$5 -> 0.9980511392 | AI107: =Tabelle131[[#This Row],[Wert (Mio. CHF)]]+Tabelle131[[#This Row],[Wert (Mio. CHF)2]] -> 4.400049 | AJ107: 0.0001374051703 | AK107: =SUM($AI$27:AI107)/$X$5 -> 0.9918737826 | AM107: 81
A108: 2019 | B108: Afghanistan | C108: 20954 | D108: 15145 | E108: 20.4 | F108: 35590 | G108: 94049 | H108: -44.7 | I108: 2019 | J108: Afghanistan | M108: -100 | N108: 79 | O108: 27029 | P108: -81.5 | Q108: 2019 | R108: Afghanistan | S108: Sonstiges Asien | T108: 20.954 | U108: 3.976484786e-06 | V108: =SUM($T$27:T108)/$S$5 -> 0.9998739699 | W108: 0.015145 | X108: 1.009852199e-06 | Y108: =SUM($W$27:W108)/$T$5 -> 0.9996199258 | Z108: 35.511 | AA108: 2.104921325e-05 | AB108: =SUM($Z$27:Z108)/$U$5 -> 0.9923910096 | AC108: 0.06702 | AD108: 3.936518298e-06 | AE108: =SUM($AC$27:AC108)/$V$5 -> 0.9850551458 | AF108: =Tabelle131[[#This Row],[Menge (Tonnen)]]+Tabelle131[[#This Row],[Menge (Tonnen)2]] -> 56.465 | AG108: 8.116840349e-06 | AH108: =SUM($AF$27:AF108)/$W$5 -> 0.9980592561 | AI108: =Tabelle131[[#This Row],[Wert (Mio. CHF)]]+Tabelle131[[#This Row],[Wert (Mio. CHF)2]] -> 0.082165 | AJ108: 2.56585684e-06 | AK108: =SUM($AI$27:AI108)/$X$5 -> 0.9918763484 | AM108: 82
A109: 2019 | B109: Jordanien | C109: 18666 | D109: 136310 | E109: -57.4 | F109: 1420040 | G109: 119296135 | H109: -12.8 | I109: 2019 | J109: Jordanien | K109: 579 | L109: 57518 | M109: -9.7 | N109: 780974 | O109: 111590244 | P109: -14.7 | Q109: 2019 | R109: Jordanien | S109: Naher Osten | T109: 18.087 | U109: 3.432408148e-06 | V109: =SUM($T$27:T109)/$S$5 -> 0.9998774023 | W109: 0.078792 | X109: 5.253765234e-06 | Y109: =SUM($W$27:W109)/$T$5 -> 0.9996251795 | Z109: 639.066 | AA109: 0.0003788075952 | AB109: =SUM($Z$27:Z109)/$U$5 -> 0.9927698172 | AC109: 7.705891 | AD109: 0.0004526168446 | AE109: =SUM($AC$27:AC109)/$V$5 -> 0.9855077626 | AF109: =Tabelle131[[#This Row],[Menge (Tonnen)]]+Tabelle131[[#This Row],[Menge (Tonnen)2]] -> 657.153 | AG109: 9.446570417e-05 | AH109: =SUM($AF$27:AF109)/$W$5 -> 0.9981537218 | AI109: =Tabelle131[[#This Row],[Wert (Mio. CHF)]]+Tabelle131[[#This Row],[Wert (Mio. CHF)2]] -> 7.784683 | AJ109: 0.0002431008595 | AK109: =SUM($AI$27:AI109)/$X$5 -> 0.9921194493 | AM109: 83
A110: 2019 | B110: Panama | C110: 2997 | D110: 46207 | E110: -94.5 | F110: 693500 | G110: 184379833 | H110: 12.7 | I110: 2019 | J110: Panama | K110: 120 | L110: 6996 | M110: ** | N110: 564404 | O110: 181344016 | P110: 13.7 | Q110: 2019 | R110: Panama | S110: Lateinamerika | T110: 2.877 | U110: 5.459743595e-07 | V110: =SUM($T$27:T110)/$S$5 -> 0.9998779483 | W110: 0.039211 | X110: 2.614547017e-06 | Y110: =SUM($W$27:W110)/$T$5 -> 0.9996277941 | Z110: 129.096 | AA110: 7.65219012e-05 | AB110: =SUM($Z$27:Z110)/$U$5 -> 0.9928463391 | AC110: 3.035817 | AD110: 0.0001783131777 | AE110: =SUM($AC$27:AC110)/$V$5 -> 0.9856860758 | AF110: =Tabelle131[[#This Row],[Menge (Tonnen)]]+Tabelle131[[#This Row],[Menge (Tonnen)2]] -> 131.973 | AG110: 1.89711108e-05 | AH110: =SUM($AF$27:AF110)/$W$5 -> 0.9981726929 | AI110: =Tabelle131[[#This Row],[Wert (Mio. CHF)]]+Tabelle131[[#This Row],[Wert (Mio. CHF)2]] -> 3.075028 | AJ110: 9.602728201e-05 | AK110: =SUM($AI$27:AI110)/$X$5 -> 0.9922154766 | AM110: 84
A111: 2019 | B111: Libanon | C111: 11985 | D111: 144280 | E111: -74.8 | F111: 562971 | G111: 192189484 | H111: -0.8 | I111: 2019 | J111: Libanon | K111: 1500 | L111: 9028 | M111: -95.4 | N111: 305171 | O111: 187683329 | P111: 0.4 | Q111: 2019 | R111: Libanon | S111: Naher Osten | T111: 10.485 | U111: 1.98976057e-06 | V111: =SUM($T$27:T111)/$S$5 -> 0.999879938 | W111: 0.135252 | X111: 9.018456891e-06 | Y111: =SUM($W$27:W111)/$T$5 -> 0.9996368125 | Z111: 257.8 | AA111: 0.0001528114436 | AB111: =SUM($Z$27:Z111)/$U$5 -> 0.9929991506 | AC111: 4.506155 | AD111: 0.0002646756433 | AE111: =SUM($AC$27:AC111)/$V$5 -> 0.9859507514 | AF111: =Tabelle131[[#This Row],[Menge (Tonnen)]]+Tabelle131[[#This Row],[Menge (Tonnen)2]] -> 268.285 | AG111: 3.856595259e-05 | AH111: =SUM($AF$27:AF111)/$W$5 -> 0.9982112588 | AI111: =Tabelle131[[#This Row],[Wert (Mio. CHF)]]+Tabelle131[[#This Row],[Wert (Mio. CHF)2]] -> 4.641407 | AJ111: 0.0001449423221 | AK111: =SUM($AI$27:AI111)/$X$5 -> 0.9923604189 | AM111: 85
A112: 2019 | B112: Paraguay | C112: 98515 | D112: 1177538 | E112: 2.8 | F112: 84357 | G112: 9918420 | H112: 16 | I112: 2019 | J112: Paraguay | K112: 155 | L112: 32578 | M112: 137.2 | N112: 13371 | O112: 8412470 | P112: 11.6 | Q112: 2019 | R112: Paraguay | S112: Lateinamerika | T112: 98.36 | U112: 1.866598471e-05 | V112: =SUM($T$27:T112)/$S$5 -> 0.999898604 | W112: 1.14496 | X112: 7.634469289e-05 | Y112: =SUM($W$27:W112)/$T$5 -> 0.9997131572 | Z112: 70.986 | AA112: 4.207708743e-05 | AB112: =SUM($Z$27:Z112)/$U$5 -> 0.9930412277 | AC112: 1.50595 | AD112: 8.845418877e-05 | AE112: =SUM($AC$27:AC112)/$V$5 -> 0.9860392056 | AF112: =Tabelle131[[#This Row],[Menge (Tonnen)]]+Tabelle131[[#This Row],[Menge (Tonnen)2]] -> 169.346 | AG112: 2.43434773e-05 | AH112: =SUM($AF$27:AF112)/$W$5 -> 0.9982356023 | AI112: =Tabelle131[[#This Row],[Wert (Mio. CHF)]]+Tabelle131[[#This Row],[Wert (Mio. CHF)2]] -> 2.65091 | AJ112: 8.278288267e-05 | AK112: =SUM($AI$27:AI112)/$X$5 -> 0.9924432018 | AM112: 86
A113: 2019 | B113: Iran | C113: 12265 | D113: 3888987 | E113: -11.2 | F113: 3086002 | G113: 179889016 | H113: -23.3 | I113: 2019 | J113: Iran | K113: 4297 | L113: 2572571 | M113: 93.6 | N113: 1149922 | O113: 160357829 | P113: -6.4 | Q113: 2019 | R113: Iran | S113: Sonstiges Asien | T113: 7.968 | U113: 1.51210417e-06 | V113: =SUM($T$27:T113)/$S$5 -> 0.9999001161 | W113: 1.316416 | X113: 8.777719329e-05 | Y113: =SUM($W$27:W113)/$T$5 -> 0.9998009344 | Z113: 1936.08 | AA113: 0.001147615127 | AB113: =SUM($Z$27:Z113)/$U$5 -> 0.9941888428 | AC113: 19.531187 | AD113: 0.001147193002 | AE113: =SUM($AC$27:AC113)/$V$5 -> 0.9871863986 | AF113: =Tabelle131[[#This Row],[Menge (Tonnen)]]+Tabelle131[[#This Row],[Menge (Tonnen)2]] -> 1944.048 | AG113: 0.0002794567829 | AH113: =SUM($AF$27:AF113)/$W$5 -> 0.9985150591 | AI113: =Tabelle131[[#This Row],[Wert (Mio. CHF)]]+Tabelle131[[#This Row],[Wert (Mio. CHF)2]] -> 20.847603 | AJ113: 0.0006510310321 | AK113: =SUM($AI$27:AI113)/$X$5 -> 0.9930942328 | AM113: 87
A114: 2019 | B114: Syrien | C114: 6921 | D114: 64303 | E114: 4.2 | F114: 492583 | G114: 32119471 | H114: 19.9 | I114: 2019 | J114: Syrien | M114: * | N114: 17825 | O114: 26732938 | P114: 29.1 | Q114: 2019 | R114: Syrien | S114: Afrika | T114: 6.921 | U114: 1.313412771e-06 | V114: =SUM($T$27:T114)/$S$5 -> 0.9999014295 | W114: 0.064303 | X114: 4.287654404e-06 | Y114: =SUM($W$27:W114)/$T$5 -> 0.9998052221 | Z114: 474.758 | AA114: 0.0002814137136 | AB114: =SUM($Z$27:Z114)/$U$5 -> 0.9944702565 | AC114: 5.386533 | AD114: 0.0003163859403 | AE114: =SUM($AC$27:AC114)/$V$5 -> 0.9875027846 | AF114: =Tabelle131[[#This Row],[Menge (Tonnen)]]+Tabelle131[[#This Row],[Menge (Tonnen)2]] -> 481.679 | AG114: 6.924132724e-05 | AH114: =SUM($AF$27:AF114)/$W$5 -> 0.9985843004 | AI114: =Tabelle131[[#This Row],[Wert (Mio. CHF)]]+Tabelle131[[#This Row],[Wert (Mio. CHF)2]] -> 5.450836 | AJ114: 0.0001702192519 | AK114: =SUM($AI$27:AI114)/$X$5 -> 0.9932644521 | AM114: 88
A115: 2019 | B115: Nigeria | C115: 5469 | D115: 55762 | E115: 31.5 | F115: 1500424 | G115: 73076938 | H115: -22.6 | I115: 2019 | J115: Nigeria | K115: 4 | L115: 302 | M115: 3.4 | N115: 222292 | O115: 34988975 | P115: -41.5 | Q115: 2019 | R115: Nigeria | S115: Afrika | T115: 5.465 | U115: 1.037104579e-06 | V115: =SUM($T$27:T115)/$S$5 -> 0.9999024666 | W115: 0.05546 | X115: 3.698012741e-06 | Y115: =SUM($W$27:W115)/$T$5 -> 0.9998089201 | Z115: 1278.132 | AA115: 0.0007576151904 | AB115: =SUM($Z$27:Z115)/$U$5 -> 0.9952278717 | AC115: 38.087963 | AD115: 0.002237152541 | AE115: =SUM($AC$27:AC115)/$V$5 -> 0.9897399371 | AF115: =Tabelle131[[#This Row],[Menge (Tonnen)]]+Tabelle131[[#This Row],[Menge (Tonnen)2]] -> 1283.597 | AG115: 0.0001845169914 | AH115: =SUM($AF$27:AF115)/$W$5 -> 0.9987688174 | AI115: =Tabelle131[[#This Row],[Wert (Mio. CHF)]]+Tabelle131[[#This Row],[Wert (Mio. CHF)2]] -> 38.143423 | AJ115: 0.001191146629 | AK115: =SUM($AI$27:AI115)/$X$5 -> 0.9944555987 | AM115: 89
A116: 2019 | B116: Kongo, Republik | C116: 4710 | D116: 109555 | E116: -64.9 | F116: 1378 | G116: 1147263 | H116: -39.5 | I116: 2019 | J116: Kongo, Republik | M116: * | N116: 162 | O116: 1085945 | P116: -40.5 | Q116: 2019 | R116: Kongo, Republik | S116: Afrika | T116: 4.71 | U116: 8.938266365e-07 | V116: =SUM($T$27:T116)/$S$5 -> 0.9999033605 | W116: 0.109555 | X116: 7.305008759e-06 | Y116: =SUM($W$27:W116)/$T$5 -> 0.9998162251 | Z116: 1.216 | AA116: 7.207863284e-07 | AB116: =SUM($Z$27:Z116)/$U$5 -> 0.9952285925 | AC116: 0.061318 | AD116: 3.60160294e-06 | AE116: =SUM($AC$27:AC116)/$V$5 -> 0.9897435387 | AF116: =Tabelle131[[#This Row],[Menge (Tonnen)]]+Tabelle131[[#This Row],[Menge (Tonnen)2]] -> 5.926 | AG116: 8.518621431e-07 | AH116: =SUM($AF$27:AF116)/$W$5 -> 0.9987696693 | AI116: =Tabelle131[[#This Row],[Wert (Mio. CHF)]]+Tabelle131[[#This Row],[Wert (Mio. CHF)2]] -> 0.170873 | AJ116: 5.336039138e-06 | AK116: =SUM($AI$27:AI116)/$X$5 -> 0.9944609347 | AM116: 90
A117: 2019 | B117: Moldova | C117: 3832 | D117: 221245 | E117: -71.6 | F117: 99890 | G117: 10224342 | H117: 30.8 | I117: 2019 | J117: Moldova | M117: -100 | N117: 30499 | O117: 8890880 | P117: 26.8 | Q117: 2019 | R117: Moldova | S117: Sonstiges Europa | T117: =(C117-K117)/1000 -> 3.832 | U117: =T117/$S$5 -> 7.272067243e-07 | V117: =SUM($T$27:T117)/$S$5 -> 0.9999040877 | W117: =(D117-L117)*10^-6 -> 0.221245 | X117: =W117/$T$5 -> 1.475237701e-05 | Y117: =SUM($W$27:W117)/$T$5 -> 0.9998309775 | Z117: =(F117-N117)/1000 -> 69.391 | AA117: =Z117/$U$5 -> 4.113164812e-05 | AB117: =SUM($Z$27:Z117)/$U$5 -> 0.9952697241 | AC117: =(G117-O117)*10^-6 -> 1.333462 | AD117: =AC117/$V$5 -> 7.832285233e-05 | AE117: =SUM($AC$27:AC117)/$V$5 -> 0.9898218616 | AF117: =Tabelle131[[#This Row],[Menge (Tonnen)]]+Tabelle131[[#This Row],[Menge (Tonnen)2]] -> 73.223 | AG117: =AF117/$W$5 -> 1.052580184e-05 | AH117: =SUM($AF$27:AF117)/$W$5 -> 0.9987801951 | AI117: =Tabelle131[[#This Row],[Wert (Mio. CHF)]]+Tabelle131[[#This Row],[Wert (Mio. CHF)2]] -> 1.554707 | AJ117: =AI117/$X$5 -> 4.855054573e-05 | AK117: =SUM($AI$27:AI117)/$X$5 -> 0.9945094853 | AM117: 91
A118: 2019 | B118: Komoren | C118: 3467 | D118: 1337942 | E118: 24.8 | F118: 26 | G118: 4650 | H118: * | I118: 2019 | J118: Komoren | M118: * | N118: 19 | O118: 3300 | P118: * | Q118: 2019 | R118: Komoren | S118: Afrika | T118: 3.467 | U118: 6.579399042e-07 | V118: =SUM($T$27:T118)/$S$5 -> 0.9999047456 | W118: 1.337942 | X118: 8.921252366e-05 | Y118: =SUM($W$27:W118)/$T$5 -> 0.99992019 | Z118: 0.007 | AA118: 4.149263404e-09 | AB118: =SUM($Z$27:Z118)/$U$5 -> 0.9952697283 | AC118: 0.00135 | AD118: 7.929423609e-08 | AE118: =SUM($AC$27:AC118)/$V$5 -> 0.9898219409 | AF118: =Tabelle131[[#This Row],[Menge (Tonnen)]]+Tabelle131[[#This Row],[Menge (Tonnen)2]] -> 3.474 | AG118: 4.993872908e-07 | AH118: =SUM($AF$27:AF118)/$W$5 -> 0.9987806945 | AI118: =Tabelle131[[#This Row],[Wert (Mio. CHF)]]+Tabelle131[[#This Row],[Wert (Mio. CHF)2]] -> 1.339292 | AJ118: 4.182354456e-05 | AK118: =SUM($AI$27:AI118)/$X$5 -> 0.9945513088 | AM118: 92
A119: 2019 | B119: Kongo (RDK) | C119: 3242 | D119: 80623 | E119: 934.8 | F119: 217545 | G119: 2782050 | H119: 7.2 | I119: 2019 | J119: Kongo (RDK) | M119: -100 | N119: 570 | O119: 756747 | P119: -38.7 | Q119: 2019 | R119: Kongo (RDK) | S119: Afrika | T119: 3.242 | U119: 6.152411796e-07 | V119: =SUM($T$27:T119)/$S$5 -> 0.9999053608 | W119: 0.080623 | X119: 5.375854331e-06 | Y119: =SUM($W$27:W119)/$T$5 -> 0.9999255659 | Z119: 216.975 | AA119: 0.0001286123467 | AB119: =SUM($Z$27:Z119)/$U$5 -> 0.9953983406 | AC119: 2.025303 | AD119: 0.0001189591513 | AE119: =SUM($AC$27:AC119)/$V$5 -> 0.9899409 | AF119: =Tabelle131[[#This Row],[Menge (Tonnen)]]+Tabelle131[[#This Row],[Menge (Tonnen)2]] -> 220.217 | AG119: 3.165618049e-05 | AH119: =SUM($AF$27:AF119)/$W$5 -> 0.9988123506 | AI119: =Tabelle131[[#This Row],[Wert (Mio. CHF)]]+Tabelle131[[#This Row],[Wert (Mio. CHF)2]] -> 2.105926 | AJ119: 6.57640678e-05 | AK119: =SUM($AI$27:AI119)/$X$5 -> 0.9946170729 | AM119: 93
A120: 2019 | B120: Honduras | C120: 3191 | D120: 108925 | E120: 146.2 | F120: 103100 | G120: 4769736 | H120: 6.7 | I120: 2019 | J120: Honduras | K120: 1 | L120: 570 | M120: * | N120: 12976 | O120: 2970627 | P120: 18 | Q120: 2019 | R120: Honduras | S120: Lateinamerika | T120: 3.19 | U120: 6.053730298e-07 | V120: =SUM($T$27:T120)/$S$5 -> 0.9999059662 | W120: 0.108355 | X120: 7.224994059e-06 | Y120: =SUM($W$27:W120)/$T$5 -> 0.9999327909 | Z120: 90.124 | AA120: 5.342117357e-05 | AB120: =SUM($Z$27:Z120)/$U$5 -> 0.9954517618 | AC120: 1.799109 | AD120: 0.0001056733139 | AE120: =SUM($AC$27:AC120)/$V$5 -> 0.9900465733 | AF120: =Tabelle131[[#This Row],[Menge (Tonnen)]]+Tabelle131[[#This Row],[Menge (Tonnen)2]] -> 93.314 | AG120: 1.341388188e-05 | AH120: =SUM($AF$27:AF120)/$W$5 -> 0.9988257645 | AI120: =Tabelle131[[#This Row],[Wert (Mio. CHF)]]+Tabelle131[[#This Row],[Wert (Mio. CHF)2]] -> 1.907464 | AJ120: 5.956647661e-05 | AK120: =SUM($AI$27:AI120)/$X$5 -> 0.9946766394 | AM120: 94
A121: 2019 | B121: Mauritius | C121: 9985 | D121: 104704 | E121: -71.1 | F121: 110447 | G121: 11843944 | H121: 9.9 | I121: 2019 | J121: Mauritius | K121: 15 | L121: 53943 | M121: -84.7 | N121: 47377 | O121: 10411183 | P121: 15.4 | Q121: 2019 | R121: Mauritius | S121: Lateinamerika | T121: 9.97 | U121: 1.892027933e-06 | V121: =SUM($T$27:T121)/$S$5 -> 0.9999078582 | W121: 0.050761 | X121: 3.384688509e-06 | Y121: =SUM($W$27:W121)/$T$5 -> 0.9999361755 | Z121: 63.07 | AA121: 3.738486327e-05 | AB121: =SUM($Z$27:Z121)/$U$5 -> 0.9954891467 | AC121: 1.432761 | AD121: 8.415532518e-05 | AE121: =SUM($AC$27:AC121)/$V$5 -> 0.9901307287 | AF121: =Tabelle131[[#This Row],[Menge (Tonnen)]]+Tabelle131[[#This Row],[Menge (Tonnen)2]] -> 73.04 | AG121: 1.04994956e-05 | AH121: =SUM($AF$27:AF121)/$W$5 -> 0.998836264 | AI121: =Tabelle131[[#This Row],[Wert (Mio. CHF)]]+Tabelle131[[#This Row],[Wert (Mio. CHF)2]] -> 1.483522 | AJ121: 4.632757343e-05 | AK121: =SUM($AI$27:AI121)/$X$5 -> 0.994722967 | AM121: 95
A122: 2019 | B122: Andorra | C122: 2075 | D122: 6058 | E122: -87.8 | F122: 7119 | G122: 93893 | H122: -51.1 | I122: 2019 | J122: Andorra | M122: -100 | N122: 44 | O122: 18328 | P122: -64.9 | Q122: 2019 | R122: Andorra | S122: Sonstiges Europa | T122: 2.075 | U122: 3.937771276e-07 | V122: =SUM($T$27:T122)/$S$5 -> 0.999908252 | W122: 0.006058 | X122: 4.039408796e-07 | Y122: =SUM($W$27:W122)/$T$5 -> 0.9999365795 | Z122: 7.075 | AA122: 4.193719797e-06 | AB122: =SUM($Z$27:Z122)/$U$5 -> 0.9954933404 | AC122: 0.075565 | AD122: 4.438421445e-06 | AE122: =SUM($AC$27:AC122)/$V$5 -> 0.9901351671 | AF122: =Tabelle131[[#This Row],[Menge (Tonnen)]]+Tabelle131[[#This Row],[Menge (Tonnen)2]] -> 9.15 | AG122: 1.315311949e-06 | AH122: =SUM($AF$27:AF122)/$W$5 -> 0.9988375793 | AI122: =Tabelle131[[#This Row],[Wert (Mio. CHF)]]+Tabelle131[[#This Row],[Wert (Mio. CHF)2]] -> 0.081623 | AJ122: 2.548931209e-06 | AK122: =SUM($AI$27:AI122)/$X$5 -> 0.9947255159 | AM122: 96
A123: 2019 | B123: El Salvador | C123: 29 | D123: 7884 | E123: -45 | F123: 63705 | G123: 3738454 | H123: -14 | I123: 2019 | J123: El Salvador | K123: 1 | L123: 87 | M123: * | N123: 8860 | O123: 2274477 | P123: -26.7 | Q123: 2019 | R123: El Salvador | S123: Lateinamerika | T123: 0.028 | U123: 5.313619071e-09 | V123: =SUM($T$27:T123)/$S$5 -> 0.9999082573 | W123: 0.007797 | X123: 5.198955164e-07 | Y123: =SUM($W$27:W123)/$T$5 -> 0.9999370994 | Z123: 54.845 | AA123: 3.250947877e-05 | AB123: =SUM($Z$27:Z123)/$U$5 -> 0.9955258499 | AC123: 1.463977 | AD123: 8.598884287e-05 | AE123: =SUM($AC$27:AC123)/$V$5 -> 0.9902211559 | AF123: =Tabelle131[[#This Row],[Menge (Tonnen)]]+Tabelle131[[#This Row],[Menge (Tonnen)2]] -> 54.873 | AG123: 7.887990445e-06 | AH123: =SUM($AF$27:AF123)/$W$5 -> 0.9988454673 | AI123: =Tabelle131[[#This Row],[Wert (Mio. CHF)]]+Tabelle131[[#This Row],[Wert (Mio. CHF)2]] -> 1.471774 | AJ123: 4.596070571e-05 | AK123: =SUM($AI$27:AI123)/$X$5 -> 0.9947714766 | AM123: 97
A124: 2019 | B124: Nepal | C124: 1784 | D124: 56666 | E124: -19 | F124: 8481 | G124: 1361231 | H124: -96.1 | I124: 2019 | J124: Nepal | K124: 14 | L124: 7459 | M124: -39.3 | N124: 2050 | O124: 1253624 | P124: -96.4 | Q124: 2019 | R124: Nepal | S124: Sonstiges Asien | T124: 1.77 | U124: 3.358966341e-07 | V124: =SUM($T$27:T124)/$S$5 -> 0.9999085932 | W124: 0.049207 | X124: 3.281069472e-06 | Y124: =SUM($W$27:W124)/$T$5 -> 0.9999403804 | Z124: 6.431 | AA124: 3.811987564e-06 | AB124: =SUM($Z$27:Z124)/$U$5 -> 0.9955296619 | AC124: 0.107607 | AD124: 6.320455454e-06 | AE124: =SUM($AC$27:AC124)/$V$5 -> 0.9902274764 | AF124: =Tabelle131[[#This Row],[Menge (Tonnen)]]+Tabelle131[[#This Row],[Menge (Tonnen)2]] -> 8.201 | AG124: 1.178893256e-06 | AH124: =SUM($AF$27:AF124)/$W$5 -> 0.9988466462 | AI124: =Tabelle131[[#This Row],[Wert (Mio. CHF)]]+Tabelle131[[#This Row],[Wert (Mio. CHF)2]] -> 0.156814 | AJ124: 4.897003279e-06 | AK124: =SUM($AI$27:AI124)/$X$5 -> 0.9947763736 | AM124: 98
A125: 2019 | B125: Suriname | C125: 1624 | D125: 13186 | E125: -35.4 | F125: 29572 | G125: 1455061 | H125: 436.6 | I125: 2019 | J125: Suriname | K125: 0 | L125: 777 | M125: * | N125: 21 | O125: 608571 | P125: * | Q125: 2019 | R125: Suriname | S125: Afrika | T125: 1.624 | U125: 3.081899061e-07 | V125: =SUM($T$27:T125)/$S$5 -> 0.9999089014 | W125: 0.012409 | X125: 8.274186819e-07 | Y125: =SUM($W$27:W125)/$T$5 -> 0.9999412079 | Z125: 29.551 | AA125: 1.751641183e-05 | AB125: =SUM($Z$27:Z125)/$U$5 -> 0.9955471783 | AC125: 0.84649 | AD125: 4.971983549e-05 | AE125: =SUM($AC$27:AC125)/$V$5 -> 0.9902771962 | AF125: =Tabelle131[[#This Row],[Menge (Tonnen)]]+Tabelle131[[#This Row],[Menge (Tonnen)2]] -> 31.175 | AG125: 4.481404372e-06 | AH125: =SUM($AF$27:AF125)/$W$5 -> 0.9988511276 | AI125: =Tabelle131[[#This Row],[Wert (Mio. CHF)]]+Tabelle131[[#This Row],[Wert (Mio. CHF)2]] -> 0.858899 | AJ125: 2.68217839e-05 | AK125: =SUM($AI$27:AI125)/$X$5 -> 0.9948031954 | AM125: 99
A126: 2019 | B126: Réunion | C126: 1519 | D126: 53097 | E126: -44.7 | F126: 21233 | G126: 323707 | H126: -10.5 | I126: 2019 | J126: Réunion | K126: 8 | L126: 7100 | M126: * | N126: 65 | O126: 45842 | P126: 22.6 | Q126: 2019 | R126: Réunion | S126: EU27 | T126: 1.511 | U126: 2.867456577e-07 | V126: =SUM($T$27:T126)/$S$5 -> 0.9999091882 | W126: 0.045997 | X126: 3.067030148e-06 | Y126: =SUM($W$27:W126)/$T$5 -> 0.9999442749 | Z126: 21.168 | AA126: 1.254737253e-05 | AB126: =SUM($Z$27:Z126)/$U$5 -> 0.9955597256 | AC126: 0.277865 | AD126: 1.632080956e-05 | AE126: =SUM($AC$27:AC126)/$V$5 -> 0.990293517 | AF126: =Tabelle131[[#This Row],[Menge (Tonnen)]]+Tabelle131[[#This Row],[Menge (Tonnen)2]] -> 22.679 | AG126: 3.260104884e-06 | AH126: =SUM($AF$27:AF126)/$W$5 -> 0.9988543877 | AI126: =Tabelle131[[#This Row],[Wert (Mio. CHF)]]+Tabelle131[[#This Row],[Wert (Mio. CHF)2]] -> 0.323862 | AJ126: 1.011359493e-05 | AK126: =SUM($AI$27:AI126)/$X$5 -> 0.994813309 | AM126: 100
A127: 2019 | B127: Sao Tomé | C127: 1300 | D127: 1057 | E127: * | F127: 11521 | G127: 133190 | H127: -21.7 | I127: 2019 | J127: Sao Tomé | M127: * | N127: 60 | O127: 1765 | P127: 279.6 | Q127: 2019 | R127: Sao Tomé | S127: Afrika | T127: 1.3 | U127: 2.467037426e-07 | V127: =SUM($T$27:T127)/$S$5 -> 0.9999094349 | W127: 0.001057 | X127: 7.047961534e-08 | Y127: =SUM($W$27:W127)/$T$5 -> 0.9999443454 | Z127: 11.461 | AA127: 6.793529696e-06 | AB127: =SUM($Z$27:Z127)/$U$5 -> 0.9955665192 | AC127: 0.131425 | AD127: 7.719440725e-06 | AE127: =SUM($AC$27:AC127)/$V$5 -> 0.9903012365 | AF127: =Tabelle131[[#This Row],[Menge (Tonnen)]]+Tabelle131[[#This Row],[Menge (Tonnen)2]] -> 12.761 | AG127: 1.834392981e-06 | AH127: =SUM($AF$27:AF127)/$W$5 -> 0.9988562221 | AI127: =Tabelle131[[#This Row],[Wert (Mio. CHF)]]+Tabelle131[[#This Row],[Wert (Mio. CHF)2]] -> 0.132482 | AJ127: 4.137161149e-06 | AK127: =SUM($AI$27:AI127)/$X$5 -> 0.9948174461 | AM127: 101
A128: 2019 | B128: Kamerun | C128: 1192 | D128: 20661 | E128: 609.8 | F128: 67167 | G128: 2550985 | H128: -40.1 | I128: 2019 | J128: Kamerun | K128: 19 | L128: 1380 | M128: -22.4 | N128: 1094 | O128: 1807385 | P128: -42 | Q128: 2019 | R128: Kamerun | S128: Afrika | T128: 1.173 | U128: 2.226026846e-07 | V128: =SUM($T$27:T128)/$S$5 -> 0.9999096575 | W128: 0.019281 | X128: 1.2856362e-06 | Y128: =SUM($W$27:W128)/$T$5 -> 0.999945631 | Z128: 66.073 | AA128: 3.916489727e-05 | AB128: =SUM($Z$27:Z128)/$U$5 -> 0.9956056841 | AC128: 0.7436 | AD128: 4.367643997e-05 | AE128: =SUM($AC$27:AC128)/$V$5 -> 0.9903449129 | AF128: =Tabelle131[[#This Row],[Menge (Tonnen)]]+Tabelle131[[#This Row],[Menge (Tonnen)2]] -> 67.246 | AG128: 9.66660845e-06 | AH128: =SUM($AF$27:AF128)/$W$5 -> 0.9988658887 | AI128: =Tabelle131[[#This Row],[Wert (Mio. CHF)]]+Tabelle131[[#This Row],[Wert (Mio. CHF)2]] -> 0.762881 | AJ128: 2.382332419e-05 | AK128: =SUM($AI$27:AI128)/$X$5 -> 0.9948412695 | AM128: 102
A129: 2019 | B129: Turkmenistan | C129: 1137 | D129: 14221 | E129: ** | F129: 193039 | G129: 6399783 | H129: 19.6 | I129: 2019 | J129: Turkmenistan | M129: * | N129: 2850 | O129: 5039543 | P129: 0 | Q129: 2019 | R129: Turkmenistan | S129: Sonstiges Asien | T129: 1.137 | U129: 2.157708887e-07 | V129: =SUM($T$27:T129)/$S$5 -> 0.9999098732 | W129: 0.014221 | X129: 9.482408796e-07 | Y129: =SUM($W$27:W129)/$T$5 -> 0.9999465793 | Z129: 190.189 | AA129: 0.0001127348939 | AB129: =SUM($Z$27:Z129)/$U$5 -> 0.995718419 | AC129: 1.36024 | AD129: 7.989569756e-05 | AE129: =SUM($AC$27:AC129)/$V$5 -> 0.9904248086 | AF129: =Tabelle131[[#This Row],[Menge (Tonnen)]]+Tabelle131[[#This Row],[Menge (Tonnen)2]] -> 191.326 | AG129: 2.750310098e-05 | AH129: =SUM($AF$27:AF129)/$W$5 -> 0.9988933918 | AI129: =Tabelle131[[#This Row],[Wert (Mio. CHF)]]+Tabelle131[[#This Row],[Wert (Mio. CHF)2]] -> 1.374461 | AJ129: 4.292180561e-05 | AK129: =SUM($AI$27:AI129)/$X$5 -> 0.9948841913 | AM129: 103
A130: 2019 | B130: Uganda | C130: 1077 | D130: 21142 | E130: ** | F130: 173327 | G130: 32965561 | H130: 47.6 | I130: 2019 | J130: Uganda | K130: 3 | L130: 61 | M130: 577.8 | N130: 24982 | O130: 29805628 | P130: 43.9 | Q130: 2019 | R130: Uganda | S130: Afrika | T130: 1.074 | U130: 2.038152458e-07 | V130: =SUM($T$27:T130)/$S$5 -> 0.9999100771 | W130: 0.021081 | X130: 1.405658251e-06 | Y130: =SUM($W$27:W130)/$T$5 -> 0.9999479849 | Z130: 148.345 | AA130: 8.79317828e-05 | AB130: =SUM($Z$27:Z130)/$U$5 -> 0.9958063507 | AC130: 3.159933 | AD130: 0.0001856033136 | AE130: =SUM($AC$27:AC130)/$V$5 -> 0.9906104119 | AF130: =Tabelle131[[#This Row],[Menge (Tonnen)]]+Tabelle131[[#This Row],[Menge (Tonnen)2]] -> 149.419 | AG130: 2.147897225e-05 | AH130: =SUM($AF$27:AF130)/$W$5 -> 0.9989148708 | AI130: =Tabelle131[[#This Row],[Wert (Mio. CHF)]]+Tabelle131[[#This Row],[Wert (Mio. CHF)2]] -> 3.181014 | AJ130: 9.933702342e-05 | AK130: =SUM($AI$27:AI130)/$X$5 -> 0.9949835283 | AM130: 104
A131: 2019 | B131: Costa Rica | C131: 2199 | D131: 102623 | E131: 52.8 | F131: 415960 | G131: 125860190 | H131: 5.2 | I131: 2019 | J131: Costa Rica | K131: 269 | L131: 61652 | M131: 54.6 | N131: 275644 | O131: 124441701 | P131: 5 | Q131: 2019 | R131: Costa Rica | S131: Lateinamerika | T131: 1.93 | U131: 3.662601717e-07 | V131: =SUM($T$27:T131)/$S$5 -> 0.9999104433 | W131: 0.040971 | X131: 2.731901911e-06 | Y131: =SUM($W$27:W131)/$T$5 -> 0.9999507168 | Z131: 140.316 | AA131: 8.317257768e-05 | AB131: =SUM($Z$27:Z131)/$U$5 -> 0.9958895233 | AC131: 1.418489 | AD131: 8.331703827e-05 | AE131: =SUM($AC$27:AC131)/$V$5 -> 0.990693729 | AF131: =Tabelle131[[#This Row],[Menge (Tonnen)]]+Tabelle131[[#This Row],[Menge (Tonnen)2]] -> 142.246 | AG131: 2.044785393e-05 | AH131: =SUM($AF$27:AF131)/$W$5 -> 0.9989353187 | AI131: =Tabelle131[[#This Row],[Wert (Mio. CHF)]]+Tabelle131[[#This Row],[Wert (Mio. CHF)2]] -> 1.45946 | AJ131: 4.557616288e-05 | AK131: =SUM($AI$27:AI131)/$X$5 -> 0.9950291044 | AM131: 105
A132: 2019 | B132: Ghana | C132: 1986 | D132: 123800 | E132: 913.8 | F132: 247176 | G132: 17007587 | H132: 10.5 | I132: 2019 | J132: Ghana | K132: 1107 | L132: 113170 | M132: ** | N132: 86435 | O132: 15341756 | P132: 20.1 | Q132: 2019 | R132: Ghana | S132: Afrika | T132: 0.879 | U132: 1.668096844e-07 | V132: =SUM($T$27:T132)/$S$5 -> 0.9999106101 | W132: 0.01063 | X132: 7.087968884e-07 | Y132: =SUM($W$27:W132)/$T$5 -> 0.9999514256 | Z132: 160.741 | AA132: 9.527953554e-05 | AB132: =SUM($Z$27:Z132)/$U$5 -> 0.9959848029 | AC132: 1.665831 | AD132: 9.784503452e-05 | AE132: =SUM($AC$27:AC132)/$V$5 -> 0.990791574 | AF132: =Tabelle131[[#This Row],[Menge (Tonnen)]]+Tabelle131[[#This Row],[Menge (Tonnen)2]] -> 161.62 | AG132: 2.323286527e-05 | AH132: =SUM($AF$27:AF132)/$W$5 -> 0.9989585515 | AI132: =Tabelle131[[#This Row],[Wert (Mio. CHF)]]+Tabelle131[[#This Row],[Wert (Mio. CHF)2]] -> 1.676461 | AJ132: 5.235269182e-05 | AK132: =SUM($AI$27:AI132)/$X$5 -> 0.9950814571 | AM132: 106
A133: 2019 | B133: Malta | C133: 86650 | D133: 13176175 | E133: 15.2 | F133: 690392 | G133: 107105627 | H133: -13.1 | I133: 2019 | J133: Malta | K133: 85832 | L133: 13152907 | M133: 15.7 | N133: 56366 | O133: 77779942 | P133: -25.4 | Q133: 2019 | R133: Malta | S133: EU27 | T133: 0.818 | U133: 1.552335857e-07 | V133: =SUM($T$27:T133)/$S$5 -> 0.9999107654 | W133: 0.023268 | X133: 1.551485042e-06 | Y133: =SUM($W$27:W133)/$T$5 -> 0.9999529771 | Z133: 634.026 | AA133: 0.0003758201255 | AB133: =SUM($Z$27:Z133)/$U$5 -> 0.996360623 | AC133: 29.325685 | AD133: 0.001722487252 | AE133: =SUM($AC$27:AC133)/$V$5 -> 0.9925140612 | AF133: =Tabelle131[[#This Row],[Menge (Tonnen)]]+Tabelle131[[#This Row],[Menge (Tonnen)2]] -> 634.844 | AG133: 9.125878676e-05 | AH133: =SUM($AF$27:AF133)/$W$5 -> 0.9990498103 | AI133: =Tabelle131[[#This Row],[Wert (Mio. CHF)]]+Tabelle131[[#This Row],[Wert (Mio. CHF)2]] -> 29.348953 | AJ133: 0.0009165120403 | AK133: =SUM($AI$27:AI133)/$X$5 -> 0.9959979692 | AM133: 107
A134: 2019 | B134: Eswatini | C134: 813 | D134: 14044 | E134: -58 | F134: 213073 | G134: 4154245 | H134: 17.4 | I134: 2019 | J134: Eswatini | K134: 30 | L134: 4308 | M134: -81.9 | N134: 39 | O134: 12529 | P134: 56.7 | Q134: 2019 | R134: Eswatini | S134: Afrika | T134: 0.783 | U134: 1.485915619e-07 | V134: =SUM($T$27:T134)/$S$5 -> 0.999910914 | W134: 0.009736 | X134: 6.491859366e-07 | Y134: =SUM($W$27:W134)/$T$5 -> 0.9999536263 | Z134: 213.034 | AA134: 0.0001262763114 | AB134: =SUM($Z$27:Z134)/$U$5 -> 0.9964868993 | AC134: 4.141716 | AD134: 0.0002432697825 | AE134: =SUM($AC$27:AC134)/$V$5 -> 0.992757331 | AF134: =Tabelle131[[#This Row],[Menge (Tonnen)]]+Tabelle131[[#This Row],[Menge (Tonnen)2]] -> 213.817 | AG134: 3.073618087e-05 | AH134: =SUM($AF$27:AF134)/$W$5 -> 0.9990805465 | AI134: =Tabelle131[[#This Row],[Wert (Mio. CHF)]]+Tabelle131[[#This Row],[Wert (Mio. CHF)2]] -> 4.151452 | AJ134: 0.0001296419584 | AK134: =SUM($AI$27:AI134)/$X$5 -> 0.9961276111 | AM134: 108
A135: 2019 | B135: Äthiopien | C135: 705 | D135: 3548 | E135: -83.3 | F135: 72570 | G135: 28094068 | H135: 169.7 | I135: 2019 | J135: Äthiopien | K135: 4 | L135: 69 | M135: 46.8 | N135: 33766 | O135: 27462735 | P135: 175.3 | Q135: 2019 | R135: Äthiopien | S135: Afrika | T135: 0.701 | U135: 1.330302489e-07 | V135: =SUM($T$27:T135)/$S$5 -> 0.999911047 | W135: 0.003479 | X135: 2.319759525e-07 | Y135: =SUM($W$27:W135)/$T$5 -> 0.9999538583 | Z135: 38.804 | AA135: 2.30011453e-05 | AB135: =SUM($Z$27:Z135)/$U$5 -> 0.9965099004 | AC135: 0.631333 | AD135: 3.708227256e-05 | AE135: =SUM($AC$27:AC135)/$V$5 -> 0.9927944133 | AF135: =Tabelle131[[#This Row],[Menge (Tonnen)]]+Tabelle131[[#This Row],[Menge (Tonnen)2]] -> 39.505 | AG135: 5.67884137e-06 | AH135: =SUM($AF$27:AF135)/$W$5 -> 0.9990862253 | AI135: =Tabelle131[[#This Row],[Wert (Mio. CHF)]]+Tabelle131[[#This Row],[Wert (Mio. CHF)2]] -> 0.634812 | AJ135: 1.982397264e-05 | AK135: =SUM($AI$27:AI135)/$X$5 -> 0.9961474351 | AM135: 109
A136: 2019 | B136: Namibia | C136: 700 | D136: 14709 | E136: -37.1 | F136: 1197 | G136: 125790 | H136: 93 | I136: 2019 | J136: Namibia | K136: 0 | L136: 66 | M136: -98.3 | N136: 102 | O136: 99387 | P136: 92 | Q136: 2019 | R136: Namibia | S136: Afrika | T136: 0.7 | U136: 1.328404768e-07 | V136: =SUM($T$27:T136)/$S$5 -> 0.9999111798 | W136: 0.014643 | X136: 9.763793826e-07 | Y136: =SUM($W$27:W136)/$T$5 -> 0.9999548346 | Z136: 1.095 | AA136: 6.490633467e-07 | AB136: =SUM($Z$27:Z136)/$U$5 -> 0.9965105495 | AC136: 0.026403 | AD136: 1.550819049e-06 | AE136: =SUM($AC$27:AC136)/$V$5 -> 0.9927959641 | AF136: =Tabelle131[[#This Row],[Menge (Tonnen)]]+Tabelle131[[#This Row],[Menge (Tonnen)2]] -> 1.795 | AG136: 2.580311419e-07 | AH136: =SUM($AF$27:AF136)/$W$5 -> 0.9990864834 | AI136: =Tabelle131[[#This Row],[Wert (Mio. CHF)]]+Tabelle131[[#This Row],[Wert (Mio. CHF)2]] -> 0.041046 | AJ136: 1.281788594e-06 | AK136: =SUM($AI$27:AI136)/$X$5 -> 0.9961487169 | AM136: 110
A137: 2019 | B137: Zentralafrika | C137: 880 | D137: 124062 | E137: * | F137: 3627 | G137: 288668 | H137: 66.5 | I137: 2019 | J137: Zentralafrika | K137: 272 | L137: 120366 | M137: * | N137: 3611 | O137: 277149 | P137: 85.9 | Q137: 2019 | R137: Zentralafrika | S137: Afrika | T137: 0.608 | U137: 1.153814427e-07 | V137: =SUM($T$27:T137)/$S$5 -> 0.9999112952 | W137: 0.003696 | X137: 2.464452775e-07 | Y137: =SUM($W$27:W137)/$T$5 -> 0.9999550811 | Z137: 0.016 | AA137: 9.484030637e-09 | AB137: =SUM($Z$27:Z137)/$U$5 -> 0.996510559 | AC137: 0.011519 | AD137: 6.765854115e-07 | AE137: =SUM($AC$27:AC137)/$V$5 -> 0.9927966407 | AF137: =Tabelle131[[#This Row],[Menge (Tonnen)]]+Tabelle131[[#This Row],[Menge (Tonnen)2]] -> 0.624 | AG137: 8.969996241e-08 | AH137: =SUM($AF$27:AF137)/$W$5 -> 0.9990865731 | AI137: =Tabelle131[[#This Row],[Wert (Mio. CHF)]]+Tabelle131[[#This Row],[Wert (Mio. CHF)2]] -> 0.015215 | AJ137: 4.751355421e-07 | AK137: =SUM($AI$27:AI137)/$X$5 -> 0.996149192 | AM137: 111
A138: 2019 | B138: Zypern | C138: 8312 | D138: 707003 | E138: -46.2 | F138: 415490 | G138: 87150849 | H138: -22.9 | I138: 2019 | J138: Zypern | K138: 7765 | L138: 688252 | M138: -47.2 | N138: 268566 | O138: 84487224 | P138: -23.9 | Q138: 2019 | R138: Zypern | S138: EU27 | T138: 0.547 | U138: 1.03805344e-07 | V138: =SUM($T$27:T138)/$S$5 -> 0.999911399 | W138: 0.018751 | X138: 1.250296374e-06 | Y138: =SUM($W$27:W138)/$T$5 -> 0.9999563314 | Z138: 146.924 | AA138: 8.708948233e-05 | AB138: =SUM($Z$27:Z138)/$U$5 -> 0.9965976485 | AC138: 2.663625 | AD138: 0.000156451933 | AE138: =SUM($AC$27:AC138)/$V$5 -> 0.9929530926 | AF138: =Tabelle131[[#This Row],[Menge (Tonnen)]]+Tabelle131[[#This Row],[Menge (Tonnen)2]] -> 147.471 | AG138: 2.119894737e-05 | AH138: =SUM($AF$27:AF138)/$W$5 -> 0.999107772 | AI138: =Tabelle131[[#This Row],[Wert (Mio. CHF)]]+Tabelle131[[#This Row],[Wert (Mio. CHF)2]] -> 2.682376 | AJ138: 8.376550607e-05 | AK138: =SUM($AI$27:AI138)/$X$5 -> 0.9962329575 | AM138: 112
A139: 2019 | B139: Kambodscha | C139: 587 | D139: 56914 | E139: -63.7 | F139: 95928 | G139: 11085124 | H139: 31 | I139: 2019 | J139: Kambodscha | K139: 128 | L139: 25948 | M139: -82.7 | N139: 15031 | O139: 6457916 | P139: 79.1 | Q139: 2019 | R139: Kambodscha | S139: Sonstiges Asien | T139: 0.459 | U139: 8.710539834e-08 | V139: =SUM($T$27:T139)/$S$5 -> 0.9999114861 | W139: 0.030966 | X139: 2.064779346e-06 | Y139: =SUM($W$27:W139)/$T$5 -> 0.9999583962 | Z139: 80.897 | AA139: 4.795185165e-05 | AB139: =SUM($Z$27:Z139)/$U$5 -> 0.9966456003 | AC139: 4.627208 | AD139: 0.0002717858693 | AE139: =SUM($AC$27:AC139)/$V$5 -> 0.9932248785 | AF139: =Tabelle131[[#This Row],[Menge (Tonnen)]]+Tabelle131[[#This Row],[Menge (Tonnen)2]] -> 81.356 | AG139: 1.16949201e-05 | AH139: =SUM($AF$27:AF139)/$W$5 -> 0.9991194669 | AI139: =Tabelle131[[#This Row],[Wert (Mio. CHF)]]+Tabelle131[[#This Row],[Wert (Mio. CHF)2]] -> 4.658174 | AJ139: 0.0001454659237 | AK139: =SUM($AI$27:AI139)/$X$5 -> 0.9963784235 | AM139: 113
A140: 2019 | B140: San Marino | C140: 460 | D140: 40655 | E140: 21.4 | F140: 29629 | G140: 1230488 | H140: 1.5 | I140: 2019 | J140: San Marino | K140: 11 | L140: 16727 | M140: * | N140: 2679 | O140: 950533 | P140: 0.1 | Q140: 2019 | R140: San Marino | S140: Sonstiges Europa | T140: 0.449 | U140: 8.520767724e-08 | V140: =SUM($T$27:T140)/$S$5 -> 0.9999115713 | W140: 0.023928 | X140: 1.595493128e-06 | Y140: =SUM($W$27:W140)/$T$5 -> 0.9999599916 | Z140: 26.95 | AA140: 1.59746641e-05 | AB140: =SUM($Z$27:Z140)/$U$5 -> 0.996661575 | AC140: 0.279955 | AD140: 1.644356879e-05 | AE140: =SUM($AC$27:AC140)/$V$5 -> 0.9932413221 | AF140: =Tabelle131[[#This Row],[Menge (Tonnen)]]+Tabelle131[[#This Row],[Menge (Tonnen)2]] -> 27.399 | AG140: 3.9386046e-06 | AH140: =SUM($AF$27:AF140)/$W$5 -> 0.9991234055 | AI140: =Tabelle131[[#This Row],[Wert (Mio. CHF)]]+Tabelle131[[#This Row],[Wert (Mio. CHF)2]] -> 0.303883 | AJ140: 9.489688724e-06 | AK140: =SUM($AI$27:AI140)/$X$5 -> 0.9963879132 | AM140: 114
A141: 2019 | B141: Burkina Faso | C141: 490 | D141: 3223 | E141: -5.3 | F141: 7122 | G141: 2010856 | H141: 98.9 | I141: 2019 | J141: Burkina Faso | K141: 68 | L141: 253 | M141: 246.6 | N141: 6122 | O141: 1974099 | P141: 99 | Q141: 2019 | R141: Burkina Faso | S141: Afrika | T141: 0.422 | U141: 8.008383028e-08 | V141: =SUM($T$27:T141)/$S$5 -> 0.9999116514 | W141: 0.00297 | X141: 1.980363837e-07 | Y141: =SUM($W$27:W141)/$T$5 -> 0.9999601897 | Z141: 1 | AA141: 5.927519148e-07 | AB141: =SUM($Z$27:Z141)/$U$5 -> 0.9966621677 | AC141: 0.036757 | AD141: 2.158976471e-06 | AE141: =SUM($AC$27:AC141)/$V$5 -> 0.993243481 | AF141: =Tabelle131[[#This Row],[Menge (Tonnen)]]+Tabelle131[[#This Row],[Menge (Tonnen)2]] -> 1.422 | AG141: 2.044124143e-07 | AH141: =SUM($AF$27:AF141)/$W$5 -> 0.9991236099 | AI141: =Tabelle131[[#This Row],[Wert (Mio. CHF)]]+Tabelle131[[#This Row],[Wert (Mio. CHF)2]] -> 0.039727 | AJ141: 1.24059873e-06 | AK141: =SUM($AI$27:AI141)/$X$5 -> 0.9963891538 | AM141: 115
A142: 2019 | B142: Dschibuti | C142: 418 | D142: 38499 | E142: 159.4 | F142: 650 | G142: 3110703 | H142: ** | I142: 2019 | J142: Dschibuti | M142: -100 | N142: 650 | O142: 3110703 | P142: ** | Q142: 2019 | R142: Dschibuti | S142: Afrika | T142: 0.418 | U142: 7.932474184e-08 | V142: =SUM($T$27:T142)/$S$5 -> 0.9999117307 | W142: 0.038499 | X142: 2.567071628e-06 | Y142: =SUM($W$27:W142)/$T$5 -> 0.9999627568 | Z142: 0 | AA142: 0 | AB142: =SUM($Z$27:Z142)/$U$5 -> 0.9966621677 | AC142: 0 | AD142: 0 | AE142: =SUM($AC$27:AC142)/$V$5 -> 0.993243481 | AF142: =Tabelle131[[#This Row],[Menge (Tonnen)]]+Tabelle131[[#This Row],[Menge (Tonnen)2]] -> 0.418 | AG142: 6.008747482e-08 | AH142: =SUM($AF$27:AF142)/$W$5 -> 0.99912367 | AI142: =Tabelle131[[#This Row],[Wert (Mio. CHF)]]+Tabelle131[[#This Row],[Wert (Mio. CHF)2]] -> 0.038499 | AJ142: 1.202250623e-06 | AK142: =SUM($AI$27:AI142)/$X$5 -> 0.996390356 | AM142: 116
A143: 2019 | B143: Georgien | C143: 458 | D143: 18472 | E143: 10.4 | F143: 148985 | G143: 33267259 | H143: 6.6 | I143: 2019 | J143: Georgien | K143: 45 | L143: 6984 | M143: ** | N143: 39764 | O143: 31321473 | P143: 4.4 | Q143: 2019 | R143: Georgien | S143: Sonstiges Asien | T143: 0.413 | U143: 7.837588129e-08 | V143: =SUM($T$27:T143)/$S$5 -> 0.9999118091 | W143: 0.011488 | X143: 7.660073993e-07 | Y143: =SUM($W$27:W143)/$T$5 -> 0.9999635228 | Z143: 109.221 | AA143: 6.474095689e-05 | AB143: =SUM($Z$27:Z143)/$U$5 -> 0.9967269087 | AC143: 1.945786 | AD143: 0.0001142886033 | AE143: =SUM($AC$27:AC143)/$V$5 -> 0.9933577697 | AF143: =Tabelle131[[#This Row],[Menge (Tonnen)]]+Tabelle131[[#This Row],[Menge (Tonnen)2]] -> 109.634 | AG143: 1.57598809e-05 | AH143: =SUM($AF$27:AF143)/$W$5 -> 0.9991394299 | AI143: =Tabelle131[[#This Row],[Wert (Mio. CHF)]]+Tabelle131[[#This Row],[Wert (Mio. CHF)2]] -> 1.957274 | AJ143: 6.112194828e-05 | AK143: =SUM($AI$27:AI143)/$X$5 -> 0.996451478 | AM143: 117
A144: 2019 | B144: Bangladesch | C144: 624 | D144: 188835 | E144: ** | F144: 1183525 | G144: 40579434 | H144: 23.7 | I144: 2019 | J144: Bangladesch | K144: 220 | L144: 178862 | M144: ** | N144: 67930 | O144: 19093516 | P144: 15.8 | Q144: 2019 | R144: Bangladesch | S144: Sonstiges Asien | T144: 0.404 | U144: 7.666793231e-08 | V144: =SUM($T$27:T144)/$S$5 -> 0.9999118858 | W144: 0.009973 | X144: 6.649888399e-07 | Y144: =SUM($W$27:W144)/$T$5 -> 0.9999641878 | Z144: 1115.595 | AA144: 0.0006612710724 | AB144: =SUM($Z$27:Z144)/$U$5 -> 0.9973881798 | AC144: 21.485918 | AD144: 0.001262007003 | AE144: =SUM($AC$27:AC144)/$V$5 -> 0.9946197767 | AF144: =Tabelle131[[#This Row],[Menge (Tonnen)]]+Tabelle131[[#This Row],[Menge (Tonnen)2]] -> 1115.999 | AG144: 0.000160424789 | AH144: =SUM($AF$27:AF144)/$W$5 -> 0.9992998547 | AI144: =Tabelle131[[#This Row],[Wert (Mio. CHF)]]+Tabelle131[[#This Row],[Wert (Mio. CHF)2]] -> 21.495891 | AJ144: 0.0006712758346 | AK144: =SUM($AI$27:AI144)/$X$5 -> 0.9971227538 | AM144: 118
A145: 2019 | B145: Trinidad | C145: 262581 | D145: 118523 | E145: 161.2 | F145: 50180 | G145: 1791954 | H145: -23.5 | I145: 2019 | J145: Trinidad | K145: 0 | L145: 60 | M145: * | N145: 3747 | O145: 1001372 | P145: -38.8 | Q145: 2019 | R145: Trinidad | S145: Lateinamerika | T145: 262.581 | U145: 4.983055033e-05 | V145: =SUM($T$27:T145)/$S$5 -> 0.9999617163 | W145: 0.118463 | X145: 7.898984553e-06 | Y145: =SUM($W$27:W145)/$T$5 -> 0.9999720867 | Z145: 46.433 | AA145: 2.752324966e-05 | AB145: =SUM($Z$27:Z145)/$U$5 -> 0.997415703 | AC145: 0.790582 | AD145: 4.643599686e-05 | AE145: =SUM($AC$27:AC145)/$V$5 -> 0.9946662127 | AF145: =Tabelle131[[#This Row],[Menge (Tonnen)]]+Tabelle131[[#This Row],[Menge (Tonnen)2]] -> 309.014 | AG145: 4.442074389e-05 | AH145: =SUM($AF$27:AF145)/$W$5 -> 0.9993442754 | AI145: =Tabelle131[[#This Row],[Wert (Mio. CHF)]]+Tabelle131[[#This Row],[Wert (Mio. CHF)2]] -> 0.909045 | AJ145: 2.83877482e-05 | AK145: =SUM($AI$27:AI145)/$X$5 -> 0.9971511415 | AM145: 119
A146: 2019 | B146: Bolivien | C146: 23 | D146: 3807 | E146: -90.5 | F146: 49646 | G146: 10088854 | H146: 33.7 | I146: 2019 | J146: Bolivien | K146: 23 | L146: 3807 | M146: 25.6 | N146: 18747 | O146: 9403269 | P146: 40.6 | Q146: 2019 | R146: Bolivien | S146: Lateinamerika | T146: 0 | U146: 0 | V146: =SUM($T$27:T146)/$S$5 -> 0.9999617163 | W146: 0 | X146: 0 | Y146: =SUM($W$27:W146)/$T$5 -> 0.9999720867 | Z146: 30.899 | AA146: 1.831544142e-05 | AB146: =SUM($Z$27:Z146)/$U$5 -> 0.9974340185 | AC146: 0.685585 | AD146: 4.026884359e-05 | AE146: =SUM($AC$27:AC146)/$V$5 -> 0.9947064815 | AF146: =Tabelle131[[#This Row],[Menge (Tonnen)]]+Tabelle131[[#This Row],[Menge (Tonnen)2]] -> 30.899 | AG146: 4.441729389e-06 | AH146: =SUM($AF$27:AF146)/$W$5 -> 0.9993487172 | AI146: =Tabelle131[[#This Row],[Wert (Mio. CHF)]]+Tabelle131[[#This Row],[Wert (Mio. CHF)2]] -> 0.685585 | AJ146: 2.140951697e-05 | AK146: =SUM($AI$27:AI146)/$X$5 -> 0.997172551 | AM146: 120
A147: 2019 | B147: Heiliger Stuhl | C147: 376 | D147: 9878 | E147: 188.4 | F147: 5553 | G147: 2754659 | H147: 26 | I147: 2019 | J147: Heiliger Stuhl | M147: * | N147: 5433 | O147: 2639999 | P147: 21.4 | Q147: 2019 | R147: Heiliger Stuhl | S147: Sonstiges Europa | T147: 0.376 | U147: 7.135431324e-08 | V147: =SUM($T$27:T147)/$S$5 -> 0.9999617877 | W147: 0.009878 | X147: 6.586543428e-07 | Y147: =SUM($W$27:W147)/$T$5 -> 0.9999727454 | Z147: 0.12 | AA147: 7.113022978e-08 | AB147: =SUM($Z$27:Z147)/$U$5 -> 0.9974340896 | AC147: 0.11466 | AD147: 6.734723785e-06 | AE147: =SUM($AC$27:AC147)/$V$5 -> 0.9947132162 | AF147: =Tabelle131[[#This Row],[Menge (Tonnen)]]+Tabelle131[[#This Row],[Menge (Tonnen)2]] -> 0.496 | AG147: 7.129997012e-08 | AH147: =SUM($AF$27:AF147)/$W$5 -> 0.9993487885 | AI147: =Tabelle131[[#This Row],[Wert (Mio. CHF)]]+Tabelle131[[#This Row],[Wert (Mio. CHF)2]] -> 0.124538 | AJ147: 3.889085123e-06 | AK147: =SUM($AI$27:AI147)/$X$5 -> 0.9971764401 | AM147: 121
A148: 2019 | B148: Aruba | C148: 7 | D148: 303 | E148: * | F148: 1293 | G148: 259470 | H148: 22.3 | I148: 2019 | J148: Aruba | M148: * | P148: -100 | Q148: 2019 | R148: Aruba | S148: Lateinamerika | T148: 0.007 | U148: 1.328404768e-09 | V148: =SUM($T$27:T148)/$S$5 -> 0.999961789 | W148: 0.000303 | X148: 2.020371187e-08 | Y148: =SUM($W$27:W148)/$T$5 -> 0.9999727656 | Z148: 1.293 | AA148: 7.664282259e-07 | AB148: =SUM($Z$27:Z148)/$U$5 -> 0.997434856 | AC148: 0.25947 | AD148: 1.524035218e-05 | AE148: =SUM($AC$27:AC148)/$V$5 -> 0.9947284566 | AF148: =Tabelle131[[#This Row],[Menge (Tonnen)]]+Tabelle131[[#This Row],[Menge (Tonnen)2]] -> 1.3 | AG148: 1.868749217e-07 | AH148: =SUM($AF$27:AF148)/$W$5 -> 0.9993489754 | AI148: =Tabelle131[[#This Row],[Wert (Mio. CHF)]]+Tabelle131[[#This Row],[Wert (Mio. CHF)2]] -> 0.259773 | AJ148: 8.112217231e-06 | AK148: =SUM($AI$27:AI148)/$X$5 -> 0.9971845524 | AM148: 122
A149: 2019 | B149: Elfenbeinküste | C149: 292 | D149: 4733 | E149: 8.1 | F149: 745577 | G149: 11954958 | H149: 16.8 | I149: 2019 | J149: Elfenbeinküste | K149: 2 | L149: 2135 | M149: 333.9 | N149: 4683 | O149: 3284201 | P149: -7.6 | Q149: 2019 | R149: Elfenbeinküste | S149: Afrika | T149: =(C149-K149)/1000 -> 0.29 | U149: =T149/$S$5 -> 5.50339118e-08 | V149: =SUM($T$27:T149)/$S$5 -> 0.999961844 | W149: =(D149-L149)*10^-6 -> 0.002598 | X149: =W149/$T$5 -> 1.732318265e-07 | Y149: =SUM($W$27:W149)/$T$5 -> 0.9999729388 | Z149: =(F149-N149)/1000 -> 740.894 | AA149: =Z149/$U$5 -> 0.0004391663372 | AB149: =SUM($Z$27:Z149)/$U$5 -> 0.9978740223 | AC149: =(G149-O149)*10^-6 -> 8.670757 | AD149: =AC149/$V$5 -> 0.0005092896686 | AE149: =SUM($AC$27:AC149)/$V$5 -> 0.9952377462 | AF149: =Tabelle131[[#This Row],[Menge (Tonnen)]]+Tabelle131[[#This Row],[Menge (Tonnen)2]] -> 741.184 | AG149: =AF149/$W$5 -> 0.0001065451554 | AH149: =SUM($AF$27:AF149)/$W$5 -> 0.9994555205 | AI149: =Tabelle131[[#This Row],[Wert (Mio. CHF)]]+Tabelle131[[#This Row],[Wert (Mio. CHF)2]] -> 8.673355 | AJ149: =AI149/$X$5 -> 0.0002708523976 | AK149: =SUM($AI$27:AI149)/$X$5 -> 0.9974554047 | AM149: 123
A150: 2019 | B150: Kenia | C150: 300 | D150: 16124 | E150: 687.3 | F150: 581406 | G150: 59722666 | H150: 9.2 | I150: 2019 | J150: Kenia | K150: 27 | L150: 949 | M150: -16.8 | N150: 140399 | O150: 51397676 | P150: 1.7 | Q150: 2019 | R150: Kenia | S150: Afrika | T150: 0.273 | U150: 5.180778594e-08 | V150: =SUM($T$27:T150)/$S$5 -> 0.9999618958 | W150: 0.015175 | X150: 1.011852567e-06 | Y150: =SUM($W$27:W150)/$T$5 -> 0.9999739507 | Z150: 441.007 | AA150: 0.0002614077437 | AB150: =SUM($Z$27:Z150)/$U$5 -> 0.9981354301 | AC150: 8.32499 | AD150: 0.0004889805352 | AE150: =SUM($AC$27:AC150)/$V$5 -> 0.9957267268 | AF150: =Tabelle131[[#This Row],[Menge (Tonnen)]]+Tabelle131[[#This Row],[Menge (Tonnen)2]] -> 441.28 | AG150: 6.343397342e-05 | AH150: =SUM($AF$27:AF150)/$W$5 -> 0.9995189545 | AI150: =Tabelle131[[#This Row],[Wert (Mio. CHF)]]+Tabelle131[[#This Row],[Wert (Mio. CHF)2]] -> 8.340165 | AJ150: 0.000260447507 | AK150: =SUM($AI$27:AI150)/$X$5 -> 0.9977158523 | AM150: 124
A151: 2019 | B151: Guinea | C151: 197 | D151: 704 | E151: -33.6 | F151: 70145 | G151: 268364 | H151: 3.4 | I151: 2019 | J151: Guinea | M151: * | N151: 781 | O151: 6024 | P151: -96.2 | Q151: 2019 | R151: Guinea | S151: Afrika | T151: 0.197 | U151: 3.738510561e-08 | V151: =SUM($T$27:T151)/$S$5 -> 0.9999619332 | W151: 0.000704 | X151: 4.694195762e-08 | Y151: =SUM($W$27:W151)/$T$5 -> 0.9999739976 | Z151: 69.364 | AA151: 4.111564382e-05 | AB151: =SUM($Z$27:Z151)/$U$5 -> 0.9981765457 | AC151: 0.26234 | AD151: 1.540892585e-05 | AE151: =SUM($AC$27:AC151)/$V$5 -> 0.9957421357 | AF151: =Tabelle131[[#This Row],[Menge (Tonnen)]]+Tabelle131[[#This Row],[Menge (Tonnen)2]] -> 69.561 | AG151: 9.99938956e-06 | AH151: =SUM($AF$27:AF151)/$W$5 -> 0.9995289539 | AI151: =Tabelle131[[#This Row],[Wert (Mio. CHF)]]+Tabelle131[[#This Row],[Wert (Mio. CHF)2]] -> 0.263044 | AJ151: 8.214364347e-06 | AK151: =SUM($AI$27:AI151)/$X$5 -> 0.9977240666 | AM151: 125
A152: 2019 | B152: Togo | C152: 146 | D152: 2084 | E152: 57.2 | F152: 175206 | G152: 1693103 | H152: 8.4 | I152: 2019 | J152: Togo | M152: * | N152: 20929 | O152: 462299 | P152: -38.9 | Q152: 2019 | R152: Togo | S152: Afrika | T152: 0.146 | U152: 2.770672801e-08 | V152: =SUM($T$27:T152)/$S$5 -> 0.9999619609 | W152: 0.002084 | X152: 1.389588632e-07 | Y152: =SUM($W$27:W152)/$T$5 -> 0.9999741366 | Z152: 154.277 | AA152: 9.144798716e-05 | AB152: =SUM($Z$27:Z152)/$U$5 -> 0.9982679937 | AC152: 1.230804 | AD152: 7.229308367e-05 | AE152: =SUM($AC$27:AC152)/$V$5 -> 0.9958144288 | AF152: =Tabelle131[[#This Row],[Menge (Tonnen)]]+Tabelle131[[#This Row],[Menge (Tonnen)2]] -> 154.423 | AG152: 2.219829695e-05 | AH152: =SUM($AF$27:AF152)/$W$5 -> 0.9995511522 | AI152: =Tabelle131[[#This Row],[Wert (Mio. CHF)]]+Tabelle131[[#This Row],[Wert (Mio. CHF)2]] -> 1.232888 | AJ152: 3.85007498e-05 | AK152: =SUM($AI$27:AI152)/$X$5 -> 0.9977625674 | AM152: 126
A153: 2019 | B153: Bahrain | C153: 144 | D153: 7738 | E153: -32.7 | F153: 915139 | G153: 46640727 | H153: 14.6 | I153: 2019 | J153: Bahrain | K153: 11 | L153: 1859 | M153: 66.3 | N153: 100005 | O153: 38753756 | P153: 11.5 | Q153: 2019 | R153: Bahrain | S153: Naher Osten | T153: 0.133 | U153: 2.523969059e-08 | V153: =SUM($T$27:T153)/$S$5 -> 0.9999619862 | W153: 0.005879 | X153: 3.920053534e-07 | Y153: =SUM($W$27:W153)/$T$5 -> 0.9999745286 | Z153: 815.134 | AA153: 0.0004831722393 | AB153: =SUM($Z$27:Z153)/$U$5 -> 0.998751166 | AC153: 7.886971 | AD153: 0.0004632528448 | AE153: =SUM($AC$27:AC153)/$V$5 -> 0.9962776816 | AF153: =Tabelle131[[#This Row],[Menge (Tonnen)]]+Tabelle131[[#This Row],[Menge (Tonnen)2]] -> 815.267 | AG153: 0.0001171945821 | AH153: =SUM($AF$27:AF153)/$W$5 -> 0.9996683468 | AI153: =Tabelle131[[#This Row],[Wert (Mio. CHF)]]+Tabelle131[[#This Row],[Wert (Mio. CHF)2]] -> 7.89285 | AJ153: 0.0002464787094 | AK153: =SUM($AI$27:AI153)/$X$5 -> 0.9980090461 | AM153: 127
A154: 2019 | B154: Mosambik | C154: 105 | D154: 2476 | E154: 17.3 | F154: 64145 | G154: 5591077 | H154: -21.5 | I154: 2019 | J154: Mosambik | M154: -100 | N154: 5189 | O154: 550793 | P154: -67 | Q154: 2019 | R154: Mosambik | S154: Afrika | T154: 0.105 | U154: 1.992607152e-08 | V154: =SUM($T$27:T154)/$S$5 -> 0.9999620061 | W154: 0.002476 | X154: 1.650969987e-07 | Y154: =SUM($W$27:W154)/$T$5 -> 0.9999746937 | Z154: 58.956 | AA154: 3.494628189e-05 | AB154: =SUM($Z$27:Z154)/$U$5 -> 0.9987861122 | AC154: 5.040284 | AD154: 0.0002960484959 | AE154: =SUM($AC$27:AC154)/$V$5 -> 0.9965737301 | AF154: =Tabelle131[[#This Row],[Menge (Tonnen)]]+Tabelle131[[#This Row],[Menge (Tonnen)2]] -> 59.061 | AG154: 8.490015193e-06 | AH154: =SUM($AF$27:AF154)/$W$5 -> 0.9996768368 | AI154: =Tabelle131[[#This Row],[Wert (Mio. CHF)]]+Tabelle131[[#This Row],[Wert (Mio. CHF)2]] -> 5.04276 | AJ154: 0.0001574758138 | AK154: =SUM($AI$27:AI154)/$X$5 -> 0.9981665219 | AM154: 128
A155: 2019 | B155: Macau | C155: 1093 | D155: 436726 | E155: ** | F155: 4122 | G155: 237717 | H155: 10.3 | I155: 2019 | J155: Macau | K155: 1000 | L155: 430723 | M155: ** | N155: 26 | O155: 2322 | P155: * | Q155: 2019 | R155: Macau | S155: Sonstiges Asien | T155: 0.093 | U155: 1.76488062e-08 | V155: =SUM($T$27:T155)/$S$5 -> 0.9999620238 | W155: 0.006003 | X155: 4.002735392e-07 | Y155: =SUM($W$27:W155)/$T$5 -> 0.999975094 | Z155: 4.096 | AA155: 2.427911843e-06 | AB155: =SUM($Z$27:Z155)/$U$5 -> 0.9987885402 | AC155: 0.235395 | AD155: 1.382627163e-05 | AE155: =SUM($AC$27:AC155)/$V$5 -> 0.9965875564 | AF155: =Tabelle131[[#This Row],[Menge (Tonnen)]]+Tabelle131[[#This Row],[Menge (Tonnen)2]] -> 4.189 | AG155: 6.021684977e-07 | AH155: =SUM($AF$27:AF155)/$W$5 -> 0.9996774389 | AI155: =Tabelle131[[#This Row],[Wert (Mio. CHF)]]+Tabelle131[[#This Row],[Wert (Mio. CHF)2]] -> 0.241398 | AJ155: 7.538400893e-06 | AK155: =SUM($AI$27:AI155)/$X$5 -> 0.9981740603 | AM155: 129
A156: 2019 | B156: Senegal | C156: 67 | D156: 818 | E156: -99.1 | F156: 156741 | G156: 7717295 | H156: 73.5 | I156: 2019 | J156: Senegal | K156: 2 | L156: 158 | M156: 276.2 | N156: 2947 | O156: 5723019 | P156: 158.5 | Q156: 2019 | R156: Senegal | S156: Afrika | T156: 0.065 | U156: 1.233518713e-08 | V156: =SUM($T$27:T156)/$S$5 -> 0.9999620361 | W156: 0.00066 | X156: 4.400808527e-08 | Y156: =SUM($W$27:W156)/$T$5 -> 0.999975138 | Z156: 153.794 | AA156: 9.116168799e-05 | AB156: =SUM($Z$27:Z156)/$U$5 -> 0.9988797018 | AC156: 1.994276 | AD156: 0.0001171367348 | AE156: =SUM($AC$27:AC156)/$V$5 -> 0.9967046931 | AF156: =Tabelle131[[#This Row],[Menge (Tonnen)]]+Tabelle131[[#This Row],[Menge (Tonnen)2]] -> 153.859 | AG156: 2.211722198e-05 | AH156: =SUM($AF$27:AF156)/$W$5 -> 0.9996995562 | AI156: =Tabelle131[[#This Row],[Wert (Mio. CHF)]]+Tabelle131[[#This Row],[Wert (Mio. CHF)2]] -> 1.994936 | AJ156: 6.229806098e-05 | AK156: =SUM($AI$27:AI156)/$X$5 -> 0.9982363584 | AM156: 130
A157: 2019 | B157: Guyana, Franz.- | C157: 52 | D157: 2352 | E157: 23.5 | F157: 2663 | G157: 85073 | H157: 10.5 | I157: 2019 | J157: Guyana, Franz.- | M157: * | N157: 14 | O157: 6907 | P157: 178.2 | Q157: 2019 | R157: Guyana, Franz.- | S157: Afrika | T157: 0.052 | U157: 9.868149703e-09 | V157: =SUM($T$27:T157)/$S$5 -> 0.999962046 | W157: 0.002352 | X157: 1.568288129e-07 | Y157: =SUM($W$27:W157)/$T$5 -> 0.9999752948 | Z157: 2.649 | AA157: 1.570199822e-06 | AB157: =SUM($Z$27:Z157)/$U$5 -> 0.998881272 | AC157: 0.078166 | AD157: 4.591195006e-06 | AE157: =SUM($AC$27:AC157)/$V$5 -> 0.9967092843 | AF157: =Tabelle131[[#This Row],[Menge (Tonnen)]]+Tabelle131[[#This Row],[Menge (Tonnen)2]] -> 2.701 | AG157: 3.882685873e-07 | AH157: =SUM($AF$27:AF157)/$W$5 -> 0.9996999444 | AI157: =Tabelle131[[#This Row],[Wert (Mio. CHF)]]+Tabelle131[[#This Row],[Wert (Mio. CHF)2]] -> 0.080518 | AJ157: 2.514424159e-06 | AK157: =SUM($AI$27:AI157)/$X$5 -> 0.9982388728 | AM157: 131
A158: 2019 | B158: Aserbaidschan | C158: 91 | D158: 15921 | E158: -79.6 | F158: 117113 | G158: 19279767 | H158: -28.7 | I158: 2019 | J158: Aserbaidschan | K158: 41 | L158: 15433 | M158: -80.2 | N158: 42029 | O158: 16697217 | P158: -34.1 | Q158: 2019 | R158: Aserbaidschan | S158: Sonstiges Asien | T158: 0.05 | U158: 9.488605484e-09 | V158: =SUM($T$27:T158)/$S$5 -> 0.9999620554 | W158: 0.000488 | X158: 3.253931153e-08 | Y158: =SUM($W$27:W158)/$T$5 -> 0.9999753273 | Z158: 75.084 | AA158: 4.450618477e-05 | AB158: =SUM($Z$27:Z158)/$U$5 -> 0.9989257782 | AC158: 2.58255 | AD158: 0.0001516898736 | AE158: =SUM($AC$27:AC158)/$V$5 -> 0.9968609742 | AF158: =Tabelle131[[#This Row],[Menge (Tonnen)]]+Tabelle131[[#This Row],[Menge (Tonnen)2]] -> 75.134 | AG158: 1.080050797e-05 | AH158: =SUM($AF$27:AF158)/$W$5 -> 0.9997107449 | AI158: =Tabelle131[[#This Row],[Wert (Mio. CHF)]]+Tabelle131[[#This Row],[Wert (Mio. CHF)2]] -> 2.583038 | AJ158: 8.066336907e-05 | AK158: =SUM($AI$27:AI158)/$X$5 -> 0.9983195361 | AM158: 132
A159: 2019 | B159: Laos | C159: 38 | D159: 33532 | E159: 386.4 | F159: 3326 | G159: 574522 | H159: -18.1 | I159: 2019 | J159: Laos | K159: 10 | L159: 61 | M159: 510 | N159: 3324 | O159: 572976 | P159: -14.7 | Q159: 2019 | R159: Laos | S159: Sonstiges Asien | T159: 0.028 | U159: 5.313619071e-09 | V159: =SUM($T$27:T159)/$S$5 -> 0.9999620608 | W159: 0.033471 | X159: 2.231810033e-06 | Y159: =SUM($W$27:W159)/$T$5 -> 0.9999775591 | Z159: 0.002 | AA159: 1.18550383e-09 | AB159: =SUM($Z$27:Z159)/$U$5 -> 0.9989257794 | AC159: 0.001546 | AD159: 9.080658444e-08 | AE159: =SUM($AC$27:AC159)/$V$5 -> 0.996861065 | AF159: =Tabelle131[[#This Row],[Menge (Tonnen)]]+Tabelle131[[#This Row],[Menge (Tonnen)2]] -> 0.03 | AG159: 4.312498193e-09 | AH159: =SUM($AF$27:AF159)/$W$5 -> 0.9997107492 | AI159: =Tabelle131[[#This Row],[Wert (Mio. CHF)]]+Tabelle131[[#This Row],[Wert (Mio. CHF)2]] -> 0.035017 | AJ159: 1.093514379e-06 | AK159: =SUM($AI$27:AI159)/$X$5 -> 0.9983206297 | AM159: 133
A160: 2019 | B160: Bahamas | C160: 1 | D160: 3408 | E160: * | F160: 2105 | G160: 377254 | H160: 127.7 | I160: 2019 | J160: Bahamas | M160: * | N160: 44 | O160: 134823 | P160: 729.7 | Q160: 2019 | R160: Bahamas | S160: Lateinamerika | T160: 0.001 | U160: 1.897721097e-10 | V160: =SUM($T$27:T160)/$S$5 -> 0.9999620609 | W160: 0.003408 | X160: 2.272417494e-07 | Y160: =SUM($W$27:W160)/$T$5 -> 0.9999777864 | Z160: 2.061 | AA160: 1.221661696e-06 | AB160: =SUM($Z$27:Z160)/$U$5 -> 0.9989270011 | AC160: 0.242431 | AD160: 1.423954144e-05 | AE160: =SUM($AC$27:AC160)/$V$5 -> 0.9968753045 | AF160: =Tabelle131[[#This Row],[Menge (Tonnen)]]+Tabelle131[[#This Row],[Menge (Tonnen)2]] -> 2.062 | AG160: 2.964123758e-07 | AH160: =SUM($AF$27:AF160)/$W$5 -> 0.9997110457 | AI160: =Tabelle131[[#This Row],[Wert (Mio. CHF)]]+Tabelle131[[#This Row],[Wert (Mio. CHF)2]] -> 0.245839 | AJ160: 7.677084885e-06 | AK160: =SUM($AI$27:AI160)/$X$5 -> 0.9983283067 | AM160: 134
A161: 2019 | B161: Benin | C161: 34 | D161: 680 | E161: * | F161: 13392 | G161: 467376 | H161: -28.4 | I161: 2019 | J161: Benin | K161: 7 | L161: 65 | M161: * | N161: 12994 | O161: 441516 | P161: -31.6 | Q161: 2019 | R161: Benin | S161: Afrika | T161: 0.027 | U161: 5.123846961e-09 | V161: =SUM($T$27:T161)/$S$5 -> 0.9999620661 | W161: 0.000615 | X161: 4.1007534e-08 | Y161: =SUM($W$27:W161)/$T$5 -> 0.9999778274 | Z161: 0.398 | AA161: 2.359152621e-07 | AB161: =SUM($Z$27:Z161)/$U$5 -> 0.998927237 | AC161: 0.02586 | AD161: 1.518925145e-06 | AE161: =SUM($AC$27:AC161)/$V$5 -> 0.9968768235 | AF161: =Tabelle131[[#This Row],[Menge (Tonnen)]]+Tabelle131[[#This Row],[Menge (Tonnen)2]] -> 0.425 | AG161: 6.10937244e-08 | AH161: =SUM($AF$27:AF161)/$W$5 -> 0.9997111068 | AI161: =Tabelle131[[#This Row],[Wert (Mio. CHF)]]+Tabelle131[[#This Row],[Wert (Mio. CHF)2]] -> 0.026475 | AJ161: 8.267639485e-07 | AK161: =SUM($AI$27:AI161)/$X$5 -> 0.9983291335 | AM161: 135
A162: 2019 | B162: Niger | C162: 20 | D162: 201 | E162: -98.2 | F162: 99219 | G162: 2437486 | H162: 305 | I162: 2019 | J162: Niger | M162: * | N162: 99160 | O162: 2435051 | P162: 306.3 | Q162: 2019 | R162: Niger | S162: Afrika | T162: 0.02 | U162: 3.795442193e-09 | V162: =SUM($T$27:T162)/$S$5 -> 0.9999620699 | W162: 0.000201 | X162: 1.340246233e-08 | Y162: =SUM($W$27:W162)/$T$5 -> 0.9999778408 | Z162: 0.059 | AA162: 3.497236297e-08 | AB162: =SUM($Z$27:Z162)/$U$5 -> 0.998927272 | AC162: 0.002435 | AD162: 1.430233073e-07 | AE162: =SUM($AC$27:AC162)/$V$5 -> 0.9968769665 | AF162: =Tabelle131[[#This Row],[Menge (Tonnen)]]+Tabelle131[[#This Row],[Menge (Tonnen)2]] -> 0.079 | AG162: 1.135624524e-08 | AH162: =SUM($AF$27:AF162)/$W$5 -> 0.9997111181 | AI162: =Tabelle131[[#This Row],[Wert (Mio. CHF)]]+Tabelle131[[#This Row],[Wert (Mio. CHF)2]] -> 0.002636 | AJ162: 8.23172717e-08 | AK162: =SUM($AI$27:AI162)/$X$5 -> 0.9983292158 | AM162: 136
A163: 2019 | B163: Simbabwe | C163: 23 | D163: 3958 | E163: 159.4 | F163: 7272 | G163: 2363878 | H163: -84.7 | I163: 2019 | J163: Simbabwe | K163: 5 | L163: 437 | M163: * | N163: 6341 | O163: 2338910 | P163: -84.7 | Q163: 2019 | R163: Simbabwe | S163: Afrika | T163: 0.018 | U163: 3.415897974e-09 | V163: =SUM($T$27:T163)/$S$5 -> 0.9999620733 | W163: 0.003521 | X163: 2.34776467e-07 | Y163: =SUM($W$27:W163)/$T$5 -> 0.9999780756 | Z163: 0.931 | AA163: 5.518520327e-07 | AB163: =SUM($Z$27:Z163)/$U$5 -> 0.9989278238 | AC163: 0.024968 | AD163: 1.466532212e-06 | AE163: =SUM($AC$27:AC163)/$V$5 -> 0.996878433 | AF163: =Tabelle131[[#This Row],[Menge (Tonnen)]]+Tabelle131[[#This Row],[Menge (Tonnen)2]] -> 0.949 | AG163: 1.364186928e-07 | AH163: =SUM($AF$27:AF163)/$W$5 -> 0.9997112545 | AI163: =Tabelle131[[#This Row],[Wert (Mio. CHF)]]+Tabelle131[[#This Row],[Wert (Mio. CHF)2]] -> 0.028489 | AJ163: 8.89657342e-07 | AK163: =SUM($AI$27:AI163)/$X$5 -> 0.9983301055 | AM163: 137
A164: 2019 | B164: Myanmar | C164: 15 | D164: 947 | E164: -86.5 | F164: 121310 | G164: 9083884 | H164: 5.9 | I164: 2019 | J164: Myanmar | M164: -100 | N164: 23329 | O164: 7842628 | P164: 3.3 | Q164: 2019 | R164: Myanmar | S164: Sonstiges Asien | T164: 0.015 | U164: 2.846581645e-09 | V164: =SUM($T$27:T164)/$S$5 -> 0.9999620761 | W164: 0.000947 | X164: 6.314493446e-08 | Y164: =SUM($W$27:W164)/$T$5 -> 0.9999781387 | Z164: 97.981 | AA164: 5.807842537e-05 | AB164: =SUM($Z$27:Z164)/$U$5 -> 0.9989859022 | AC164: 1.241256 | AD164: 7.290699727e-05 | AE164: =SUM($AC$27:AC164)/$V$5 -> 0.99695134 | AF164: =Tabelle131[[#This Row],[Menge (Tonnen)]]+Tabelle131[[#This Row],[Menge (Tonnen)2]] -> 97.996 | AG164: 1.40869191e-05 | AH164: =SUM($AF$27:AF164)/$W$5 -> 0.9997253414 | AI164: =Tabelle131[[#This Row],[Wert (Mio. CHF)]]+Tabelle131[[#This Row],[Wert (Mio. CHF)2]] -> 1.242203 | AJ164: 3.879163955e-05 | AK164: =SUM($AI$27:AI164)/$X$5 -> 0.9983688971 | AM164: 138
A165: 2019 | B165: Tansania | C165: 27 | D165: 977 | E165: -77.2 | F165: 292053 | G165: 14579721 | H165: -24.6 | I165: 2019 | J165: Tansania | K165: 12 | L165: 162 | M165: -48.2 | N165: 17146 | O165: 10608305 | P165: -38.3 | Q165: 2019 | R165: Tansania | S165: Afrika | T165: 0.015 | U165: 2.846581645e-09 | V165: =SUM($T$27:T165)/$S$5 -> 0.999962079 | W165: 0.000815 | X165: 5.434331741e-08 | Y165: =SUM($W$27:W165)/$T$5 -> 0.9999781931 | Z165: 274.907 | AA165: 0.0001629516506 | AB165: =SUM($Z$27:Z165)/$U$5 -> 0.9991488539 | AC165: 3.971416 | AD165: 0.0002332669614 | AE165: =SUM($AC$27:AC165)/$V$5 -> 0.997184607 | AF165: =Tabelle131[[#This Row],[Menge (Tonnen)]]+Tabelle131[[#This Row],[Menge (Tonnen)2]] -> 274.922 | AG165: 3.952002094e-05 | AH165: =SUM($AF$27:AF165)/$W$5 -> 0.9997648615 | AI165: =Tabelle131[[#This Row],[Wert (Mio. CHF)]]+Tabelle131[[#This Row],[Wert (Mio. CHF)2]] -> 3.972231 | AJ165: 0.000124045227 | AK165: =SUM($AI$27:AI165)/$X$5 -> 0.9984929424 | AM165: 139
A166: 2019 | B166: Armenien | C166: 21 | D166: 6543 | E166: -72 | F166: 173324 | G166: 12939650 | H166: -24.2 | I166: 2019 | J166: Armenien | K166: 7 | L166: 1977 | M166: -74.4 | N166: 26563 | O166: 11968216 | P166: -26.1 | Q166: 2019 | R166: Armenien | S166: Sonstiges Asien | T166: 0.014 | U166: 2.656809535e-09 | V166: =SUM($T$27:T166)/$S$5 -> 0.9999620816 | W166: 0.004566 | X166: 3.044559353e-07 | Y166: =SUM($W$27:W166)/$T$5 -> 0.9999784975 | Z166: 146.761 | AA166: 8.699286377e-05 | AB166: =SUM($Z$27:Z166)/$U$5 -> 0.9992358468 | AC166: 0.971434 | AD166: 5.705860514e-05 | AE166: =SUM($AC$27:AC166)/$V$5 -> 0.9972416656 | AF166: =Tabelle131[[#This Row],[Menge (Tonnen)]]+Tabelle131[[#This Row],[Menge (Tonnen)2]] -> 146.775 | AG166: 2.109889741e-05 | AH166: =SUM($AF$27:AF166)/$W$5 -> 0.9997859604 | AI166: =Tabelle131[[#This Row],[Wert (Mio. CHF)]]+Tabelle131[[#This Row],[Wert (Mio. CHF)2]] -> 0.976 | AJ166: 3.047862564e-05 | AK166: =SUM($AI$27:AI166)/$X$5 -> 0.998523421 | AM166: 140
A167: 2019 | B167: Somalia | C167: 11 | D167: 4208 | E167: -94.4 | F167: 5677 | G167: 63493 | H167: 10.3 | I167: 2019 | J167: Somalia | M167: * | N167: 77 | O167: 16884 | P167: 110 | Q167: 2019 | R167: Somalia | S167: Afrika | T167: 0.011 | U167: 2.087493206e-09 | V167: =SUM($T$27:T167)/$S$5 -> 0.9999620837 | W167: 0.004208 | X167: 2.80584883e-07 | Y167: =SUM($W$27:W167)/$T$5 -> 0.9999787781 | Z167: 5.6 | AA167: 3.319410723e-06 | AB167: =SUM($Z$27:Z167)/$U$5 -> 0.9992391662 | AC167: 0.046609 | AD167: 2.737648185e-06 | AE167: =SUM($AC$27:AC167)/$V$5 -> 0.9972444032 | AF167: =Tabelle131[[#This Row],[Menge (Tonnen)]]+Tabelle131[[#This Row],[Menge (Tonnen)2]] -> 5.611 | AG167: 8.06580912e-07 | AH167: =SUM($AF$27:AF167)/$W$5 -> 0.9997867669 | AI167: =Tabelle131[[#This Row],[Wert (Mio. CHF)]]+Tabelle131[[#This Row],[Wert (Mio. CHF)2]] -> 0.050817 | AJ167: 1.58691836e-06 | AK167: =SUM($AI$27:AI167)/$X$5 -> 0.9985250079 | AM167: 141
A168: 2019 | B168: Neukaledonien | C168: 10 | D168: 16957 | E168: * | F168: 1652 | G168: 136596 | H168: 13.5 | I168: 2019 | J168: Neukaledonien | M168: * | N168: 31 | O168: 27849 | P168: -3.5 | Q168: 2019 | R168: Neukaledonien | S168: EU27 | T168: 0.01 | U168: 1.897721097e-09 | V168: =SUM($T$27:T168)/$S$5 -> 0.9999620856 | W168: 0.016957 | X168: 1.130674397e-06 | Y168: =SUM($W$27:W168)/$T$5 -> 0.9999799088 | Z168: 1.621 | AA168: 9.608508539e-07 | AB168: =SUM($Z$27:Z168)/$U$5 -> 0.999240127 | AC168: 0.108747 | AD168: 6.387415031e-06 | AE168: =SUM($AC$27:AC168)/$V$5 -> 0.9972507907 | AF168: =Tabelle131[[#This Row],[Menge (Tonnen)]]+Tabelle131[[#This Row],[Menge (Tonnen)2]] -> 1.631 | AG168: 2.344561518e-07 | AH168: =SUM($AF$27:AF168)/$W$5 -> 0.9997870014 | AI168: =Tabelle131[[#This Row],[Wert (Mio. CHF)]]+Tabelle131[[#This Row],[Wert (Mio. CHF)2]] -> 0.125704 | AJ168: 3.925497087e-06 | AK168: =SUM($AI$27:AI168)/$X$5 -> 0.9985289334 | AM168: 142
A169: 2019 | B169: Nicaragua | C169: 401 | D169: 2910 | E169: 12.4 | F169: 12899 | G169: 1507939 | H169: -3.4 | I169: 2019 | J169: Nicaragua | M169: -100 | N169: 4386 | O169: 1293768 | P169: -8.5 | Q169: 2019 | R169: Nicaragua | S169: Lateinamerika | T169: 0.401 | U169: 7.609861598e-08 | V169: =SUM($T$27:T169)/$S$5 -> 0.9999621617 | W169: 0.00291 | X169: 1.940356487e-07 | Y169: =SUM($W$27:W169)/$T$5 -> 0.9999801028 | Z169: 8.513 | AA169: 5.046097051e-06 | AB169: =SUM($Z$27:Z169)/$U$5 -> 0.9992451731 | AC169: 0.214171 | AD169: 1.257964877e-05 | AE169: =SUM($AC$27:AC169)/$V$5 -> 0.9972633703 | AF169: =Tabelle131[[#This Row],[Menge (Tonnen)]]+Tabelle131[[#This Row],[Menge (Tonnen)2]] -> 8.914 | AG169: 1.281386963e-06 | AH169: =SUM($AF$27:AF169)/$W$5 -> 0.9997882828 | AI169: =Tabelle131[[#This Row],[Wert (Mio. CHF)]]+Tabelle131[[#This Row],[Wert (Mio. CHF)2]] -> 0.217081 | AJ169: 6.779027185e-06 | AK169: =SUM($AI$27:AI169)/$X$5 -> 0.9985357124 | AM169: 143
A170: 2019 | B170: Bermuda | C170: 4 | D170: 1285 | E170: * | F170: 380 | G170: 575377 | H170: 10.3 | I170: 2019 | J170: Bermuda | M170: * | N170: 377 | O170: 575251 | P170: 15.3 | Q170: 2019 | R170: Bermuda | S170: Sonstiges Europa | T170: 0.004 | U170: 7.590884387e-10 | V170: =SUM($T$27:T170)/$S$5 -> 0.9999621625 | W170: 0.001285 | X170: 8.568240843e-08 | Y170: =SUM($W$27:W170)/$T$5 -> 0.9999801885 | Z170: 0.003 | AA170: 1.778255744e-09 | AB170: =SUM($Z$27:Z170)/$U$5 -> 0.9992451749 | AC170: 0.000126 | AD170: 7.400795368e-09 | AE170: =SUM($AC$27:AC170)/$V$5 -> 0.9972633777 | AF170: =Tabelle131[[#This Row],[Menge (Tonnen)]]+Tabelle131[[#This Row],[Menge (Tonnen)2]] -> 0.007 | AG170: 1.006249578e-09 | AH170: =SUM($AF$27:AF170)/$W$5 -> 0.9997882838 | AI170: =Tabelle131[[#This Row],[Wert (Mio. CHF)]]+Tabelle131[[#This Row],[Wert (Mio. CHF)2]] -> 0.001411 | AJ170: 4.406284915e-08 | AK170: =SUM($AI$27:AI170)/$X$5 -> 0.9985357565 | AM170: 144
A171: 2019 | B171: Tschad | C171: 2 | D171: 391 | E171: * | F171: 75753 | G171: 492651 | H171: -2.7 | I171: 2019 | J171: Tschad | M171: * | N171: 75460 | O171: 483619 | P171: -4.3 | Q171: 2019 | R171: Tschad | S171: Afrika | T171: 0.002 | U171: 3.795442193e-10 | V171: =SUM($T$27:T171)/$S$5 -> 0.9999621629 | W171: 0.000391 | X171: 2.607145657e-08 | Y171: =SUM($W$27:W171)/$T$5 -> 0.9999802146 | Z171: 0.293 | AA171: 1.73676311e-07 | AB171: =SUM($Z$27:Z171)/$U$5 -> 0.9992453486 | AC171: 0.009032 | AD171: 5.305078077e-07 | AE171: =SUM($AC$27:AC171)/$V$5 -> 0.9972639082 | AF171: =Tabelle131[[#This Row],[Menge (Tonnen)]]+Tabelle131[[#This Row],[Menge (Tonnen)2]] -> 0.295 | AG171: 4.240623223e-08 | AH171: =SUM($AF$27:AF171)/$W$5 -> 0.9997883262 | AI171: =Tabelle131[[#This Row],[Wert (Mio. CHF)]]+Tabelle131[[#This Row],[Wert (Mio. CHF)2]] -> 0.009423 | AJ171: 2.942623867e-07 | AK171: =SUM($AI$27:AI171)/$X$5 -> 0.9985360507 | AM171: 145
A172: 2019 | B172: Jamaika | C172: 378 | D172: 75311 | E172: 142.2 | F172: 2350 | G172: 520740 | H172: 6 | I172: 2019 | J172: Jamaika | K172: 5 | L172: 70 | M172: * | N172: 354 | O172: 486155 | P172: 2.4 | Q172: 2019 | R172: Jamaika | S172: Lateinamerika | T172: 0.373 | U172: 7.078499691e-08 | V172: =SUM($T$27:T172)/$S$5 -> 0.9999622336 | W172: 0.075241 | X172: 5.016988399e-06 | Y172: =SUM($W$27:W172)/$T$5 -> 0.9999852316 | Z172: 1.996 | AA172: 1.183132822e-06 | AB172: =SUM($Z$27:Z172)/$U$5 -> 0.9992465317 | AC172: 0.034585 | AD172: 2.031400856e-06 | AE172: =SUM($AC$27:AC172)/$V$5 -> 0.9972659396 | AF172: =Tabelle131[[#This Row],[Menge (Tonnen)]]+Tabelle131[[#This Row],[Menge (Tonnen)2]] -> 2.369 | AG172: 3.405436073e-07 | AH172: =SUM($AF$27:AF172)/$W$5 -> 0.9997886667 | AI172: =Tabelle131[[#This Row],[Wert (Mio. CHF)]]+Tabelle131[[#This Row],[Wert (Mio. CHF)2]] -> 0.109826 | AJ172: 3.429657315e-06 | AK172: =SUM($AI$27:AI172)/$X$5 -> 0.9985394804 | AM172: 146
A173: 2019 | B173: Guadeloupe | C173: 910 | D173: 97000 | E173: ** | F173: 9392 | G173: 105705 | H173: 55.8 | I173: 2019 | J173: Guadeloupe | K173: 910 | L173: 97000 | M173: * | N173: 2 | O173: 1999 | P173: -12.9 | Q173: 2019 | R173: Guadeloupe | S173: Lateinamerika | T173: 0 | U173: 0 | V173: =SUM($T$27:T173)/$S$5 -> 0.9999622336 | W173: 0 | X173: 0 | Y173: =SUM($W$27:W173)/$T$5 -> 0.9999852316 | Z173: 9.39 | AA173: 5.56594048e-06 | AB173: =SUM($Z$27:Z173)/$U$5 -> 0.9992520976 | AC173: 0.103706 | AD173: 6.09132448e-06 | AE173: =SUM($AC$27:AC173)/$V$5 -> 0.9972720309 | AF173: =Tabelle131[[#This Row],[Menge (Tonnen)]]+Tabelle131[[#This Row],[Menge (Tonnen)2]] -> 9.39 | AG173: 1.349811934e-06 | AH173: =SUM($AF$27:AF173)/$W$5 -> 0.9997900166 | AI173: =Tabelle131[[#This Row],[Wert (Mio. CHF)]]+Tabelle131[[#This Row],[Wert (Mio. CHF)2]] -> 0.103706 | AJ173: 3.238541343e-06 | AK173: =SUM($AI$27:AI173)/$X$5 -> 0.9985427189 | AM173: 147
A174: 2019 | B174: Montenegro | C174: 3 | D174: 342 | E174: -77 | F174: 15065 | G174: 14810770 | H174: 52.8 | I174: 2019 | J174: Montenegro | K174: 2 | L174: 141 | M174: 116.9 | N174: 3762 | O174: 14632813 | P174: 53.4 | Q174: 2019 | R174: Montenegro | S174: Sonstiges Europa | T174: 0.001 | U174: 1.897721097e-10 | V174: =SUM($T$27:T174)/$S$5 -> 0.9999622338 | W174: 0.000201 | X174: 1.340246233e-08 | Y174: =SUM($W$27:W174)/$T$5 -> 0.999985245 | Z174: 11.303 | AA174: 6.699874893e-06 | AB174: =SUM($Z$27:Z174)/$U$5 -> 0.9992587975 | AC174: 0.177957 | AD174: 1.04525662e-05 | AE174: =SUM($AC$27:AC174)/$V$5 -> 0.9972824835 | AF174: =Tabelle131[[#This Row],[Menge (Tonnen)]]+Tabelle131[[#This Row],[Menge (Tonnen)2]] -> 11.304 | AG174: 1.624949319e-06 | AH174: =SUM($AF$27:AF174)/$W$5 -> 0.9997916415 | AI174: =Tabelle131[[#This Row],[Wert (Mio. CHF)]]+Tabelle131[[#This Row],[Wert (Mio. CHF)2]] -> 0.178158 | AJ174: 5.563535847e-06 | AK174: =SUM($AI$27:AI174)/$X$5 -> 0.9985482825 | AM174: 148
A175: 2019 | B175: Lesotho | E175: * | F175: 7 | G175: 2489 | H175: * | I175: 2019 | J175: Lesotho | M175: * | N175: 7 | O175: 2489 | P175: * | Q175: 2019 | R175: Lesotho | S175: Afrika | T175: 0 | U175: 0 | V175: =SUM($T$27:T175)/$S$5 -> 0.9999622338 | W175: 0 | X175: 0 | Y175: =SUM($W$27:W175)/$T$5 -> 0.999985245 | Z175: 0 | AA175: 0 | AB175: =SUM($Z$27:Z175)/$U$5 -> 0.9992587975 | AC175: 0 | AD175: 0 | AE175: =SUM($AC$27:AC175)/$V$5 -> 0.9972824835 | AF175: =Tabelle131[[#This Row],[Menge (Tonnen)]]+Tabelle131[[#This Row],[Menge (Tonnen)2]] -> 0 | AG175: 0 | AH175: =SUM($AF$27:AF175)/$W$5 -> 0.9997916415 | AI175: =Tabelle131[[#This Row],[Wert (Mio. CHF)]]+Tabelle131[[#This Row],[Wert (Mio. CHF)2]] -> 0 | AJ175: 0 | AK175: =SUM($AI$27:AI175)/$X$5 -> 0.9985482825 | AM175: 149
A176: 2019 | B176: Malawi | E176: * | F176: 3671 | G176: 1028869 | H176: ** | I176: 2019 | J176: Malawi | M176: * | N176: 3671 | O176: 1028869 | P176: ** | Q176: 2019 | R176: Malawi | S176: Afrika | T176: 0 | U176: 0 | V176: =SUM($T$27:T176)/$S$5 -> 0.9999622338 | W176: 0 | X176: 0 | Y176: =SUM($W$27:W176)/$T$5 -> 0.999985245 | Z176: 0 | AA176: 0 | AB176: =SUM($Z$27:Z176)/$U$5 -> 0.9992587975 | AC176: 0 | AD176: 0 | AE176: =SUM($AC$27:AC176)/$V$5 -> 0.9972824835 | AF176: =Tabelle131[[#This Row],[Menge (Tonnen)]]+Tabelle131[[#This Row],[Menge (Tonnen)2]] -> 0 | AG176: 0 | AH176: =SUM($AF$27:AF176)/$W$5 -> 0.9997916415 | AI176: =Tabelle131[[#This Row],[Wert (Mio. CHF)]]+Tabelle131[[#This Row],[Wert (Mio. CHF)2]] -> 0 | AJ176: 0 | AK176: =SUM($AI$27:AI176)/$X$5 -> 0.9985482825 | AM176: 150
A177: 2019 | B177: Sierra Leone | E177: * | F177: 662 | G177: 82401 | H177: -5.7 | I177: 2019 | J177: Sierra Leone | M177: * | N177: 662 | O177: 82401 | P177: 672.1 | Q177: 2019 | R177: Sierra Leone | S177: Afrika | T177: 0 | U177: 0 | V177: =SUM($T$27:T177)/$S$5 -> 0.9999622338 | W177: 0 | X177: 0 | Y177: =SUM($W$27:W177)/$T$5 -> 0.999985245 | Z177: 0 | AA177: 0 | AB177: =SUM($Z$27:Z177)/$U$5 -> 0.9992587975 | AC177: 0 | AD177: 0 | AE177: =SUM($AC$27:AC177)/$V$5 -> 0.9972824835 | AF177: =Tabelle131[[#This Row],[Menge (Tonnen)]]+Tabelle131[[#This Row],[Menge (Tonnen)2]] -> 0 | AG177: 0 | AH177: =SUM($AF$27:AF177)/$W$5 -> 0.9997916415 | AI177: =Tabelle131[[#This Row],[Wert (Mio. CHF)]]+Tabelle131[[#This Row],[Wert (Mio. CHF)2]] -> 0 | AJ177: 0 | AK177: =SUM($AI$27:AI177)/$X$5 -> 0.9985482825 | AM177: 151
A178: 2019 | B178: Südsudan | E178: * | F178: 2869 | G178: 24417453 | H178: 142.4 | I178: 2019 | J178: Südsudan | M178: * | N178: 2869 | O178: 24417453 | P178: 142.4 | Q178: 2019 | R178: Südsudan | S178: Afrika | T178: 0 | U178: 0 | V178: =SUM($T$27:T178)/$S$5 -> 0.9999622338 | W178: 0 | X178: 0 | Y178: =SUM($W$27:W178)/$T$5 -> 0.999985245 | Z178: 0 | AA178: 0 | AB178: =SUM($Z$27:Z178)/$U$5 -> 0.9992587975 | AC178: 0 | AD178: 0 | AE178: =SUM($AC$27:AC178)/$V$5 -> 0.9972824835 | AF178: =Tabelle131[[#This Row],[Menge (Tonnen)]]+Tabelle131[[#This Row],[Menge (Tonnen)2]] -> 0 | AG178: 0 | AH178: =SUM($AF$27:AF178)/$W$5 -> 0.9997916415 | AI178: =Tabelle131[[#This Row],[Wert (Mio. CHF)]]+Tabelle131[[#This Row],[Wert (Mio. CHF)2]] -> 0 | AJ178: 0 | AK178: =SUM($AI$27:AI178)/$X$5 -> 0.9985482825 | AM178: 152
A179: 2019 | B179: Ceuta | E179: * | F179: 11 | G179: 35664 | H179: 254.8 | I179: 2019 | J179: Ceuta | M179: * | N179: 11 | O179: 35664 | P179: 254.8 | Q179: 2019 | R179: Ceuta | S179: EU27 | T179: 0 | U179: 0 | V179: =SUM($T$27:T179)/$S$5 -> 0.9999622338 | W179: 0 | X179: 0 | Y179: =SUM($W$27:W179)/$T$5 -> 0.999985245 | Z179: 0 | AA179: 0 | AB179: =SUM($Z$27:Z179)/$U$5 -> 0.9992587975 | AC179: 0 | AD179: 0 | AE179: =SUM($AC$27:AC179)/$V$5 -> 0.9972824835 | AF179: =Tabelle131[[#This Row],[Menge (Tonnen)]]+Tabelle131[[#This Row],[Menge (Tonnen)2]] -> 0 | AG179: 0 | AH179: =SUM($AF$27:AF179)/$W$5 -> 0.9997916415 | AI179: =Tabelle131[[#This Row],[Wert (Mio. CHF)]]+Tabelle131[[#This Row],[Wert (Mio. CHF)2]] -> 0 | AJ179: 0 | AK179: =SUM($AI$27:AI179)/$X$5 -> 0.9985482825 | AM179: 153
A180: 2019 | B180: Grönland | E180: -100 | H180: -100 | I180: 2019 | J180: Grönland | M180: -100 | P180: * | Q180: 2019 | R180: Grönland | S180: EU27 | T180: 0 | U180: 0 | V180: =SUM($T$27:T180)/$S$5 -> 0.9999622338 | W180: 0 | X180: 0 | Y180: =SUM($W$27:W180)/$T$5 -> 0.999985245 | Z180: 0 | AA180: 0 | AB180: =SUM($Z$27:Z180)/$U$5 -> 0.9992587975 | AC180: 0 | AD180: 0 | AE180: =SUM($AC$27:AC180)/$V$5 -> 0.9972824835 | AF180: =Tabelle131[[#This Row],[Menge (Tonnen)]]+Tabelle131[[#This Row],[Menge (Tonnen)2]] -> 0 | AG180: 0 | AH180: =SUM($AF$27:AF180)/$W$5 -> 0.9997916415 | AI180: =Tabelle131[[#This Row],[Wert (Mio. CHF)]]+Tabelle131[[#This Row],[Wert (Mio. CHF)2]] -> 0 | AJ180: 0 | AK180: =SUM($AI$27:AI180)/$X$5 -> 0.9985482825 | AM180: 154
A181: 2019 | B181: Melilla | E181: * | H181: -100 | I181: 2019 | J181: Melilla | M181: * | P181: -100 | Q181: 2019 | R181: Melilla | S181: EU27 | T181: =(C181-K181)/1000 -> 0 | U181: =T181/$S$5 -> 0 | V181: =SUM($T$27:T181)/$S$5 -> 0.9999622338 | W181: =(D181-L181)*10^-6 -> 0 | X181: =W181/$T$5 -> 0 | Y181: =SUM($W$27:W181)/$T$5 -> 0.999985245 | Z181: =(F181-N181)/1000 -> 0 | AA181: =Z181/$U$5 -> 0 | AB181: =SUM($Z$27:Z181)/$U$5 -> 0.9992587975 | AC181: =(G181-O181)*10^-6 -> 0 | AD181: =AC181/$V$5 -> 0 | AE181: =SUM($AC$27:AC181)/$V$5 -> 0.9972824835 | AF181: =Tabelle131[[#This Row],[Menge (Tonnen)]]+Tabelle131[[#This Row],[Menge (Tonnen)2]] -> 0 | AG181: =AF181/$W$5 -> 0 | AH181: =SUM($AF$27:AF181)/$W$5 -> 0.9997916415 | AI181: =Tabelle131[[#This Row],[Wert (Mio. CHF)]]+Tabelle131[[#This Row],[Wert (Mio. CHF)2]] -> 0 | AJ181: =AI181/$X$5 -> 0 | AK181: =SUM($AI$27:AI181)/$X$5 -> 0.9985482825 | AM181: 155
A182: 2019 | B182: Barbados | E182: -100 | F182: 992 | G182: 99446 | H182: -23.2 | I182: 2019 | J182: Barbados | M182: * | N182: 116 | O182: 9874 | P182: -21.8 | Q182: 2019 | R182: Barbados | S182: Lateinamerika | T182: 0 | U182: 0 | V182: =SUM($T$27:T182)/$S$5 -> 0.9999622338 | W182: 0 | X182: 0 | Y182: =SUM($W$27:W182)/$T$5 -> 0.999985245 | Z182: 0.876 | AA182: 5.192506774e-07 | AB182: =SUM($Z$27:Z182)/$U$5 -> 0.9992593168 | AC182: 0.089572 | AD182: 5.261143196e-06 | AE182: =SUM($AC$27:AC182)/$V$5 -> 0.9972877446 | AF182: =Tabelle131[[#This Row],[Menge (Tonnen)]]+Tabelle131[[#This Row],[Menge (Tonnen)2]] -> 0.876 | AG182: 1.259249472e-07 | AH182: =SUM($AF$27:AF182)/$W$5 -> 0.9997917674 | AI182: =Tabelle131[[#This Row],[Wert (Mio. CHF)]]+Tabelle131[[#This Row],[Wert (Mio. CHF)2]] -> 0.089572 | AJ182: 2.797163377e-06 | AK182: =SUM($AI$27:AI182)/$X$5 -> 0.9985510796 | AM182: 156
A183: 2019 | B183: Nauru | E183: * | H183: -100 | I183: 2019 | J183: Nauru | M183: * | P183: -100 | Q183: 2019 | R183: Nauru | S183: Ozeanien | T183: 0 | U183: 0 | V183: =SUM($T$27:T183)/$S$5 -> 0.9999622338 | W183: 0 | X183: 0 | Y183: =SUM($W$27:W183)/$T$5 -> 0.999985245 | Z183: 0 | AA183: 0 | AB183: =SUM($Z$27:Z183)/$U$5 -> 0.9992593168 | AC183: 0 | AD183: 0 | AE183: =SUM($AC$27:AC183)/$V$5 -> 0.9972877446 | AF183: =Tabelle131[[#This Row],[Menge (Tonnen)]]+Tabelle131[[#This Row],[Menge (Tonnen)2]] -> 0 | AG183: 0 | AH183: =SUM($AF$27:AF183)/$W$5 -> 0.9997917674 | AI183: =Tabelle131[[#This Row],[Wert (Mio. CHF)]]+Tabelle131[[#This Row],[Wert (Mio. CHF)2]] -> 0 | AJ183: 0 | AK183: =SUM($AI$27:AI183)/$X$5 -> 0.9985510796 | AM183: 157
A184: 2019 | B184: Salomonen | C184: 23 | D184: 1805 | E184: 29.9 | H184: -100 | I184: 2019 | J184: Salomonen | K184: 23 | L184: 1805 | M184: * | P184: -100 | Q184: 2019 | R184: Salomonen | S184: Ozeanien | T184: 0 | U184: 0 | V184: =SUM($T$27:T184)/$S$5 -> 0.9999622338 | W184: 0 | X184: 0 | Y184: =SUM($W$27:W184)/$T$5 -> 0.999985245 | Z184: 0 | AA184: 0 | AB184: =SUM($Z$27:Z184)/$U$5 -> 0.9992593168 | AC184: 0 | AD184: 0 | AE184: =SUM($AC$27:AC184)/$V$5 -> 0.9972877446 | AF184: =Tabelle131[[#This Row],[Menge (Tonnen)]]+Tabelle131[[#This Row],[Menge (Tonnen)2]] -> 0 | AG184: 0 | AH184: =SUM($AF$27:AF184)/$W$5 -> 0.9997917674 | AI184: =Tabelle131[[#This Row],[Wert (Mio. CHF)]]+Tabelle131[[#This Row],[Wert (Mio. CHF)2]] -> 0 | AJ184: 0 | AK184: =SUM($AI$27:AI184)/$X$5 -> 0.9985510796 | AM184: 158
A185: 2019 | B185: Samoa | C185: 1008 | D185: 47531 | E185: 723.2 | H185: * | I185: 2019 | J185: Samoa | K185: 1008 | L185: 47531 | M185: * | P185: * | Q185: 2019 | R185: Samoa | S185: Ozeanien | T185: 0 | U185: 0 | V185: =SUM($T$27:T185)/$S$5 -> 0.9999622338 | W185: 0 | X185: 0 | Y185: =SUM($W$27:W185)/$T$5 -> 0.999985245 | Z185: 0 | AA185: 0 | AB185: =SUM($Z$27:Z185)/$U$5 -> 0.9992593168 | AC185: 0 | AD185: 0 | AE185: =SUM($AC$27:AC185)/$V$5 -> 0.9972877446 | AF185: =Tabelle131[[#This Row],[Menge (Tonnen)]]+Tabelle131[[#This Row],[Menge (Tonnen)2]] -> 0 | AG185: 0 | AH185: =SUM($AF$27:AF185)/$W$5 -> 0.9997917674 | AI185: =Tabelle131[[#This Row],[Wert (Mio. CHF)]]+Tabelle131[[#This Row],[Wert (Mio. CHF)2]] -> 0 | AJ185: 0 | AK185: =SUM($AI$27:AI185)/$X$5 -> 0.9985510796 | AM185: 159
A186: 2019 | B186: Bhutan | E186: * | F186: 485 | G186: 836074 | H186: 676.2 | I186: 2019 | J186: Bhutan | M186: * | N186: 485 | O186: 836074 | P186: 677.1 | Q186: 2019 | R186: Bhutan | S186: Sonstiges Asien | T186: 0 | U186: 0 | V186: =SUM($T$27:T186)/$S$5 -> 0.9999622338 | W186: 0 | X186: 0 | Y186: =SUM($W$27:W186)/$T$5 -> 0.999985245 | Z186: 0 | AA186: 0 | AB186: =SUM($Z$27:Z186)/$U$5 -> 0.9992593168 | AC186: 0 | AD186: 0 | AE186: =SUM($AC$27:AC186)/$V$5 -> 0.9972877446 | AF186: =Tabelle131[[#This Row],[Menge (Tonnen)]]+Tabelle131[[#This Row],[Menge (Tonnen)2]] -> 0 | AG186: 0 | AH186: =SUM($AF$27:AF186)/$W$5 -> 0.9997917674 | AI186: =Tabelle131[[#This Row],[Wert (Mio. CHF)]]+Tabelle131[[#This Row],[Wert (Mio. CHF)2]] -> 0 | AJ186: 0 | AK186: =SUM($AI$27:AI186)/$X$5 -> 0.9985510796 | AM186: 160
A187: 2019 | B187: Korea (Nord) | E187: * | F187: 0 | G187: 638 | H187: -96.2 | I187: 2019 | J187: Korea (Nord) | M187: * | N187: 0 | O187: 638 | P187: -96.2 | Q187: 2019 | R187: Korea (Nord) | S187: Sonstiges Asien | T187: 0 | U187: 0 | V187: =SUM($T$27:T187)/$S$5 -> 0.9999622338 | W187: 0 | X187: 0 | Y187: =SUM($W$27:W187)/$T$5 -> 0.999985245 | Z187: 0 | AA187: 0 | AB187: =SUM($Z$27:Z187)/$U$5 -> 0.9992593168 | AC187: 0 | AD187: 0 | AE187: =SUM($AC$27:AC187)/$V$5 -> 0.9972877446 | AF187: =Tabelle131[[#This Row],[Menge (Tonnen)]]+Tabelle131[[#This Row],[Menge (Tonnen)2]] -> 0 | AG187: 0 | AH187: =SUM($AF$27:AF187)/$W$5 -> 0.9997917674 | AI187: =Tabelle131[[#This Row],[Wert (Mio. CHF)]]+Tabelle131[[#This Row],[Wert (Mio. CHF)2]] -> 0 | AJ187: 0 | AK187: =SUM($AI$27:AI187)/$X$5 -> 0.9985510796 | AM187: 161
A188: 2019 | B188: St. Lucia | E188: * | F188: 7 | G188: 156864 | H188: -22.4 | I188: 2019 | J188: St. Lucia | M188: * | N188: 7 | O188: 156800 | P188: -22.3 | Q188: 2019 | R188: St. Lucia | S188: Sonstiges Europa | T188: 0 | U188: 0 | V188: =SUM($T$27:T188)/$S$5 -> 0.9999622338 | W188: 0 | X188: 0 | Y188: =SUM($W$27:W188)/$T$5 -> 0.999985245 | Z188: 0 | AA188: 0 | AB188: =SUM($Z$27:Z188)/$U$5 -> 0.9992593168 | AC188: 6.4e-05 | AD188: 3.759134155e-09 | AE188: =SUM($AC$27:AC188)/$V$5 -> 0.9972877484 | AF188: =Tabelle131[[#This Row],[Menge (Tonnen)]]+Tabelle131[[#This Row],[Menge (Tonnen)2]] -> 0 | AG188: 0 | AH188: =SUM($AF$27:AF188)/$W$5 -> 0.9997917674 | AI188: =Tabelle131[[#This Row],[Wert (Mio. CHF)]]+Tabelle131[[#This Row],[Wert (Mio. CHF)2]] -> 6.4e-05 | AJ188: 1.998598402e-09 | AK188: =SUM($AI$27:AI188)/$X$5 -> 0.9985510816 | AM188: 162
A189: 2019 | B189: Turks | E189: * | H189: -100 | I189: 2019 | J189: Turks | M189: * | P189: -100 | Q189: 2019 | R189: Turks | S189: Sonstiges Europa | T189: 0 | U189: 0 | V189: =SUM($T$27:T189)/$S$5 -> 0.9999622338 | W189: 0 | X189: 0 | Y189: =SUM($W$27:W189)/$T$5 -> 0.999985245 | Z189: 0 | AA189: 0 | AB189: =SUM($Z$27:Z189)/$U$5 -> 0.9992593168 | AC189: 0 | AD189: 0 | AE189: =SUM($AC$27:AC189)/$V$5 -> 0.9972877484 | AF189: =Tabelle131[[#This Row],[Menge (Tonnen)]]+Tabelle131[[#This Row],[Menge (Tonnen)2]] -> 0 | AG189: 0 | AH189: =SUM($AF$27:AF189)/$W$5 -> 0.9997917674 | AI189: =Tabelle131[[#This Row],[Wert (Mio. CHF)]]+Tabelle131[[#This Row],[Wert (Mio. CHF)2]] -> 0 | AJ189: 0 | AK189: =SUM($AI$27:AI189)/$X$5 -> 0.9985510816 | AM189: 163
A190: 2019 | B190: Eritrea | E190: * | F190: 25 | G190: 7159 | H190: 150.7 | I190: 2019 | J190: Eritrea | M190: * | N190: 19 | O190: 6332 | P190: ** | Q190: 2019 | R190: Eritrea | S190: Afrika | T190: 0 | U190: 0 | V190: =SUM($T$27:T190)/$S$5 -> 0.9999622338 | W190: 0 | X190: 0 | Y190: =SUM($W$27:W190)/$T$5 -> 0.999985245 | Z190: 0.006 | AA190: 3.556511489e-09 | AB190: =SUM($Z$27:Z190)/$U$5 -> 0.9992593203 | AC190: 0.000827 | AD190: 4.857506166e-08 | AE190: =SUM($AC$27:AC190)/$V$5 -> 0.997287797 | AF190: =Tabelle131[[#This Row],[Menge (Tonnen)]]+Tabelle131[[#This Row],[Menge (Tonnen)2]] -> 0.006 | AG190: 8.624996386e-10 | AH190: =SUM($AF$27:AF190)/$W$5 -> 0.9997917683 | AI190: =Tabelle131[[#This Row],[Wert (Mio. CHF)]]+Tabelle131[[#This Row],[Wert (Mio. CHF)2]] -> 0.000827 | AJ190: 2.582563873e-08 | AK190: =SUM($AI$27:AI190)/$X$5 -> 0.9985511075 | AM190: 164
A191: 2019 | B191: Burundi | E191: * | F191: 22 | G191: 7593 | H191: -19 | I191: 2019 | J191: Burundi | M191: * | N191: 6 | O191: 1788 | P191: -80.7 | Q191: 2019 | R191: Burundi | S191: Afrika | T191: 0 | U191: 0 | V191: =SUM($T$27:T191)/$S$5 -> 0.9999622338 | W191: 0 | X191: 0 | Y191: =SUM($W$27:W191)/$T$5 -> 0.999985245 | Z191: 0.016 | AA191: 9.484030637e-09 | AB191: =SUM($Z$27:Z191)/$U$5 -> 0.9992593298 | AC191: 0.005805 | AD191: 3.409652152e-07 | AE191: =SUM($AC$27:AC191)/$V$5 -> 0.9972881379 | AF191: =Tabelle131[[#This Row],[Menge (Tonnen)]]+Tabelle131[[#This Row],[Menge (Tonnen)2]] -> 0.016 | AG191: 2.299999036e-09 | AH191: =SUM($AF$27:AF191)/$W$5 -> 0.9997917706 | AI191: =Tabelle131[[#This Row],[Wert (Mio. CHF)]]+Tabelle131[[#This Row],[Wert (Mio. CHF)2]] -> 0.005805 | AJ191: 1.812791207e-07 | AK191: =SUM($AI$27:AI191)/$X$5 -> 0.9985512887 | AM191: 165
A192: 2019 | B192: Papua | E192: * | F192: 106 | G192: 339248 | H192: ** | I192: 2019 | J192: Papua | M192: * | N192: 39 | O192: 330866 | P192: ** | Q192: 2019 | R192: Papua | S192: Ozeanien | T192: 0 | U192: 0 | V192: =SUM($T$27:T192)/$S$5 -> 0.9999622338 | W192: 0 | X192: 0 | Y192: =SUM($W$27:W192)/$T$5 -> 0.999985245 | Z192: 0.067 | AA192: 3.971437829e-08 | AB192: =SUM($Z$27:Z192)/$U$5 -> 0.9992593695 | AC192: 0.008382 | AD192: 4.923291014e-07 | AE192: =SUM($AC$27:AC192)/$V$5 -> 0.9972886303 | AF192: =Tabelle131[[#This Row],[Menge (Tonnen)]]+Tabelle131[[#This Row],[Menge (Tonnen)2]] -> 0.067 | AG192: 9.631245964e-09 | AH192: =SUM($AF$27:AF192)/$W$5 -> 0.9997917802 | AI192: =Tabelle131[[#This Row],[Wert (Mio. CHF)]]+Tabelle131[[#This Row],[Wert (Mio. CHF)2]] -> 0.008382 | AJ192: 2.617539345e-07 | AK192: =SUM($AI$27:AI192)/$X$5 -> 0.9985515505 | AM192: 166
A193: 2019 | B193: Amer. Jungfern | C193: 0 | D193: 1998 | E193: -54.7 | F193: 84 | G193: 7928 | H193: -87.5 | I193: 2019 | J193: Amer. Jungfern | K193: 0 | L193: 1998 | M193: -54.7 | P193: * | Q193: 2019 | R193: Amer. Jungfern | S193: NAFTA | T193: 0 | U193: 0 | V193: =SUM($T$27:T193)/$S$5 -> 0.9999622338 | W193: 0 | X193: 0 | Y193: =SUM($W$27:W193)/$T$5 -> 0.999985245 | Z193: 0.084 | AA193: 4.979116085e-08 | AB193: =SUM($Z$27:Z193)/$U$5 -> 0.9992594193 | AC193: 0.007928 | AD193: 4.656627435e-07 | AE193: =SUM($AC$27:AC193)/$V$5 -> 0.9972890959 | AF193: =Tabelle131[[#This Row],[Menge (Tonnen)]]+Tabelle131[[#This Row],[Menge (Tonnen)2]] -> 0.084 | AG193: 1.207499494e-08 | AH193: =SUM($AF$27:AF193)/$W$5 -> 0.9997917923 | AI193: =Tabelle131[[#This Row],[Wert (Mio. CHF)]]+Tabelle131[[#This Row],[Wert (Mio. CHF)2]] -> 0.007928 | AJ193: 2.475763771e-07 | AK193: =SUM($AI$27:AI193)/$X$5 -> 0.9985517981 | AM193: 167
A194: 2019 | B194: Martinique | E194: * | F194: 123 | G194: 18942 | H194: 36.2 | I194: 2019 | J194: Martinique | M194: * | N194: 3 | O194: 3735 | P194: ** | Q194: 2019 | R194: Martinique | S194: EU27 | T194: 0 | U194: 0 | V194: =SUM($T$27:T194)/$S$5 -> 0.9999622338 | W194: 0 | X194: 0 | Y194: =SUM($W$27:W194)/$T$5 -> 0.999985245 | Z194: 0.12 | AA194: 7.113022978e-08 | AB194: =SUM($Z$27:Z194)/$U$5 -> 0.9992594904 | AC194: 0.015207 | AD194: 8.932055172e-07 | AE194: =SUM($AC$27:AC194)/$V$5 -> 0.9972899891 | AF194: =Tabelle131[[#This Row],[Menge (Tonnen)]]+Tabelle131[[#This Row],[Menge (Tonnen)2]] -> 0.12 | AG194: 1.724999277e-08 | AH194: =SUM($AF$27:AF194)/$W$5 -> 0.9997918095 | AI194: =Tabelle131[[#This Row],[Wert (Mio. CHF)]]+Tabelle131[[#This Row],[Wert (Mio. CHF)2]] -> 0.015207 | AJ194: 4.748857173e-07 | AK194: =SUM($AI$27:AI194)/$X$5 -> 0.998552273 | AM194: 168
A195: 2019 | B195: Brit. Jungfern | E195: * | F195: 198 | G195: 19245 | H195: -67.6 | I195: 2019 | J195: Brit. Jungfern | M195: * | N195: 48 | O195: 2861 | P195: -94.9 | Q195: 2019 | R195: Brit. Jungfern | S195: Sonstiges Europa | T195: 0 | U195: 0 | V195: =SUM($T$27:T195)/$S$5 -> 0.9999622338 | W195: 0 | X195: 0 | Y195: =SUM($W$27:W195)/$T$5 -> 0.999985245 | Z195: 0.15 | AA195: 8.891278722e-08 | AB195: =SUM($Z$27:Z195)/$U$5 -> 0.9992595794 | AC195: 0.016384 | AD195: 9.623383438e-07 | AE195: =SUM($AC$27:AC195)/$V$5 -> 0.9972909515 | AF195: =Tabelle131[[#This Row],[Menge (Tonnen)]]+Tabelle131[[#This Row],[Menge (Tonnen)2]] -> 0.15 | AG195: 2.156249097e-08 | AH195: =SUM($AF$27:AF195)/$W$5 -> 0.9997918311 | AI195: =Tabelle131[[#This Row],[Wert (Mio. CHF)]]+Tabelle131[[#This Row],[Wert (Mio. CHF)2]] -> 0.016384 | AJ195: 5.11641191e-07 | AK195: =SUM($AI$27:AI195)/$X$5 -> 0.9985527846 | AM195: 169
A196: 2019 | B196: Marshall-Inseln | E196: -100 | F196: 165 | G196: 3296 | H196: * | I196: 2019 | J196: Marshall-Inseln | M196: * | N196: 7 | O196: 883 | P196: * | Q196: 2019 | R196: Marshall-Inseln | S196: Ozeanien | T196: 0 | U196: 0 | V196: =SUM($T$27:T196)/$S$5 -> 0.9999622338 | W196: 0 | X196: 0 | Y196: =SUM($W$27:W196)/$T$5 -> 0.999985245 | Z196: 0.158 | AA196: 9.365480254e-08 | AB196: =SUM($Z$27:Z196)/$U$5 -> 0.999259673 | AC196: 0.002413 | AD196: 1.41731105e-07 | AE196: =SUM($AC$27:AC196)/$V$5 -> 0.9972910932 | AF196: =Tabelle131[[#This Row],[Menge (Tonnen)]]+Tabelle131[[#This Row],[Menge (Tonnen)2]] -> 0.158 | AG196: 2.271249048e-08 | AH196: =SUM($AF$27:AF196)/$W$5 -> 0.9997918538 | AI196: =Tabelle131[[#This Row],[Wert (Mio. CHF)]]+Tabelle131[[#This Row],[Wert (Mio. CHF)2]] -> 0.002413 | AJ196: 7.535340539e-08 | AK196: =SUM($AI$27:AI196)/$X$5 -> 0.99855286 | AM196: 170
A197: 2019 | B197: Kuba | C197: 1091 | D197: 127469 | E197: 39.5 | F197: 5756 | G197: 2247423 | H197: -22 | I197: 2019 | J197: Kuba | K197: 76 | L197: 124428 | M197: 74.4 | N197: 2235 | O197: 2163602 | P197: -11.5 | Q197: 2019 | R197: Kuba | S197: Lateinamerika | T197: 1.015 | U197: 1.926186913e-07 | V197: =SUM($T$27:T197)/$S$5 -> 0.9999624265 | W197: 0.003041 | X197: 2.027705868e-07 | Y197: =SUM($W$27:W197)/$T$5 -> 0.9999854477 | Z197: 3.521 | AA197: 2.087079492e-06 | AB197: =SUM($Z$27:Z197)/$U$5 -> 0.9992617601 | AC197: 0.083821 | AD197: 4.923349751e-06 | AE197: =SUM($AC$27:AC197)/$V$5 -> 0.9972960166 | AF197: =Tabelle131[[#This Row],[Menge (Tonnen)]]+Tabelle131[[#This Row],[Menge (Tonnen)2]] -> 4.536 | AG197: 6.520497268e-07 | AH197: =SUM($AF$27:AF197)/$W$5 -> 0.9997925059 | AI197: =Tabelle131[[#This Row],[Wert (Mio. CHF)]]+Tabelle131[[#This Row],[Wert (Mio. CHF)2]] -> 0.086862 | AJ197: 2.712535226e-06 | AK197: =SUM($AI$27:AI197)/$X$5 -> 0.9985555725 | AM197: 171
A198: 2019 | B198: Liberia | E198: -100 | F198: 224 | G198: 16443 | H198: 554.6 | I198: 2019 | J198: Liberia | M198: * | N198: 32 | O198: 11089 | P198: * | Q198: 2019 | R198: Liberia | S198: Afrika | T198: 0 | U198: 0 | V198: =SUM($T$27:T198)/$S$5 -> 0.9999624265 | W198: 0 | X198: 0 | Y198: =SUM($W$27:W198)/$T$5 -> 0.9999854477 | Z198: 0.192 | AA198: 1.138083676e-07 | AB198: =SUM($Z$27:Z198)/$U$5 -> 0.9992618739 | AC198: 0.005354 | AD198: 3.144750667e-07 | AE198: =SUM($AC$27:AC198)/$V$5 -> 0.997296331 | AF198: =Tabelle131[[#This Row],[Menge (Tonnen)]]+Tabelle131[[#This Row],[Menge (Tonnen)2]] -> 0.192 | AG198: 2.759998844e-08 | AH198: =SUM($AF$27:AF198)/$W$5 -> 0.9997925335 | AI198: =Tabelle131[[#This Row],[Wert (Mio. CHF)]]+Tabelle131[[#This Row],[Wert (Mio. CHF)2]] -> 0.005354 | AJ198: 1.671952476e-07 | AK198: =SUM($AI$27:AI198)/$X$5 -> 0.9985557397 | AM198: 172
A199: 2019 | B199: Gibraltar | E199: * | F199: 406 | G199: 183606 | H199: -1.6 | I199: 2019 | J199: Gibraltar | M199: * | N199: 13 | O199: 161617 | P199: -7.4 | Q199: 2019 | R199: Gibraltar | S199: Sonstiges Europa | T199: 0 | U199: 0 | V199: =SUM($T$27:T199)/$S$5 -> 0.9999624265 | W199: 0 | X199: 0 | Y199: =SUM($W$27:W199)/$T$5 -> 0.9999854477 | Z199: 0.393 | AA199: 2.329515025e-07 | AB199: =SUM($Z$27:Z199)/$U$5 -> 0.9992621069 | AC199: 0.021989 | AD199: 1.291556265e-06 | AE199: =SUM($AC$27:AC199)/$V$5 -> 0.9972976226 | AF199: =Tabelle131[[#This Row],[Menge (Tonnen)]]+Tabelle131[[#This Row],[Menge (Tonnen)2]] -> 0.393 | AG199: 5.649372633e-08 | AH199: =SUM($AF$27:AF199)/$W$5 -> 0.99979259 | AI199: =Tabelle131[[#This Row],[Wert (Mio. CHF)]]+Tabelle131[[#This Row],[Wert (Mio. CHF)2]] -> 0.021989 | AJ199: 6.866746918e-07 | AK199: =SUM($AI$27:AI199)/$X$5 -> 0.9985564264 | AM199: 173
A200: 2019 | B200: Kaiman-Inseln | E200: * | F200: 400 | G200: 108139 | H200: -26 | I200: 2019 | J200: Kaiman-Inseln | M200: * | N200: 6 | O200: 55178 | P200: -37.9 | Q200: 2019 | R200: Kaiman-Inseln | S200: Sonstiges Europa | T200: 0 | U200: 0 | V200: =SUM($T$27:T200)/$S$5 -> 0.9999624265 | W200: 0 | X200: 0 | Y200: =SUM($W$27:W200)/$T$5 -> 0.9999854477 | Z200: 0.394 | AA200: 2.335442544e-07 | AB200: =SUM($Z$27:Z200)/$U$5 -> 0.9992623404 | AC200: 0.052961 | AD200: 3.11074225e-06 | AE200: =SUM($AC$27:AC200)/$V$5 -> 0.9973007333 | AF200: =Tabelle131[[#This Row],[Menge (Tonnen)]]+Tabelle131[[#This Row],[Menge (Tonnen)2]] -> 0.394 | AG200: 5.663747627e-08 | AH200: =SUM($AF$27:AF200)/$W$5 -> 0.9997926466 | AI200: =Tabelle131[[#This Row],[Wert (Mio. CHF)]]+Tabelle131[[#This Row],[Wert (Mio. CHF)2]] -> 0.052961 | AJ200: 1.653871406e-06 | AK200: =SUM($AI$27:AI200)/$X$5 -> 0.9985580802 | AM200: 174
A201: 2019 | B201: Guinea-Bissau | E201: * | F201: 459 | G201: 2551 | H201: 37.2 | I201: 2019 | J201: Guinea-Bissau | M201: * | N201: 4 | O201: 1501 | P201: * | Q201: 2019 | R201: Guinea-Bissau | S201: Afrika | T201: 0 | U201: 0 | V201: =SUM($T$27:T201)/$S$5 -> 0.9999624265 | W201: 0 | X201: 0 | Y201: =SUM($W$27:W201)/$T$5 -> 0.9999854477 | Z201: 0.455 | AA201: 2.697021212e-07 | AB201: =SUM($Z$27:Z201)/$U$5 -> 0.9992626101 | AC201: 0.00105 | AD201: 6.167329474e-08 | AE201: =SUM($AC$27:AC201)/$V$5 -> 0.997300795 | AF201: =Tabelle131[[#This Row],[Menge (Tonnen)]]+Tabelle131[[#This Row],[Menge (Tonnen)2]] -> 0.455 | AG201: 6.540622259e-08 | AH201: =SUM($AF$27:AF201)/$W$5 -> 0.999792712 | AI201: =Tabelle131[[#This Row],[Wert (Mio. CHF)]]+Tabelle131[[#This Row],[Wert (Mio. CHF)2]] -> 0.00105 | AJ201: 3.278950504e-08 | AK201: =SUM($AI$27:AI201)/$X$5 -> 0.998558113 | AM201: 175
A202: 2019 | B202: Guinea, Äqua.- | E202: * | F202: 466 | G202: 58177 | H202: 238.7 | I202: 2019 | J202: Guinea, Äqua.- | M202: * | N202: 3 | O202: 1126 | P202: 862.4 | Q202: 2019 | R202: Guinea, Äqua.- | S202: Afrika | T202: 0 | U202: 0 | V202: =SUM($T$27:T202)/$S$5 -> 0.9999624265 | W202: 0 | X202: 0 | Y202: =SUM($W$27:W202)/$T$5 -> 0.9999854477 | Z202: 0.463 | AA202: 2.744441366e-07 | AB202: =SUM($Z$27:Z202)/$U$5 -> 0.9992628845 | AC202: 0.057051 | AD202: 3.350974417e-06 | AE202: =SUM($AC$27:AC202)/$V$5 -> 0.997304146 | AF202: =Tabelle131[[#This Row],[Menge (Tonnen)]]+Tabelle131[[#This Row],[Menge (Tonnen)2]] -> 0.463 | AG202: 6.655622211e-08 | AH202: =SUM($AF$27:AF202)/$W$5 -> 0.9997927786 | AI202: =Tabelle131[[#This Row],[Wert (Mio. CHF)]]+Tabelle131[[#This Row],[Wert (Mio. CHF)2]] -> 0.057051 | AJ202: 1.781594335e-06 | AK202: =SUM($AI$27:AI202)/$X$5 -> 0.9985598946 | AM202: 176
... 28 more rows
